Workbook

Sheet 0. Datos Arq Motor (hidden)
C2: Parámetros de operación | H2: DATOS RECINTO:
B4: Recup. de calor. | C4: =IF('CEV-CEVE'!$E$227='0. Tablas referencia'!$EQ$17,"Si","No") -> No | D4: [ ] | G4: Elementos Opacos | K4: Elementos traslucidos | N4: Puentes térmicos
B5: Eficiencia recup. | C5: =+'CEV-CEVE'!F229/100 -> 0 | D5: [ ] | G5: Área total [m2] | H5: Área Efectiva [m2] | I5: U [W/Km²] | K5: Área [m2] | L5: U [W/Km²] | N5: [W/K]
B6: Sistema de clima. | C6: =+C32 -> Si | D6: [ ] | AA6: Sin clima
X7: Muros | Z7: Techos | AB7: Pisos_V | AD7: Pisos_T | AH7: e Eq H.A | AI7: =+'0. Inercia Termica'!AA75 -> 5.421248821 | AJ7: =+'0. Inercia Termica'!AB75 -> 5.421248821
F8: TECHO | G8: =+G56 -> 80 | H8: =+H56 -> 80 | I8: 0.24 | K8: =+K56 -> 0 | L8: =+L56 -> 0 | X8: SA Verano | Y8: SA Invierno | Z8: SA Verano | AA8: SA Invierno | AB8: SA Verano | AC8: SA Invierno | AD8: SA Verano | AE8: SA Invierno | AH8: Área eq H.A | AI8: =+'0. Inercia Termica'!AA76 -> 182.2873016
F9: NORTE: | G9: =+G57 -> 20.88432539 | H9: 20.88432539 | I9: 0.2457624671 | K9: =+K57 -> 5.9375 | L9: 2.85 | N9: =+N57 -> 0.94375 | W9: 1 | X9: =+'0. Inercia Termica'!I74 -> 0 | Y9: =+'0. Inercia Termica'!J74 -> 0 | Z9: =+'0. Inercia Termica'!K74 -> 0 | AA9: =+'0. Inercia Termica'!L74 -> 0 | AB9: =+'0. Inercia Termica'!M74 -> 0 | AC9: =+'0. Inercia Termica'!N74 -> 0 | AD9: =+'0. Inercia Termica'!O74 -> 0 | AE9: =+'0. Inercia Termica'!P74 -> 0
F10: NOR-ESTE: | G10: =+G58 -> 0 | H10: 0 | I10: 0 | K10: =+K58 -> 0 | L10: 0 | N10: =+N58 -> 0 | W10: 2 | X10: =+'0. Inercia Termica'!I75 -> 0 | Y10: =+'0. Inercia Termica'!J75 -> 0 | Z10: =+'0. Inercia Termica'!K75 -> 0 | AA10: =+'0. Inercia Termica'!L75 -> 0 | AB10: =+'0. Inercia Termica'!M75 -> 0 | AC10: =+'0. Inercia Termica'!N75 -> 0 | AD10: =+'0. Inercia Termica'!O75 -> 0 | AE10: =+'0. Inercia Termica'!P75 -> 0 | AH10: Amortiguamiento | AI10: CTm | AJ10: fi
F11: ESTE: | G11: =+G59 -> 20.88432539 | H11: 0.3125 | I11: 2.6 | K11: =+K59 -> 5.9375 | L11: 2.85 | N11: 1.2125 | W11: 3 | X11: =+'0. Inercia Termica'!I76 -> 0 | Y11: =+'0. Inercia Termica'!J76 -> 0 | Z11: =+'0. Inercia Termica'!K76 -> -12.178 | AA11: =+'0. Inercia Termica'!L76 -> 58.002 | AB11: =+'0. Inercia Termica'!M76 -> 0 | AC11: =+'0. Inercia Termica'!N76 -> 0 | AD11: =+'0. Inercia Termica'!O76 -> 0 | AE11: =+'0. Inercia Termica'!P76 -> 0 | AH11: =+'0. Inercia Termica'!Z79 -> 0.3607398382 | AI11: =+'0. Inercia Termica'!AA79 -> 3.107747427 | AJ11: =+'0. Inercia Termica'!AB79 -> 1.376960218
F12: SUR-ESTE: | G12: =+G60 -> 0 | H12: 0 | I12: 0 | K12: =+K60 -> 0 | L12: 0 | N12: 0 | W12: 4 | X12: =+'0. Inercia Termica'!I77 -> 0 | Y12: =+'0. Inercia Termica'!J77 -> 0 | Z12: =+'0. Inercia Termica'!K77 -> 0 | AA12: =+'0. Inercia Termica'!L77 -> 0 | AB12: =+'0. Inercia Termica'!M77 -> 0 | AC12: =+'0. Inercia Termica'!N77 -> 0 | AD12: =+'0. Inercia Termica'!O77 -> 0 | AE12: =+'0. Inercia Termica'!P77 -> 0
F13: SUR: | G13: =+G61 -> 20.57182539 | H13: 20.57182539 | I13: 0.21 | K13: =+K61 -> 0 | L13: 0 | N13: 0 | W13: 5 | X13: =+'0. Inercia Termica'!I78 -> 0 | Y13: =+'0. Inercia Termica'!J78 -> 0 | Z13: =+'0. Inercia Termica'!K78 -> 0 | AA13: =+'0. Inercia Termica'!L78 -> 0 | AB13: =+'0. Inercia Termica'!M78 -> 0 | AC13: =+'0. Inercia Termica'!N78 -> 0 | AD13: =+'0. Inercia Termica'!O78 -> 0 | AE13: =+'0. Inercia Termica'!P78 -> 0 | AH13: Participación de Masa
F14: SUR-OESTE: | G14: =+G62 -> 0.3125 | H14: 0.3125 | I14: 2.6 | K14: =+K62 -> 5.9375 | L14: 2.85 | N14: 0.6916666667 | W14: 6 | X14: =+'0. Inercia Termica'!I79 -> -13.62 | Y14: =+'0. Inercia Termica'!J79 -> 56.55 | Z14: =+'0. Inercia Termica'!K79 -> 0 | AA14: =+'0. Inercia Termica'!L79 -> 0 | AB14: =+'0. Inercia Termica'!M79 -> 0 | AC14: =+'0. Inercia Termica'!N79 -> 0 | AD14: =+'0. Inercia Termica'!O79 -> 0 | AE14: =+'0. Inercia Termica'!P79 -> 0 | AH14: Techo | AI14: =+'0. Inercia Termica'!AF75 -> 0.05389549884
F15: OESTE: | G15: =+G63 -> 20.88432539 | H15: 20.88432539 | I15: 0.2457624671 | K15: =+K63 -> 5.9375 | L15: 2.85 | N15: 0 | W15: 7 | X15: =+'0. Inercia Termica'!I80 -> 0 | Y15: =+'0. Inercia Termica'!J80 -> 0 | Z15: =+'0. Inercia Termica'!K80 -> 0 | AA15: =+'0. Inercia Termica'!L80 -> 0 | AB15: =+'0. Inercia Termica'!M80 -> 0 | AC15: =+'0. Inercia Termica'!N80 -> 0 | AD15: =+'0. Inercia Termica'!O80 -> 0 | AE15: =+'0. Inercia Termica'!P80 -> 0 | AH15: Muros | AI15: =+'0. Inercia Termica'!AF76 -> 0.6245084622
F16: NOR-OESTE: | G16: =+G64 -> 0 | H16: 0 | I16: 0 | K16: =+K64 -> 0 | L16: 0 | N16: 0 | W16: 8 | X16: =+'0. Inercia Termica'!I81 -> 0 | Y16: =+'0. Inercia Termica'!J81 -> 0 | Z16: =+'0. Inercia Termica'!K81 -> 0 | AA16: =+'0. Inercia Termica'!L81 -> 0 | AB16: =+'0. Inercia Termica'!M81 -> 0 | AC16: =+'0. Inercia Termica'!N81 -> 0 | AD16: =+'0. Inercia Termica'!O81 -> 0 | AE16: =+'0. Inercia Termica'!P81 -> 0 | AH16: Piso v | AI16: =+'0. Inercia Termica'!AF77 -> 0
F17: PISO: | G17: =+G65 -> 20 | H17: 0 | I17: 0 | N17: 42.28200746 | W17: 9 | X17: =+'0. Inercia Termica'!I82 -> 0 | Y17: =+'0. Inercia Termica'!J82 -> 0 | Z17: =+'0. Inercia Termica'!K82 -> 0 | AA17: =+'0. Inercia Termica'!L82 -> 0 | AB17: =+'0. Inercia Termica'!M82 -> 0 | AC17: =+'0. Inercia Termica'!N82 -> 0 | AD17: =+'0. Inercia Termica'!O82 -> 0 | AE17: =+'0. Inercia Termica'!P82 -> 0 | AH17: Piso t | AI17: =+'0. Inercia Termica'!AF78 -> 0
W18: 10 | X18: =+'0. Inercia Termica'!I83 -> 0 | Y18: =+'0. Inercia Termica'!J83 -> 0 | Z18: =+'0. Inercia Termica'!K83 -> 0 | AA18: =+'0. Inercia Termica'!L83 -> 0 | AB18: =+'0. Inercia Termica'!M83 -> 0 | AC18: =+'0. Inercia Termica'!N83 -> 0 | AD18: =+'0. Inercia Termica'!O83 -> 0 | AE18: =+'0. Inercia Termica'!P83 -> 0 | AH18: Masa ad | AI18: =+'0. Inercia Termica'!AF79 -> 0.321596039
W19: 11 | X19: =+'0. Inercia Termica'!I84 -> 0 | Y19: =+'0. Inercia Termica'!J84 -> 0 | Z19: =+'0. Inercia Termica'!K84 -> 0 | AA19: =+'0. Inercia Termica'!L84 -> 0 | AB19: =+'0. Inercia Termica'!M84 -> 0 | AC19: =+'0. Inercia Termica'!N84 -> 0 | AD19: =+'0. Inercia Termica'!O84 -> 0 | AE19: =+'0. Inercia Termica'!P84 -> 0
G20: Area [m²] | H20: Altura [m] | I20: Volumen [m3] | W20: 12 | X20: =+'0. Inercia Termica'!I85 -> 0 | Y20: =+'0. Inercia Termica'!J85 -> 0 | Z20: =+'0. Inercia Termica'!K85 -> 0 | AA20: =+'0. Inercia Termica'!L85 -> 0 | AB20: =+'0. Inercia Termica'!M85 -> 0 | AC20: =+'0. Inercia Termica'!N85 -> 0 | AD20: =+'0. Inercia Termica'!O85 -> 0 | AE20: =+'0. Inercia Termica'!P85 -> 0
W21: 13 | X21: =+'0. Inercia Termica'!I86 -> 0 | Y21: =+'0. Inercia Termica'!J86 -> 0 | Z21: =+'0. Inercia Termica'!K86 -> 0 | AA21: =+'0. Inercia Termica'!L86 -> 0 | AB21: =+'0. Inercia Termica'!M86 -> 0 | AC21: =+'0. Inercia Termica'!N86 -> 0 | AD21: =+'0. Inercia Termica'!O86 -> 0 | AE21: =+'0. Inercia Termica'!P86 -> 0
F22: Piso 1 | G22: =+G70 -> 80 | H22: =+H70 -> 2.5 | I22: 200 | W22: 14 | X22: =+'0. Inercia Termica'!I87 -> 0 | Y22: =+'0. Inercia Termica'!J87 -> 0 | Z22: =+'0. Inercia Termica'!K87 -> 0 | AA22: =+'0. Inercia Termica'!L87 -> 0 | AB22: =+'0. Inercia Termica'!M87 -> 0 | AC22: =+'0. Inercia Termica'!N87 -> 0 | AD22: =+'0. Inercia Termica'!O87 -> 0 | AE22: =+'0. Inercia Termica'!P87 -> 0
F23: Piso 2 | G23: =+G71 -> 0 | H23: 0 | I23: 0 | W23: 15 | X23: =+'0. Inercia Termica'!I88 -> 0 | Y23: =+'0. Inercia Termica'!J88 -> 0 | Z23: =+'0. Inercia Termica'!K88 -> 0 | AA23: =+'0. Inercia Termica'!L88 -> 0 | AB23: =+'0. Inercia Termica'!M88 -> 0 | AC23: =+'0. Inercia Termica'!N88 -> 0 | AD23: =+'0. Inercia Termica'!O88 -> 0 | AE23: =+'0. Inercia Termica'!P88 -> 0
F24: Piso 3+4+.. | G24: =+G72 -> 0 | H24: 0 | I24: 0 | W24: 16 | X24: =+'0. Inercia Termica'!I89 -> 0 | Y24: =+'0. Inercia Termica'!J89 -> 0 | Z24: =+'0. Inercia Termica'!K89 -> 0 | AA24: =+'0. Inercia Termica'!L89 -> 0 | AB24: =+'0. Inercia Termica'!M89 -> 0 | AC24: =+'0. Inercia Termica'!N89 -> 0 | AD24: =+'0. Inercia Termica'!O89 -> 0 | AE24: =+'0. Inercia Termica'!P89 -> 0
W25: 17 | X25: =+'0. Inercia Termica'!I90 -> 0 | Y25: =+'0. Inercia Termica'!J90 -> 0 | Z25: =+'0. Inercia Termica'!K90 -> 0 | AA25: =+'0. Inercia Termica'!L90 -> 0 | AB25: =+'0. Inercia Termica'!M90 -> 0 | AC25: =+'0. Inercia Termica'!N90 -> 0 | AD25: =+'0. Inercia Termica'!O90 -> 0 | AE25: =+'0. Inercia Termica'!P90 -> 0
F26: Total | G26: =+G74 -> 80 | I26: 200 | W26: 18 | X26: =+'0. Inercia Termica'!I91 -> 0 | Y26: =+'0. Inercia Termica'!J91 -> 0 | Z26: =+'0. Inercia Termica'!K91 -> 0 | AA26: =+'0. Inercia Termica'!L91 -> 0 | AB26: =+'0. Inercia Termica'!M91 -> 0 | AC26: =+'0. Inercia Termica'!N91 -> 0 | AD26: =+'0. Inercia Termica'!O91 -> 0 | AE26: =+'0. Inercia Termica'!P91 -> 0
W27: 19 | X27: =+'0. Inercia Termica'!I92 -> 0 | Y27: =+'0. Inercia Termica'!J92 -> 0 | Z27: =+'0. Inercia Termica'!K92 -> 0 | AA27: =+'0. Inercia Termica'!L92 -> 0 | AB27: =+'0. Inercia Termica'!M92 -> 0 | AC27: =+'0. Inercia Termica'!N92 -> 0 | AD27: =+'0. Inercia Termica'!O92 -> 0 | AE27: =+'0. Inercia Termica'!P92 -> 0
W28: 20 | X28: =+'0. Inercia Termica'!I93 -> 0 | Y28: =+'0. Inercia Termica'!J93 -> 0 | Z28: =+'0. Inercia Termica'!K93 -> 0 | AA28: =+'0. Inercia Termica'!L93 -> 0 | AB28: =+'0. Inercia Termica'!M93 -> 0 | AC28: =+'0. Inercia Termica'!N93 -> 0 | AD28: =+'0. Inercia Termica'!O93 -> 0 | AE28: =+'0. Inercia Termica'!P93 -> 0
W29: 21 | X29: =+'0. Inercia Termica'!I94 -> 0 | Y29: =+'0. Inercia Termica'!J94 -> 0 | Z29: =+'0. Inercia Termica'!K94 -> 0 | AA29: =+'0. Inercia Termica'!L94 -> 0 | AB29: =+'0. Inercia Termica'!M94 -> 0 | AC29: =+'0. Inercia Termica'!N94 -> 0 | AD29: =+'0. Inercia Termica'!O94 -> 0 | AE29: =+'0. Inercia Termica'!P94 -> 0
W30: 22 | X30: =+'0. Inercia Termica'!I95 -> 0 | Y30: =+'0. Inercia Termica'!J95 -> 0 | Z30: =+'0. Inercia Termica'!K95 -> 0 | AA30: =+'0. Inercia Termica'!L95 -> 0 | AB30: =+'0. Inercia Termica'!M95 -> 0 | AC30: =+'0. Inercia Termica'!N95 -> 0 | AD30: =+'0. Inercia Termica'!O95 -> 0 | AE30: =+'0. Inercia Termica'!P95 -> 0
W31: 23 | X31: =+'0. Inercia Termica'!I96 -> 0 | Y31: =+'0. Inercia Termica'!J96 -> 0 | Z31: =+'0. Inercia Termica'!K96 -> 0 | AA31: =+'0. Inercia Termica'!L96 -> 0 | AB31: =+'0. Inercia Termica'!M96 -> 0 | AC31: =+'0. Inercia Termica'!N96 -> 0 | AD31: =+'0. Inercia Termica'!O96 -> 0 | AE31: =+'0. Inercia Termica'!P96 -> 0
B32: Calcular demanda? | C32: =+IF(-1^C33=1,"No","Si") -> Si | W32: 24 | X32: =+'0. Inercia Termica'!I97 -> 0 | Y32: =+'0. Inercia Termica'!J97 -> 0 | Z32: =+'0. Inercia Termica'!K97 -> 0 | AA32: =+'0. Inercia Termica'!L97 -> 0 | AB32: =+'0. Inercia Termica'!M97 -> 0 | AC32: =+'0. Inercia Termica'!N97 -> 0 | AD32: =+'0. Inercia Termica'!O97 -> 0 | AE32: =+'0. Inercia Termica'!P97 -> 0
B33: Caso a analizar | C33: 1 | AA33: Con clima
X34: Muros | Z34: Techos | AB34: Pisos_V | AD34: Pisos_T
X35: SA Verano | Y35: SA Invierno | Z35: SA Verano | AA35: SA Invierno | AB35: SA Verano | AC35: SA Invierno | AD35: SA Verano | AE35: SA Invierno
W36: 1 | X36: =+'0. Inercia Termica'!Q74 -> 0 | Y36: =+'0. Inercia Termica'!R74 -> 0 | Z36: =+'0. Inercia Termica'!S74 -> 0 | AA36: =+'0. Inercia Termica'!T74 -> 0 | AB36: =+'0. Inercia Termica'!U74 -> 0 | AC36: =+'0. Inercia Termica'!V74 -> 0 | AD36: =+'0. Inercia Termica'!W74 -> 0 | AE36: =+'0. Inercia Termica'!X74 -> 0
W37: 2 | X37: =+'0. Inercia Termica'!Q75 -> 0 | Y37: =+'0. Inercia Termica'!R75 -> 0 | Z37: =+'0. Inercia Termica'!S75 -> 0 | AA37: =+'0. Inercia Termica'!T75 -> 0 | AB37: =+'0. Inercia Termica'!U75 -> 0 | AC37: =+'0. Inercia Termica'!V75 -> 0 | AD37: =+'0. Inercia Termica'!W75 -> 0 | AE37: =+'0. Inercia Termica'!X75 -> 0
W38: 3 | X38: =+'0. Inercia Termica'!Q76 -> 0 | Y38: =+'0. Inercia Termica'!R76 -> 0 | Z38: =+'0. Inercia Termica'!S76 -> -12.178 | AA38: =+'0. Inercia Termica'!T76 -> 58.002 | AB38: =+'0. Inercia Termica'!U76 -> 0 | AC38: =+'0. Inercia Termica'!V76 -> 0 | AD38: =+'0. Inercia Termica'!W76 -> 0 | AE38: =+'0. Inercia Termica'!X76 -> 0
W39: 4 | X39: =+'0. Inercia Termica'!Q77 -> 0 | Y39: =+'0. Inercia Termica'!R77 -> 0 | Z39: =+'0. Inercia Termica'!S77 -> 0 | AA39: =+'0. Inercia Termica'!T77 -> 0 | AB39: =+'0. Inercia Termica'!U77 -> 0 | AC39: =+'0. Inercia Termica'!V77 -> 0 | AD39: =+'0. Inercia Termica'!W77 -> 0 | AE39: =+'0. Inercia Termica'!X77 -> 0
B40: Caso | C40: N° caso | W40: 5 | X40: =+'0. Inercia Termica'!Q78 -> 0 | Y40: =+'0. Inercia Termica'!R78 -> 0 | Z40: =+'0. Inercia Termica'!S78 -> 0 | AA40: =+'0. Inercia Termica'!T78 -> 0 | AB40: =+'0. Inercia Termica'!U78 -> 0 | AC40: =+'0. Inercia Termica'!V78 -> 0 | AD40: =+'0. Inercia Termica'!W78 -> 0 | AE40: =+'0. Inercia Termica'!X78 -> 0
B41: Propuesto con clima | C41: 1 | W41: 6 | X41: =+'0. Inercia Termica'!Q79 -> -13.62 | Y41: =+'0. Inercia Termica'!R79 -> 56.55 | Z41: =+'0. Inercia Termica'!S79 -> 0 | AA41: =+'0. Inercia Termica'!T79 -> 0 | AB41: =+'0. Inercia Termica'!U79 -> 0 | AC41: =+'0. Inercia Termica'!V79 -> 0 | AD41: =+'0. Inercia Termica'!W79 -> 0 | AE41: =+'0. Inercia Termica'!X79 -> 0
B42: Propuesto sin clima | C42: =+C41+1 -> 2 | W42: 7 | X42: =+'0. Inercia Termica'!Q80 -> 0 | Y42: =+'0. Inercia Termica'!R80 -> 0 | Z42: =+'0. Inercia Termica'!S80 -> 0 | AA42: =+'0. Inercia Termica'!T80 -> 0 | AB42: =+'0. Inercia Termica'!U80 -> 0 | AC42: =+'0. Inercia Termica'!V80 -> 0 | AD42: =+'0. Inercia Termica'!W80 -> 0 | AE42: =+'0. Inercia Termica'!X80 -> 0
B43: Base con clima | C43: =+C42+1 -> 3 | W43: 8 | X43: =+'0. Inercia Termica'!Q81 -> 0 | Y43: =+'0. Inercia Termica'!R81 -> 0 | Z43: =+'0. Inercia Termica'!S81 -> 0 | AA43: =+'0. Inercia Termica'!T81 -> 0 | AB43: =+'0. Inercia Termica'!U81 -> 0 | AC43: =+'0. Inercia Termica'!V81 -> 0 | AD43: =+'0. Inercia Termica'!W81 -> 0 | AE43: =+'0. Inercia Termica'!X81 -> 0
B44: Base sin clima | C44: 4 | W44: 9 | X44: =+'0. Inercia Termica'!Q82 -> 0 | Y44: =+'0. Inercia Termica'!R82 -> 0 | Z44: =+'0. Inercia Termica'!S82 -> 0 | AA44: =+'0. Inercia Termica'!T82 -> 0 | AB44: =+'0. Inercia Termica'!U82 -> 0 | AC44: =+'0. Inercia Termica'!V82 -> 0 | AD44: =+'0. Inercia Termica'!W82 -> 0 | AE44: =+'0. Inercia Termica'!X82 -> 0
B45: Base con clima +90° | C45: 5 | W45: 10 | X45: =+'0. Inercia Termica'!Q83 -> 0 | Y45: =+'0. Inercia Termica'!R83 -> 0 | Z45: =+'0. Inercia Termica'!S83 -> 0 | AA45: =+'0. Inercia Termica'!T83 -> 0 | AB45: =+'0. Inercia Termica'!U83 -> 0 | AC45: =+'0. Inercia Termica'!V83 -> 0 | AD45: =+'0. Inercia Termica'!W83 -> 0 | AE45: =+'0. Inercia Termica'!X83 -> 0
B46: Base sin clima +90° | C46: 6 | W46: 11 | X46: =+'0. Inercia Termica'!Q84 -> 0 | Y46: =+'0. Inercia Termica'!R84 -> 0 | Z46: =+'0. Inercia Termica'!S84 -> 0 | AA46: =+'0. Inercia Termica'!T84 -> 0 | AB46: =+'0. Inercia Termica'!U84 -> 0 | AC46: =+'0. Inercia Termica'!V84 -> 0 | AD46: =+'0. Inercia Termica'!W84 -> 0 | AE46: =+'0. Inercia Termica'!X84 -> 0
B47: Base con clima +180° | C47: 7 | W47: 12 | X47: =+'0. Inercia Termica'!Q85 -> 0 | Y47: =+'0. Inercia Termica'!R85 -> 0 | Z47: =+'0. Inercia Termica'!S85 -> 0 | AA47: =+'0. Inercia Termica'!T85 -> 0 | AB47: =+'0. Inercia Termica'!U85 -> 0 | AC47: =+'0. Inercia Termica'!V85 -> 0 | AD47: =+'0. Inercia Termica'!W85 -> 0 | AE47: =+'0. Inercia Termica'!X85 -> 0
B48: Base sin clima + 180° | C48: 8 | W48: 13 | X48: =+'0. Inercia Termica'!Q86 -> 0 | Y48: =+'0. Inercia Termica'!R86 -> 0 | Z48: =+'0. Inercia Termica'!S86 -> 0 | AA48: =+'0. Inercia Termica'!T86 -> 0 | AB48: =+'0. Inercia Termica'!U86 -> 0 | AC48: =+'0. Inercia Termica'!V86 -> 0 | AD48: =+'0. Inercia Termica'!W86 -> 0 | AE48: =+'0. Inercia Termica'!X86 -> 0
B49: Base con clima + 270° | C49: 9 | W49: 14 | X49: =+'0. Inercia Termica'!Q87 -> 0 | Y49: =+'0. Inercia Termica'!R87 -> 0 | Z49: =+'0. Inercia Termica'!S87 -> 0 | AA49: =+'0. Inercia Termica'!T87 -> 0 | AB49: =+'0. Inercia Termica'!U87 -> 0 | AC49: =+'0. Inercia Termica'!V87 -> 0 | AD49: =+'0. Inercia Termica'!W87 -> 0 | AE49: =+'0. Inercia Termica'!X87 -> 0
B50: Base sin clima + 270° | C50: 10 | W50: 15 | X50: =+'0. Inercia Termica'!Q88 -> 0 | Y50: =+'0. Inercia Termica'!R88 -> 0 | Z50: =+'0. Inercia Termica'!S88 -> 0 | AA50: =+'0. Inercia Termica'!T88 -> 0 | AB50: =+'0. Inercia Termica'!U88 -> 0 | AC50: =+'0. Inercia Termica'!V88 -> 0 | AD50: =+'0. Inercia Termica'!W88 -> 0 | AE50: =+'0. Inercia Termica'!X88 -> 0
W51: 16 | X51: =+'0. Inercia Termica'!Q89 -> 0 | Y51: =+'0. Inercia Termica'!R89 -> 0 | Z51: =+'0. Inercia Termica'!S89 -> 0 | AA51: =+'0. Inercia Termica'!T89 -> 0 | AB51: =+'0. Inercia Termica'!U89 -> 0 | AC51: =+'0. Inercia Termica'!V89 -> 0 | AD51: =+'0. Inercia Termica'!W89 -> 0 | AE51: =+'0. Inercia Termica'!X89 -> 0
G52: Elementos Opacos | K52: Elementos traslucidos | N52: Perdidas Puentes térmicos | W52: 17 | X52: =+'0. Inercia Termica'!Q90 -> 0 | Y52: =+'0. Inercia Termica'!R90 -> 0 | Z52: =+'0. Inercia Termica'!S90 -> 0 | AA52: =+'0. Inercia Termica'!T90 -> 0 | AB52: =+'0. Inercia Termica'!U90 -> 0 | AC52: =+'0. Inercia Termica'!V90 -> 0 | AD52: =+'0. Inercia Termica'!W90 -> 0 | AE52: =+'0. Inercia Termica'!X90 -> 0
G53: Área total [m2] | H53: Área Efectiva [m2] | I53: U [W/Km²] | K53: Área [m2] | L53: U [W/Km²] | N53: [W/K] | W53: 18 | X53: =+'0. Inercia Termica'!Q91 -> 0 | Y53: =+'0. Inercia Termica'!R91 -> 0 | Z53: =+'0. Inercia Termica'!S91 -> 0 | AA53: =+'0. Inercia Termica'!T91 -> 0 | AB53: =+'0. Inercia Termica'!U91 -> 0 | AC53: =+'0. Inercia Termica'!V91 -> 0 | AD53: =+'0. Inercia Termica'!W91 -> 0 | AE53: =+'0. Inercia Termica'!X91 -> 0
Q54: U*A + jL [W/K] | W54: 19 | X54: =+'0. Inercia Termica'!Q92 -> 0 | Y54: =+'0. Inercia Termica'!R92 -> 0 | Z54: =+'0. Inercia Termica'!S92 -> 0 | AA54: =+'0. Inercia Termica'!T92 -> 0 | AB54: =+'0. Inercia Termica'!U92 -> 0 | AC54: =+'0. Inercia Termica'!V92 -> 0 | AD54: =+'0. Inercia Termica'!W92 -> 0 | AE54: =+'0. Inercia Termica'!X92 -> 0
B55: OGUC 2007 | D55: U Opaco | E55: U vidrios | W55: 20 | X55: =+'0. Inercia Termica'!Q93 -> 0 | Y55: =+'0. Inercia Termica'!R93 -> 0 | Z55: =+'0. Inercia Termica'!S93 -> 0 | AA55: =+'0. Inercia Termica'!T93 -> 0 | AB55: =+'0. Inercia Termica'!U93 -> 0 | AC55: =+'0. Inercia Termica'!V93 -> 0 | AD55: =+'0. Inercia Termica'!W93 -> 0 | AE55: =+'0. Inercia Termica'!X93 -> 0
B56: TECHO | C56: TECHO | D56: =+'0. Envolvente OGUC'!D23 -> 0.25 | E56: =+'0. Envolvente OGUC'!E23 -> 3.6 | F56: TECHO | G56: =+'CEV-CEVE'!D169 -> 80 | H56: =+'CEV-CEVE'!E169 -> 80 | I56: =+IF(H56=0,0,IF($C$33>2,D56,'CEV-CEVE'!F169)) -> 0.24 | K56: =+'CEV-CEVE'!H169 -> 0 | L56: =+IF(H56=0,0,IF($C$33>2,E56,'CEV-CEVE'!I169)) -> 0 | P56: Techos | Q56: =G56*I56+K56*L56+SUM(N56) -> 19.2 | S56: U [W/m2K] Equivalente | W56: 21 | X56: =+'0. Inercia Termica'!Q94 -> 0 | Y56: =+'0. Inercia Termica'!R94 -> 0 | Z56: =+'0. Inercia Termica'!S94 -> 0 | AA56: =+'0. Inercia Termica'!T94 -> 0 | AB56: =+'0. Inercia Termica'!U94 -> 0 | AC56: =+'0. Inercia Termica'!V94 -> 0 | AD56: =+'0. Inercia Termica'!W94 -> 0 | AE56: =+'0. Inercia Termica'!X94 -> 0
B57: NORTE: | C57: NORTE: | D57: =+'0. Envolvente OGUC'!D24 -> 0.6 | E57: =+'0. Envolvente OGUC'!E24 -> 5.8 | F57: NORTE: | G57: =+'CEV-CEVE'!D170 -> 20.88432539 | H57: =+'CEV-CEVE'!E170 -> 20.88432539 | I57: =+IF(H57=0,0,IF($C$33>2,D57,'CEV-CEVE'!F170)) -> 0.2457624671 | K57: =+'CEV-CEVE'!H170 -> 5.9375 | L57: =+IF(H57=0,0,IF($C$33>2,E57,'CEV-CEVE'!I170)) -> 2.85 | N57: =+'CEV-CEVE'!P170 -> 0.94375 | P57: N | Q57: 22.99820833 | S57: =+SUM(Q56:Q65)/'CEV-CEVE'!U168 -> 1.209932184 | W57: 22 | X57: =+'0. Inercia Termica'!Q95 -> 0 | Y57: =+'0. Inercia Termica'!R95 -> 0 | Z57: =+'0. Inercia Termica'!S95 -> 0 | AA57: =+'0. Inercia Termica'!T95 -> 0 | AB57: =+'0. Inercia Termica'!U95 -> 0 | AC57: =+'0. Inercia Termica'!V95 -> 0 | AD57: =+'0. Inercia Termica'!W95 -> 0 | AE57: =+'0. Inercia Termica'!X95 -> 0
B58: NOR-ESTE: | C58: NOR-ESTE: | D58: =+'0. Envolvente OGUC'!D25 -> 0.6 | E58: =+'0. Envolvente OGUC'!E25 -> 5.8 | F58: NOR-ESTE: | G58: =+'CEV-CEVE'!D171 -> 0 | H58: =+'CEV-CEVE'!E171 -> 0 | I58: =+IF(H58=0,0,IF($C$33>2,D58,'CEV-CEVE'!F171)) -> 0 | K58: =+'CEV-CEVE'!H171 -> 0 | L58: =+IF(H58=0,0,IF($C$33>2,E58,'CEV-CEVE'!I171)) -> 0 | N58: =+'CEV-CEVE'!P171 -> 0 | P58: NE | Q58: 0 | W58: 23 | X58: =+'0. Inercia Termica'!Q96 -> 0 | Y58: =+'0. Inercia Termica'!R96 -> 0 | Z58: =+'0. Inercia Termica'!S96 -> 0 | AA58: =+'0. Inercia Termica'!T96 -> 0 | AB58: =+'0. Inercia Termica'!U96 -> 0 | AC58: =+'0. Inercia Termica'!V96 -> 0 | AD58: =+'0. Inercia Termica'!W96 -> 0 | AE58: =+'0. Inercia Termica'!X96 -> 0
B59: ESTE: | C59: ESTE: | D59: =+'0. Envolvente OGUC'!D26 -> 0.6 | E59: =+'0. Envolvente OGUC'!E26 -> 5.8 | F59: ESTE: | G59: =+'CEV-CEVE'!D172 -> 20.88432539 | H59: =+'CEV-CEVE'!E172 -> 0.3125 | I59: =+IF(H59=0,0,IF($C$33>2,D59,'CEV-CEVE'!F172)) -> 2.6 | K59: =+'CEV-CEVE'!H172 -> 5.9375 | L59: =+IF(H59=0,0,IF($C$33>2,E59,'CEV-CEVE'!I172)) -> 2.85 | N59: =+'CEV-CEVE'!P172 -> 1.2125 | P59: E | Q59: 72.43362102 | W59: 24 | X59: =+'0. Inercia Termica'!Q97 -> 0 | Y59: =+'0. Inercia Termica'!R97 -> 0 | Z59: =+'0. Inercia Termica'!S97 -> 0 | AA59: =+'0. Inercia Termica'!T97 -> 0 | AB59: =+'0. Inercia Termica'!U97 -> 0 | AC59: =+'0. Inercia Termica'!V97 -> 0 | AD59: =+'0. Inercia Termica'!W97 -> 0 | AE59: =+'0. Inercia Termica'!X97 -> 0
B60: SUR-ESTE: | C60: SUR-ESTE: | D60: =+'0. Envolvente OGUC'!D27 -> 0.6 | E60: =+'0. Envolvente OGUC'!E27 -> 5.8 | F60: SUR-ESTE: | G60: =+'CEV-CEVE'!D173 -> 0 | H60: =+'CEV-CEVE'!E173 -> 0 | I60: =+IF(H60=0,0,IF($C$33>2,D60,'CEV-CEVE'!F173)) -> 0 | K60: =+'CEV-CEVE'!H173 -> 0 | L60: =+IF(H60=0,0,IF($C$33>2,E60,'CEV-CEVE'!I173)) -> 0 | N60: =+'CEV-CEVE'!P173 -> 0 | P60: SE | Q60: 0
B61: SUR: | C61: SUR: | D61: =+'0. Envolvente OGUC'!D28 -> 0.6 | E61: =+'0. Envolvente OGUC'!E28 -> 5.8 | F61: SUR: | G61: =+'CEV-CEVE'!D174 -> 20.57182539 | H61: =+'CEV-CEVE'!E174 -> 20.57182539 | I61: =+IF(H61=0,0,IF($C$33>2,D61,'CEV-CEVE'!F174)) -> 0.21 | K61: =+'CEV-CEVE'!H174 -> 0 | L61: =+IF(H61=0,0,IF($C$33>2,E61,'CEV-CEVE'!I174)) -> 0 | N61: =+'CEV-CEVE'!P174 -> 0 | P61: S | Q61: 4.320083333
B62: SUR-OESTE: | C62: SUR-OESTE: | D62: =+'0. Envolvente OGUC'!D29 -> 0.6 | E62: =+'0. Envolvente OGUC'!E29 -> 5.8 | F62: SUR-OESTE: | G62: =+'CEV-CEVE'!D175 -> 0.3125 | H62: =+'CEV-CEVE'!E175 -> 0.3125 | I62: =+IF(H62=0,0,IF($C$33>2,D62,'CEV-CEVE'!F175)) -> 2.6 | K62: =+'CEV-CEVE'!H175 -> 5.9375 | L62: =+IF(H62=0,0,IF($C$33>2,E62,'CEV-CEVE'!I175)) -> 2.85 | N62: =+'CEV-CEVE'!P175 -> 0.6916666667 | P62: SO | Q62: 18.42604167
B63: OESTE: | C63: OESTE: | D63: =+'0. Envolvente OGUC'!D30 -> 0.6 | E63: =+'0. Envolvente OGUC'!E30 -> 5.8 | F63: OESTE: | G63: =+'CEV-CEVE'!D176 -> 20.88432539 | H63: =+'CEV-CEVE'!E176 -> 20.88432539 | I63: =+IF(H63=0,0,IF($C$33>2,D63,'CEV-CEVE'!F176)) -> 0.2457624671 | K63: =+'CEV-CEVE'!H176 -> 5.9375 | L63: =+IF(H63=0,0,IF($C$33>2,E63,'CEV-CEVE'!I176)) -> 2.85 | N63: =+'CEV-CEVE'!P176 -> 0 | P63: O | Q63: 22.05445833
B64: NOR-OESTE: | C64: NOR-OESTE: | D64: =+'0. Envolvente OGUC'!D31 -> 0.6 | E64: =+'0. Envolvente OGUC'!E31 -> 5.8 | F64: NOR-OESTE: | G64: =+'CEV-CEVE'!D177 -> 0 | H64: =+'CEV-CEVE'!E177 -> 0 | I64: =+IF(H64=0,0,IF($C$33>2,D64,'CEV-CEVE'!F177)) -> 0 | K64: =+'CEV-CEVE'!H177 -> 0 | L64: =+IF(H64=0,0,IF($C$33>2,E64,'CEV-CEVE'!I177)) -> 0 | N64: =+'CEV-CEVE'!P177 -> 0 | P64: NO | Q64: 0
B65: PISO: | C65: PISO: | D65: =+'0. Envolvente OGUC'!D32 -> 0.32 | E65: =+'0. Envolvente OGUC'!E32 -> 0 | F65: PISO: | G65: =+'CEV-CEVE'!D178 -> 20 | H65: =+'CEV-CEVE'!E178 -> 0 | I65: =+IF(H65=0,0,IF($C$33>2,D65,'CEV-CEVE'!F178)) -> 0 | N65: =+'CEV-CEVE'!P178 -> 42.28200746 | P65: Pisos [ml] | Q65: 42.28200746
G68: Area [m²] | H68: Altura [m] | I68: Volumen [m3]
F70: Piso 1 | G70: =+'CEV-CEVE'!D52 -> 80 | H70: =+'CEV-CEVE'!E52 -> 2.5 | I70: =+'CEV-CEVE'!F52 -> 200
F71: Piso 2 | G71: =+'CEV-CEVE'!D53 -> 0 | H71: =+'CEV-CEVE'!E53 -> 0 | I71: =+'CEV-CEVE'!F53 -> 0
F72: Piso 3+4+.. | G72: =+'CEV-CEVE'!D54 -> 0 | H72: =+'CEV-CEVE'!E54 -> 0 | I72: =+'CEV-CEVE'!F54 -> 0
F74: Total | G74: =SUM(G70:G72) -> 80 | I74: =SUM(I70:I72) -> 200

Sheet 0. Datos Clima Motor (hidden)
A1: 1 | B1: 2 | C1: 3 | D1: 4 | E1: 5 | F1: 6 | G1: 7 | H1: 8 | I1: 9 | J1: 10 | K1: 11 | L1: 12 | M1: 13 | N1: 14 | O1: 15 | P1: 16 | Q1: 17 | R1: 18 | S1: 19 | T1: 20 | U1: 21 | V1: 22 | W1: 23 | X1: 24 | Y1: 25
B2: t correlativo global
B3: h sol | C3: 17
B4: Columna tiempo
B5: t correlativo max mensual
B6: t residual
B7: Absortividad solar muros | C7: 0.75
B8: Absortividad solar techo | C8: =+'CEV-CEVE'!$AR$150 -> 0.7 | I8: Rad Ventanas: Sol Incidente*FS*FAV*FAR [W]
E9: Mes | F9: Tiempo [hrs] | G9: Tiempo [s] | H9: T° exterior | I9: Difuso | J9: Directo | K9: Qgen Pers [W/m2] | L9: Qgen Ilum [W/m2] | M9: Qgen Equip [W/m2] | N9: TsolH | O9: TsolN | P9: TsolNE | Q9: TsolE | R9: TsolSE | S9: TsolS | T9: TsolSO | U9: TsolO | V9: TsolNO | W9: Clima [0, 1 o 2] | X9: N [RAH] | Y9: G total [W/m2]
E10: Enero | F10: 0 | G10: 0 | H10: =+'0. Clima'!N11 -> 9.75483871 | I10: =+'0.FAV Calculos'!IC14 -> 0 | J10: =+'0.FAV Calculos'!IQ14 -> 0 | K10: =+'0. Perfil de Uso'!E11 -> 4.1 | L10: =+'0. Perfil de Uso'!F11 -> 0 | M10: =+'0. Perfil de Uso'!G11 -> 0 | N10: =+$H10+$C$8/$C$3*Y10-1/$C$3*63 -> 6.048956357 | O10: =+$H10+$C$7/$C$3*VLOOKUP($E$10,'0.FAV parámetros 1'!$A$207:$I$218,2,0)*$Y10 -> 9.75483871 | P10: =+$H10+$C$7/$C$3*VLOOKUP($E$10,'0.FAV parámetros 1'!$A$207:$I$218,3,0)*$Y10 -> 9.75483871 | Q10: =+$H10+$C$7/$C$3*VLOOKUP($E$10,'0.FAV parámetros 1'!$A$207:$I$218,4,0)*$Y10 -> 9.75483871 | R10: =+$H10+$C$7/$C$3*VLOOKUP($E$10,'0.FAV parámetros 1'!$A$207:$I$218,5,0)*$Y10 -> 9.75483871 | S10: =+$H10+$C$7/$C$3*VLOOKUP($E$10,'0.FAV parámetros 1'!$A$207:$I$218,6,0)*$Y10 -> 9.75483871 | T10: =+$H10+$C$7/$C$3*VLOOKUP($E$10,'0.FAV parámetros 1'!$A$207:$I$218,7,0)*$Y10 -> 9.75483871 | U10: =+$H10+$C$7/$C$3*VLOOKUP($E$10,'0.FAV parámetros 1'!$A$207:$I$218,8,0)*$Y10 -> 9.75483871 | V10: =+$H10+$C$7/$C$3*VLOOKUP($E$10,'0.FAV parámetros 1'!$A$207:$I$218,9,0)*$Y10 -> 9.75483871 | W10: =+IF('0. Datos Arq Motor'!$C$32="Si",2,0) -> 2 | X10: =+'0. Perfil de Uso'!N12-'0. Perfil de Uso'!J11 -> 0.8262 | Y10: =+SUMIFS('0. Clima'!$O$11:$O$298,'0. Clima'!$L$11:$L$298,'0. Datos Clima Motor'!E10,'0. Clima'!$M$11:$M$298,'0. Datos Clima Motor'!F10) -> 0
E11: 1 | F11: 1 | G11: 3600 | H11: =+'0. Clima'!N12 -> 9.235483871 | I11: =+'0.FAV Calculos'!IC15 -> 0 | J11: =+'0.FAV Calculos'!IQ15 -> 0 | K11: =+'0. Perfil de Uso'!E12 -> 4.1 | L11: =+'0. Perfil de Uso'!F12 -> 0 | M11: =+'0. Perfil de Uso'!G12 -> 0 | N11: =+$H11+$C$8/$C$3*Y11-1/$C$3*63 -> 5.529601518 | O11: =+$H11+$C$7/$C$3*VLOOKUP($E$10,'0.FAV parámetros 1'!$A$207:$I$218,2,0)*$Y11 -> 9.235483871 | P11: =+$H11+$C$7/$C$3*VLOOKUP($E$10,'0.FAV parámetros 1'!$A$207:$I$218,3,0)*$Y11 -> 9.235483871 | Q11: =+$H11+$C$7/$C$3*VLOOKUP($E$10,'0.FAV parámetros 1'!$A$207:$I$218,4,0)*$Y11 -> 9.235483871 | R11: =+$H11+$C$7/$C$3*VLOOKUP($E$10,'0.FAV parámetros 1'!$A$207:$I$218,5,0)*$Y11 -> 9.235483871 | S11: =+$H11+$C$7/$C$3*VLOOKUP($E$10,'0.FAV parámetros 1'!$A$207:$I$218,6,0)*$Y11 -> 9.235483871 | T11: =+$H11+$C$7/$C$3*VLOOKUP($E$10,'0.FAV parámetros 1'!$A$207:$I$218,7,0)*$Y11 -> 9.235483871 | U11: =+$H11+$C$7/$C$3*VLOOKUP($E$10,'0.FAV parámetros 1'!$A$207:$I$218,8,0)*$Y11 -> 9.235483871 | V11: =+$H11+$C$7/$C$3*VLOOKUP($E$10,'0.FAV parámetros 1'!$A$207:$I$218,9,0)*$Y11 -> 9.235483871 | W11: =+IF('0. Datos Arq Motor'!$C$32="Si",2,0) -> 2 | X11: =+'0. Perfil de Uso'!N13-'0. Perfil de Uso'!J12 -> 0.8262 | Y11: =+SUMIFS('0. Clima'!$O$11:$O$298,'0. Clima'!$L$11:$L$298,'0. Datos Clima Motor'!E10,'0. Clima'!$M$11:$M$298,'0. Datos Clima Motor'!F11) -> 0
E12: Tmax Dia | F12: 2 | G12: 7200 | H12: =+'0. Clima'!N13 -> 9.051612903 | I12: =+'0.FAV Calculos'!IC16 -> 0 | J12: =+'0.FAV Calculos'!IQ16 -> 0 | K12: =+'0. Perfil de Uso'!E13 -> 4.1 | L12: =+'0. Perfil de Uso'!F13 -> 0 | M12: =+'0. Perfil de Uso'!G13 -> 0 | N12: 5.34573055 | O12: =+$H12+$C$7/$C$3*VLOOKUP($E$10,'0.FAV parámetros 1'!$A$207:$I$218,2,0)*$Y12 -> 9.051612903 | P12: =+$H12+$C$7/$C$3*VLOOKUP($E$10,'0.FAV parámetros 1'!$A$207:$I$218,3,0)*$Y12 -> 9.051612903 | Q12: =+$H12+$C$7/$C$3*VLOOKUP($E$10,'0.FAV parámetros 1'!$A$207:$I$218,4,0)*$Y12 -> 9.051612903 | R12: =+$H12+$C$7/$C$3*VLOOKUP($E$10,'0.FAV parámetros 1'!$A$207:$I$218,5,0)*$Y12 -> 9.051612903 | S12: =+$H12+$C$7/$C$3*VLOOKUP($E$10,'0.FAV parámetros 1'!$A$207:$I$218,6,0)*$Y12 -> 9.051612903 | T12: =+$H12+$C$7/$C$3*VLOOKUP($E$10,'0.FAV parámetros 1'!$A$207:$I$218,7,0)*$Y12 -> 9.051612903 | U12: =+$H12+$C$7/$C$3*VLOOKUP($E$10,'0.FAV parámetros 1'!$A$207:$I$218,8,0)*$Y12 -> 9.051612903 | V12: =+$H12+$C$7/$C$3*VLOOKUP($E$10,'0.FAV parámetros 1'!$A$207:$I$218,9,0)*$Y12 -> 9.051612903 | W12: =+IF('0. Datos Arq Motor'!$C$32="Si",2,0) -> 2 | X12: =+'0. Perfil de Uso'!N14-'0. Perfil de Uso'!J13 -> 0.8262 | Y12: =+SUMIFS('0. Clima'!$O$11:$O$298,'0. Clima'!$L$11:$L$298,'0. Datos Clima Motor'!E10,'0. Clima'!$M$11:$M$298,'0. Datos Clima Motor'!F12) -> 0
E13: =+VLOOKUP(E10,'0. Clima'!$S$11:$V$22,4,0) -> 24.38480242 | F13: 3 | G13: 10800 | H13: =+'0. Clima'!N14 -> 8.874193548 | I13: =+'0.FAV Calculos'!IC17 -> 4.449092145 | J13: =+'0.FAV Calculos'!IQ17 -> 0 | K13: =+'0. Perfil de Uso'!E14 -> 4.1 | L13: =+'0. Perfil de Uso'!F14 -> 0 | M13: =+'0. Perfil de Uso'!G14 -> 0 | N13: 5.179380139 | O13: =+$H13+$C$7/$C$3*VLOOKUP($E$10,'0.FAV parámetros 1'!$A$207:$I$218,2,0)*$Y13 -> 8.880150572 | P13: =+$H13+$C$7/$C$3*VLOOKUP($E$10,'0.FAV parámetros 1'!$A$207:$I$218,3,0)*$Y13 -> 8.881034668 | Q13: =+$H13+$C$7/$C$3*VLOOKUP($E$10,'0.FAV parámetros 1'!$A$207:$I$218,4,0)*$Y13 -> 8.881260904 | R13: =+$H13+$C$7/$C$3*VLOOKUP($E$10,'0.FAV parámetros 1'!$A$207:$I$218,5,0)*$Y13 -> 8.879922103 | S13: =+$H13+$C$7/$C$3*VLOOKUP($E$10,'0.FAV parámetros 1'!$A$207:$I$218,6,0)*$Y13 -> 8.878577167 | T13: =+$H13+$C$7/$C$3*VLOOKUP($E$10,'0.FAV parámetros 1'!$A$207:$I$218,7,0)*$Y13 -> 8.879922103 | U13: =+$H13+$C$7/$C$3*VLOOKUP($E$10,'0.FAV parámetros 1'!$A$207:$I$218,8,0)*$Y13 -> 8.881260904 | V13: =+$H13+$C$7/$C$3*VLOOKUP($E$10,'0.FAV parámetros 1'!$A$207:$I$218,9,0)*$Y13 -> 8.881034668 | W13: =+IF('0. Datos Arq Motor'!$C$32="Si",2,0) -> 2 | X13: =+'0. Perfil de Uso'!N15-'0. Perfil de Uso'!J14 -> 0.8262 | Y13: =+SUMIFS('0. Clima'!$O$11:$O$298,'0. Clima'!$L$11:$L$298,'0. Datos Clima Motor'!E10,'0. Clima'!$M$11:$M$298,'0. Datos Clima Motor'!F13) -> 0.2688172043
E14: Tmin Dia | F14: 4 | G14: 14400 | H14: =+'0. Clima'!N15 -> 8.6 | I14: =+'0.FAV Calculos'!IC18 -> 390.860984 | J14: =+'0.FAV Calculos'!IQ18 -> 0 | K14: =+'0. Perfil de Uso'!E15 -> 4.1 | L14: =+'0. Perfil de Uso'!F15 -> 0 | M14: =+'0. Perfil de Uso'!G15 -> 0 | N14: 5.89106051 | O14: =+$H14+$C$7/$C$3*VLOOKUP($E$10,'0.FAV parámetros 1'!$A$207:$I$218,2,0)*$Y14 -> 9.136529227 | P14: =+$H14+$C$7/$C$3*VLOOKUP($E$10,'0.FAV parámetros 1'!$A$207:$I$218,3,0)*$Y14 -> 9.216156863 | Q14: =+$H14+$C$7/$C$3*VLOOKUP($E$10,'0.FAV parámetros 1'!$A$207:$I$218,4,0)*$Y14 -> 9.236533203 | R14: =+$H14+$C$7/$C$3*VLOOKUP($E$10,'0.FAV parámetros 1'!$A$207:$I$218,5,0)*$Y14 -> 9.115951825 | S14: =+$H14+$C$7/$C$3*VLOOKUP($E$10,'0.FAV parámetros 1'!$A$207:$I$218,6,0)*$Y14 -> 8.994817904 | T14: =+$H14+$C$7/$C$3*VLOOKUP($E$10,'0.FAV parámetros 1'!$A$207:$I$218,7,0)*$Y14 -> 9.115951825 | U14: =+$H14+$C$7/$C$3*VLOOKUP($E$10,'0.FAV parámetros 1'!$A$207:$I$218,8,0)*$Y14 -> 9.236533203 | V14: =+$H14+$C$7/$C$3*VLOOKUP($E$10,'0.FAV parámetros 1'!$A$207:$I$218,9,0)*$Y14 -> 9.216156863 | W14: =+IF('0. Datos Arq Motor'!$C$32="Si",2,0) -> 2 | X14: =+'0. Perfil de Uso'!N16-'0. Perfil de Uso'!J15 -> 0.8262 | Y14: =+SUMIFS('0. Clima'!$O$11:$O$298,'0. Clima'!$L$11:$L$298,'0. Datos Clima Motor'!E10,'0. Clima'!$M$11:$M$298,'0. Datos Clima Motor'!F14) -> 24.21146953
E15: =+VLOOKUP(E10,'0. Clima'!$S$11:$V$22,3,0) -> 19.38480242 | F15: 5 | G15: 18000 | H15: =+'0. Clima'!N16 -> 8.538709677 | I15: =+'0.FAV Calculos'!IC19 -> 1455.182694 | J15: =+'0.FAV Calculos'!IQ19 -> 81.13490307 | K15: =+'0. Perfil de Uso'!E16 -> 4.1 | L15: =+'0. Perfil de Uso'!F16 -> 0 | M15: =+'0. Perfil de Uso'!G16 -> 0 | N15: 9.310584019 | O15: =+$H15+$C$7/$C$3*VLOOKUP($E$10,'0.FAV parámetros 1'!$A$207:$I$218,2,0)*$Y15 -> 10.94852415 | P15: =+$H15+$C$7/$C$3*VLOOKUP($E$10,'0.FAV parámetros 1'!$A$207:$I$218,3,0)*$Y15 -> 11.3061707 | Q15: =+$H15+$C$7/$C$3*VLOOKUP($E$10,'0.FAV parámetros 1'!$A$207:$I$218,4,0)*$Y15 -> 11.39769079 | R15: =+$H15+$C$7/$C$3*VLOOKUP($E$10,'0.FAV parámetros 1'!$A$207:$I$218,5,0)*$Y15 -> 10.856101 | S15: =+$H15+$C$7/$C$3*VLOOKUP($E$10,'0.FAV parámetros 1'!$A$207:$I$218,6,0)*$Y15 -> 10.31202947 | T15: =+$H15+$C$7/$C$3*VLOOKUP($E$10,'0.FAV parámetros 1'!$A$207:$I$218,7,0)*$Y15 -> 10.856101 | U15: =+$H15+$C$7/$C$3*VLOOKUP($E$10,'0.FAV parámetros 1'!$A$207:$I$218,8,0)*$Y15 -> 11.39769079 | V15: =+$H15+$C$7/$C$3*VLOOKUP($E$10,'0.FAV parámetros 1'!$A$207:$I$218,9,0)*$Y15 -> 11.3061707 | W15: =+IF('0. Datos Arq Motor'!$C$32="Si",2,0) -> 2 | X15: =+'0. Perfil de Uso'!N17-'0. Perfil de Uso'!J16 -> 0.8262 | Y15: =+SUMIFS('0. Clima'!$O$11:$O$298,'0. Clima'!$L$11:$L$298,'0. Datos Clima Motor'!E10,'0. Clima'!$M$11:$M$298,'0. Datos Clima Motor'!F15) -> 108.7455197
E16: Tmax Noche | F16: 6 | G16: 21600 | H16: =+'0. Clima'!N17 -> 8.996774194 | I16: =+'0.FAV Calculos'!IC20 -> 2216.966138 | J16: =+'0.FAV Calculos'!IQ20 -> 235.2298461 | K16: =+'0. Perfil de Uso'!E17 -> 3.28 | L16: =+'0. Perfil de Uso'!F17 -> 0 | M16: =+'0. Perfil de Uso'!G17 -> 0 | N16: 13.79036475 | O16: =+$H16+$C$7/$C$3*VLOOKUP($E$10,'0.FAV parámetros 1'!$A$207:$I$218,2,0)*$Y16 -> 13.57097377 | P16: =+$H16+$C$7/$C$3*VLOOKUP($E$10,'0.FAV parámetros 1'!$A$207:$I$218,3,0)*$Y16 -> 14.2498421 | Q16: =+$H16+$C$7/$C$3*VLOOKUP($E$10,'0.FAV parámetros 1'!$A$207:$I$218,4,0)*$Y16 -> 14.42356134 | R16: =+$H16+$C$7/$C$3*VLOOKUP($E$10,'0.FAV parámetros 1'!$A$207:$I$218,5,0)*$Y16 -> 13.39554038 | S16: =+$H16+$C$7/$C$3*VLOOKUP($E$10,'0.FAV parámetros 1'!$A$207:$I$218,6,0)*$Y16 -> 12.3628087 | T16: =+$H16+$C$7/$C$3*VLOOKUP($E$10,'0.FAV parámetros 1'!$A$207:$I$218,7,0)*$Y16 -> 13.39554038 | U16: =+$H16+$C$7/$C$3*VLOOKUP($E$10,'0.FAV parámetros 1'!$A$207:$I$218,8,0)*$Y16 -> 14.42356134 | V16: =+$H16+$C$7/$C$3*VLOOKUP($E$10,'0.FAV parámetros 1'!$A$207:$I$218,9,0)*$Y16 -> 14.2498421 | W16: =+IF('0. Datos Arq Motor'!$C$32="Si",2,0) -> 2 | X16: =+'0. Perfil de Uso'!N18-'0. Perfil de Uso'!J17 -> 0.8262 | Y16: =+SUMIFS('0. Clima'!$O$11:$O$298,'0. Clima'!$L$11:$L$298,'0. Datos Clima Motor'!E10,'0. Clima'!$M$11:$M$298,'0. Datos Clima Motor'!F16) -> 206.4157706
E17: =+E13 -> 24.38480242 | F17: 7 | G17: 25200 | H17: =+'0. Clima'!N18 -> 9.658064516 | I17: =+'0.FAV Calculos'!IC21 -> 2844.28813 | J17: =+'0.FAV Calculos'!IQ21 -> 429.2416884 | K17: =+'0. Perfil de Uso'!E18 -> 3.936 | L17: =+'0. Perfil de Uso'!F18 -> 0 | M17: =+'0. Perfil de Uso'!G18 -> 0 | N17: 18.77223276 | O17: =+$H17+$C$7/$C$3*VLOOKUP($E$10,'0.FAV parámetros 1'!$A$207:$I$218,2,0)*$Y17 -> 16.55748884 | P17: =+$H17+$C$7/$C$3*VLOOKUP($E$10,'0.FAV parámetros 1'!$A$207:$I$218,3,0)*$Y17 -> 17.58144955 | Q17: =+$H17+$C$7/$C$3*VLOOKUP($E$10,'0.FAV parámetros 1'!$A$207:$I$218,4,0)*$Y17 -> 17.84347632 | R17: =+$H17+$C$7/$C$3*VLOOKUP($E$10,'0.FAV parámetros 1'!$A$207:$I$218,5,0)*$Y17 -> 16.29287655 | S17: =+$H17+$C$7/$C$3*VLOOKUP($E$10,'0.FAV parámetros 1'!$A$207:$I$218,6,0)*$Y17 -> 14.73517143 | T17: =+$H17+$C$7/$C$3*VLOOKUP($E$10,'0.FAV parámetros 1'!$A$207:$I$218,7,0)*$Y17 -> 16.29287655 | U17: =+$H17+$C$7/$C$3*VLOOKUP($E$10,'0.FAV parámetros 1'!$A$207:$I$218,8,0)*$Y17 -> 17.84347632 | V17: =+$H17+$C$7/$C$3*VLOOKUP($E$10,'0.FAV parámetros 1'!$A$207:$I$218,9,0)*$Y17 -> 17.58144955 | W17: =+IF('0. Datos Arq Motor'!$C$32="Si",1,0) -> 1 | X17: =+'0. Perfil de Uso'!N19-'0. Perfil de Uso'!J18 -> 0.8262 | Y17: =+SUMIFS('0. Clima'!$O$11:$O$298,'0. Clima'!$L$11:$L$298,'0. Datos Clima Motor'!E10,'0. Clima'!$M$11:$M$298,'0. Datos Clima Motor'!F17) -> 311.344086
E18: Tmin Noche | F18: 8 | G18: 28800 | H18: =+'0. Clima'!N19 -> 10.83548387 | I18: =+'0.FAV Calculos'!IC22 -> 3676.268361 | J18: =+'0.FAV Calculos'!IQ22 -> 1105.926749 | K18: =+'0. Perfil de Uso'!E19 -> 1.968 | L18: =+'0. Perfil de Uso'!F19 -> 0 | M18: =+'0. Perfil de Uso'!G19 -> 0 | N18: 24.38055028 | O18: =+$H18+$C$7/$C$3*VLOOKUP($E$10,'0.FAV parámetros 1'!$A$207:$I$218,2,0)*$Y18 -> 20.1195046 | P18: =+$H18+$C$7/$C$3*VLOOKUP($E$10,'0.FAV parámetros 1'!$A$207:$I$218,3,0)*$Y18 -> 21.49736918 | Q18: =+$H18+$C$7/$C$3*VLOOKUP($E$10,'0.FAV parámetros 1'!$A$207:$I$218,4,0)*$Y18 -> 21.84995831 | R18: =+$H18+$C$7/$C$3*VLOOKUP($E$10,'0.FAV parámetros 1'!$A$207:$I$218,5,0)*$Y18 -> 19.76343635 | S18: =+$H18+$C$7/$C$3*VLOOKUP($E$10,'0.FAV parámetros 1'!$A$207:$I$218,6,0)*$Y18 -> 17.66735326 | T18: =+$H18+$C$7/$C$3*VLOOKUP($E$10,'0.FAV parámetros 1'!$A$207:$I$218,7,0)*$Y18 -> 19.76343635 | U18: =+$H18+$C$7/$C$3*VLOOKUP($E$10,'0.FAV parámetros 1'!$A$207:$I$218,8,0)*$Y18 -> 21.84995831 | V18: =+$H18+$C$7/$C$3*VLOOKUP($E$10,'0.FAV parámetros 1'!$A$207:$I$218,9,0)*$Y18 -> 21.49736918 | W18: =+IF('0. Datos Arq Motor'!$C$32="Si",1,0) -> 1 | X18: =+'0. Perfil de Uso'!N20-'0. Perfil de Uso'!J19 -> 0.8262 | Y18: =+SUMIFS('0. Clima'!$O$11:$O$298,'0. Clima'!$L$11:$L$298,'0. Datos Clima Motor'!E10,'0. Clima'!$M$11:$M$298,'0. Datos Clima Motor'!F18) -> 418.9516129
E19: =+MAX(E15-2,17) -> 17.38480242 | F19: 9 | G19: 32400 | H19: =+'0. Clima'!N20 -> 12.05806452 | I19: =+'0.FAV Calculos'!IC23 -> 4260.2529 | J19: =+'0.FAV Calculos'!IQ23 -> 1299.243379 | K19: =+'0. Perfil de Uso'!E20 -> 1.23 | L19: =+'0. Perfil de Uso'!F20 -> 0 | M19: =+'0. Perfil de Uso'!G20 -> 0 | N19: 28.48732869 | O19: =+$H19+$C$7/$C$3*VLOOKUP($E$10,'0.FAV parámetros 1'!$A$207:$I$218,2,0)*$Y19 -> 22.89428693 | P19: =+$H19+$C$7/$C$3*VLOOKUP($E$10,'0.FAV parámetros 1'!$A$207:$I$218,3,0)*$Y19 -> 24.50251763 | Q19: =+$H19+$C$7/$C$3*VLOOKUP($E$10,'0.FAV parámetros 1'!$A$207:$I$218,4,0)*$Y19 -> 24.91405637 | R19: =+$H19+$C$7/$C$3*VLOOKUP($E$10,'0.FAV parámetros 1'!$A$207:$I$218,5,0)*$Y19 -> 22.47868739 | S19: =+$H19+$C$7/$C$3*VLOOKUP($E$10,'0.FAV parámetros 1'!$A$207:$I$218,6,0)*$Y19 -> 20.03215876 | T19: =+$H19+$C$7/$C$3*VLOOKUP($E$10,'0.FAV parámetros 1'!$A$207:$I$218,7,0)*$Y19 -> 22.47868739 | U19: =+$H19+$C$7/$C$3*VLOOKUP($E$10,'0.FAV parámetros 1'!$A$207:$I$218,8,0)*$Y19 -> 24.91405637 | V19: =+$H19+$C$7/$C$3*VLOOKUP($E$10,'0.FAV parámetros 1'!$A$207:$I$218,9,0)*$Y19 -> 24.50251763 | W19: =+IF('0. Datos Arq Motor'!$C$32="Si",1,0) -> 1 | X19: =+'0. Perfil de Uso'!N21-'0. Perfil de Uso'!J20 -> 0.8262 | Y19: =+SUMIFS('0. Clima'!$O$11:$O$298,'0. Clima'!$L$11:$L$298,'0. Datos Clima Motor'!E10,'0. Clima'!$M$11:$M$298,'0. Datos Clima Motor'!F19) -> 488.9964158
E20: Tsuelo | F20: 10 | G20: 36000 | H20: =+'0. Clima'!N21 -> 13.26774194 | I20: =+'0.FAV Calculos'!IC24 -> 4254.485559 | J20: =+'0.FAV Calculos'!IQ24 -> 1872.316569 | K20: =+'0. Perfil de Uso'!E21 -> 1.23 | L20: =+'0. Perfil de Uso'!F21 -> 0 | M20: =+'0. Perfil de Uso'!G21 -> 0 | N20: 34.35776934 | O20: =+$H20+$C$7/$C$3*VLOOKUP($E$10,'0.FAV parámetros 1'!$A$207:$I$218,2,0)*$Y20 -> 26.61226827 | P20: =+$H20+$C$7/$C$3*VLOOKUP($E$10,'0.FAV parámetros 1'!$A$207:$I$218,3,0)*$Y20 -> 28.59276259 | Q20: =+$H20+$C$7/$C$3*VLOOKUP($E$10,'0.FAV parámetros 1'!$A$207:$I$218,4,0)*$Y20 -> 29.09956185 | R20: =+$H20+$C$7/$C$3*VLOOKUP($E$10,'0.FAV parámetros 1'!$A$207:$I$218,5,0)*$Y20 -> 26.10046823 | S20: =+$H20+$C$7/$C$3*VLOOKUP($E$10,'0.FAV parámetros 1'!$A$207:$I$218,6,0)*$Y20 -> 23.08763179 | T20: =+$H20+$C$7/$C$3*VLOOKUP($E$10,'0.FAV parámetros 1'!$A$207:$I$218,7,0)*$Y20 -> 26.10046823 | U20: =+$H20+$C$7/$C$3*VLOOKUP($E$10,'0.FAV parámetros 1'!$A$207:$I$218,8,0)*$Y20 -> 29.09956185 | V20: =+$H20+$C$7/$C$3*VLOOKUP($E$10,'0.FAV parámetros 1'!$A$207:$I$218,9,0)*$Y20 -> 28.59276259 | W20: =+IF('0. Datos Arq Motor'!$C$32="Si",1,0) -> 1 | X20: =+'0. Perfil de Uso'!N22-'0. Perfil de Uso'!J21 -> 0.8262 | Y20: =+SUMIFS('0. Clima'!$O$11:$O$298,'0. Clima'!$L$11:$L$298,'0. Datos Clima Motor'!E10,'0. Clima'!$M$11:$M$298,'0. Datos Clima Motor'!F20) -> 602.1863799
E21: =+AVERAGE(H10:H33) -> 11.70510753 | F21: 11 | G21: 39600 | H21: =+'0. Clima'!N22 -> 14.10322581 | I21: =+'0.FAV Calculos'!IC25 -> 4478.258415 | J21: =+'0.FAV Calculos'!IQ25 -> 1939.681058 | K21: =+'0. Perfil de Uso'!E22 -> 1.23 | L21: =+'0. Perfil de Uso'!F22 -> 0 | M21: =+'0. Perfil de Uso'!G22 -> 0 | N21: 36.24369597 | O21: =+$H21+$C$7/$C$3*VLOOKUP($E$10,'0.FAV parámetros 1'!$A$207:$I$218,2,0)*$Y21 -> 28.01307365 | P21: =+$H21+$C$7/$C$3*VLOOKUP($E$10,'0.FAV parámetros 1'!$A$207:$I$218,3,0)*$Y21 -> 30.07746873 | Q21: =+$H21+$C$7/$C$3*VLOOKUP($E$10,'0.FAV parámetros 1'!$A$207:$I$218,4,0)*$Y21 -> 30.60573781 | R21: =+$H21+$C$7/$C$3*VLOOKUP($E$10,'0.FAV parámetros 1'!$A$207:$I$218,5,0)*$Y21 -> 27.47959195 | S21: =+$H21+$C$7/$C$3*VLOOKUP($E$10,'0.FAV parámetros 1'!$A$207:$I$218,6,0)*$Y21 -> 24.33912106 | T21: =+$H21+$C$7/$C$3*VLOOKUP($E$10,'0.FAV parámetros 1'!$A$207:$I$218,7,0)*$Y21 -> 27.47959195 | U21: =+$H21+$C$7/$C$3*VLOOKUP($E$10,'0.FAV parámetros 1'!$A$207:$I$218,8,0)*$Y21 -> 30.60573781 | V21: =+$H21+$C$7/$C$3*VLOOKUP($E$10,'0.FAV parámetros 1'!$A$207:$I$218,9,0)*$Y21 -> 30.07746873 | W21: =+IF('0. Datos Arq Motor'!$C$32="Si",1,0) -> 1 | X21: =+'0. Perfil de Uso'!N23-'0. Perfil de Uso'!J22 -> 0.8262 | Y21: =+SUMIFS('0. Clima'!$O$11:$O$298,'0. Clima'!$L$11:$L$298,'0. Datos Clima Motor'!E10,'0. Clima'!$M$11:$M$298,'0. Datos Clima Motor'!F21) -> 627.6971326
E22: Infil RAH | F22: 12 | G22: 43200 | H22: =+'0. Clima'!N23 -> 14.79032258 | I22: =+'0.FAV Calculos'!IC26 -> 4468.536325 | J22: =+'0.FAV Calculos'!IQ26 -> 838.3481746 | K22: =+'0. Perfil de Uso'!E23 -> 1.23 | L22: =+'0. Perfil de Uso'!F23 -> 0 | M22: =+'0. Perfil de Uso'!G23 -> 0 | N22: 36.03863588 | O22: =+$H22+$C$7/$C$3*VLOOKUP($E$10,'0.FAV parámetros 1'!$A$207:$I$218,2,0)*$Y22 -> 28.22003435 | P22: =+$H22+$C$7/$C$3*VLOOKUP($E$10,'0.FAV parámetros 1'!$A$207:$I$218,3,0)*$Y22 -> 30.21317125 | Q22: =+$H22+$C$7/$C$3*VLOOKUP($E$10,'0.FAV parámetros 1'!$A$207:$I$218,4,0)*$Y22 -> 30.72320568 | R22: =+$H22+$C$7/$C$3*VLOOKUP($E$10,'0.FAV parámetros 1'!$A$207:$I$218,5,0)*$Y22 -> 27.70496721 | S22: =+$H22+$C$7/$C$3*VLOOKUP($E$10,'0.FAV parámetros 1'!$A$207:$I$218,6,0)*$Y22 -> 24.67289818 | T22: =+$H22+$C$7/$C$3*VLOOKUP($E$10,'0.FAV parámetros 1'!$A$207:$I$218,7,0)*$Y22 -> 27.70496721 | U22: =+$H22+$C$7/$C$3*VLOOKUP($E$10,'0.FAV parámetros 1'!$A$207:$I$218,8,0)*$Y22 -> 30.72320568 | V22: =+$H22+$C$7/$C$3*VLOOKUP($E$10,'0.FAV parámetros 1'!$A$207:$I$218,9,0)*$Y22 -> 30.21317125 | W22: =+IF('0. Datos Arq Motor'!$C$32="Si",1,0) -> 1 | X22: =+'0. Perfil de Uso'!N24-'0. Perfil de Uso'!J23 -> 0.8262 | Y22: =+SUMIFS('0. Clima'!$O$11:$O$298,'0. Clima'!$L$11:$L$298,'0. Datos Clima Motor'!E10,'0. Clima'!$M$11:$M$298,'0. Datos Clima Motor'!F22) -> 606.0304659
E23: =+VLOOKUP(E10,'0. Perfil de Uso'!$C$11:$N$298,8,0) -> 0 | F23: 13 | G23: 46800 | H23: =+'0. Clima'!N24 -> 15.4516129 | I23: =+'0.FAV Calculos'!IC27 -> 4080.31184 | J23: =+'0.FAV Calculos'!IQ27 -> 2681.883609 | K23: =+'0. Perfil de Uso'!E24 -> 1.23 | L23: =+'0. Perfil de Uso'!F24 -> 0 | M23: =+'0. Perfil de Uso'!G24 -> 0 | N23: 36.07268606 | O23: =+$H23+$C$7/$C$3*VLOOKUP($E$10,'0.FAV parámetros 1'!$A$207:$I$218,2,0)*$Y23 -> 28.54376002 | P23: =+$H23+$C$7/$C$3*VLOOKUP($E$10,'0.FAV parámetros 1'!$A$207:$I$218,3,0)*$Y23 -> 30.48679811 | Q23: =+$H23+$C$7/$C$3*VLOOKUP($E$10,'0.FAV parámetros 1'!$A$207:$I$218,4,0)*$Y23 -> 30.9840125 | R23: =+$H23+$C$7/$C$3*VLOOKUP($E$10,'0.FAV parámetros 1'!$A$207:$I$218,5,0)*$Y23 -> 28.04163944 | S23: =+$H23+$C$7/$C$3*VLOOKUP($E$10,'0.FAV parámetros 1'!$A$207:$I$218,6,0)*$Y23 -> 25.08578346 | T23: =+$H23+$C$7/$C$3*VLOOKUP($E$10,'0.FAV parámetros 1'!$A$207:$I$218,7,0)*$Y23 -> 28.04163944 | U23: =+$H23+$C$7/$C$3*VLOOKUP($E$10,'0.FAV parámetros 1'!$A$207:$I$218,8,0)*$Y23 -> 30.9840125 | V23: =+$H23+$C$7/$C$3*VLOOKUP($E$10,'0.FAV parámetros 1'!$A$207:$I$218,9,0)*$Y23 -> 30.48679811 | W23: =+IF('0. Datos Arq Motor'!$C$32="Si",1,0) -> 1 | X23: =+'0. Perfil de Uso'!N25-'0. Perfil de Uso'!J24 -> 0.8262 | Y23: =+SUMIFS('0. Clima'!$O$11:$O$298,'0. Clima'!$L$11:$L$298,'0. Datos Clima Motor'!E10,'0. Clima'!$M$11:$M$298,'0. Datos Clima Motor'!F23) -> 590.797491
E24: Cat Mes | F24: 14 | G24: 50400 | H24: =+'0. Clima'!N25 -> 15.74516129 | I24: =+'0.FAV Calculos'!IC28 -> 4149.684722 | J24: =+'0.FAV Calculos'!IQ28 -> 1866.133969 | K24: =+'0. Perfil de Uso'!E25 -> 1.23 | L24: =+'0. Perfil de Uso'!F25 -> 0 | M24: =+'0. Perfil de Uso'!G25 -> 0 | N24: 31.90102256 | O24: =+$H24+$C$7/$C$3*VLOOKUP($E$10,'0.FAV parámetros 1'!$A$207:$I$218,2,0)*$Y24 -> 26.43424523 | P24: =+$H24+$C$7/$C$3*VLOOKUP($E$10,'0.FAV parámetros 1'!$A$207:$I$218,3,0)*$Y24 -> 28.02063874 | Q24: =+$H24+$C$7/$C$3*VLOOKUP($E$10,'0.FAV parámetros 1'!$A$207:$I$218,4,0)*$Y24 -> 28.42658944 | R24: =+$H24+$C$7/$C$3*VLOOKUP($E$10,'0.FAV parámetros 1'!$A$207:$I$218,5,0)*$Y24 -> 26.02428886 | S24: =+$H24+$C$7/$C$3*VLOOKUP($E$10,'0.FAV parámetros 1'!$A$207:$I$218,6,0)*$Y24 -> 23.61098016 | T24: =+$H24+$C$7/$C$3*VLOOKUP($E$10,'0.FAV parámetros 1'!$A$207:$I$218,7,0)*$Y24 -> 26.02428886 | U24: =+$H24+$C$7/$C$3*VLOOKUP($E$10,'0.FAV parámetros 1'!$A$207:$I$218,8,0)*$Y24 -> 28.42658944 | V24: =+$H24+$C$7/$C$3*VLOOKUP($E$10,'0.FAV parámetros 1'!$A$207:$I$218,9,0)*$Y24 -> 28.02063874 | W24: =+IF('0. Datos Arq Motor'!$C$32="Si",1,0) -> 1 | X24: =+'0. Perfil de Uso'!N26-'0. Perfil de Uso'!J25 -> 0.8262 | Y24: =+SUMIFS('0. Clima'!$O$11:$O$298,'0. Clima'!$L$11:$L$298,'0. Datos Clima Motor'!E10,'0. Clima'!$M$11:$M$298,'0. Datos Clima Motor'!F24) -> 482.3566308
E25: =+'0. Inercia Termica'!X102 -> i | F25: 15 | G25: 54000 | H25: =+'0. Clima'!N26 -> 15.55483871 | I25: =+'0.FAV Calculos'!IC29 -> 3718.946689 | J25: =+'0.FAV Calculos'!IQ29 -> 1495.682144 | K25: =+'0. Perfil de Uso'!E26 -> 1.23 | L25: =+'0. Perfil de Uso'!F26 -> 0 | M25: =+'0. Perfil de Uso'!G26 -> 0 | N25: 28.64792326 | O25: =+$H25+$C$7/$C$3*VLOOKUP($E$10,'0.FAV parámetros 1'!$A$207:$I$218,2,0)*$Y25 -> 24.59561432 | P25: =+$H25+$C$7/$C$3*VLOOKUP($E$10,'0.FAV parámetros 1'!$A$207:$I$218,3,0)*$Y25 -> 25.9373783 | Q25: =+$H25+$C$7/$C$3*VLOOKUP($E$10,'0.FAV parámetros 1'!$A$207:$I$218,4,0)*$Y25 -> 26.28072944 | R25: =+$H25+$C$7/$C$3*VLOOKUP($E$10,'0.FAV parámetros 1'!$A$207:$I$218,5,0)*$Y25 -> 24.2488752 | S25: =+$H25+$C$7/$C$3*VLOOKUP($E$10,'0.FAV parámetros 1'!$A$207:$I$218,6,0)*$Y25 -> 22.20771034 | T25: =+$H25+$C$7/$C$3*VLOOKUP($E$10,'0.FAV parámetros 1'!$A$207:$I$218,7,0)*$Y25 -> 24.2488752 | U25: =+$H25+$C$7/$C$3*VLOOKUP($E$10,'0.FAV parámetros 1'!$A$207:$I$218,8,0)*$Y25 -> 26.28072944 | V25: =+$H25+$C$7/$C$3*VLOOKUP($E$10,'0.FAV parámetros 1'!$A$207:$I$218,9,0)*$Y25 -> 25.9373783 | W25: =+IF('0. Datos Arq Motor'!$C$32="Si",1,0) -> 1 | X25: =+'0. Perfil de Uso'!N27-'0. Perfil de Uso'!J26 -> 0.8262 | Y25: =+SUMIFS('0. Clima'!$O$11:$O$298,'0. Clima'!$L$11:$L$298,'0. Datos Clima Motor'!E10,'0. Clima'!$M$11:$M$298,'0. Datos Clima Motor'!F25) -> 407.9749104
F26: 16 | G26: 57600 | H26: =+'0. Clima'!N27 -> 14.75483871 | I26: =+'0.FAV Calculos'!IC30 -> 2621.174398 | J26: =+'0.FAV Calculos'!IQ30 -> 1376.280316 | K26: =+'0. Perfil de Uso'!E27 -> 1.476 | L26: =+'0. Perfil de Uso'!F27 -> 0 | M26: =+'0. Perfil de Uso'!G27 -> 0 | N26: 24.71356736 | O26: =+$H26+$C$7/$C$3*VLOOKUP($E$10,'0.FAV parámetros 1'!$A$207:$I$218,2,0)*$Y26 -> 22.1087839 | P26: =+$H26+$C$7/$C$3*VLOOKUP($E$10,'0.FAV parámetros 1'!$A$207:$I$218,3,0)*$Y26 -> 23.20020119 | Q26: =+$H26+$C$7/$C$3*VLOOKUP($E$10,'0.FAV parámetros 1'!$A$207:$I$218,4,0)*$Y26 -> 23.47948978 | R26: =+$H26+$C$7/$C$3*VLOOKUP($E$10,'0.FAV parámetros 1'!$A$207:$I$218,5,0)*$Y26 -> 21.82673947 | S26: =+$H26+$C$7/$C$3*VLOOKUP($E$10,'0.FAV parámetros 1'!$A$207:$I$218,6,0)*$Y26 -> 20.16641571 | T26: =+$H26+$C$7/$C$3*VLOOKUP($E$10,'0.FAV parámetros 1'!$A$207:$I$218,7,0)*$Y26 -> 21.82673947 | U26: =+$H26+$C$7/$C$3*VLOOKUP($E$10,'0.FAV parámetros 1'!$A$207:$I$218,8,0)*$Y26 -> 23.47948978 | V26: =+$H26+$C$7/$C$3*VLOOKUP($E$10,'0.FAV parámetros 1'!$A$207:$I$218,9,0)*$Y26 -> 23.20020119 | W26: =+IF('0. Datos Arq Motor'!$C$32="Si",1,0) -> 1 | X26: =+'0. Perfil de Uso'!N28-'0. Perfil de Uso'!J27 -> 0.8262 | Y26: =+SUMIFS('0. Clima'!$O$11:$O$298,'0. Clima'!$L$11:$L$298,'0. Datos Clima Motor'!E10,'0. Clima'!$M$11:$M$298,'0. Datos Clima Motor'!F26) -> 331.8548387
F27: 17 | G27: 61200 | H27: =+'0. Clima'!N28 -> 14.10322581 | I27: =+'0.FAV Calculos'!IC31 -> 2250.087157 | J27: =+'0.FAV Calculos'!IQ31 -> 301.4006829 | K27: =+'0. Perfil de Uso'!E28 -> 2.46 | L27: =+'0. Perfil de Uso'!F28 -> 0 | M27: =+'0. Perfil de Uso'!G28 -> 0 | N27: 17.93750791 | O27: =+$H27+$C$7/$C$3*VLOOKUP($E$10,'0.FAV parámetros 1'!$A$207:$I$218,2,0)*$Y27 -> 18.16115004 | P27: =+$H27+$C$7/$C$3*VLOOKUP($E$10,'0.FAV parámetros 1'!$A$207:$I$218,3,0)*$Y27 -> 18.76339666 | Q27: =+$H27+$C$7/$C$3*VLOOKUP($E$10,'0.FAV parámetros 1'!$A$207:$I$218,4,0)*$Y27 -> 18.91750876 | R27: =+$H27+$C$7/$C$3*VLOOKUP($E$10,'0.FAV parámetros 1'!$A$207:$I$218,5,0)*$Y27 -> 18.00551726 | S27: =+$H27+$C$7/$C$3*VLOOKUP($E$10,'0.FAV parámetros 1'!$A$207:$I$218,6,0)*$Y27 -> 17.08934671 | T27: =+$H27+$C$7/$C$3*VLOOKUP($E$10,'0.FAV parámetros 1'!$A$207:$I$218,7,0)*$Y27 -> 18.00551726 | U27: =+$H27+$C$7/$C$3*VLOOKUP($E$10,'0.FAV parámetros 1'!$A$207:$I$218,8,0)*$Y27 -> 18.91750876 | V27: =+$H27+$C$7/$C$3*VLOOKUP($E$10,'0.FAV parámetros 1'!$A$207:$I$218,9,0)*$Y27 -> 18.76339666 | W27: =+IF('0. Datos Arq Motor'!$C$32="Si",1,0) -> 1 | X27: =+'0. Perfil de Uso'!N29-'0. Perfil de Uso'!J28 -> 0.8262 | Y27: =+SUMIFS('0. Clima'!$O$11:$O$298,'0. Clima'!$L$11:$L$298,'0. Datos Clima Motor'!E10,'0. Clima'!$M$11:$M$298,'0. Datos Clima Motor'!F27) -> 183.1182796
F28: 18 | G28: 64800 | H28: =+'0. Clima'!N29 -> 12.99354839 | I28: =+'0.FAV Calculos'!IC32 -> 1230.256369 | J28: =+'0.FAV Calculos'!IQ32 -> 91.78475301 | K28: =+'0. Perfil de Uso'!E29 -> 2.46 | L28: =+'0. Perfil de Uso'!F29 -> 0 | M28: =+'0. Perfil de Uso'!G29 -> 0 | N28: 12.80426945 | O28: =+$H28+$C$7/$C$3*VLOOKUP($E$10,'0.FAV parámetros 1'!$A$207:$I$218,2,0)*$Y28 -> 14.88609467 | P28: =+$H28+$C$7/$C$3*VLOOKUP($E$10,'0.FAV parámetros 1'!$A$207:$I$218,3,0)*$Y28 -> 15.16697217 | Q28: =+$H28+$C$7/$C$3*VLOOKUP($E$10,'0.FAV parámetros 1'!$A$207:$I$218,4,0)*$Y28 -> 15.23884741 | R28: =+$H28+$C$7/$C$3*VLOOKUP($E$10,'0.FAV parámetros 1'!$A$207:$I$218,5,0)*$Y28 -> 14.81351021 | S28: =+$H28+$C$7/$C$3*VLOOKUP($E$10,'0.FAV parámetros 1'!$A$207:$I$218,6,0)*$Y28 -> 14.38622398 | T28: =+$H28+$C$7/$C$3*VLOOKUP($E$10,'0.FAV parámetros 1'!$A$207:$I$218,7,0)*$Y28 -> 14.81351021 | U28: =+$H28+$C$7/$C$3*VLOOKUP($E$10,'0.FAV parámetros 1'!$A$207:$I$218,8,0)*$Y28 -> 15.23884741 | V28: =+$H28+$C$7/$C$3*VLOOKUP($E$10,'0.FAV parámetros 1'!$A$207:$I$218,9,0)*$Y28 -> 15.16697217 | W28: =+IF('0. Datos Arq Motor'!$C$32="Si",1,0) -> 1 | X28: =+'0. Perfil de Uso'!N30-'0. Perfil de Uso'!J29 -> 0.8262 | Y28: =+SUMIFS('0. Clima'!$O$11:$O$298,'0. Clima'!$L$11:$L$298,'0. Datos Clima Motor'!E10,'0. Clima'!$M$11:$M$298,'0. Datos Clima Motor'!F28) -> 85.40322581
F29: 19 | G29: 68400 | H29: =+'0. Clima'!N30 -> 12.01290323 | I29: =+'0.FAV Calculos'!IC33 -> 312.4251373 | J29: =+'0.FAV Calculos'!IQ33 -> 12.80097282 | K29: =+'0. Perfil de Uso'!E30 -> 3.69 | L29: =+'0. Perfil de Uso'!F30 -> 0 | M29: =+'0. Perfil de Uso'!G30 -> 0 | N29: 9.112839975 | O29: =+$H29+$C$7/$C$3*VLOOKUP($E$10,'0.FAV parámetros 1'!$A$207:$I$218,2,0)*$Y29 -> 12.44657452 | P29: =+$H29+$C$7/$C$3*VLOOKUP($E$10,'0.FAV parámetros 1'!$A$207:$I$218,3,0)*$Y29 -> 12.51093675 | Q29: =+$H29+$C$7/$C$3*VLOOKUP($E$10,'0.FAV parámetros 1'!$A$207:$I$218,4,0)*$Y29 -> 12.52740675 | R29: =+$H29+$C$7/$C$3*VLOOKUP($E$10,'0.FAV parámetros 1'!$A$207:$I$218,5,0)*$Y29 -> 12.42994201 | S29: =+$H29+$C$7/$C$3*VLOOKUP($E$10,'0.FAV parámetros 1'!$A$207:$I$218,6,0)*$Y29 -> 12.33203065 | T29: =+$H29+$C$7/$C$3*VLOOKUP($E$10,'0.FAV parámetros 1'!$A$207:$I$218,7,0)*$Y29 -> 12.42994201 | U29: =+$H29+$C$7/$C$3*VLOOKUP($E$10,'0.FAV parámetros 1'!$A$207:$I$218,8,0)*$Y29 -> 12.52740675 | V29: =+$H29+$C$7/$C$3*VLOOKUP($E$10,'0.FAV parámetros 1'!$A$207:$I$218,9,0)*$Y29 -> 12.51093675 | W29: =+IF('0. Datos Arq Motor'!$C$32="Si",1,0) -> 1 | X29: =+'0. Perfil de Uso'!N31-'0. Perfil de Uso'!J30 -> 0.8262 | Y29: =+SUMIFS('0. Clima'!$O$11:$O$298,'0. Clima'!$L$11:$L$298,'0. Datos Clima Motor'!E10,'0. Clima'!$M$11:$M$298,'0. Datos Clima Motor'!F29) -> 19.56989247
F30: 20 | G30: 72000 | H30: =+'0. Clima'!N31 -> 11.36129032 | I30: =+'0.FAV Calculos'!IC34 -> 5.437779288 | J30: =+'0.FAV Calculos'!IQ34 -> 0 | K30: =+'0. Perfil de Uso'!E31 -> 4.428 | L30: =+'0. Perfil de Uso'!F31 -> 1.5 | M30: =+'0. Perfil de Uso'!G31 -> 0 | N30: 7.669797596 | O30: =+$H30+$C$7/$C$3*VLOOKUP($E$10,'0.FAV parámetros 1'!$A$207:$I$218,2,0)*$Y30 -> 11.36903445 | P30: =+$H30+$C$7/$C$3*VLOOKUP($E$10,'0.FAV parámetros 1'!$A$207:$I$218,3,0)*$Y30 -> 11.37018378 | Q30: =+$H30+$C$7/$C$3*VLOOKUP($E$10,'0.FAV parámetros 1'!$A$207:$I$218,4,0)*$Y30 -> 11.37047789 | R30: =+$H30+$C$7/$C$3*VLOOKUP($E$10,'0.FAV parámetros 1'!$A$207:$I$218,5,0)*$Y30 -> 11.36873744 | S30: =+$H30+$C$7/$C$3*VLOOKUP($E$10,'0.FAV parámetros 1'!$A$207:$I$218,6,0)*$Y30 -> 11.36698903 | T30: =+$H30+$C$7/$C$3*VLOOKUP($E$10,'0.FAV parámetros 1'!$A$207:$I$218,7,0)*$Y30 -> 11.36873744 | U30: =+$H30+$C$7/$C$3*VLOOKUP($E$10,'0.FAV parámetros 1'!$A$207:$I$218,8,0)*$Y30 -> 11.37047789 | V30: =+$H30+$C$7/$C$3*VLOOKUP($E$10,'0.FAV parámetros 1'!$A$207:$I$218,9,0)*$Y30 -> 11.37018378 | W30: =+IF('0. Datos Arq Motor'!$C$32="Si",1,0) -> 1 | X30: =+'0. Perfil de Uso'!N32-'0. Perfil de Uso'!J31 -> 0.8262 | Y30: =+SUMIFS('0. Clima'!$O$11:$O$298,'0. Clima'!$L$11:$L$298,'0. Datos Clima Motor'!E10,'0. Clima'!$M$11:$M$298,'0. Datos Clima Motor'!F30) -> 0.3494623656
F31: 21 | G31: 75600 | H31: =+'0. Clima'!N32 -> 10.84516129 | I31: =+'0.FAV Calculos'!IC35 -> 0 | J31: =+'0.FAV Calculos'!IQ35 -> 0 | K31: =+'0. Perfil de Uso'!E32 -> 4.92 | L31: =+'0. Perfil de Uso'!F32 -> 1.5 | M31: =+'0. Perfil de Uso'!G32 -> 0 | N31: 7.139278937 | O31: =+$H31+$C$7/$C$3*VLOOKUP($E$10,'0.FAV parámetros 1'!$A$207:$I$218,2,0)*$Y31 -> 10.84516129 | P31: =+$H31+$C$7/$C$3*VLOOKUP($E$10,'0.FAV parámetros 1'!$A$207:$I$218,3,0)*$Y31 -> 10.84516129 | Q31: =+$H31+$C$7/$C$3*VLOOKUP($E$10,'0.FAV parámetros 1'!$A$207:$I$218,4,0)*$Y31 -> 10.84516129 | R31: =+$H31+$C$7/$C$3*VLOOKUP($E$10,'0.FAV parámetros 1'!$A$207:$I$218,5,0)*$Y31 -> 10.84516129 | S31: =+$H31+$C$7/$C$3*VLOOKUP($E$10,'0.FAV parámetros 1'!$A$207:$I$218,6,0)*$Y31 -> 10.84516129 | T31: =+$H31+$C$7/$C$3*VLOOKUP($E$10,'0.FAV parámetros 1'!$A$207:$I$218,7,0)*$Y31 -> 10.84516129 | U31: =+$H31+$C$7/$C$3*VLOOKUP($E$10,'0.FAV parámetros 1'!$A$207:$I$218,8,0)*$Y31 -> 10.84516129 | V31: =+$H31+$C$7/$C$3*VLOOKUP($E$10,'0.FAV parámetros 1'!$A$207:$I$218,9,0)*$Y31 -> 10.84516129 | W31: =+IF('0. Datos Arq Motor'!$C$32="Si",1,0) -> 1 | X31: =+'0. Perfil de Uso'!N33-'0. Perfil de Uso'!J32 -> 0.8262 | Y31: =+SUMIFS('0. Clima'!$O$11:$O$298,'0. Clima'!$L$11:$L$298,'0. Datos Clima Motor'!E10,'0. Clima'!$M$11:$M$298,'0. Datos Clima Motor'!F31) -> 0
F32: 22 | G32: 79200 | H32: =+'0. Clima'!N33 -> 10.34193548 | I32: =+'0.FAV Calculos'!IC36 -> 0 | J32: =+'0.FAV Calculos'!IQ36 -> 0 | K32: =+'0. Perfil de Uso'!E33 -> 4.1 | L32: =+'0. Perfil de Uso'!F33 -> 0 | M32: =+'0. Perfil de Uso'!G33 -> 0 | N32: 6.636053131 | O32: =+$H32+$C$7/$C$3*VLOOKUP($E$10,'0.FAV parámetros 1'!$A$207:$I$218,2,0)*$Y32 -> 10.34193548 | P32: =+$H32+$C$7/$C$3*VLOOKUP($E$10,'0.FAV parámetros 1'!$A$207:$I$218,3,0)*$Y32 -> 10.34193548 | Q32: =+$H32+$C$7/$C$3*VLOOKUP($E$10,'0.FAV parámetros 1'!$A$207:$I$218,4,0)*$Y32 -> 10.34193548 | R32: =+$H32+$C$7/$C$3*VLOOKUP($E$10,'0.FAV parámetros 1'!$A$207:$I$218,5,0)*$Y32 -> 10.34193548 | S32: =+$H32+$C$7/$C$3*VLOOKUP($E$10,'0.FAV parámetros 1'!$A$207:$I$218,6,0)*$Y32 -> 10.34193548 | T32: =+$H32+$C$7/$C$3*VLOOKUP($E$10,'0.FAV parámetros 1'!$A$207:$I$218,7,0)*$Y32 -> 10.34193548 | U32: =+$H32+$C$7/$C$3*VLOOKUP($E$10,'0.FAV parámetros 1'!$A$207:$I$218,8,0)*$Y32 -> 10.34193548 | V32: =+$H32+$C$7/$C$3*VLOOKUP($E$10,'0.FAV parámetros 1'!$A$207:$I$218,9,0)*$Y32 -> 10.34193548 | W32: =+IF('0. Datos Arq Motor'!$C$32="Si",2,0) -> 2 | X32: =+'0. Perfil de Uso'!N34-'0. Perfil de Uso'!J33 -> 0.8262 | Y32: =+SUMIFS('0. Clima'!$O$11:$O$298,'0. Clima'!$L$11:$L$298,'0. Datos Clima Motor'!E10,'0. Clima'!$M$11:$M$298,'0. Datos Clima Motor'!F32) -> 0
F33: 23 | G33: 82800 | H33: =+'0. Clima'!N34 -> 9.993548387 | I33: =+'0.FAV Calculos'!IC37 -> 0 | J33: =+'0.FAV Calculos'!IQ37 -> 0 | K33: =+'0. Perfil de Uso'!E34 -> 4.1 | L33: =+'0. Perfil de Uso'!F34 -> 0 | M33: =+'0. Perfil de Uso'!G34 -> 0 | N33: 6.287666034 | O33: =+$H33+$C$7/$C$3*VLOOKUP($E$10,'0.FAV parámetros 1'!$A$207:$I$218,2,0)*$Y33 -> 9.993548387 | P33: =+$H33+$C$7/$C$3*VLOOKUP($E$10,'0.FAV parámetros 1'!$A$207:$I$218,3,0)*$Y33 -> 9.993548387 | Q33: =+$H33+$C$7/$C$3*VLOOKUP($E$10,'0.FAV parámetros 1'!$A$207:$I$218,4,0)*$Y33 -> 9.993548387 | R33: =+$H33+$C$7/$C$3*VLOOKUP($E$10,'0.FAV parámetros 1'!$A$207:$I$218,5,0)*$Y33 -> 9.993548387 | S33: =+$H33+$C$7/$C$3*VLOOKUP($E$10,'0.FAV parámetros 1'!$A$207:$I$218,6,0)*$Y33 -> 9.993548387 | T33: =+$H33+$C$7/$C$3*VLOOKUP($E$10,'0.FAV parámetros 1'!$A$207:$I$218,7,0)*$Y33 -> 9.993548387 | U33: =+$H33+$C$7/$C$3*VLOOKUP($E$10,'0.FAV parámetros 1'!$A$207:$I$218,8,0)*$Y33 -> 9.993548387 | V33: =+$H33+$C$7/$C$3*VLOOKUP($E$10,'0.FAV parámetros 1'!$A$207:$I$218,9,0)*$Y33 -> 9.993548387 | W33: =+IF('0. Datos Arq Motor'!$C$32="Si",2,0) -> 2 | X33: =+'0. Perfil de Uso'!N35-'0. Perfil de Uso'!J34 -> 0.8262 | Y33: =+SUMIFS('0. Clima'!$O$11:$O$298,'0. Clima'!$L$11:$L$298,'0. Datos Clima Motor'!E10,'0. Clima'!$M$11:$M$298,'0. Datos Clima Motor'!F33) -> 0
F34: 24 | G34: 86400 | H34: =+H10 -> 9.75483871 | I34: 0 | J34: 0 | K34: =+K10 -> 4.1 | L34: =+L10 -> 0 | M34: 0 | N34: =+H34 -> 9.75483871 | O34: =+N34 -> 9.75483871 | P34: 9.75483871 | Q34: 9.75483871 | R34: 9.75483871 | S34: 9.75483871 | T34: 9.75483871 | U34: 9.75483871 | V34: 9.75483871 | W34: =+W10 -> 2 | X34: =+X10 -> 0.8262 | Y34: =+Y10 -> 0
G35: Valor Variable
I40: Rad Ventanas: Sol Incidente*FS*FAV*FAR [W]
E41: Mes | F41: Tiempo [hrs] | G41: Tiempo [s] | H41: T° exterior | I41: Difuso | J41: Directo | K41: Qgen Pers [W/m2] | L41: Qgen Ilum [W/m2] | M41: Qgen Equip [W/m2] | N41: TsolH | O41: TsolN | P41: TsolNE | Q41: TsolE | R41: TsolSE | S41: TsolS | T41: TsolSO | U41: TsolO | V41: TsolNO | W41: Clima [0, 1 o 2] | X41: N [RAH] | Y41: G total [W/m2]
E42: Febrero | F42: 0 | G42: 0 | H42: =+'0. Clima'!N35 -> 8.860334821 | I42: =+'0.FAV Calculos'!ID14 -> 0 | J42: =+'0.FAV Calculos'!IR14 -> 0 | K42: =+'0. Perfil de Uso'!E35 -> 4.1 | L42: =+'0. Perfil de Uso'!F35 -> 0 | M42: =+'0. Perfil de Uso'!G35 -> 0 | N42: =+$H42+$C$8/$C$3*Y42-1/$C$3*63 -> 5.154452468 | O42: =+$H42+$C$7/$C$3*VLOOKUP(E42,'0.FAV parámetros 1'!$A$207:$I$218,2,0)*$Y42 -> 8.860334821 | P42: =+$H42+$C$7/$C$3*VLOOKUP(E42,'0.FAV parámetros 1'!$A$207:$I$218,3,0)*$Y42 -> 8.860334821 | Q42: =+$H42+$C$7/$C$3*VLOOKUP(E42,'0.FAV parámetros 1'!$A$207:$I$218,4,0)*$Y42 -> 8.860334821 | R42: =+$H42+$C$7/$C$3*VLOOKUP(E42,'0.FAV parámetros 1'!$A$207:$I$218,5,0)*$Y42 -> 8.860334821 | S42: =+$H42+$C$7/$C$3*VLOOKUP(E42,'0.FAV parámetros 1'!$A$207:$I$218,6,0)*$Y42 -> 8.860334821 | T42: =+$H42+$C$7/$C$3*VLOOKUP(E42,'0.FAV parámetros 1'!$A$207:$I$218,7,0)*$Y42 -> 8.860334821 | U42: =+$H42+$C$7/$C$3*VLOOKUP(E42,'0.FAV parámetros 1'!$A$207:$I$218,8,0)*$Y42 -> 8.860334821 | V42: =+$H42+$C$7/$C$3*VLOOKUP(E42,'0.FAV parámetros 1'!$A$207:$I$218,9,0)*$Y42 -> 8.860334821 | W42: =+IF('0. Datos Arq Motor'!$C$32="Si",2,0) -> 2 | X42: =+'0. Perfil de Uso'!N35-'0. Perfil de Uso'!J35 -> 0.8262 | Y42: =+SUMIFS('0. Clima'!$O$11:$O$298,'0. Clima'!$L$11:$L$298,'0. Datos Clima Motor'!E42,'0. Clima'!$M$11:$M$298,'0. Datos Clima Motor'!F42) -> 0
E43: 2 | F43: 1 | G43: 3600 | H43: =+'0. Clima'!N36 -> 8.378799107 | I43: =+'0.FAV Calculos'!ID15 -> 0 | J43: =+'0.FAV Calculos'!IR15 -> 0 | K43: =+'0. Perfil de Uso'!E36 -> 4.1 | L43: =+'0. Perfil de Uso'!F36 -> 0 | M43: =+'0. Perfil de Uso'!G36 -> 0 | N43: =+$H43+$C$8/$C$3*Y43-1/$C$3*63 -> 4.672916754 | O43: =+$H43+$C$7/$C$3*VLOOKUP(E42,'0.FAV parámetros 1'!$A$207:$I$218,2,0)*$Y43 -> 8.378799107 | P43: =+$H43+$C$7/$C$3*VLOOKUP(E42,'0.FAV parámetros 1'!$A$207:$I$218,3,0)*$Y43 -> 8.378799107 | Q43: =+$H43+$C$7/$C$3*VLOOKUP(E42,'0.FAV parámetros 1'!$A$207:$I$218,4,0)*$Y43 -> 8.378799107 | R43: =+$H43+$C$7/$C$3*VLOOKUP(E42,'0.FAV parámetros 1'!$A$207:$I$218,5,0)*$Y43 -> 8.378799107 | S43: =+$H43+$C$7/$C$3*VLOOKUP(E42,'0.FAV parámetros 1'!$A$207:$I$218,6,0)*$Y43 -> 8.378799107 | T43: =+$H43+$C$7/$C$3*VLOOKUP(E42,'0.FAV parámetros 1'!$A$207:$I$218,7,0)*$Y43 -> 8.378799107 | U43: =+$H43+$C$7/$C$3*VLOOKUP(E42,'0.FAV parámetros 1'!$A$207:$I$218,8,0)*$Y43 -> 8.378799107 | V43: =+$H43+$C$7/$C$3*VLOOKUP(E42,'0.FAV parámetros 1'!$A$207:$I$218,9,0)*$Y43 -> 8.378799107 | W43: =+IF('0. Datos Arq Motor'!$C$32="Si",2,0) -> 2 | X43: =+'0. Perfil de Uso'!N36-'0. Perfil de Uso'!J36 -> 0.8262 | Y43: =+SUMIFS('0. Clima'!$O$11:$O$298,'0. Clima'!$L$11:$L$298,'0. Datos Clima Motor'!E42,'0. Clima'!$M$11:$M$298,'0. Datos Clima Motor'!F43) -> 0
E44: Tmax Dia | F44: 2 | G44: 7200 | H44: =+'0. Clima'!N37 -> 8.049691964 | I44: =+'0.FAV Calculos'!ID16 -> 0 | J44: =+'0.FAV Calculos'!IR16 -> 0 | K44: =+'0. Perfil de Uso'!E37 -> 4.1 | L44: =+'0. Perfil de Uso'!F37 -> 0 | M44: =+'0. Perfil de Uso'!G37 -> 0 | N44: 4.343809611 | O44: =+$H44+$C$7/$C$3*VLOOKUP(E42,'0.FAV parámetros 1'!$A$207:$I$218,2,0)*$Y44 -> 8.049691964 | P44: =+$H44+$C$7/$C$3*VLOOKUP(E42,'0.FAV parámetros 1'!$A$207:$I$218,3,0)*$Y44 -> 8.049691964 | Q44: =+$H44+$C$7/$C$3*VLOOKUP(E42,'0.FAV parámetros 1'!$A$207:$I$218,4,0)*$Y44 -> 8.049691964 | R44: =+$H44+$C$7/$C$3*VLOOKUP(E42,'0.FAV parámetros 1'!$A$207:$I$218,5,0)*$Y44 -> 8.049691964 | S44: =+$H44+$C$7/$C$3*VLOOKUP(E42,'0.FAV parámetros 1'!$A$207:$I$218,6,0)*$Y44 -> 8.049691964 | T44: =+$H44+$C$7/$C$3*VLOOKUP(E42,'0.FAV parámetros 1'!$A$207:$I$218,7,0)*$Y44 -> 8.049691964 | U44: =+$H44+$C$7/$C$3*VLOOKUP(E42,'0.FAV parámetros 1'!$A$207:$I$218,8,0)*$Y44 -> 8.049691964 | V44: =+$H44+$C$7/$C$3*VLOOKUP(E42,'0.FAV parámetros 1'!$A$207:$I$218,9,0)*$Y44 -> 8.049691964 | W44: =+IF('0. Datos Arq Motor'!$C$32="Si",2,0) -> 2 | X44: =+'0. Perfil de Uso'!N37-'0. Perfil de Uso'!J37 -> 0.8262 | Y44: =+SUMIFS('0. Clima'!$O$11:$O$298,'0. Clima'!$L$11:$L$298,'0. Datos Clima Motor'!E42,'0. Clima'!$M$11:$M$298,'0. Datos Clima Motor'!F44) -> 0
E45: =+VLOOKUP(E42,'0. Clima'!$S$11:$V$22,4,0) -> 24.09795313 | F45: 3 | G45: 10800 | H45: =+'0. Clima'!N38 -> 7.821049107 | I45: =+'0.FAV Calculos'!ID17 -> 0 | J45: =+'0.FAV Calculos'!IR17 -> 0 | K45: =+'0. Perfil de Uso'!E38 -> 4.1 | L45: =+'0. Perfil de Uso'!F38 -> 0 | M45: =+'0. Perfil de Uso'!G38 -> 0 | N45: 4.115166754 | O45: =+$H45+$C$7/$C$3*VLOOKUP(E42,'0.FAV parámetros 1'!$A$207:$I$218,2,0)*$Y45 -> 7.821049107 | P45: =+$H45+$C$7/$C$3*VLOOKUP(E42,'0.FAV parámetros 1'!$A$207:$I$218,3,0)*$Y45 -> 7.821049107 | Q45: =+$H45+$C$7/$C$3*VLOOKUP(E42,'0.FAV parámetros 1'!$A$207:$I$218,4,0)*$Y45 -> 7.821049107 | R45: =+$H45+$C$7/$C$3*VLOOKUP(E42,'0.FAV parámetros 1'!$A$207:$I$218,5,0)*$Y45 -> 7.821049107 | S45: =+$H45+$C$7/$C$3*VLOOKUP(E42,'0.FAV parámetros 1'!$A$207:$I$218,6,0)*$Y45 -> 7.821049107 | T45: =+$H45+$C$7/$C$3*VLOOKUP(E42,'0.FAV parámetros 1'!$A$207:$I$218,7,0)*$Y45 -> 7.821049107 | U45: =+$H45+$C$7/$C$3*VLOOKUP(E42,'0.FAV parámetros 1'!$A$207:$I$218,8,0)*$Y45 -> 7.821049107 | V45: =+$H45+$C$7/$C$3*VLOOKUP(E42,'0.FAV parámetros 1'!$A$207:$I$218,9,0)*$Y45 -> 7.821049107 | W45: =+IF('0. Datos Arq Motor'!$C$32="Si",2,0) -> 2 | X45: =+'0. Perfil de Uso'!N38-'0. Perfil de Uso'!J38 -> 0.8262 | Y45: =+SUMIFS('0. Clima'!$O$11:$O$298,'0. Clima'!$L$11:$L$298,'0. Datos Clima Motor'!E42,'0. Clima'!$M$11:$M$298,'0. Datos Clima Motor'!F45) -> 0
E46: Tmin Dia | F46: 4 | G46: 14400 | H46: =+'0. Clima'!N39 -> 7.724049107 | I46: =+'0.FAV Calculos'!ID18 -> 31.01417408 | J46: =+'0.FAV Calculos'!IR18 -> 0 | K46: =+'0. Perfil de Uso'!E39 -> 4.1 | L46: =+'0. Perfil de Uso'!F39 -> 0 | M46: =+'0. Perfil de Uso'!G39 -> 0 | N46: 4.089653682 | O46: =+$H46+$C$7/$C$3*VLOOKUP(E42,'0.FAV parámetros 1'!$A$207:$I$218,2,0)*$Y46 -> 7.771968552 | P46: =+$H46+$C$7/$C$3*VLOOKUP(E42,'0.FAV parámetros 1'!$A$207:$I$218,3,0)*$Y46 -> 7.77474671 | Q46: =+$H46+$C$7/$C$3*VLOOKUP(E42,'0.FAV parámetros 1'!$A$207:$I$218,4,0)*$Y46 -> 7.770784166 | R46: =+$H46+$C$7/$C$3*VLOOKUP(E42,'0.FAV parámetros 1'!$A$207:$I$218,5,0)*$Y46 -> 7.758532566 | S46: =+$H46+$C$7/$C$3*VLOOKUP(E42,'0.FAV parámetros 1'!$A$207:$I$218,6,0)*$Y46 -> 7.749038289 | T46: =+$H46+$C$7/$C$3*VLOOKUP(E42,'0.FAV parámetros 1'!$A$207:$I$218,7,0)*$Y46 -> 7.758532566 | U46: =+$H46+$C$7/$C$3*VLOOKUP(E42,'0.FAV parámetros 1'!$A$207:$I$218,8,0)*$Y46 -> 7.770784166 | V46: =+$H46+$C$7/$C$3*VLOOKUP(E42,'0.FAV parámetros 1'!$A$207:$I$218,9,0)*$Y46 -> 7.77474671 | W46: =+IF('0. Datos Arq Motor'!$C$32="Si",2,0) -> 2 | X46: =+'0. Perfil de Uso'!N39-'0. Perfil de Uso'!J39 -> 0.8262 | Y46: =+SUMIFS('0. Clima'!$O$11:$O$298,'0. Clima'!$L$11:$L$298,'0. Datos Clima Motor'!E42,'0. Clima'!$M$11:$M$298,'0. Datos Clima Motor'!F46) -> 1.736111111
E47: =+VLOOKUP(E42,'0. Clima'!$S$11:$V$22,3,0) -> 19.09795313 | F47: 5 | G47: 18000 | H47: =+'0. Clima'!N40 -> 7.855691964 | I47: =+'0.FAV Calculos'!ID19 -> 609.7021751 | J47: =+'0.FAV Calculos'!IR19 -> 0 | K47: =+'0. Perfil de Uso'!E40 -> 4.1 | L47: =+'0. Perfil de Uso'!F40 -> 0 | M47: =+'0. Perfil de Uso'!G40 -> 0 | N47: 5.719254056 | O47: =+$H47+$C$7/$C$3*VLOOKUP(E42,'0.FAV parámetros 1'!$A$207:$I$218,2,0)*$Y47 -> 8.907729142 | P47: =+$H47+$C$7/$C$3*VLOOKUP(E42,'0.FAV parámetros 1'!$A$207:$I$218,3,0)*$Y47 -> 8.968721622 | Q47: =+$H47+$C$7/$C$3*VLOOKUP(E42,'0.FAV parámetros 1'!$A$207:$I$218,4,0)*$Y47 -> 8.881726796 | R47: =+$H47+$C$7/$C$3*VLOOKUP(E42,'0.FAV parámetros 1'!$A$207:$I$218,5,0)*$Y47 -> 8.61275167 | S47: =+$H47+$C$7/$C$3*VLOOKUP(E42,'0.FAV parámetros 1'!$A$207:$I$218,6,0)*$Y47 -> 8.404311608 | T47: =+$H47+$C$7/$C$3*VLOOKUP(E42,'0.FAV parámetros 1'!$A$207:$I$218,7,0)*$Y47 -> 8.61275167 | U47: =+$H47+$C$7/$C$3*VLOOKUP(E42,'0.FAV parámetros 1'!$A$207:$I$218,8,0)*$Y47 -> 8.881726796 | V47: =+$H47+$C$7/$C$3*VLOOKUP(E42,'0.FAV parámetros 1'!$A$207:$I$218,9,0)*$Y47 -> 8.968721622 | W47: =+IF('0. Datos Arq Motor'!$C$32="Si",2,0) -> 2 | X47: =+'0. Perfil de Uso'!N40-'0. Perfil de Uso'!J40 -> 0.8262 | Y47: =+SUMIFS('0. Clima'!$O$11:$O$298,'0. Clima'!$L$11:$L$298,'0. Datos Clima Motor'!E42,'0. Clima'!$M$11:$M$298,'0. Datos Clima Motor'!F47) -> 38.11507937
E48: Tmax Noche | F48: 6 | G48: 21600 | H48: =+'0. Clima'!N41 -> 8.364941964 | I48: =+'0.FAV Calculos'!ID20 -> 1622.041304 | J48: =+'0.FAV Calculos'!IR20 -> 107.8949418 | K48: =+'0. Perfil de Uso'!E41 -> 3.28 | L48: =+'0. Perfil de Uso'!F41 -> 0 | M48: =+'0. Perfil de Uso'!G41 -> 0 | N48: 9.874745886 | O48: =+$H48+$C$7/$C$3*VLOOKUP(E42,'0.FAV parámetros 1'!$A$207:$I$218,2,0)*$Y48 -> 11.86114464 | P48: =+$H48+$C$7/$C$3*VLOOKUP(E42,'0.FAV parámetros 1'!$A$207:$I$218,3,0)*$Y48 -> 12.06383907 | Q48: =+$H48+$C$7/$C$3*VLOOKUP(E42,'0.FAV parámetros 1'!$A$207:$I$218,4,0)*$Y48 -> 11.77473185 | R48: =+$H48+$C$7/$C$3*VLOOKUP(E42,'0.FAV parámetros 1'!$A$207:$I$218,5,0)*$Y48 -> 10.88085511 | S48: =+$H48+$C$7/$C$3*VLOOKUP(E42,'0.FAV parámetros 1'!$A$207:$I$218,6,0)*$Y48 -> 10.18815269 | T48: =+$H48+$C$7/$C$3*VLOOKUP(E42,'0.FAV parámetros 1'!$A$207:$I$218,7,0)*$Y48 -> 10.88085511 | U48: =+$H48+$C$7/$C$3*VLOOKUP(E42,'0.FAV parámetros 1'!$A$207:$I$218,8,0)*$Y48 -> 11.77473185 | V48: =+$H48+$C$7/$C$3*VLOOKUP(E42,'0.FAV parámetros 1'!$A$207:$I$218,9,0)*$Y48 -> 12.06383907 | W48: =+IF('0. Datos Arq Motor'!$C$32="Si",2,0) -> 2 | X48: =+'0. Perfil de Uso'!N41-'0. Perfil de Uso'!J41 -> 0.8262 | Y48: =+SUMIFS('0. Clima'!$O$11:$O$298,'0. Clima'!$L$11:$L$298,'0. Datos Clima Motor'!E42,'0. Clima'!$M$11:$M$298,'0. Datos Clima Motor'!F48) -> 126.6666667
E49: =+E45 -> 24.09795313 | F49: 7 | G49: 25200 | H49: =+'0. Clima'!N42 -> 9.19290625 | I49: =+'0.FAV Calculos'!ID21 -> 2214.776902 | J49: =+'0.FAV Calculos'!IR21 -> 723.7170361 | K49: =+'0. Perfil de Uso'!E42 -> 3.936 | L49: =+'0. Perfil de Uso'!F42 -> 0 | M49: =+'0. Perfil de Uso'!G42 -> 0 | N49: 15.69127226 | O49: =+$H49+$C$7/$C$3*VLOOKUP(E42,'0.FAV parámetros 1'!$A$207:$I$218,2,0)*$Y49 -> 16.03306468 | P49: =+$H49+$C$7/$C$3*VLOOKUP(E42,'0.FAV parámetros 1'!$A$207:$I$218,3,0)*$Y49 -> 16.42962693 | Q49: =+$H49+$C$7/$C$3*VLOOKUP(E42,'0.FAV parámetros 1'!$A$207:$I$218,4,0)*$Y49 -> 15.86400206 | R49: =+$H49+$C$7/$C$3*VLOOKUP(E42,'0.FAV parámetros 1'!$A$207:$I$218,5,0)*$Y49 -> 14.11517367 | S49: =+$H49+$C$7/$C$3*VLOOKUP(E42,'0.FAV parámetros 1'!$A$207:$I$218,6,0)*$Y49 -> 12.7599335 | T49: =+$H49+$C$7/$C$3*VLOOKUP(E42,'0.FAV parámetros 1'!$A$207:$I$218,7,0)*$Y49 -> 14.11517367 | U49: =+$H49+$C$7/$C$3*VLOOKUP(E42,'0.FAV parámetros 1'!$A$207:$I$218,8,0)*$Y49 -> 15.86400206 | V49: =+$H49+$C$7/$C$3*VLOOKUP(E42,'0.FAV parámetros 1'!$A$207:$I$218,9,0)*$Y49 -> 16.42962693 | W49: =+IF('0. Datos Arq Motor'!$C$32="Si",1,0) -> 1 | X49: =+'0. Perfil de Uso'!N42-'0. Perfil de Uso'!J42 -> 0.8262 | Y49: =+SUMIFS('0. Clima'!$O$11:$O$298,'0. Clima'!$L$11:$L$298,'0. Datos Clima Motor'!E42,'0. Clima'!$M$11:$M$298,'0. Datos Clima Motor'!F49) -> 247.8174603
E50: Tmin Noche | F50: 8 | G50: 28800 | H50: =+'0. Clima'!N43 -> 10.21140625 | I50: =+'0.FAV Calculos'!ID22 -> 2997.976015 | J50: =+'0.FAV Calculos'!IR22 -> 1024.19488 | K50: =+'0. Perfil de Uso'!E43 -> 1.968 | L50: =+'0. Perfil de Uso'!F43 -> 0 | M50: =+'0. Perfil de Uso'!G43 -> 0 | N50: 20.64114481 | O50: =+$H50+$C$7/$C$3*VLOOKUP(E42,'0.FAV parámetros 1'!$A$207:$I$218,2,0)*$Y50 -> 19.68686031 | P50: =+$H50+$C$7/$C$3*VLOOKUP(E42,'0.FAV parámetros 1'!$A$207:$I$218,3,0)*$Y50 -> 20.23620538 | Q50: =+$H50+$C$7/$C$3*VLOOKUP(E42,'0.FAV parámetros 1'!$A$207:$I$218,4,0)*$Y50 -> 19.45266323 | R50: =+$H50+$C$7/$C$3*VLOOKUP(E42,'0.FAV parámetros 1'!$A$207:$I$218,5,0)*$Y50 -> 17.03006685 | S50: =+$H50+$C$7/$C$3*VLOOKUP(E42,'0.FAV parámetros 1'!$A$207:$I$218,6,0)*$Y50 -> 15.15269572 | T50: =+$H50+$C$7/$C$3*VLOOKUP(E42,'0.FAV parámetros 1'!$A$207:$I$218,7,0)*$Y50 -> 17.03006685 | U50: =+$H50+$C$7/$C$3*VLOOKUP(E42,'0.FAV parámetros 1'!$A$207:$I$218,8,0)*$Y50 -> 19.45266323 | V50: =+$H50+$C$7/$C$3*VLOOKUP(E42,'0.FAV parámetros 1'!$A$207:$I$218,9,0)*$Y50 -> 20.23620538 | W50: =+IF('0. Datos Arq Motor'!$C$32="Si",1,0) -> 1 | X50: =+'0. Perfil de Uso'!N43-'0. Perfil de Uso'!J43 -> 0.8262 | Y50: =+SUMIFS('0. Clima'!$O$11:$O$298,'0. Clima'!$L$11:$L$298,'0. Datos Clima Motor'!E42,'0. Clima'!$M$11:$M$298,'0. Datos Clima Motor'!F50) -> 343.2936508
E51: =+MAX(E47-2,17) -> 17.09795313 | F51: 9 | G51: 32400 | H51: =+'0. Clima'!N44 -> 11.10172768 | I51: =+'0.FAV Calculos'!ID23 -> 3477.418659 | J51: =+'0.FAV Calculos'!IR23 -> 1297.505153 | K51: =+'0. Perfil de Uso'!E44 -> 1.23 | L51: =+'0. Perfil de Uso'!F44 -> 0 | M51: =+'0. Perfil de Uso'!G44 -> 0 | N51: 24.58579631 | O51: =+$H51+$C$7/$C$3*VLOOKUP(E42,'0.FAV parámetros 1'!$A$207:$I$218,2,0)*$Y51 -> 22.62457424 | P51: =+$H51+$C$7/$C$3*VLOOKUP(E42,'0.FAV parámetros 1'!$A$207:$I$218,3,0)*$Y51 -> 23.2926181 | Q51: =+$H51+$C$7/$C$3*VLOOKUP(E42,'0.FAV parámetros 1'!$A$207:$I$218,4,0)*$Y51 -> 22.33977343 | R51: =+$H51+$C$7/$C$3*VLOOKUP(E42,'0.FAV parámetros 1'!$A$207:$I$218,5,0)*$Y51 -> 19.39371869 | S51: =+$H51+$C$7/$C$3*VLOOKUP(E42,'0.FAV parámetros 1'!$A$207:$I$218,6,0)*$Y51 -> 17.11069781 | T51: =+$H51+$C$7/$C$3*VLOOKUP(E42,'0.FAV parámetros 1'!$A$207:$I$218,7,0)*$Y51 -> 19.39371869 | U51: =+$H51+$C$7/$C$3*VLOOKUP(E42,'0.FAV parámetros 1'!$A$207:$I$218,8,0)*$Y51 -> 22.33977343 | V51: =+$H51+$C$7/$C$3*VLOOKUP(E42,'0.FAV parámetros 1'!$A$207:$I$218,9,0)*$Y51 -> 23.2926181 | W51: =+IF('0. Datos Arq Motor'!$C$32="Si",1,0) -> 1 | X51: =+'0. Perfil de Uso'!N44-'0. Perfil de Uso'!J44 -> 0.8262 | Y51: =+SUMIFS('0. Clima'!$O$11:$O$298,'0. Clima'!$L$11:$L$298,'0. Datos Clima Motor'!E42,'0. Clima'!$M$11:$M$298,'0. Datos Clima Motor'!F51) -> 417.4702381
E52: Tsuelo | F52: 10 | G52: 36000 | H52: =+'0. Clima'!N45 -> 11.85347768 | I52: =+'0.FAV Calculos'!ID24 -> 4171.406413 | J52: =+'0.FAV Calculos'!IR24 -> 1224.569807 | K52: =+'0. Perfil de Uso'!E45 -> 1.23 | L52: =+'0. Perfil de Uso'!F45 -> 0 | M52: =+'0. Perfil de Uso'!G45 -> 0 | N52: 26.3628731 | O52: =+$H52+$C$7/$C$3*VLOOKUP(E42,'0.FAV parámetros 1'!$A$207:$I$218,2,0)*$Y52 -> 24.06362599 | P52: =+$H52+$C$7/$C$3*VLOOKUP(E42,'0.FAV parámetros 1'!$A$207:$I$218,3,0)*$Y52 -> 24.77151658 | Q52: =+$H52+$C$7/$C$3*VLOOKUP(E42,'0.FAV parámetros 1'!$A$207:$I$218,4,0)*$Y52 -> 23.7618377 | R52: =+$H52+$C$7/$C$3*VLOOKUP(E42,'0.FAV parámetros 1'!$A$207:$I$218,5,0)*$Y52 -> 20.64006001 | S52: =+$H52+$C$7/$C$3*VLOOKUP(E42,'0.FAV parámetros 1'!$A$207:$I$218,6,0)*$Y52 -> 18.22086408 | T52: =+$H52+$C$7/$C$3*VLOOKUP(E42,'0.FAV parámetros 1'!$A$207:$I$218,7,0)*$Y52 -> 20.64006001 | U52: =+$H52+$C$7/$C$3*VLOOKUP(E42,'0.FAV parámetros 1'!$A$207:$I$218,8,0)*$Y52 -> 23.7618377 | V52: =+$H52+$C$7/$C$3*VLOOKUP(E42,'0.FAV parámetros 1'!$A$207:$I$218,9,0)*$Y52 -> 24.77151658 | W52: =+IF('0. Datos Arq Motor'!$C$32="Si",1,0) -> 1 | X52: =+'0. Perfil de Uso'!N45-'0. Perfil de Uso'!J45 -> 0.8262 | Y52: =+SUMIFS('0. Clima'!$O$11:$O$298,'0. Clima'!$L$11:$L$298,'0. Datos Clima Motor'!E42,'0. Clima'!$M$11:$M$298,'0. Datos Clima Motor'!F52) -> 442.3710317
E53: =+AVERAGE(H42:H65) -> 10.58020833 | F53: 11 | G53: 39600 | H53: =+'0. Clima'!N46 -> 12.57751339 | I53: =+'0.FAV Calculos'!ID25 -> 4405.289773 | J53: =+'0.FAV Calculos'!IR25 -> 1354.15123 | K53: =+'0. Perfil de Uso'!E46 -> 1.23 | L53: =+'0. Perfil de Uso'!F46 -> 0 | M53: =+'0. Perfil de Uso'!G46 -> 0 | N53: 28.54973562 | O53: =+$H53+$C$7/$C$3*VLOOKUP(E42,'0.FAV parámetros 1'!$A$207:$I$218,2,0)*$Y53 -> 25.76823045 | P53: =+$H53+$C$7/$C$3*VLOOKUP(E42,'0.FAV parámetros 1'!$A$207:$I$218,3,0)*$Y53 -> 26.5329701 | Q53: =+$H53+$C$7/$C$3*VLOOKUP(E42,'0.FAV parámetros 1'!$A$207:$I$218,4,0)*$Y53 -> 25.44220624 | R53: =+$H53+$C$7/$C$3*VLOOKUP(E42,'0.FAV parámetros 1'!$A$207:$I$218,5,0)*$Y53 -> 22.06972581 | S53: =+$H53+$C$7/$C$3*VLOOKUP(E42,'0.FAV parámetros 1'!$A$207:$I$218,6,0)*$Y53 -> 19.45624986 | T53: =+$H53+$C$7/$C$3*VLOOKUP(E42,'0.FAV parámetros 1'!$A$207:$I$218,7,0)*$Y53 -> 22.06972581 | U53: =+$H53+$C$7/$C$3*VLOOKUP(E42,'0.FAV parámetros 1'!$A$207:$I$218,8,0)*$Y53 -> 25.44220624 | V53: =+$H53+$C$7/$C$3*VLOOKUP(E42,'0.FAV parámetros 1'!$A$207:$I$218,9,0)*$Y53 -> 26.5329701 | W53: =+IF('0. Datos Arq Motor'!$C$32="Si",1,0) -> 1 | X53: =+'0. Perfil de Uso'!N46-'0. Perfil de Uso'!J46 -> 0.8262 | Y53: =+SUMIFS('0. Clima'!$O$11:$O$298,'0. Clima'!$L$11:$L$298,'0. Datos Clima Motor'!E42,'0. Clima'!$M$11:$M$298,'0. Datos Clima Motor'!F53) -> 477.8968254
E54: Infil RAH | F54: 12 | G54: 43200 | H54: =+'0. Clima'!N47 -> 13.05558482 | I54: =+'0.FAV Calculos'!ID26 -> 3961.239775 | J54: =+'0.FAV Calculos'!IR26 -> 814.9242913 | K54: =+'0. Perfil de Uso'!E47 -> 1.23 | L54: =+'0. Perfil de Uso'!F47 -> 0 | M54: =+'0. Perfil de Uso'!G47 -> 0 | N54: 29.88565018 | O54: =+$H54+$C$7/$C$3*VLOOKUP(E42,'0.FAV parámetros 1'!$A$207:$I$218,2,0)*$Y54 -> 26.82133522 | P54: =+$H54+$C$7/$C$3*VLOOKUP(E42,'0.FAV parámetros 1'!$A$207:$I$218,3,0)*$Y54 -> 27.61941276 | Q54: =+$H54+$C$7/$C$3*VLOOKUP(E42,'0.FAV parámetros 1'!$A$207:$I$218,4,0)*$Y54 -> 26.48109838 | R54: =+$H54+$C$7/$C$3*VLOOKUP(E42,'0.FAV parámetros 1'!$A$207:$I$218,5,0)*$Y54 -> 22.96159875 | S54: =+$H54+$C$7/$C$3*VLOOKUP(E42,'0.FAV parámetros 1'!$A$207:$I$218,6,0)*$Y54 -> 20.23419147 | T54: =+$H54+$C$7/$C$3*VLOOKUP(E42,'0.FAV parámetros 1'!$A$207:$I$218,7,0)*$Y54 -> 22.96159875 | U54: =+$H54+$C$7/$C$3*VLOOKUP(E42,'0.FAV parámetros 1'!$A$207:$I$218,8,0)*$Y54 -> 26.48109838 | V54: =+$H54+$C$7/$C$3*VLOOKUP(E42,'0.FAV parámetros 1'!$A$207:$I$218,9,0)*$Y54 -> 27.61941276 | W54: =+IF('0. Datos Arq Motor'!$C$32="Si",1,0) -> 1 | X54: =+'0. Perfil de Uso'!N47-'0. Perfil de Uso'!J47 -> 0.8262 | Y54: =+SUMIFS('0. Clima'!$O$11:$O$298,'0. Clima'!$L$11:$L$298,'0. Datos Clima Motor'!E42,'0. Clima'!$M$11:$M$298,'0. Datos Clima Motor'!F54) -> 498.7301587
E55: =+VLOOKUP(E42,'0. Perfil de Uso'!$C$11:$N$298,8,0) -> 0 | F55: 13 | G55: 46800 | H55: =+'0. Clima'!N48 -> 13.41240625 | I55: =+'0.FAV Calculos'!ID27 -> 3853.784784 | J55: =+'0.FAV Calculos'!IR27 -> 2149.152108 | K55: =+'0. Perfil de Uso'!E48 -> 1.23 | L55: =+'0. Perfil de Uso'!F48 -> 0 | M55: =+'0. Perfil de Uso'!G48 -> 0 | N55: 29.75227553 | O55: =+$H55+$C$7/$C$3*VLOOKUP(E42,'0.FAV parámetros 1'!$A$207:$I$218,2,0)*$Y55 -> 26.84956617 | P55: =+$H55+$C$7/$C$3*VLOOKUP(E42,'0.FAV parámetros 1'!$A$207:$I$218,3,0)*$Y55 -> 27.62859348 | Q55: =+$H55+$C$7/$C$3*VLOOKUP(E42,'0.FAV parámetros 1'!$A$207:$I$218,4,0)*$Y55 -> 26.51745083 | R55: =+$H55+$C$7/$C$3*VLOOKUP(E42,'0.FAV parámetros 1'!$A$207:$I$218,5,0)*$Y55 -> 23.08196217 | S55: =+$H55+$C$7/$C$3*VLOOKUP(E42,'0.FAV parámetros 1'!$A$207:$I$218,6,0)*$Y55 -> 20.41965851 | T55: =+$H55+$C$7/$C$3*VLOOKUP(E42,'0.FAV parámetros 1'!$A$207:$I$218,7,0)*$Y55 -> 23.08196217 | U55: =+$H55+$C$7/$C$3*VLOOKUP(E42,'0.FAV parámetros 1'!$A$207:$I$218,8,0)*$Y55 -> 26.51745083 | V55: =+$H55+$C$7/$C$3*VLOOKUP(E42,'0.FAV parámetros 1'!$A$207:$I$218,9,0)*$Y55 -> 27.62859348 | W55: =+IF('0. Datos Arq Motor'!$C$32="Si",1,0) -> 1 | X55: =+'0. Perfil de Uso'!N48-'0. Perfil de Uso'!J48 -> 0.8262 | Y55: =+SUMIFS('0. Clima'!$O$11:$O$298,'0. Clima'!$L$11:$L$298,'0. Datos Clima Motor'!E42,'0. Clima'!$M$11:$M$298,'0. Datos Clima Motor'!F55) -> 486.8253968
E56: Cat Mes | F56: 14 | G56: 50400 | H56: =+'0. Clima'!N49 -> 13.61679911 | I56: =+'0.FAV Calculos'!ID28 -> 3515.182977 | J56: =+'0.FAV Calculos'!IR28 -> 1793.267038 | K56: =+'0. Perfil de Uso'!E49 -> 1.23 | L56: =+'0. Perfil de Uso'!F49 -> 0 | M56: =+'0. Perfil de Uso'!G49 -> 0 | N56: 27.30797558 | O56: =+$H56+$C$7/$C$3*VLOOKUP(E42,'0.FAV parámetros 1'!$A$207:$I$218,2,0)*$Y56 -> 25.27847514 | P56: =+$H56+$C$7/$C$3*VLOOKUP(E42,'0.FAV parámetros 1'!$A$207:$I$218,3,0)*$Y56 -> 25.95456773 | Q56: =+$H56+$C$7/$C$3*VLOOKUP(E42,'0.FAV parámetros 1'!$A$207:$I$218,4,0)*$Y56 -> 24.990243 | R56: =+$H56+$C$7/$C$3*VLOOKUP(E42,'0.FAV parámetros 1'!$A$207:$I$218,5,0)*$Y56 -> 22.00869362 | S56: =+$H56+$C$7/$C$3*VLOOKUP(E42,'0.FAV parámetros 1'!$A$207:$I$218,6,0)*$Y56 -> 19.69816647 | T56: =+$H56+$C$7/$C$3*VLOOKUP(E42,'0.FAV parámetros 1'!$A$207:$I$218,7,0)*$Y56 -> 22.00869362 | U56: =+$H56+$C$7/$C$3*VLOOKUP(E42,'0.FAV parámetros 1'!$A$207:$I$218,8,0)*$Y56 -> 24.990243 | V56: =+$H56+$C$7/$C$3*VLOOKUP(E42,'0.FAV parámetros 1'!$A$207:$I$218,9,0)*$Y56 -> 25.95456773 | W56: =+IF('0. Datos Arq Motor'!$C$32="Si",1,0) -> 1 | X56: =+'0. Perfil de Uso'!N49-'0. Perfil de Uso'!J49 -> 0.8262 | Y56: =+SUMIFS('0. Clima'!$O$11:$O$298,'0. Clima'!$L$11:$L$298,'0. Datos Clima Motor'!E42,'0. Clima'!$M$11:$M$298,'0. Datos Clima Motor'!F56) -> 422.5
E57: =+'0. Inercia Termica'!X103 -> i | F57: 15 | G57: 54000 | H57: =+'0. Clima'!N50 -> 13.72419196 | I57: =+'0.FAV Calculos'!ID29 -> 2851.844525 | J57: =+'0.FAV Calculos'!IR29 -> 1389.781954 | K57: =+'0. Perfil de Uso'!E50 -> 1.23 | L57: =+'0. Perfil de Uso'!F50 -> 0 | M57: =+'0. Perfil de Uso'!G50 -> 0 | N57: 23.78669196 | O57: =+$H57+$C$7/$C$3*VLOOKUP(E42,'0.FAV parámetros 1'!$A$207:$I$218,2,0)*$Y57 -> 22.95347699 | P57: =+$H57+$C$7/$C$3*VLOOKUP(E42,'0.FAV parámetros 1'!$A$207:$I$218,3,0)*$Y57 -> 23.48855027 | Q57: =+$H57+$C$7/$C$3*VLOOKUP(E42,'0.FAV parámetros 1'!$A$207:$I$218,4,0)*$Y57 -> 22.72536427 | R57: =+$H57+$C$7/$C$3*VLOOKUP(E42,'0.FAV parámetros 1'!$A$207:$I$218,5,0)*$Y57 -> 20.36570612 | S57: =+$H57+$C$7/$C$3*VLOOKUP(E42,'0.FAV parámetros 1'!$A$207:$I$218,6,0)*$Y57 -> 18.53710844 | T57: =+$H57+$C$7/$C$3*VLOOKUP(E42,'0.FAV parámetros 1'!$A$207:$I$218,7,0)*$Y57 -> 20.36570612 | U57: =+$H57+$C$7/$C$3*VLOOKUP(E42,'0.FAV parámetros 1'!$A$207:$I$218,8,0)*$Y57 -> 22.72536427 | V57: =+$H57+$C$7/$C$3*VLOOKUP(E42,'0.FAV parámetros 1'!$A$207:$I$218,9,0)*$Y57 -> 23.48855027 | W57: =+IF('0. Datos Arq Motor'!$C$32="Si",1,0) -> 1 | X57: =+'0. Perfil de Uso'!N50-'0. Perfil de Uso'!J50 -> 0.8262 | Y57: =+SUMIFS('0. Clima'!$O$11:$O$298,'0. Clima'!$L$11:$L$298,'0. Datos Clima Motor'!E42,'0. Clima'!$M$11:$M$298,'0. Datos Clima Motor'!F57) -> 334.375
F58: 16 | G58: 57600 | H58: =+'0. Clima'!N51 -> 13.18376339 | I58: =+'0.FAV Calculos'!ID30 -> 2344.67156 | J58: =+'0.FAV Calculos'!IR30 -> 868.3349652 | K58: =+'0. Perfil de Uso'!E51 -> 1.476 | L58: =+'0. Perfil de Uso'!F51 -> 0 | M58: =+'0. Perfil de Uso'!G51 -> 0 | N58: 19.34062614 | O58: =+$H58+$C$7/$C$3*VLOOKUP(E42,'0.FAV parámetros 1'!$A$207:$I$218,2,0)*$Y58 -> 19.7950038 | P58: =+$H58+$C$7/$C$3*VLOOKUP(E42,'0.FAV parámetros 1'!$A$207:$I$218,3,0)*$Y58 -> 20.17829438 | Q58: =+$H58+$C$7/$C$3*VLOOKUP(E42,'0.FAV parámetros 1'!$A$207:$I$218,4,0)*$Y58 -> 19.63159915 | R58: =+$H58+$C$7/$C$3*VLOOKUP(E42,'0.FAV parámetros 1'!$A$207:$I$218,5,0)*$Y58 -> 17.94129841 | S58: =+$H58+$C$7/$C$3*VLOOKUP(E42,'0.FAV parámetros 1'!$A$207:$I$218,6,0)*$Y58 -> 16.63141375 | T58: =+$H58+$C$7/$C$3*VLOOKUP(E42,'0.FAV parámetros 1'!$A$207:$I$218,7,0)*$Y58 -> 17.94129841 | U58: =+$H58+$C$7/$C$3*VLOOKUP(E42,'0.FAV parámetros 1'!$A$207:$I$218,8,0)*$Y58 -> 19.63159915 | V58: =+$H58+$C$7/$C$3*VLOOKUP(E42,'0.FAV parámetros 1'!$A$207:$I$218,9,0)*$Y58 -> 20.17829438 | W58: =+IF('0. Datos Arq Motor'!$C$32="Si",1,0) -> 1 | X58: =+'0. Perfil de Uso'!N51-'0. Perfil de Uso'!J51 -> 0.8262 | Y58: =+SUMIFS('0. Clima'!$O$11:$O$298,'0. Clima'!$L$11:$L$298,'0. Datos Clima Motor'!E42,'0. Clima'!$M$11:$M$298,'0. Datos Clima Motor'!F58) -> 239.5238095
F59: 17 | G59: 61200 | H59: =+'0. Clima'!N52 -> 12.62601339 | I59: =+'0.FAV Calculos'!ID31 -> 1596.317783 | J59: =+'0.FAV Calculos'!IR31 -> 243.6905336 | K59: =+'0. Perfil de Uso'!E52 -> 2.46 | L59: =+'0. Perfil de Uso'!F52 -> 0 | M59: =+'0. Perfil de Uso'!G52 -> 0 | N59: 13.78900359 | O59: =+$H59+$C$7/$C$3*VLOOKUP(E42,'0.FAV parámetros 1'!$A$207:$I$218,2,0)*$Y59 -> 15.88973831 | P59: =+$H59+$C$7/$C$3*VLOOKUP(E42,'0.FAV parámetros 1'!$A$207:$I$218,3,0)*$Y59 -> 16.0789547 | Q59: =+$H59+$C$7/$C$3*VLOOKUP(E42,'0.FAV parámetros 1'!$A$207:$I$218,4,0)*$Y59 -> 15.80907148 | R59: =+$H59+$C$7/$C$3*VLOOKUP(E42,'0.FAV parámetros 1'!$A$207:$I$218,5,0)*$Y59 -> 14.9746325 | S59: =+$H59+$C$7/$C$3*VLOOKUP(E42,'0.FAV parámetros 1'!$A$207:$I$218,6,0)*$Y59 -> 14.32799089 | T59: =+$H59+$C$7/$C$3*VLOOKUP(E42,'0.FAV parámetros 1'!$A$207:$I$218,7,0)*$Y59 -> 14.9746325 | U59: =+$H59+$C$7/$C$3*VLOOKUP(E42,'0.FAV parámetros 1'!$A$207:$I$218,8,0)*$Y59 -> 15.80907148 | V59: =+$H59+$C$7/$C$3*VLOOKUP(E42,'0.FAV parámetros 1'!$A$207:$I$218,9,0)*$Y59 -> 16.0789547 | W59: =+IF('0. Datos Arq Motor'!$C$32="Si",1,0) -> 1 | X59: =+'0. Perfil de Uso'!N52-'0. Perfil de Uso'!J52 -> 0.8262 | Y59: =+SUMIFS('0. Clima'!$O$11:$O$298,'0. Clima'!$L$11:$L$298,'0. Datos Clima Motor'!E42,'0. Clima'!$M$11:$M$298,'0. Datos Clima Motor'!F59) -> 118.2440476
F60: 18 | G60: 64800 | H60: =+'0. Clima'!N53 -> 11.84308482 | I60: =+'0.FAV Calculos'!ID32 -> 505.5310375 | J60: =+'0.FAV Calculos'!IR32 -> 9.721059611 | K60: =+'0. Perfil de Uso'!E53 -> 2.46 | L60: =+'0. Perfil de Uso'!F53 -> 0 | M60: =+'0. Perfil de Uso'!G53 -> 0 | N60: 9.351254756 | O60: =+$H60+$C$7/$C$3*VLOOKUP(E42,'0.FAV parámetros 1'!$A$207:$I$218,2,0)*$Y60 -> 12.6568939 | P60: =+$H60+$C$7/$C$3*VLOOKUP(E42,'0.FAV parámetros 1'!$A$207:$I$218,3,0)*$Y60 -> 12.70407497 | Q60: =+$H60+$C$7/$C$3*VLOOKUP(E42,'0.FAV parámetros 1'!$A$207:$I$218,4,0)*$Y60 -> 12.63677965 | R60: =+$H60+$C$7/$C$3*VLOOKUP(E42,'0.FAV parámetros 1'!$A$207:$I$218,5,0)*$Y60 -> 12.42871247 | S60: =+$H60+$C$7/$C$3*VLOOKUP(E42,'0.FAV parámetros 1'!$A$207:$I$218,6,0)*$Y60 -> 12.26747253 | T60: =+$H60+$C$7/$C$3*VLOOKUP(E42,'0.FAV parámetros 1'!$A$207:$I$218,7,0)*$Y60 -> 12.42871247 | U60: =+$H60+$C$7/$C$3*VLOOKUP(E42,'0.FAV parámetros 1'!$A$207:$I$218,8,0)*$Y60 -> 12.63677965 | V60: =+$H60+$C$7/$C$3*VLOOKUP(E42,'0.FAV parámetros 1'!$A$207:$I$218,9,0)*$Y60 -> 12.70407497 | W60: =+IF('0. Datos Arq Motor'!$C$32="Si",1,0) -> 1 | X60: =+'0. Perfil de Uso'!N53-'0. Perfil de Uso'!J53 -> 0.8262 | Y60: =+SUMIFS('0. Clima'!$O$11:$O$298,'0. Clima'!$L$11:$L$298,'0. Datos Clima Motor'!E42,'0. Clima'!$M$11:$M$298,'0. Datos Clima Motor'!F60) -> 29.48412698
F61: 19 | G61: 68400 | H61: =+'0. Clima'!N54 -> 11.20565625 | I61: =+'0.FAV Calculos'!ID33 -> 25.1762119 | J61: =+'0.FAV Calculos'!IR33 -> 0 | K61: =+'0. Perfil de Uso'!E54 -> 3.69 | L61: =+'0. Perfil de Uso'!F54 -> 0 | M61: =+'0. Perfil de Uso'!G54 -> 0 | N61: 7.557371936 | O61: =+$H61+$C$7/$C$3*VLOOKUP(E42,'0.FAV parámetros 1'!$A$207:$I$218,2,0)*$Y61 -> 11.24426563 | P61: =+$H61+$C$7/$C$3*VLOOKUP(E42,'0.FAV parámetros 1'!$A$207:$I$218,3,0)*$Y61 -> 11.24650403 | Q61: =+$H61+$C$7/$C$3*VLOOKUP(E42,'0.FAV parámetros 1'!$A$207:$I$218,4,0)*$Y61 -> 11.24331135 | R61: =+$H61+$C$7/$C$3*VLOOKUP(E42,'0.FAV parámetros 1'!$A$207:$I$218,5,0)*$Y61 -> 11.23344007 | S61: =+$H61+$C$7/$C$3*VLOOKUP(E42,'0.FAV parámetros 1'!$A$207:$I$218,6,0)*$Y61 -> 11.22579039 | T61: =+$H61+$C$7/$C$3*VLOOKUP(E42,'0.FAV parámetros 1'!$A$207:$I$218,7,0)*$Y61 -> 11.23344007 | U61: =+$H61+$C$7/$C$3*VLOOKUP(E42,'0.FAV parámetros 1'!$A$207:$I$218,8,0)*$Y61 -> 11.24331135 | V61: =+$H61+$C$7/$C$3*VLOOKUP(E42,'0.FAV parámetros 1'!$A$207:$I$218,9,0)*$Y61 -> 11.24650403 | W61: =+IF('0. Datos Arq Motor'!$C$32="Si",1,0) -> 1 | X61: =+'0. Perfil de Uso'!N54-'0. Perfil de Uso'!J54 -> 0.8262 | Y61: =+SUMIFS('0. Clima'!$O$11:$O$298,'0. Clima'!$L$11:$L$298,'0. Datos Clima Motor'!E42,'0. Clima'!$M$11:$M$298,'0. Datos Clima Motor'!F61) -> 1.398809524
F62: 20 | G62: 72000 | H62: =+'0. Clima'!N55 -> 10.34997768 | I62: =+'0.FAV Calculos'!ID34 -> 0 | J62: =+'0.FAV Calculos'!IR34 -> 0 | K62: =+'0. Perfil de Uso'!E55 -> 4.428 | L62: =+'0. Perfil de Uso'!F55 -> 1.5 | M62: =+'0. Perfil de Uso'!G55 -> 0 | N62: 6.644095326 | O62: =+$H62+$C$7/$C$3*VLOOKUP(E42,'0.FAV parámetros 1'!$A$207:$I$218,2,0)*$Y62 -> 10.34997768 | P62: =+$H62+$C$7/$C$3*VLOOKUP(E42,'0.FAV parámetros 1'!$A$207:$I$218,3,0)*$Y62 -> 10.34997768 | Q62: =+$H62+$C$7/$C$3*VLOOKUP(E42,'0.FAV parámetros 1'!$A$207:$I$218,4,0)*$Y62 -> 10.34997768 | R62: =+$H62+$C$7/$C$3*VLOOKUP(E42,'0.FAV parámetros 1'!$A$207:$I$218,5,0)*$Y62 -> 10.34997768 | S62: =+$H62+$C$7/$C$3*VLOOKUP(E42,'0.FAV parámetros 1'!$A$207:$I$218,6,0)*$Y62 -> 10.34997768 | T62: =+$H62+$C$7/$C$3*VLOOKUP(E42,'0.FAV parámetros 1'!$A$207:$I$218,7,0)*$Y62 -> 10.34997768 | U62: =+$H62+$C$7/$C$3*VLOOKUP(E42,'0.FAV parámetros 1'!$A$207:$I$218,8,0)*$Y62 -> 10.34997768 | V62: =+$H62+$C$7/$C$3*VLOOKUP(E42,'0.FAV parámetros 1'!$A$207:$I$218,9,0)*$Y62 -> 10.34997768 | W62: =+IF('0. Datos Arq Motor'!$C$32="Si",1,0) -> 1 | X62: =+'0. Perfil de Uso'!N55-'0. Perfil de Uso'!J55 -> 0.8262 | Y62: =+SUMIFS('0. Clima'!$O$11:$O$298,'0. Clima'!$L$11:$L$298,'0. Datos Clima Motor'!E42,'0. Clima'!$M$11:$M$298,'0. Datos Clima Motor'!F62) -> 0
... 70 more rows

Sheet 0. Perfil de Uso (hidden)
C1: Dormitorios | D1: =+'CEV-CEVE'!E11 -> 3 | E1: [un]
C2: Usuarios | D2: =+D1+1 -> 4 | E2: [un] | J2: Volumen aire | K2: =+'CEV-CEVE'!F56 -> 200 | L2: [m3] | P2: RAH Ashrae | Q2: =+(D2*K3*3600/1000)/K2+(D3*K4*3600/1000)/K2 -> 0.612 | R2: [1/h]
C3: Superficie | D3: =+'CEV-CEVE'!D56 -> 80 | E3: [m2] | J3: Vent por usuarios | K3: 2.5 | L3: [l/s] | P3: Factor para caso base | Q3: 1.35 | R3: []
C4: Aporte personas | D4: 98.4 | E4: 82 | F4: [W] | J4: Vent por superficie | K4: 0.3 | L4: [l/s] | P4: Valor Ventilación invierno | Q4: =+'0. Ventilacion'!$M$44 -> 0.8262 | R4: [RAH]
C5: Aporte personas | D5: =+'0. Perfil de Uso'!D2*'0. Perfil de Uso'!D4/'0. Perfil de Uso'!D3 -> 4.92 | E5: =+'0. Perfil de Uso'!D2*'0. Perfil de Uso'!E4/'0. Perfil de Uso'!D3 -> 4.1 | F5: [W/m2] | J5: Infiltración Variable ¿? | K5: =+IF(OR('0. Datos Arq Motor'!C33=1,'0. Datos Arq Motor'!C33=2),'CEV-CEVE'!F217,"No") -> No | L5: [] | P5: Valor Ventilación verano | Q5: =+'0. Ventilacion'!$C$44 -> 0.8262 | R5: [RAH]
C6: Aporte Iluminación | D6: 1.5 | E6: 0 | F6: [W/m2] | J6: Temperatura minima de apertura de ventanas nocturna | K6: 15 | L6: [°C] | P6: Valor ventilación con MC | Q6: =+'CEV-CEVE'!F234 -> 0 | R6: [RAH]
C7: Aporte Equipos | D7: 0 | E7: [W/m2] | J7: Se suma la siguiente tasa de ventilación | K7: 3 | L7: [RAH]
C8: Cargas internas Variables ¿? | D8: Si | E8: [] | F8: (Se deja fijo pero sin poder variar) | P8: Caso a correr | Q8: =+IF(OR('0. Datos Arq Motor'!C33=1,'0. Datos Arq Motor'!C33=2),"Propuesto","Base") -> Propuesto
B10: N° | C10: mes | D10: Hrs | E10: Usuarios | F10: Iluminación | G10: Equipos | H10: Total | J10: Infiltraciones | K10: Ventilación considera CO2 | L10: Ventilación diurna | M10: Vent Nocturna | N10: Total
B11: 1 | C11: Enero | D11: 0 | E11: =+IF($D$8="No",$D$4*$D$2/$D$3,VLOOKUP(D11,'4. Perfil de Uso'!$B$12:$AN$35,1+'0. Perfil de Uso'!B11)) -> 4.1 | F11: =+IF($D$8="No",$D$6,VLOOKUP(D11,'4. Perfil de Uso'!$B$12:$AN$35,14+'0. Perfil de Uso'!B11)) -> 0 | G11: =+IF($D$8="No",$D$7,VLOOKUP(D11,'4. Perfil de Uso'!$B$12:$AN$35,27+'0. Perfil de Uso'!B11)) -> 0 | H11: =+SUM(E11:G11) -> 4.1 | J11: =+IF('0. Ventilacion'!$C$21>2,0,IF($K$5="No",VLOOKUP(C11,'0. Infiltraciones'!$C$29:$D$40,2,0),HLOOKUP('0. Perfil de Uso'!C11,'4. Perfil de Uso'!$AS$11:$BD$35,D11+2,0))) -> 0 | K11: =+IF(AND($Q$8="Propuesto",'0. Ventilacion'!$C$21>2,'0. Ventilacion'!$C$22=2),(VLOOKUP(D11,'4. Perfil de Uso'!$BS$12:$BT$35,2,0)*'0. Perfil de Uso'!$D$2*$K$3*3600/1000)/$K$2+($D$3*$K$4*3600/1000)/$K$2,IF($Q$8="propuesto",VLOOKUP(C11,'0. Ventilacion'!$V$2:$W$13,2,0)-J11,$Q$2*$Q$3-J11)) -> 0.8262 | L11: =+IF(AND(M11=0,'0. Clima'!N11>=VLOOKUP('0. Perfil de Uso'!C11,'0. Clima'!$S$11:$V$22,3,0),'0. Clima'!N11<=VLOOKUP('0. Perfil de Uso'!C11,'0. Clima'!$S$11:$V$22,4,0)),$K$7,0) -> 0 | M11: =+IF(AND('0. Clima'!N11>'0. Perfil de Uso'!$K$6,OR(D11<7,D11>21)),$K$7,0) -> 0 | N11: =+M11+K11+J11+L11 -> 0.8262
B12: =+B11 -> 1 | C12: Enero | D12: 1 | E12: =+IF($D$8="No",$D$4*$D$2/$D$3,VLOOKUP(D12,'4. Perfil de Uso'!$B$12:$AN$35,1+'0. Perfil de Uso'!B12)) -> 4.1 | F12: =+IF($D$8="No",$D$6,VLOOKUP(D12,'4. Perfil de Uso'!$B$12:$AN$35,14+'0. Perfil de Uso'!B12)) -> 0 | G12: =+IF($D$8="No",$D$7,VLOOKUP(D12,'4. Perfil de Uso'!$B$12:$AN$35,27+'0. Perfil de Uso'!B12)) -> 0 | H12: =+SUM(E12:G12) -> 4.1 | J12: =+IF('0. Ventilacion'!$C$21>2,0,IF($K$5="No",VLOOKUP(C12,'0. Infiltraciones'!$C$29:$D$40,2,0),HLOOKUP('0. Perfil de Uso'!C12,'4. Perfil de Uso'!$AS$11:$BD$35,D12+2,0))) -> 0 | K12: =+IF(AND($Q$8="Propuesto",'0. Ventilacion'!$C$21>2,'0. Ventilacion'!$C$22=2),(VLOOKUP(D12,'4. Perfil de Uso'!$BS$12:$BT$35,2,0)*'0. Perfil de Uso'!$D$2*$K$3*3600/1000)/$K$2+($D$3*$K$4*3600/1000)/$K$2,IF($Q$8="propuesto",VLOOKUP(C12,'0. Ventilacion'!$V$2:$W$13,2,0)-J12,$Q$2*$Q$3-J12)) -> 0.8262 | L12: =+IF(AND(M12=0,'0. Clima'!N12>=VLOOKUP('0. Perfil de Uso'!C12,'0. Clima'!$S$11:$V$22,3,0),'0. Clima'!N12<=VLOOKUP('0. Perfil de Uso'!C12,'0. Clima'!$S$11:$V$22,4,0)),$K$7,0) -> 0 | M12: =+IF(AND('0. Clima'!N12>'0. Perfil de Uso'!$K$6,OR(D12<7,D12>21)),$K$7,0) -> 0 | N12: =+M12+K12+J12+L12 -> 0.8262
B13: =+B12 -> 1 | C13: Enero | D13: 2 | E13: =+IF($D$8="No",$D$4*$D$2/$D$3,VLOOKUP(D13,'4. Perfil de Uso'!$B$12:$AN$35,1+'0. Perfil de Uso'!B13)) -> 4.1 | F13: =+IF($D$8="No",$D$6,VLOOKUP(D13,'4. Perfil de Uso'!$B$12:$AN$35,14+'0. Perfil de Uso'!B13)) -> 0 | G13: =+IF($D$8="No",$D$7,VLOOKUP(D13,'4. Perfil de Uso'!$B$12:$AN$35,27+'0. Perfil de Uso'!B13)) -> 0 | H13: 4.1 | J13: =+IF('0. Ventilacion'!$C$21>2,0,IF($K$5="No",VLOOKUP(C13,'0. Infiltraciones'!$C$29:$D$40,2,0),HLOOKUP('0. Perfil de Uso'!C13,'4. Perfil de Uso'!$AS$11:$BD$35,D13+2,0))) -> 0 | K13: =+IF(AND($Q$8="Propuesto",'0. Ventilacion'!$C$21>2,'0. Ventilacion'!$C$22=2),(VLOOKUP(D13,'4. Perfil de Uso'!$BS$12:$BT$35,2,0)*'0. Perfil de Uso'!$D$2*$K$3*3600/1000)/$K$2+($D$3*$K$4*3600/1000)/$K$2,IF($Q$8="propuesto",VLOOKUP(C13,'0. Ventilacion'!$V$2:$W$13,2,0)-J13,$Q$2*$Q$3-J13)) -> 0.8262 | L13: =+IF(AND(M13=0,'0. Clima'!N13>=VLOOKUP('0. Perfil de Uso'!C13,'0. Clima'!$S$11:$V$22,3,0),'0. Clima'!N13<=VLOOKUP('0. Perfil de Uso'!C13,'0. Clima'!$S$11:$V$22,4,0)),$K$7,0) -> 0 | M13: =+IF(AND('0. Clima'!N13>'0. Perfil de Uso'!$K$6,OR(D13<7,D13>21)),$K$7,0) -> 0 | N13: 0.8262
B14: 1 | C14: Enero | D14: 3 | E14: =+IF($D$8="No",$D$4*$D$2/$D$3,VLOOKUP(D14,'4. Perfil de Uso'!$B$12:$AN$35,1+'0. Perfil de Uso'!B14)) -> 4.1 | F14: =+IF($D$8="No",$D$6,VLOOKUP(D14,'4. Perfil de Uso'!$B$12:$AN$35,14+'0. Perfil de Uso'!B14)) -> 0 | G14: =+IF($D$8="No",$D$7,VLOOKUP(D14,'4. Perfil de Uso'!$B$12:$AN$35,27+'0. Perfil de Uso'!B14)) -> 0 | H14: 4.1 | J14: =+IF('0. Ventilacion'!$C$21>2,0,IF($K$5="No",VLOOKUP(C14,'0. Infiltraciones'!$C$29:$D$40,2,0),HLOOKUP('0. Perfil de Uso'!C14,'4. Perfil de Uso'!$AS$11:$BD$35,D14+2,0))) -> 0 | K14: =+IF(AND($Q$8="Propuesto",'0. Ventilacion'!$C$21>2,'0. Ventilacion'!$C$22=2),(VLOOKUP(D14,'4. Perfil de Uso'!$BS$12:$BT$35,2,0)*'0. Perfil de Uso'!$D$2*$K$3*3600/1000)/$K$2+($D$3*$K$4*3600/1000)/$K$2,IF($Q$8="propuesto",VLOOKUP(C14,'0. Ventilacion'!$V$2:$W$13,2,0)-J14,$Q$2*$Q$3-J14)) -> 0.8262 | L14: =+IF(AND(M14=0,'0. Clima'!N14>=VLOOKUP('0. Perfil de Uso'!C14,'0. Clima'!$S$11:$V$22,3,0),'0. Clima'!N14<=VLOOKUP('0. Perfil de Uso'!C14,'0. Clima'!$S$11:$V$22,4,0)),$K$7,0) -> 0 | M14: =+IF(AND('0. Clima'!N14>'0. Perfil de Uso'!$K$6,OR(D14<7,D14>21)),$K$7,0) -> 0 | N14: 0.8262
B15: 1 | C15: Enero | D15: 4 | E15: =+IF($D$8="No",$D$4*$D$2/$D$3,VLOOKUP(D15,'4. Perfil de Uso'!$B$12:$AN$35,1+'0. Perfil de Uso'!B15)) -> 4.1 | F15: =+IF($D$8="No",$D$6,VLOOKUP(D15,'4. Perfil de Uso'!$B$12:$AN$35,14+'0. Perfil de Uso'!B15)) -> 0 | G15: =+IF($D$8="No",$D$7,VLOOKUP(D15,'4. Perfil de Uso'!$B$12:$AN$35,27+'0. Perfil de Uso'!B15)) -> 0 | H15: 4.1 | J15: =+IF('0. Ventilacion'!$C$21>2,0,IF($K$5="No",VLOOKUP(C15,'0. Infiltraciones'!$C$29:$D$40,2,0),HLOOKUP('0. Perfil de Uso'!C15,'4. Perfil de Uso'!$AS$11:$BD$35,D15+2,0))) -> 0 | K15: =+IF(AND($Q$8="Propuesto",'0. Ventilacion'!$C$21>2,'0. Ventilacion'!$C$22=2),(VLOOKUP(D15,'4. Perfil de Uso'!$BS$12:$BT$35,2,0)*'0. Perfil de Uso'!$D$2*$K$3*3600/1000)/$K$2+($D$3*$K$4*3600/1000)/$K$2,IF($Q$8="propuesto",VLOOKUP(C15,'0. Ventilacion'!$V$2:$W$13,2,0)-J15,$Q$2*$Q$3-J15)) -> 0.8262 | L15: =+IF(AND(M15=0,'0. Clima'!N15>=VLOOKUP('0. Perfil de Uso'!C15,'0. Clima'!$S$11:$V$22,3,0),'0. Clima'!N15<=VLOOKUP('0. Perfil de Uso'!C15,'0. Clima'!$S$11:$V$22,4,0)),$K$7,0) -> 0 | M15: =+IF(AND('0. Clima'!N15>'0. Perfil de Uso'!$K$6,OR(D15<7,D15>21)),$K$7,0) -> 0 | N15: 0.8262
B16: 1 | C16: Enero | D16: 5 | E16: =+IF($D$8="No",$D$4*$D$2/$D$3,VLOOKUP(D16,'4. Perfil de Uso'!$B$12:$AN$35,1+'0. Perfil de Uso'!B16)) -> 4.1 | F16: =+IF($D$8="No",$D$6,VLOOKUP(D16,'4. Perfil de Uso'!$B$12:$AN$35,14+'0. Perfil de Uso'!B16)) -> 0 | G16: =+IF($D$8="No",$D$7,VLOOKUP(D16,'4. Perfil de Uso'!$B$12:$AN$35,27+'0. Perfil de Uso'!B16)) -> 0 | H16: 4.1 | J16: =+IF('0. Ventilacion'!$C$21>2,0,IF($K$5="No",VLOOKUP(C16,'0. Infiltraciones'!$C$29:$D$40,2,0),HLOOKUP('0. Perfil de Uso'!C16,'4. Perfil de Uso'!$AS$11:$BD$35,D16+2,0))) -> 0 | K16: =+IF(AND($Q$8="Propuesto",'0. Ventilacion'!$C$21>2,'0. Ventilacion'!$C$22=2),(VLOOKUP(D16,'4. Perfil de Uso'!$BS$12:$BT$35,2,0)*'0. Perfil de Uso'!$D$2*$K$3*3600/1000)/$K$2+($D$3*$K$4*3600/1000)/$K$2,IF($Q$8="propuesto",VLOOKUP(C16,'0. Ventilacion'!$V$2:$W$13,2,0)-J16,$Q$2*$Q$3-J16)) -> 0.8262 | L16: =+IF(AND(M16=0,'0. Clima'!N16>=VLOOKUP('0. Perfil de Uso'!C16,'0. Clima'!$S$11:$V$22,3,0),'0. Clima'!N16<=VLOOKUP('0. Perfil de Uso'!C16,'0. Clima'!$S$11:$V$22,4,0)),$K$7,0) -> 0 | M16: =+IF(AND('0. Clima'!N16>'0. Perfil de Uso'!$K$6,OR(D16<7,D16>21)),$K$7,0) -> 0 | N16: 0.8262
B17: 1 | C17: Enero | D17: 6 | E17: =+IF($D$8="No",$D$4*$D$2/$D$3,VLOOKUP(D17,'4. Perfil de Uso'!$B$12:$AN$35,1+'0. Perfil de Uso'!B17)) -> 3.28 | F17: =+IF($D$8="No",$D$6,VLOOKUP(D17,'4. Perfil de Uso'!$B$12:$AN$35,14+'0. Perfil de Uso'!B17)) -> 0 | G17: =+IF($D$8="No",$D$7,VLOOKUP(D17,'4. Perfil de Uso'!$B$12:$AN$35,27+'0. Perfil de Uso'!B17)) -> 0 | H17: 3.28 | J17: =+IF('0. Ventilacion'!$C$21>2,0,IF($K$5="No",VLOOKUP(C17,'0. Infiltraciones'!$C$29:$D$40,2,0),HLOOKUP('0. Perfil de Uso'!C17,'4. Perfil de Uso'!$AS$11:$BD$35,D17+2,0))) -> 0 | K17: =+IF(AND($Q$8="Propuesto",'0. Ventilacion'!$C$21>2,'0. Ventilacion'!$C$22=2),(VLOOKUP(D17,'4. Perfil de Uso'!$BS$12:$BT$35,2,0)*'0. Perfil de Uso'!$D$2*$K$3*3600/1000)/$K$2+($D$3*$K$4*3600/1000)/$K$2,IF($Q$8="propuesto",VLOOKUP(C17,'0. Ventilacion'!$V$2:$W$13,2,0)-J17,$Q$2*$Q$3-J17)) -> 0.8262 | L17: =+IF(AND(M17=0,'0. Clima'!N17>=VLOOKUP('0. Perfil de Uso'!C17,'0. Clima'!$S$11:$V$22,3,0),'0. Clima'!N17<=VLOOKUP('0. Perfil de Uso'!C17,'0. Clima'!$S$11:$V$22,4,0)),$K$7,0) -> 0 | M17: =+IF(AND('0. Clima'!N17>'0. Perfil de Uso'!$K$6,OR(D17<7,D17>21)),$K$7,0) -> 0 | N17: 0.8262
B18: 1 | C18: Enero | D18: 7 | E18: =+IF($D$8="No",$D$4*$D$2/$D$3,VLOOKUP(D18,'4. Perfil de Uso'!$B$12:$AN$35,1+'0. Perfil de Uso'!B18)) -> 3.936 | F18: =+IF($D$8="No",$D$6,VLOOKUP(D18,'4. Perfil de Uso'!$B$12:$AN$35,14+'0. Perfil de Uso'!B18)) -> 0 | G18: =+IF($D$8="No",$D$7,VLOOKUP(D18,'4. Perfil de Uso'!$B$12:$AN$35,27+'0. Perfil de Uso'!B18)) -> 0 | H18: 3.936 | J18: =+IF('0. Ventilacion'!$C$21>2,0,IF($K$5="No",VLOOKUP(C18,'0. Infiltraciones'!$C$29:$D$40,2,0),HLOOKUP('0. Perfil de Uso'!C18,'4. Perfil de Uso'!$AS$11:$BD$35,D18+2,0))) -> 0 | K18: =+IF(AND($Q$8="Propuesto",'0. Ventilacion'!$C$21>2,'0. Ventilacion'!$C$22=2),(VLOOKUP(D18,'4. Perfil de Uso'!$BS$12:$BT$35,2,0)*'0. Perfil de Uso'!$D$2*$K$3*3600/1000)/$K$2+($D$3*$K$4*3600/1000)/$K$2,IF($Q$8="propuesto",VLOOKUP(C18,'0. Ventilacion'!$V$2:$W$13,2,0)-J18,$Q$2*$Q$3-J18)) -> 0.8262 | L18: =+IF(AND(M18=0,'0. Clima'!N18>=VLOOKUP('0. Perfil de Uso'!C18,'0. Clima'!$S$11:$V$22,3,0),'0. Clima'!N18<=VLOOKUP('0. Perfil de Uso'!C18,'0. Clima'!$S$11:$V$22,4,0)),$K$7,0) -> 0 | M18: =+IF(AND('0. Clima'!N18>'0. Perfil de Uso'!$K$6,OR(D18<7,D18>21)),$K$7,0) -> 0 | N18: 0.8262
B19: 1 | C19: Enero | D19: 8 | E19: =+IF($D$8="No",$D$4*$D$2/$D$3,VLOOKUP(D19,'4. Perfil de Uso'!$B$12:$AN$35,1+'0. Perfil de Uso'!B19)) -> 1.968 | F19: =+IF($D$8="No",$D$6,VLOOKUP(D19,'4. Perfil de Uso'!$B$12:$AN$35,14+'0. Perfil de Uso'!B19)) -> 0 | G19: =+IF($D$8="No",$D$7,VLOOKUP(D19,'4. Perfil de Uso'!$B$12:$AN$35,27+'0. Perfil de Uso'!B19)) -> 0 | H19: 1.968 | J19: =+IF('0. Ventilacion'!$C$21>2,0,IF($K$5="No",VLOOKUP(C19,'0. Infiltraciones'!$C$29:$D$40,2,0),HLOOKUP('0. Perfil de Uso'!C19,'4. Perfil de Uso'!$AS$11:$BD$35,D19+2,0))) -> 0 | K19: =+IF(AND($Q$8="Propuesto",'0. Ventilacion'!$C$21>2,'0. Ventilacion'!$C$22=2),(VLOOKUP(D19,'4. Perfil de Uso'!$BS$12:$BT$35,2,0)*'0. Perfil de Uso'!$D$2*$K$3*3600/1000)/$K$2+($D$3*$K$4*3600/1000)/$K$2,IF($Q$8="propuesto",VLOOKUP(C19,'0. Ventilacion'!$V$2:$W$13,2,0)-J19,$Q$2*$Q$3-J19)) -> 0.8262 | L19: =+IF(AND(M19=0,'0. Clima'!N19>=VLOOKUP('0. Perfil de Uso'!C19,'0. Clima'!$S$11:$V$22,3,0),'0. Clima'!N19<=VLOOKUP('0. Perfil de Uso'!C19,'0. Clima'!$S$11:$V$22,4,0)),$K$7,0) -> 0 | M19: =+IF(AND('0. Clima'!N19>'0. Perfil de Uso'!$K$6,OR(D19<7,D19>21)),$K$7,0) -> 0 | N19: 0.8262
B20: 1 | C20: Enero | D20: 9 | E20: =+IF($D$8="No",$D$4*$D$2/$D$3,VLOOKUP(D20,'4. Perfil de Uso'!$B$12:$AN$35,1+'0. Perfil de Uso'!B20)) -> 1.23 | F20: =+IF($D$8="No",$D$6,VLOOKUP(D20,'4. Perfil de Uso'!$B$12:$AN$35,14+'0. Perfil de Uso'!B20)) -> 0 | G20: =+IF($D$8="No",$D$7,VLOOKUP(D20,'4. Perfil de Uso'!$B$12:$AN$35,27+'0. Perfil de Uso'!B20)) -> 0 | H20: 1.23 | J20: =+IF('0. Ventilacion'!$C$21>2,0,IF($K$5="No",VLOOKUP(C20,'0. Infiltraciones'!$C$29:$D$40,2,0),HLOOKUP('0. Perfil de Uso'!C20,'4. Perfil de Uso'!$AS$11:$BD$35,D20+2,0))) -> 0 | K20: =+IF(AND($Q$8="Propuesto",'0. Ventilacion'!$C$21>2,'0. Ventilacion'!$C$22=2),(VLOOKUP(D20,'4. Perfil de Uso'!$BS$12:$BT$35,2,0)*'0. Perfil de Uso'!$D$2*$K$3*3600/1000)/$K$2+($D$3*$K$4*3600/1000)/$K$2,IF($Q$8="propuesto",VLOOKUP(C20,'0. Ventilacion'!$V$2:$W$13,2,0)-J20,$Q$2*$Q$3-J20)) -> 0.8262 | L20: =+IF(AND(M20=0,'0. Clima'!N20>=VLOOKUP('0. Perfil de Uso'!C20,'0. Clima'!$S$11:$V$22,3,0),'0. Clima'!N20<=VLOOKUP('0. Perfil de Uso'!C20,'0. Clima'!$S$11:$V$22,4,0)),$K$7,0) -> 0 | M20: =+IF(AND('0. Clima'!N20>'0. Perfil de Uso'!$K$6,OR(D20<7,D20>21)),$K$7,0) -> 0 | N20: 0.8262
B21: 1 | C21: Enero | D21: 10 | E21: =+IF($D$8="No",$D$4*$D$2/$D$3,VLOOKUP(D21,'4. Perfil de Uso'!$B$12:$AN$35,1+'0. Perfil de Uso'!B21)) -> 1.23 | F21: =+IF($D$8="No",$D$6,VLOOKUP(D21,'4. Perfil de Uso'!$B$12:$AN$35,14+'0. Perfil de Uso'!B21)) -> 0 | G21: =+IF($D$8="No",$D$7,VLOOKUP(D21,'4. Perfil de Uso'!$B$12:$AN$35,27+'0. Perfil de Uso'!B21)) -> 0 | H21: =+SUM(E21:G21) -> 1.23 | J21: =+IF('0. Ventilacion'!$C$21>2,0,IF($K$5="No",VLOOKUP(C21,'0. Infiltraciones'!$C$29:$D$40,2,0),HLOOKUP('0. Perfil de Uso'!C21,'4. Perfil de Uso'!$AS$11:$BD$35,D21+2,0))) -> 0 | K21: =+IF(AND($Q$8="Propuesto",'0. Ventilacion'!$C$21>2,'0. Ventilacion'!$C$22=2),(VLOOKUP(D21,'4. Perfil de Uso'!$BS$12:$BT$35,2,0)*'0. Perfil de Uso'!$D$2*$K$3*3600/1000)/$K$2+($D$3*$K$4*3600/1000)/$K$2,IF($Q$8="propuesto",VLOOKUP(C21,'0. Ventilacion'!$V$2:$W$13,2,0)-J21,$Q$2*$Q$3-J21)) -> 0.8262 | L21: =+IF(AND(M21=0,'0. Clima'!N21>=VLOOKUP('0. Perfil de Uso'!C21,'0. Clima'!$S$11:$V$22,3,0),'0. Clima'!N21<=VLOOKUP('0. Perfil de Uso'!C21,'0. Clima'!$S$11:$V$22,4,0)),$K$7,0) -> 0 | M21: =+IF(AND('0. Clima'!N21>'0. Perfil de Uso'!$K$6,OR(D21<7,D21>21)),$K$7,0) -> 0 | N21: 0.8262
B22: 1 | C22: Enero | D22: 11 | E22: =+IF($D$8="No",$D$4*$D$2/$D$3,VLOOKUP(D22,'4. Perfil de Uso'!$B$12:$AN$35,1+'0. Perfil de Uso'!B22)) -> 1.23 | F22: =+IF($D$8="No",$D$6,VLOOKUP(D22,'4. Perfil de Uso'!$B$12:$AN$35,14+'0. Perfil de Uso'!B22)) -> 0 | G22: =+IF($D$8="No",$D$7,VLOOKUP(D22,'4. Perfil de Uso'!$B$12:$AN$35,27+'0. Perfil de Uso'!B22)) -> 0 | H22: 1.23 | J22: =+IF('0. Ventilacion'!$C$21>2,0,IF($K$5="No",VLOOKUP(C22,'0. Infiltraciones'!$C$29:$D$40,2,0),HLOOKUP('0. Perfil de Uso'!C22,'4. Perfil de Uso'!$AS$11:$BD$35,D22+2,0))) -> 0 | K22: =+IF(AND($Q$8="Propuesto",'0. Ventilacion'!$C$21>2,'0. Ventilacion'!$C$22=2),(VLOOKUP(D22,'4. Perfil de Uso'!$BS$12:$BT$35,2,0)*'0. Perfil de Uso'!$D$2*$K$3*3600/1000)/$K$2+($D$3*$K$4*3600/1000)/$K$2,IF($Q$8="propuesto",VLOOKUP(C22,'0. Ventilacion'!$V$2:$W$13,2,0)-J22,$Q$2*$Q$3-J22)) -> 0.8262 | L22: =+IF(AND(M22=0,'0. Clima'!N22>=VLOOKUP('0. Perfil de Uso'!C22,'0. Clima'!$S$11:$V$22,3,0),'0. Clima'!N22<=VLOOKUP('0. Perfil de Uso'!C22,'0. Clima'!$S$11:$V$22,4,0)),$K$7,0) -> 0 | M22: =+IF(AND('0. Clima'!N22>'0. Perfil de Uso'!$K$6,OR(D22<7,D22>21)),$K$7,0) -> 0 | N22: 0.8262
B23: 1 | C23: Enero | D23: 12 | E23: =+IF($D$8="No",$D$4*$D$2/$D$3,VLOOKUP(D23,'4. Perfil de Uso'!$B$12:$AN$35,1+'0. Perfil de Uso'!B23)) -> 1.23 | F23: =+IF($D$8="No",$D$6,VLOOKUP(D23,'4. Perfil de Uso'!$B$12:$AN$35,14+'0. Perfil de Uso'!B23)) -> 0 | G23: =+IF($D$8="No",$D$7,VLOOKUP(D23,'4. Perfil de Uso'!$B$12:$AN$35,27+'0. Perfil de Uso'!B23)) -> 0 | H23: 1.23 | J23: =+IF('0. Ventilacion'!$C$21>2,0,IF($K$5="No",VLOOKUP(C23,'0. Infiltraciones'!$C$29:$D$40,2,0),HLOOKUP('0. Perfil de Uso'!C23,'4. Perfil de Uso'!$AS$11:$BD$35,D23+2,0))) -> 0 | K23: =+IF(AND($Q$8="Propuesto",'0. Ventilacion'!$C$21>2,'0. Ventilacion'!$C$22=2),(VLOOKUP(D23,'4. Perfil de Uso'!$BS$12:$BT$35,2,0)*'0. Perfil de Uso'!$D$2*$K$3*3600/1000)/$K$2+($D$3*$K$4*3600/1000)/$K$2,IF($Q$8="propuesto",VLOOKUP(C23,'0. Ventilacion'!$V$2:$W$13,2,0)-J23,$Q$2*$Q$3-J23)) -> 0.8262 | L23: =+IF(AND(M23=0,'0. Clima'!N23>=VLOOKUP('0. Perfil de Uso'!C23,'0. Clima'!$S$11:$V$22,3,0),'0. Clima'!N23<=VLOOKUP('0. Perfil de Uso'!C23,'0. Clima'!$S$11:$V$22,4,0)),$K$7,0) -> 0 | M23: =+IF(AND('0. Clima'!N23>'0. Perfil de Uso'!$K$6,OR(D23<7,D23>21)),$K$7,0) -> 0 | N23: 0.8262
B24: 1 | C24: Enero | D24: 13 | E24: =+IF($D$8="No",$D$4*$D$2/$D$3,VLOOKUP(D24,'4. Perfil de Uso'!$B$12:$AN$35,1+'0. Perfil de Uso'!B24)) -> 1.23 | F24: =+IF($D$8="No",$D$6,VLOOKUP(D24,'4. Perfil de Uso'!$B$12:$AN$35,14+'0. Perfil de Uso'!B24)) -> 0 | G24: =+IF($D$8="No",$D$7,VLOOKUP(D24,'4. Perfil de Uso'!$B$12:$AN$35,27+'0. Perfil de Uso'!B24)) -> 0 | H24: 1.23 | J24: =+IF('0. Ventilacion'!$C$21>2,0,IF($K$5="No",VLOOKUP(C24,'0. Infiltraciones'!$C$29:$D$40,2,0),HLOOKUP('0. Perfil de Uso'!C24,'4. Perfil de Uso'!$AS$11:$BD$35,D24+2,0))) -> 0 | K24: =+IF(AND($Q$8="Propuesto",'0. Ventilacion'!$C$21>2,'0. Ventilacion'!$C$22=2),(VLOOKUP(D24,'4. Perfil de Uso'!$BS$12:$BT$35,2,0)*'0. Perfil de Uso'!$D$2*$K$3*3600/1000)/$K$2+($D$3*$K$4*3600/1000)/$K$2,IF($Q$8="propuesto",VLOOKUP(C24,'0. Ventilacion'!$V$2:$W$13,2,0)-J24,$Q$2*$Q$3-J24)) -> 0.8262 | L24: =+IF(AND(M24=0,'0. Clima'!N24>=VLOOKUP('0. Perfil de Uso'!C24,'0. Clima'!$S$11:$V$22,3,0),'0. Clima'!N24<=VLOOKUP('0. Perfil de Uso'!C24,'0. Clima'!$S$11:$V$22,4,0)),$K$7,0) -> 0 | M24: =+IF(AND('0. Clima'!N24>'0. Perfil de Uso'!$K$6,OR(D24<7,D24>21)),$K$7,0) -> 0 | N24: 0.8262
B25: 1 | C25: Enero | D25: 14 | E25: =+IF($D$8="No",$D$4*$D$2/$D$3,VLOOKUP(D25,'4. Perfil de Uso'!$B$12:$AN$35,1+'0. Perfil de Uso'!B25)) -> 1.23 | F25: =+IF($D$8="No",$D$6,VLOOKUP(D25,'4. Perfil de Uso'!$B$12:$AN$35,14+'0. Perfil de Uso'!B25)) -> 0 | G25: =+IF($D$8="No",$D$7,VLOOKUP(D25,'4. Perfil de Uso'!$B$12:$AN$35,27+'0. Perfil de Uso'!B25)) -> 0 | H25: 1.23 | J25: =+IF('0. Ventilacion'!$C$21>2,0,IF($K$5="No",VLOOKUP(C25,'0. Infiltraciones'!$C$29:$D$40,2,0),HLOOKUP('0. Perfil de Uso'!C25,'4. Perfil de Uso'!$AS$11:$BD$35,D25+2,0))) -> 0 | K25: =+IF(AND($Q$8="Propuesto",'0. Ventilacion'!$C$21>2,'0. Ventilacion'!$C$22=2),(VLOOKUP(D25,'4. Perfil de Uso'!$BS$12:$BT$35,2,0)*'0. Perfil de Uso'!$D$2*$K$3*3600/1000)/$K$2+($D$3*$K$4*3600/1000)/$K$2,IF($Q$8="propuesto",VLOOKUP(C25,'0. Ventilacion'!$V$2:$W$13,2,0)-J25,$Q$2*$Q$3-J25)) -> 0.8262 | L25: =+IF(AND(M25=0,'0. Clima'!N25>=VLOOKUP('0. Perfil de Uso'!C25,'0. Clima'!$S$11:$V$22,3,0),'0. Clima'!N25<=VLOOKUP('0. Perfil de Uso'!C25,'0. Clima'!$S$11:$V$22,4,0)),$K$7,0) -> 0 | M25: =+IF(AND('0. Clima'!N25>'0. Perfil de Uso'!$K$6,OR(D25<7,D25>21)),$K$7,0) -> 0 | N25: 0.8262
B26: 1 | C26: Enero | D26: 15 | E26: =+IF($D$8="No",$D$4*$D$2/$D$3,VLOOKUP(D26,'4. Perfil de Uso'!$B$12:$AN$35,1+'0. Perfil de Uso'!B26)) -> 1.23 | F26: =+IF($D$8="No",$D$6,VLOOKUP(D26,'4. Perfil de Uso'!$B$12:$AN$35,14+'0. Perfil de Uso'!B26)) -> 0 | G26: =+IF($D$8="No",$D$7,VLOOKUP(D26,'4. Perfil de Uso'!$B$12:$AN$35,27+'0. Perfil de Uso'!B26)) -> 0 | H26: 1.23 | J26: =+IF('0. Ventilacion'!$C$21>2,0,IF($K$5="No",VLOOKUP(C26,'0. Infiltraciones'!$C$29:$D$40,2,0),HLOOKUP('0. Perfil de Uso'!C26,'4. Perfil de Uso'!$AS$11:$BD$35,D26+2,0))) -> 0 | K26: =+IF(AND($Q$8="Propuesto",'0. Ventilacion'!$C$21>2,'0. Ventilacion'!$C$22=2),(VLOOKUP(D26,'4. Perfil de Uso'!$BS$12:$BT$35,2,0)*'0. Perfil de Uso'!$D$2*$K$3*3600/1000)/$K$2+($D$3*$K$4*3600/1000)/$K$2,IF($Q$8="propuesto",VLOOKUP(C26,'0. Ventilacion'!$V$2:$W$13,2,0)-J26,$Q$2*$Q$3-J26)) -> 0.8262 | L26: =+IF(AND(M26=0,'0. Clima'!N26>=VLOOKUP('0. Perfil de Uso'!C26,'0. Clima'!$S$11:$V$22,3,0),'0. Clima'!N26<=VLOOKUP('0. Perfil de Uso'!C26,'0. Clima'!$S$11:$V$22,4,0)),$K$7,0) -> 0 | M26: =+IF(AND('0. Clima'!N26>'0. Perfil de Uso'!$K$6,OR(D26<7,D26>21)),$K$7,0) -> 0 | N26: 0.8262
B27: 1 | C27: Enero | D27: 16 | E27: =+IF($D$8="No",$D$4*$D$2/$D$3,VLOOKUP(D27,'4. Perfil de Uso'!$B$12:$AN$35,1+'0. Perfil de Uso'!B27)) -> 1.476 | F27: =+IF($D$8="No",$D$6,VLOOKUP(D27,'4. Perfil de Uso'!$B$12:$AN$35,14+'0. Perfil de Uso'!B27)) -> 0 | G27: =+IF($D$8="No",$D$7,VLOOKUP(D27,'4. Perfil de Uso'!$B$12:$AN$35,27+'0. Perfil de Uso'!B27)) -> 0 | H27: 1.476 | J27: =+IF('0. Ventilacion'!$C$21>2,0,IF($K$5="No",VLOOKUP(C27,'0. Infiltraciones'!$C$29:$D$40,2,0),HLOOKUP('0. Perfil de Uso'!C27,'4. Perfil de Uso'!$AS$11:$BD$35,D27+2,0))) -> 0 | K27: =+IF(AND($Q$8="Propuesto",'0. Ventilacion'!$C$21>2,'0. Ventilacion'!$C$22=2),(VLOOKUP(D27,'4. Perfil de Uso'!$BS$12:$BT$35,2,0)*'0. Perfil de Uso'!$D$2*$K$3*3600/1000)/$K$2+($D$3*$K$4*3600/1000)/$K$2,IF($Q$8="propuesto",VLOOKUP(C27,'0. Ventilacion'!$V$2:$W$13,2,0)-J27,$Q$2*$Q$3-J27)) -> 0.8262 | L27: =+IF(AND(M27=0,'0. Clima'!N27>=VLOOKUP('0. Perfil de Uso'!C27,'0. Clima'!$S$11:$V$22,3,0),'0. Clima'!N27<=VLOOKUP('0. Perfil de Uso'!C27,'0. Clima'!$S$11:$V$22,4,0)),$K$7,0) -> 0 | M27: =+IF(AND('0. Clima'!N27>'0. Perfil de Uso'!$K$6,OR(D27<7,D27>21)),$K$7,0) -> 0 | N27: 0.8262
B28: 1 | C28: Enero | D28: 17 | E28: =+IF($D$8="No",$D$4*$D$2/$D$3,VLOOKUP(D28,'4. Perfil de Uso'!$B$12:$AN$35,1+'0. Perfil de Uso'!B28)) -> 2.46 | F28: =+IF($D$8="No",$D$6,VLOOKUP(D28,'4. Perfil de Uso'!$B$12:$AN$35,14+'0. Perfil de Uso'!B28)) -> 0 | G28: =+IF($D$8="No",$D$7,VLOOKUP(D28,'4. Perfil de Uso'!$B$12:$AN$35,27+'0. Perfil de Uso'!B28)) -> 0 | H28: 2.46 | J28: =+IF('0. Ventilacion'!$C$21>2,0,IF($K$5="No",VLOOKUP(C28,'0. Infiltraciones'!$C$29:$D$40,2,0),HLOOKUP('0. Perfil de Uso'!C28,'4. Perfil de Uso'!$AS$11:$BD$35,D28+2,0))) -> 0 | K28: =+IF(AND($Q$8="Propuesto",'0. Ventilacion'!$C$21>2,'0. Ventilacion'!$C$22=2),(VLOOKUP(D28,'4. Perfil de Uso'!$BS$12:$BT$35,2,0)*'0. Perfil de Uso'!$D$2*$K$3*3600/1000)/$K$2+($D$3*$K$4*3600/1000)/$K$2,IF($Q$8="propuesto",VLOOKUP(C28,'0. Ventilacion'!$V$2:$W$13,2,0)-J28,$Q$2*$Q$3-J28)) -> 0.8262 | L28: =+IF(AND(M28=0,'0. Clima'!N28>=VLOOKUP('0. Perfil de Uso'!C28,'0. Clima'!$S$11:$V$22,3,0),'0. Clima'!N28<=VLOOKUP('0. Perfil de Uso'!C28,'0. Clima'!$S$11:$V$22,4,0)),$K$7,0) -> 0 | M28: =+IF(AND('0. Clima'!N28>'0. Perfil de Uso'!$K$6,OR(D28<7,D28>21)),$K$7,0) -> 0 | N28: 0.8262
B29: 1 | C29: Enero | D29: 18 | E29: =+IF($D$8="No",$D$4*$D$2/$D$3,VLOOKUP(D29,'4. Perfil de Uso'!$B$12:$AN$35,1+'0. Perfil de Uso'!B29)) -> 2.46 | F29: =+IF($D$8="No",$D$6,VLOOKUP(D29,'4. Perfil de Uso'!$B$12:$AN$35,14+'0. Perfil de Uso'!B29)) -> 0 | G29: =+IF($D$8="No",$D$7,VLOOKUP(D29,'4. Perfil de Uso'!$B$12:$AN$35,27+'0. Perfil de Uso'!B29)) -> 0 | H29: 2.46 | J29: =+IF('0. Ventilacion'!$C$21>2,0,IF($K$5="No",VLOOKUP(C29,'0. Infiltraciones'!$C$29:$D$40,2,0),HLOOKUP('0. Perfil de Uso'!C29,'4. Perfil de Uso'!$AS$11:$BD$35,D29+2,0))) -> 0 | K29: =+IF(AND($Q$8="Propuesto",'0. Ventilacion'!$C$21>2,'0. Ventilacion'!$C$22=2),(VLOOKUP(D29,'4. Perfil de Uso'!$BS$12:$BT$35,2,0)*'0. Perfil de Uso'!$D$2*$K$3*3600/1000)/$K$2+($D$3*$K$4*3600/1000)/$K$2,IF($Q$8="propuesto",VLOOKUP(C29,'0. Ventilacion'!$V$2:$W$13,2,0)-J29,$Q$2*$Q$3-J29)) -> 0.8262 | L29: =+IF(AND(M29=0,'0. Clima'!N29>=VLOOKUP('0. Perfil de Uso'!C29,'0. Clima'!$S$11:$V$22,3,0),'0. Clima'!N29<=VLOOKUP('0. Perfil de Uso'!C29,'0. Clima'!$S$11:$V$22,4,0)),$K$7,0) -> 0 | M29: =+IF(AND('0. Clima'!N29>'0. Perfil de Uso'!$K$6,OR(D29<7,D29>21)),$K$7,0) -> 0 | N29: 0.8262
B30: 1 | C30: Enero | D30: 19 | E30: =+IF($D$8="No",$D$4*$D$2/$D$3,VLOOKUP(D30,'4. Perfil de Uso'!$B$12:$AN$35,1+'0. Perfil de Uso'!B30)) -> 3.69 | F30: =+IF($D$8="No",$D$6,VLOOKUP(D30,'4. Perfil de Uso'!$B$12:$AN$35,14+'0. Perfil de Uso'!B30)) -> 0 | G30: =+IF($D$8="No",$D$7,VLOOKUP(D30,'4. Perfil de Uso'!$B$12:$AN$35,27+'0. Perfil de Uso'!B30)) -> 0 | H30: 3.69 | J30: =+IF('0. Ventilacion'!$C$21>2,0,IF($K$5="No",VLOOKUP(C30,'0. Infiltraciones'!$C$29:$D$40,2,0),HLOOKUP('0. Perfil de Uso'!C30,'4. Perfil de Uso'!$AS$11:$BD$35,D30+2,0))) -> 0 | K30: =+IF(AND($Q$8="Propuesto",'0. Ventilacion'!$C$21>2,'0. Ventilacion'!$C$22=2),(VLOOKUP(D30,'4. Perfil de Uso'!$BS$12:$BT$35,2,0)*'0. Perfil de Uso'!$D$2*$K$3*3600/1000)/$K$2+($D$3*$K$4*3600/1000)/$K$2,IF($Q$8="propuesto",VLOOKUP(C30,'0. Ventilacion'!$V$2:$W$13,2,0)-J30,$Q$2*$Q$3-J30)) -> 0.8262 | L30: =+IF(AND(M30=0,'0. Clima'!N30>=VLOOKUP('0. Perfil de Uso'!C30,'0. Clima'!$S$11:$V$22,3,0),'0. Clima'!N30<=VLOOKUP('0. Perfil de Uso'!C30,'0. Clima'!$S$11:$V$22,4,0)),$K$7,0) -> 0 | M30: =+IF(AND('0. Clima'!N30>'0. Perfil de Uso'!$K$6,OR(D30<7,D30>21)),$K$7,0) -> 0 | N30: 0.8262
B31: 1 | C31: Enero | D31: 20 | E31: =+IF($D$8="No",$D$4*$D$2/$D$3,VLOOKUP(D31,'4. Perfil de Uso'!$B$12:$AN$35,1+'0. Perfil de Uso'!B31)) -> 4.428 | F31: =+IF($D$8="No",$D$6,VLOOKUP(D31,'4. Perfil de Uso'!$B$12:$AN$35,14+'0. Perfil de Uso'!B31)) -> 1.5 | G31: =+IF($D$8="No",$D$7,VLOOKUP(D31,'4. Perfil de Uso'!$B$12:$AN$35,27+'0. Perfil de Uso'!B31)) -> 0 | H31: 5.928 | J31: =+IF('0. Ventilacion'!$C$21>2,0,IF($K$5="No",VLOOKUP(C31,'0. Infiltraciones'!$C$29:$D$40,2,0),HLOOKUP('0. Perfil de Uso'!C31,'4. Perfil de Uso'!$AS$11:$BD$35,D31+2,0))) -> 0 | K31: =+IF(AND($Q$8="Propuesto",'0. Ventilacion'!$C$21>2,'0. Ventilacion'!$C$22=2),(VLOOKUP(D31,'4. Perfil de Uso'!$BS$12:$BT$35,2,0)*'0. Perfil de Uso'!$D$2*$K$3*3600/1000)/$K$2+($D$3*$K$4*3600/1000)/$K$2,IF($Q$8="propuesto",VLOOKUP(C31,'0. Ventilacion'!$V$2:$W$13,2,0)-J31,$Q$2*$Q$3-J31)) -> 0.8262 | L31: =+IF(AND(M31=0,'0. Clima'!N31>=VLOOKUP('0. Perfil de Uso'!C31,'0. Clima'!$S$11:$V$22,3,0),'0. Clima'!N31<=VLOOKUP('0. Perfil de Uso'!C31,'0. Clima'!$S$11:$V$22,4,0)),$K$7,0) -> 0 | M31: =+IF(AND('0. Clima'!N31>'0. Perfil de Uso'!$K$6,OR(D31<7,D31>21)),$K$7,0) -> 0 | N31: 0.8262
B32: 1 | C32: Enero | D32: 21 | E32: =+IF($D$8="No",$D$4*$D$2/$D$3,VLOOKUP(D32,'4. Perfil de Uso'!$B$12:$AN$35,1+'0. Perfil de Uso'!B32)) -> 4.92 | F32: =+IF($D$8="No",$D$6,VLOOKUP(D32,'4. Perfil de Uso'!$B$12:$AN$35,14+'0. Perfil de Uso'!B32)) -> 1.5 | G32: =+IF($D$8="No",$D$7,VLOOKUP(D32,'4. Perfil de Uso'!$B$12:$AN$35,27+'0. Perfil de Uso'!B32)) -> 0 | H32: 6.42 | J32: =+IF('0. Ventilacion'!$C$21>2,0,IF($K$5="No",VLOOKUP(C32,'0. Infiltraciones'!$C$29:$D$40,2,0),HLOOKUP('0. Perfil de Uso'!C32,'4. Perfil de Uso'!$AS$11:$BD$35,D32+2,0))) -> 0 | K32: =+IF(AND($Q$8="Propuesto",'0. Ventilacion'!$C$21>2,'0. Ventilacion'!$C$22=2),(VLOOKUP(D32,'4. Perfil de Uso'!$BS$12:$BT$35,2,0)*'0. Perfil de Uso'!$D$2*$K$3*3600/1000)/$K$2+($D$3*$K$4*3600/1000)/$K$2,IF($Q$8="propuesto",VLOOKUP(C32,'0. Ventilacion'!$V$2:$W$13,2,0)-J32,$Q$2*$Q$3-J32)) -> 0.8262 | L32: =+IF(AND(M32=0,'0. Clima'!N32>=VLOOKUP('0. Perfil de Uso'!C32,'0. Clima'!$S$11:$V$22,3,0),'0. Clima'!N32<=VLOOKUP('0. Perfil de Uso'!C32,'0. Clima'!$S$11:$V$22,4,0)),$K$7,0) -> 0 | M32: =+IF(AND('0. Clima'!N32>'0. Perfil de Uso'!$K$6,OR(D32<7,D32>21)),$K$7,0) -> 0 | N32: 0.8262
B33: 1 | C33: Enero | D33: 22 | E33: =+IF($D$8="No",$D$4*$D$2/$D$3,VLOOKUP(D33,'4. Perfil de Uso'!$B$12:$AN$35,1+'0. Perfil de Uso'!B33)) -> 4.1 | F33: =+IF($D$8="No",$D$6,VLOOKUP(D33,'4. Perfil de Uso'!$B$12:$AN$35,14+'0. Perfil de Uso'!B33)) -> 0 | G33: =+IF($D$8="No",$D$7,VLOOKUP(D33,'4. Perfil de Uso'!$B$12:$AN$35,27+'0. Perfil de Uso'!B33)) -> 0 | H33: 4.1 | J33: =+IF('0. Ventilacion'!$C$21>2,0,IF($K$5="No",VLOOKUP(C33,'0. Infiltraciones'!$C$29:$D$40,2,0),HLOOKUP('0. Perfil de Uso'!C33,'4. Perfil de Uso'!$AS$11:$BD$35,D33+2,0))) -> 0 | K33: =+IF(AND($Q$8="Propuesto",'0. Ventilacion'!$C$21>2,'0. Ventilacion'!$C$22=2),(VLOOKUP(D33,'4. Perfil de Uso'!$BS$12:$BT$35,2,0)*'0. Perfil de Uso'!$D$2*$K$3*3600/1000)/$K$2+($D$3*$K$4*3600/1000)/$K$2,IF($Q$8="propuesto",VLOOKUP(C33,'0. Ventilacion'!$V$2:$W$13,2,0)-J33,$Q$2*$Q$3-J33)) -> 0.8262 | L33: =+IF(AND(M33=0,'0. Clima'!N33>=VLOOKUP('0. Perfil de Uso'!C33,'0. Clima'!$S$11:$V$22,3,0),'0. Clima'!N33<=VLOOKUP('0. Perfil de Uso'!C33,'0. Clima'!$S$11:$V$22,4,0)),$K$7,0) -> 0 | M33: =+IF(AND('0. Clima'!N33>'0. Perfil de Uso'!$K$6,OR(D33<7,D33>21)),$K$7,0) -> 0 | N33: 0.8262
B34: 1 | C34: Enero | D34: 23 | E34: =+IF($D$8="No",$D$4*$D$2/$D$3,VLOOKUP(D34,'4. Perfil de Uso'!$B$12:$AN$35,1+'0. Perfil de Uso'!B34)) -> 4.1 | F34: =+IF($D$8="No",$D$6,VLOOKUP(D34,'4. Perfil de Uso'!$B$12:$AN$35,14+'0. Perfil de Uso'!B34)) -> 0 | G34: =+IF($D$8="No",$D$7,VLOOKUP(D34,'4. Perfil de Uso'!$B$12:$AN$35,27+'0. Perfil de Uso'!B34)) -> 0 | H34: 4.1 | J34: =+IF('0. Ventilacion'!$C$21>2,0,IF($K$5="No",VLOOKUP(C34,'0. Infiltraciones'!$C$29:$D$40,2,0),HLOOKUP('0. Perfil de Uso'!C34,'4. Perfil de Uso'!$AS$11:$BD$35,D34+2,0))) -> 0 | K34: =+IF(AND($Q$8="Propuesto",'0. Ventilacion'!$C$21>2,'0. Ventilacion'!$C$22=2),(VLOOKUP(D34,'4. Perfil de Uso'!$BS$12:$BT$35,2,0)*'0. Perfil de Uso'!$D$2*$K$3*3600/1000)/$K$2+($D$3*$K$4*3600/1000)/$K$2,IF($Q$8="propuesto",VLOOKUP(C34,'0. Ventilacion'!$V$2:$W$13,2,0)-J34,$Q$2*$Q$3-J34)) -> 0.8262 | L34: =+IF(AND(M34=0,'0. Clima'!N34>=VLOOKUP('0. Perfil de Uso'!C34,'0. Clima'!$S$11:$V$22,3,0),'0. Clima'!N34<=VLOOKUP('0. Perfil de Uso'!C34,'0. Clima'!$S$11:$V$22,4,0)),$K$7,0) -> 0 | M34: =+IF(AND('0. Clima'!N34>'0. Perfil de Uso'!$K$6,OR(D34<7,D34>21)),$K$7,0) -> 0 | N34: 0.8262
B35: 2 | C35: Febrero | D35: 0 | E35: =+IF($D$8="No",$D$4*$D$2/$D$3,VLOOKUP(D35,'4. Perfil de Uso'!$B$12:$AN$35,1+'0. Perfil de Uso'!B35)) -> 4.1 | F35: =+IF($D$8="No",$D$6,VLOOKUP(D35,'4. Perfil de Uso'!$B$12:$AN$35,14+'0. Perfil de Uso'!B35)) -> 0 | G35: =+IF($D$8="No",$D$7,VLOOKUP(D35,'4. Perfil de Uso'!$B$12:$AN$35,27+'0. Perfil de Uso'!B35)) -> 0 | H35: 4.1 | J35: =+IF('0. Ventilacion'!$C$21>2,0,IF($K$5="No",VLOOKUP(C35,'0. Infiltraciones'!$C$29:$D$40,2,0),HLOOKUP('0. Perfil de Uso'!C35,'4. Perfil de Uso'!$AS$11:$BD$35,D35+2,0))) -> 0 | K35: =+IF(AND($Q$8="Propuesto",'0. Ventilacion'!$C$21>2,'0. Ventilacion'!$C$22=2),(VLOOKUP(D35,'4. Perfil de Uso'!$BS$12:$BT$35,2,0)*'0. Perfil de Uso'!$D$2*$K$3*3600/1000)/$K$2+($D$3*$K$4*3600/1000)/$K$2,IF($Q$8="propuesto",VLOOKUP(C35,'0. Ventilacion'!$V$2:$W$13,2,0)-J35,$Q$2*$Q$3-J35)) -> 0.8262 | L35: =+IF(AND(M35=0,'0. Clima'!N35>=VLOOKUP('0. Perfil de Uso'!C35,'0. Clima'!$S$11:$V$22,3,0),'0. Clima'!N35<=VLOOKUP('0. Perfil de Uso'!C35,'0. Clima'!$S$11:$V$22,4,0)),$K$7,0) -> 0 | M35: =+IF(AND('0. Clima'!N35>'0. Perfil de Uso'!$K$6,OR(D35<7,D35>21)),$K$7,0) -> 0 | N35: 0.8262
B36: 2 | C36: Febrero | D36: 1 | E36: =+IF($D$8="No",$D$4*$D$2/$D$3,VLOOKUP(D36,'4. Perfil de Uso'!$B$12:$AN$35,1+'0. Perfil de Uso'!B36)) -> 4.1 | F36: =+IF($D$8="No",$D$6,VLOOKUP(D36,'4. Perfil de Uso'!$B$12:$AN$35,14+'0. Perfil de Uso'!B36)) -> 0 | G36: =+IF($D$8="No",$D$7,VLOOKUP(D36,'4. Perfil de Uso'!$B$12:$AN$35,27+'0. Perfil de Uso'!B36)) -> 0 | H36: 4.1 | J36: =+IF('0. Ventilacion'!$C$21>2,0,IF($K$5="No",VLOOKUP(C36,'0. Infiltraciones'!$C$29:$D$40,2,0),HLOOKUP('0. Perfil de Uso'!C36,'4. Perfil de Uso'!$AS$11:$BD$35,D36+2,0))) -> 0 | K36: =+IF(AND($Q$8="Propuesto",'0. Ventilacion'!$C$21>2,'0. Ventilacion'!$C$22=2),(VLOOKUP(D36,'4. Perfil de Uso'!$BS$12:$BT$35,2,0)*'0. Perfil de Uso'!$D$2*$K$3*3600/1000)/$K$2+($D$3*$K$4*3600/1000)/$K$2,IF($Q$8="propuesto",VLOOKUP(C36,'0. Ventilacion'!$V$2:$W$13,2,0)-J36,$Q$2*$Q$3-J36)) -> 0.8262 | L36: =+IF(AND(M36=0,'0. Clima'!N36>=VLOOKUP('0. Perfil de Uso'!C36,'0. Clima'!$S$11:$V$22,3,0),'0. Clima'!N36<=VLOOKUP('0. Perfil de Uso'!C36,'0. Clima'!$S$11:$V$22,4,0)),$K$7,0) -> 0 | M36: =+IF(AND('0. Clima'!N36>'0. Perfil de Uso'!$K$6,OR(D36<7,D36>21)),$K$7,0) -> 0 | N36: 0.8262
B37: 2 | C37: Febrero | D37: 2 | E37: =+IF($D$8="No",$D$4*$D$2/$D$3,VLOOKUP(D37,'4. Perfil de Uso'!$B$12:$AN$35,1+'0. Perfil de Uso'!B37)) -> 4.1 | F37: =+IF($D$8="No",$D$6,VLOOKUP(D37,'4. Perfil de Uso'!$B$12:$AN$35,14+'0. Perfil de Uso'!B37)) -> 0 | G37: =+IF($D$8="No",$D$7,VLOOKUP(D37,'4. Perfil de Uso'!$B$12:$AN$35,27+'0. Perfil de Uso'!B37)) -> 0 | H37: 4.1 | J37: =+IF('0. Ventilacion'!$C$21>2,0,IF($K$5="No",VLOOKUP(C37,'0. Infiltraciones'!$C$29:$D$40,2,0),HLOOKUP('0. Perfil de Uso'!C37,'4. Perfil de Uso'!$AS$11:$BD$35,D37+2,0))) -> 0 | K37: =+IF(AND($Q$8="Propuesto",'0. Ventilacion'!$C$21>2,'0. Ventilacion'!$C$22=2),(VLOOKUP(D37,'4. Perfil de Uso'!$BS$12:$BT$35,2,0)*'0. Perfil de Uso'!$D$2*$K$3*3600/1000)/$K$2+($D$3*$K$4*3600/1000)/$K$2,IF($Q$8="propuesto",VLOOKUP(C37,'0. Ventilacion'!$V$2:$W$13,2,0)-J37,$Q$2*$Q$3-J37)) -> 0.8262 | L37: =+IF(AND(M37=0,'0. Clima'!N37>=VLOOKUP('0. Perfil de Uso'!C37,'0. Clima'!$S$11:$V$22,3,0),'0. Clima'!N37<=VLOOKUP('0. Perfil de Uso'!C37,'0. Clima'!$S$11:$V$22,4,0)),$K$7,0) -> 0 | M37: =+IF(AND('0. Clima'!N37>'0. Perfil de Uso'!$K$6,OR(D37<7,D37>21)),$K$7,0) -> 0 | N37: 0.8262
B38: 2 | C38: Febrero | D38: 3 | E38: =+IF($D$8="No",$D$4*$D$2/$D$3,VLOOKUP(D38,'4. Perfil de Uso'!$B$12:$AN$35,1+'0. Perfil de Uso'!B38)) -> 4.1 | F38: =+IF($D$8="No",$D$6,VLOOKUP(D38,'4. Perfil de Uso'!$B$12:$AN$35,14+'0. Perfil de Uso'!B38)) -> 0 | G38: =+IF($D$8="No",$D$7,VLOOKUP(D38,'4. Perfil de Uso'!$B$12:$AN$35,27+'0. Perfil de Uso'!B38)) -> 0 | H38: 4.1 | J38: =+IF('0. Ventilacion'!$C$21>2,0,IF($K$5="No",VLOOKUP(C38,'0. Infiltraciones'!$C$29:$D$40,2,0),HLOOKUP('0. Perfil de Uso'!C38,'4. Perfil de Uso'!$AS$11:$BD$35,D38+2,0))) -> 0 | K38: =+IF(AND($Q$8="Propuesto",'0. Ventilacion'!$C$21>2,'0. Ventilacion'!$C$22=2),(VLOOKUP(D38,'4. Perfil de Uso'!$BS$12:$BT$35,2,0)*'0. Perfil de Uso'!$D$2*$K$3*3600/1000)/$K$2+($D$3*$K$4*3600/1000)/$K$2,IF($Q$8="propuesto",VLOOKUP(C38,'0. Ventilacion'!$V$2:$W$13,2,0)-J38,$Q$2*$Q$3-J38)) -> 0.8262 | L38: =+IF(AND(M38=0,'0. Clima'!N38>=VLOOKUP('0. Perfil de Uso'!C38,'0. Clima'!$S$11:$V$22,3,0),'0. Clima'!N38<=VLOOKUP('0. Perfil de Uso'!C38,'0. Clima'!$S$11:$V$22,4,0)),$K$7,0) -> 0 | M38: =+IF(AND('0. Clima'!N38>'0. Perfil de Uso'!$K$6,OR(D38<7,D38>21)),$K$7,0) -> 0 | N38: 0.8262
B39: 2 | C39: Febrero | D39: 4 | E39: =+IF($D$8="No",$D$4*$D$2/$D$3,VLOOKUP(D39,'4. Perfil de Uso'!$B$12:$AN$35,1+'0. Perfil de Uso'!B39)) -> 4.1 | F39: =+IF($D$8="No",$D$6,VLOOKUP(D39,'4. Perfil de Uso'!$B$12:$AN$35,14+'0. Perfil de Uso'!B39)) -> 0 | G39: =+IF($D$8="No",$D$7,VLOOKUP(D39,'4. Perfil de Uso'!$B$12:$AN$35,27+'0. Perfil de Uso'!B39)) -> 0 | H39: 4.1 | J39: =+IF('0. Ventilacion'!$C$21>2,0,IF($K$5="No",VLOOKUP(C39,'0. Infiltraciones'!$C$29:$D$40,2,0),HLOOKUP('0. Perfil de Uso'!C39,'4. Perfil de Uso'!$AS$11:$BD$35,D39+2,0))) -> 0 | K39: =+IF(AND($Q$8="Propuesto",'0. Ventilacion'!$C$21>2,'0. Ventilacion'!$C$22=2),(VLOOKUP(D39,'4. Perfil de Uso'!$BS$12:$BT$35,2,0)*'0. Perfil de Uso'!$D$2*$K$3*3600/1000)/$K$2+($D$3*$K$4*3600/1000)/$K$2,IF($Q$8="propuesto",VLOOKUP(C39,'0. Ventilacion'!$V$2:$W$13,2,0)-J39,$Q$2*$Q$3-J39)) -> 0.8262 | L39: =+IF(AND(M39=0,'0. Clima'!N39>=VLOOKUP('0. Perfil de Uso'!C39,'0. Clima'!$S$11:$V$22,3,0),'0. Clima'!N39<=VLOOKUP('0. Perfil de Uso'!C39,'0. Clima'!$S$11:$V$22,4,0)),$K$7,0) -> 0 | M39: =+IF(AND('0. Clima'!N39>'0. Perfil de Uso'!$K$6,OR(D39<7,D39>21)),$K$7,0) -> 0 | N39: 0.8262
B40: 2 | C40: Febrero | D40: 5 | E40: =+IF($D$8="No",$D$4*$D$2/$D$3,VLOOKUP(D40,'4. Perfil de Uso'!$B$12:$AN$35,1+'0. Perfil de Uso'!B40)) -> 4.1 | F40: =+IF($D$8="No",$D$6,VLOOKUP(D40,'4. Perfil de Uso'!$B$12:$AN$35,14+'0. Perfil de Uso'!B40)) -> 0 | G40: =+IF($D$8="No",$D$7,VLOOKUP(D40,'4. Perfil de Uso'!$B$12:$AN$35,27+'0. Perfil de Uso'!B40)) -> 0 | H40: 4.1 | J40: =+IF('0. Ventilacion'!$C$21>2,0,IF($K$5="No",VLOOKUP(C40,'0. Infiltraciones'!$C$29:$D$40,2,0),HLOOKUP('0. Perfil de Uso'!C40,'4. Perfil de Uso'!$AS$11:$BD$35,D40+2,0))) -> 0 | K40: =+IF(AND($Q$8="Propuesto",'0. Ventilacion'!$C$21>2,'0. Ventilacion'!$C$22=2),(VLOOKUP(D40,'4. Perfil de Uso'!$BS$12:$BT$35,2,0)*'0. Perfil de Uso'!$D$2*$K$3*3600/1000)/$K$2+($D$3*$K$4*3600/1000)/$K$2,IF($Q$8="propuesto",VLOOKUP(C40,'0. Ventilacion'!$V$2:$W$13,2,0)-J40,$Q$2*$Q$3-J40)) -> 0.8262 | L40: =+IF(AND(M40=0,'0. Clima'!N40>=VLOOKUP('0. Perfil de Uso'!C40,'0. Clima'!$S$11:$V$22,3,0),'0. Clima'!N40<=VLOOKUP('0. Perfil de Uso'!C40,'0. Clima'!$S$11:$V$22,4,0)),$K$7,0) -> 0 | M40: =+IF(AND('0. Clima'!N40>'0. Perfil de Uso'!$K$6,OR(D40<7,D40>21)),$K$7,0) -> 0 | N40: 0.8262
B41: 2 | C41: Febrero | D41: 6 | E41: =+IF($D$8="No",$D$4*$D$2/$D$3,VLOOKUP(D41,'4. Perfil de Uso'!$B$12:$AN$35,1+'0. Perfil de Uso'!B41)) -> 3.28 | F41: =+IF($D$8="No",$D$6,VLOOKUP(D41,'4. Perfil de Uso'!$B$12:$AN$35,14+'0. Perfil de Uso'!B41)) -> 0 | G41: =+IF($D$8="No",$D$7,VLOOKUP(D41,'4. Perfil de Uso'!$B$12:$AN$35,27+'0. Perfil de Uso'!B41)) -> 0 | H41: 3.28 | J41: =+IF('0. Ventilacion'!$C$21>2,0,IF($K$5="No",VLOOKUP(C41,'0. Infiltraciones'!$C$29:$D$40,2,0),HLOOKUP('0. Perfil de Uso'!C41,'4. Perfil de Uso'!$AS$11:$BD$35,D41+2,0))) -> 0 | K41: =+IF(AND($Q$8="Propuesto",'0. Ventilacion'!$C$21>2,'0. Ventilacion'!$C$22=2),(VLOOKUP(D41,'4. Perfil de Uso'!$BS$12:$BT$35,2,0)*'0. Perfil de Uso'!$D$2*$K$3*3600/1000)/$K$2+($D$3*$K$4*3600/1000)/$K$2,IF($Q$8="propuesto",VLOOKUP(C41,'0. Ventilacion'!$V$2:$W$13,2,0)-J41,$Q$2*$Q$3-J41)) -> 0.8262 | L41: =+IF(AND(M41=0,'0. Clima'!N41>=VLOOKUP('0. Perfil de Uso'!C41,'0. Clima'!$S$11:$V$22,3,0),'0. Clima'!N41<=VLOOKUP('0. Perfil de Uso'!C41,'0. Clima'!$S$11:$V$22,4,0)),$K$7,0) -> 0 | M41: =+IF(AND('0. Clima'!N41>'0. Perfil de Uso'!$K$6,OR(D41<7,D41>21)),$K$7,0) -> 0 | N41: 0.8262
B42: 2 | C42: Febrero | D42: 7 | E42: =+IF($D$8="No",$D$4*$D$2/$D$3,VLOOKUP(D42,'4. Perfil de Uso'!$B$12:$AN$35,1+'0. Perfil de Uso'!B42)) -> 3.936 | F42: =+IF($D$8="No",$D$6,VLOOKUP(D42,'4. Perfil de Uso'!$B$12:$AN$35,14+'0. Perfil de Uso'!B42)) -> 0 | G42: =+IF($D$8="No",$D$7,VLOOKUP(D42,'4. Perfil de Uso'!$B$12:$AN$35,27+'0. Perfil de Uso'!B42)) -> 0 | H42: 3.936 | J42: =+IF('0. Ventilacion'!$C$21>2,0,IF($K$5="No",VLOOKUP(C42,'0. Infiltraciones'!$C$29:$D$40,2,0),HLOOKUP('0. Perfil de Uso'!C42,'4. Perfil de Uso'!$AS$11:$BD$35,D42+2,0))) -> 0 | K42: =+IF(AND($Q$8="Propuesto",'0. Ventilacion'!$C$21>2,'0. Ventilacion'!$C$22=2),(VLOOKUP(D42,'4. Perfil de Uso'!$BS$12:$BT$35,2,0)*'0. Perfil de Uso'!$D$2*$K$3*3600/1000)/$K$2+($D$3*$K$4*3600/1000)/$K$2,IF($Q$8="propuesto",VLOOKUP(C42,'0. Ventilacion'!$V$2:$W$13,2,0)-J42,$Q$2*$Q$3-J42)) -> 0.8262 | L42: =+IF(AND(M42=0,'0. Clima'!N42>=VLOOKUP('0. Perfil de Uso'!C42,'0. Clima'!$S$11:$V$22,3,0),'0. Clima'!N42<=VLOOKUP('0. Perfil de Uso'!C42,'0. Clima'!$S$11:$V$22,4,0)),$K$7,0) -> 0 | M42: =+IF(AND('0. Clima'!N42>'0. Perfil de Uso'!$K$6,OR(D42<7,D42>21)),$K$7,0) -> 0 | N42: 0.8262
B43: 2 | C43: Febrero | D43: 8 | E43: =+IF($D$8="No",$D$4*$D$2/$D$3,VLOOKUP(D43,'4. Perfil de Uso'!$B$12:$AN$35,1+'0. Perfil de Uso'!B43)) -> 1.968 | F43: =+IF($D$8="No",$D$6,VLOOKUP(D43,'4. Perfil de Uso'!$B$12:$AN$35,14+'0. Perfil de Uso'!B43)) -> 0 | G43: =+IF($D$8="No",$D$7,VLOOKUP(D43,'4. Perfil de Uso'!$B$12:$AN$35,27+'0. Perfil de Uso'!B43)) -> 0 | H43: 1.968 | J43: =+IF('0. Ventilacion'!$C$21>2,0,IF($K$5="No",VLOOKUP(C43,'0. Infiltraciones'!$C$29:$D$40,2,0),HLOOKUP('0. Perfil de Uso'!C43,'4. Perfil de Uso'!$AS$11:$BD$35,D43+2,0))) -> 0 | K43: =+IF(AND($Q$8="Propuesto",'0. Ventilacion'!$C$21>2,'0. Ventilacion'!$C$22=2),(VLOOKUP(D43,'4. Perfil de Uso'!$BS$12:$BT$35,2,0)*'0. Perfil de Uso'!$D$2*$K$3*3600/1000)/$K$2+($D$3*$K$4*3600/1000)/$K$2,IF($Q$8="propuesto",VLOOKUP(C43,'0. Ventilacion'!$V$2:$W$13,2,0)-J43,$Q$2*$Q$3-J43)) -> 0.8262 | L43: =+IF(AND(M43=0,'0. Clima'!N43>=VLOOKUP('0. Perfil de Uso'!C43,'0. Clima'!$S$11:$V$22,3,0),'0. Clima'!N43<=VLOOKUP('0. Perfil de Uso'!C43,'0. Clima'!$S$11:$V$22,4,0)),$K$7,0) -> 0 | M43: =+IF(AND('0. Clima'!N43>'0. Perfil de Uso'!$K$6,OR(D43<7,D43>21)),$K$7,0) -> 0 | N43: 0.8262
B44: 2 | C44: Febrero | D44: 9 | E44: =+IF($D$8="No",$D$4*$D$2/$D$3,VLOOKUP(D44,'4. Perfil de Uso'!$B$12:$AN$35,1+'0. Perfil de Uso'!B44)) -> 1.23 | F44: =+IF($D$8="No",$D$6,VLOOKUP(D44,'4. Perfil de Uso'!$B$12:$AN$35,14+'0. Perfil de Uso'!B44)) -> 0 | G44: =+IF($D$8="No",$D$7,VLOOKUP(D44,'4. Perfil de Uso'!$B$12:$AN$35,27+'0. Perfil de Uso'!B44)) -> 0 | H44: 1.23 | J44: =+IF('0. Ventilacion'!$C$21>2,0,IF($K$5="No",VLOOKUP(C44,'0. Infiltraciones'!$C$29:$D$40,2,0),HLOOKUP('0. Perfil de Uso'!C44,'4. Perfil de Uso'!$AS$11:$BD$35,D44+2,0))) -> 0 | K44: =+IF(AND($Q$8="Propuesto",'0. Ventilacion'!$C$21>2,'0. Ventilacion'!$C$22=2),(VLOOKUP(D44,'4. Perfil de Uso'!$BS$12:$BT$35,2,0)*'0. Perfil de Uso'!$D$2*$K$3*3600/1000)/$K$2+($D$3*$K$4*3600/1000)/$K$2,IF($Q$8="propuesto",VLOOKUP(C44,'0. Ventilacion'!$V$2:$W$13,2,0)-J44,$Q$2*$Q$3-J44)) -> 0.8262 | L44: =+IF(AND(M44=0,'0. Clima'!N44>=VLOOKUP('0. Perfil de Uso'!C44,'0. Clima'!$S$11:$V$22,3,0),'0. Clima'!N44<=VLOOKUP('0. Perfil de Uso'!C44,'0. Clima'!$S$11:$V$22,4,0)),$K$7,0) -> 0 | M44: =+IF(AND('0. Clima'!N44>'0. Perfil de Uso'!$K$6,OR(D44<7,D44>21)),$K$7,0) -> 0 | N44: 0.8262
B45: 2 | C45: Febrero | D45: 10 | E45: =+IF($D$8="No",$D$4*$D$2/$D$3,VLOOKUP(D45,'4. Perfil de Uso'!$B$12:$AN$35,1+'0. Perfil de Uso'!B45)) -> 1.23 | F45: =+IF($D$8="No",$D$6,VLOOKUP(D45,'4. Perfil de Uso'!$B$12:$AN$35,14+'0. Perfil de Uso'!B45)) -> 0 | G45: =+IF($D$8="No",$D$7,VLOOKUP(D45,'4. Perfil de Uso'!$B$12:$AN$35,27+'0. Perfil de Uso'!B45)) -> 0 | H45: 1.23 | J45: =+IF('0. Ventilacion'!$C$21>2,0,IF($K$5="No",VLOOKUP(C45,'0. Infiltraciones'!$C$29:$D$40,2,0),HLOOKUP('0. Perfil de Uso'!C45,'4. Perfil de Uso'!$AS$11:$BD$35,D45+2,0))) -> 0 | K45: =+IF(AND($Q$8="Propuesto",'0. Ventilacion'!$C$21>2,'0. Ventilacion'!$C$22=2),(VLOOKUP(D45,'4. Perfil de Uso'!$BS$12:$BT$35,2,0)*'0. Perfil de Uso'!$D$2*$K$3*3600/1000)/$K$2+($D$3*$K$4*3600/1000)/$K$2,IF($Q$8="propuesto",VLOOKUP(C45,'0. Ventilacion'!$V$2:$W$13,2,0)-J45,$Q$2*$Q$3-J45)) -> 0.8262 | L45: =+IF(AND(M45=0,'0. Clima'!N45>=VLOOKUP('0. Perfil de Uso'!C45,'0. Clima'!$S$11:$V$22,3,0),'0. Clima'!N45<=VLOOKUP('0. Perfil de Uso'!C45,'0. Clima'!$S$11:$V$22,4,0)),$K$7,0) -> 0 | M45: =+IF(AND('0. Clima'!N45>'0. Perfil de Uso'!$K$6,OR(D45<7,D45>21)),$K$7,0) -> 0 | N45: 0.8262
B46: 2 | C46: Febrero | D46: 11 | E46: =+IF($D$8="No",$D$4*$D$2/$D$3,VLOOKUP(D46,'4. Perfil de Uso'!$B$12:$AN$35,1+'0. Perfil de Uso'!B46)) -> 1.23 | F46: =+IF($D$8="No",$D$6,VLOOKUP(D46,'4. Perfil de Uso'!$B$12:$AN$35,14+'0. Perfil de Uso'!B46)) -> 0 | G46: =+IF($D$8="No",$D$7,VLOOKUP(D46,'4. Perfil de Uso'!$B$12:$AN$35,27+'0. Perfil de Uso'!B46)) -> 0 | H46: 1.23 | J46: =+IF('0. Ventilacion'!$C$21>2,0,IF($K$5="No",VLOOKUP(C46,'0. Infiltraciones'!$C$29:$D$40,2,0),HLOOKUP('0. Perfil de Uso'!C46,'4. Perfil de Uso'!$AS$11:$BD$35,D46+2,0))) -> 0 | K46: =+IF(AND($Q$8="Propuesto",'0. Ventilacion'!$C$21>2,'0. Ventilacion'!$C$22=2),(VLOOKUP(D46,'4. Perfil de Uso'!$BS$12:$BT$35,2,0)*'0. Perfil de Uso'!$D$2*$K$3*3600/1000)/$K$2+($D$3*$K$4*3600/1000)/$K$2,IF($Q$8="propuesto",VLOOKUP(C46,'0. Ventilacion'!$V$2:$W$13,2,0)-J46,$Q$2*$Q$3-J46)) -> 0.8262 | L46: =+IF(AND(M46=0,'0. Clima'!N46>=VLOOKUP('0. Perfil de Uso'!C46,'0. Clima'!$S$11:$V$22,3,0),'0. Clima'!N46<=VLOOKUP('0. Perfil de Uso'!C46,'0. Clima'!$S$11:$V$22,4,0)),$K$7,0) -> 0 | M46: =+IF(AND('0. Clima'!N46>'0. Perfil de Uso'!$K$6,OR(D46<7,D46>21)),$K$7,0) -> 0 | N46: 0.8262
B47: 2 | C47: Febrero | D47: 12 | E47: =+IF($D$8="No",$D$4*$D$2/$D$3,VLOOKUP(D47,'4. Perfil de Uso'!$B$12:$AN$35,1+'0. Perfil de Uso'!B47)) -> 1.23 | F47: =+IF($D$8="No",$D$6,VLOOKUP(D47,'4. Perfil de Uso'!$B$12:$AN$35,14+'0. Perfil de Uso'!B47)) -> 0 | G47: =+IF($D$8="No",$D$7,VLOOKUP(D47,'4. Perfil de Uso'!$B$12:$AN$35,27+'0. Perfil de Uso'!B47)) -> 0 | H47: 1.23 | J47: =+IF('0. Ventilacion'!$C$21>2,0,IF($K$5="No",VLOOKUP(C47,'0. Infiltraciones'!$C$29:$D$40,2,0),HLOOKUP('0. Perfil de Uso'!C47,'4. Perfil de Uso'!$AS$11:$BD$35,D47+2,0))) -> 0 | K47: =+IF(AND($Q$8="Propuesto",'0. Ventilacion'!$C$21>2,'0. Ventilacion'!$C$22=2),(VLOOKUP(D47,'4. Perfil de Uso'!$BS$12:$BT$35,2,0)*'0. Perfil de Uso'!$D$2*$K$3*3600/1000)/$K$2+($D$3*$K$4*3600/1000)/$K$2,IF($Q$8="propuesto",VLOOKUP(C47,'0. Ventilacion'!$V$2:$W$13,2,0)-J47,$Q$2*$Q$3-J47)) -> 0.8262 | L47: =+IF(AND(M47=0,'0. Clima'!N47>=VLOOKUP('0. Perfil de Uso'!C47,'0. Clima'!$S$11:$V$22,3,0),'0. Clima'!N47<=VLOOKUP('0. Perfil de Uso'!C47,'0. Clima'!$S$11:$V$22,4,0)),$K$7,0) -> 0 | M47: =+IF(AND('0. Clima'!N47>'0. Perfil de Uso'!$K$6,OR(D47<7,D47>21)),$K$7,0) -> 0 | N47: 0.8262
B48: 2 | C48: Febrero | D48: 13 | E48: =+IF($D$8="No",$D$4*$D$2/$D$3,VLOOKUP(D48,'4. Perfil de Uso'!$B$12:$AN$35,1+'0. Perfil de Uso'!B48)) -> 1.23 | F48: =+IF($D$8="No",$D$6,VLOOKUP(D48,'4. Perfil de Uso'!$B$12:$AN$35,14+'0. Perfil de Uso'!B48)) -> 0 | G48: =+IF($D$8="No",$D$7,VLOOKUP(D48,'4. Perfil de Uso'!$B$12:$AN$35,27+'0. Perfil de Uso'!B48)) -> 0 | H48: 1.23 | J48: =+IF('0. Ventilacion'!$C$21>2,0,IF($K$5="No",VLOOKUP(C48,'0. Infiltraciones'!$C$29:$D$40,2,0),HLOOKUP('0. Perfil de Uso'!C48,'4. Perfil de Uso'!$AS$11:$BD$35,D48+2,0))) -> 0 | K48: =+IF(AND($Q$8="Propuesto",'0. Ventilacion'!$C$21>2,'0. Ventilacion'!$C$22=2),(VLOOKUP(D48,'4. Perfil de Uso'!$BS$12:$BT$35,2,0)*'0. Perfil de Uso'!$D$2*$K$3*3600/1000)/$K$2+($D$3*$K$4*3600/1000)/$K$2,IF($Q$8="propuesto",VLOOKUP(C48,'0. Ventilacion'!$V$2:$W$13,2,0)-J48,$Q$2*$Q$3-J48)) -> 0.8262 | L48: =+IF(AND(M48=0,'0. Clima'!N48>=VLOOKUP('0. Perfil de Uso'!C48,'0. Clima'!$S$11:$V$22,3,0),'0. Clima'!N48<=VLOOKUP('0. Perfil de Uso'!C48,'0. Clima'!$S$11:$V$22,4,0)),$K$7,0) -> 0 | M48: =+IF(AND('0. Clima'!N48>'0. Perfil de Uso'!$K$6,OR(D48<7,D48>21)),$K$7,0) -> 0 | N48: 0.8262
B49: 2 | C49: Febrero | D49: 14 | E49: =+IF($D$8="No",$D$4*$D$2/$D$3,VLOOKUP(D49,'4. Perfil de Uso'!$B$12:$AN$35,1+'0. Perfil de Uso'!B49)) -> 1.23 | F49: =+IF($D$8="No",$D$6,VLOOKUP(D49,'4. Perfil de Uso'!$B$12:$AN$35,14+'0. Perfil de Uso'!B49)) -> 0 | G49: =+IF($D$8="No",$D$7,VLOOKUP(D49,'4. Perfil de Uso'!$B$12:$AN$35,27+'0. Perfil de Uso'!B49)) -> 0 | H49: 1.23 | J49: =+IF('0. Ventilacion'!$C$21>2,0,IF($K$5="No",VLOOKUP(C49,'0. Infiltraciones'!$C$29:$D$40,2,0),HLOOKUP('0. Perfil de Uso'!C49,'4. Perfil de Uso'!$AS$11:$BD$35,D49+2,0))) -> 0 | K49: =+IF(AND($Q$8="Propuesto",'0. Ventilacion'!$C$21>2,'0. Ventilacion'!$C$22=2),(VLOOKUP(D49,'4. Perfil de Uso'!$BS$12:$BT$35,2,0)*'0. Perfil de Uso'!$D$2*$K$3*3600/1000)/$K$2+($D$3*$K$4*3600/1000)/$K$2,IF($Q$8="propuesto",VLOOKUP(C49,'0. Ventilacion'!$V$2:$W$13,2,0)-J49,$Q$2*$Q$3-J49)) -> 0.8262 | L49: =+IF(AND(M49=0,'0. Clima'!N49>=VLOOKUP('0. Perfil de Uso'!C49,'0. Clima'!$S$11:$V$22,3,0),'0. Clima'!N49<=VLOOKUP('0. Perfil de Uso'!C49,'0. Clima'!$S$11:$V$22,4,0)),$K$7,0) -> 0 | M49: =+IF(AND('0. Clima'!N49>'0. Perfil de Uso'!$K$6,OR(D49<7,D49>21)),$K$7,0) -> 0 | N49: 0.8262
B50: 2 | C50: Febrero | D50: 15 | E50: =+IF($D$8="No",$D$4*$D$2/$D$3,VLOOKUP(D50,'4. Perfil de Uso'!$B$12:$AN$35,1+'0. Perfil de Uso'!B50)) -> 1.23 | F50: =+IF($D$8="No",$D$6,VLOOKUP(D50,'4. Perfil de Uso'!$B$12:$AN$35,14+'0. Perfil de Uso'!B50)) -> 0 | G50: =+IF($D$8="No",$D$7,VLOOKUP(D50,'4. Perfil de Uso'!$B$12:$AN$35,27+'0. Perfil de Uso'!B50)) -> 0 | H50: 1.23 | J50: =+IF('0. Ventilacion'!$C$21>2,0,IF($K$5="No",VLOOKUP(C50,'0. Infiltraciones'!$C$29:$D$40,2,0),HLOOKUP('0. Perfil de Uso'!C50,'4. Perfil de Uso'!$AS$11:$BD$35,D50+2,0))) -> 0 | K50: =+IF(AND($Q$8="Propuesto",'0. Ventilacion'!$C$21>2,'0. Ventilacion'!$C$22=2),(VLOOKUP(D50,'4. Perfil de Uso'!$BS$12:$BT$35,2,0)*'0. Perfil de Uso'!$D$2*$K$3*3600/1000)/$K$2+($D$3*$K$4*3600/1000)/$K$2,IF($Q$8="propuesto",VLOOKUP(C50,'0. Ventilacion'!$V$2:$W$13,2,0)-J50,$Q$2*$Q$3-J50)) -> 0.8262 | L50: =+IF(AND(M50=0,'0. Clima'!N50>=VLOOKUP('0. Perfil de Uso'!C50,'0. Clima'!$S$11:$V$22,3,0),'0. Clima'!N50<=VLOOKUP('0. Perfil de Uso'!C50,'0. Clima'!$S$11:$V$22,4,0)),$K$7,0) -> 0 | M50: =+IF(AND('0. Clima'!N50>'0. Perfil de Uso'!$K$6,OR(D50<7,D50>21)),$K$7,0) -> 0 | N50: 0.8262
B51: 2 | C51: Febrero | D51: 16 | E51: =+IF($D$8="No",$D$4*$D$2/$D$3,VLOOKUP(D51,'4. Perfil de Uso'!$B$12:$AN$35,1+'0. Perfil de Uso'!B51)) -> 1.476 | F51: =+IF($D$8="No",$D$6,VLOOKUP(D51,'4. Perfil de Uso'!$B$12:$AN$35,14+'0. Perfil de Uso'!B51)) -> 0 | G51: =+IF($D$8="No",$D$7,VLOOKUP(D51,'4. Perfil de Uso'!$B$12:$AN$35,27+'0. Perfil de Uso'!B51)) -> 0 | H51: 1.476 | J51: =+IF('0. Ventilacion'!$C$21>2,0,IF($K$5="No",VLOOKUP(C51,'0. Infiltraciones'!$C$29:$D$40,2,0),HLOOKUP('0. Perfil de Uso'!C51,'4. Perfil de Uso'!$AS$11:$BD$35,D51+2,0))) -> 0 | K51: =+IF(AND($Q$8="Propuesto",'0. Ventilacion'!$C$21>2,'0. Ventilacion'!$C$22=2),(VLOOKUP(D51,'4. Perfil de Uso'!$BS$12:$BT$35,2,0)*'0. Perfil de Uso'!$D$2*$K$3*3600/1000)/$K$2+($D$3*$K$4*3600/1000)/$K$2,IF($Q$8="propuesto",VLOOKUP(C51,'0. Ventilacion'!$V$2:$W$13,2,0)-J51,$Q$2*$Q$3-J51)) -> 0.8262 | L51: =+IF(AND(M51=0,'0. Clima'!N51>=VLOOKUP('0. Perfil de Uso'!C51,'0. Clima'!$S$11:$V$22,3,0),'0. Clima'!N51<=VLOOKUP('0. Perfil de Uso'!C51,'0. Clima'!$S$11:$V$22,4,0)),$K$7,0) -> 0 | M51: =+IF(AND('0. Clima'!N51>'0. Perfil de Uso'!$K$6,OR(D51<7,D51>21)),$K$7,0) -> 0 | N51: 0.8262
B52: 2 | C52: Febrero | D52: 17 | E52: =+IF($D$8="No",$D$4*$D$2/$D$3,VLOOKUP(D52,'4. Perfil de Uso'!$B$12:$AN$35,1+'0. Perfil de Uso'!B52)) -> 2.46 | F52: =+IF($D$8="No",$D$6,VLOOKUP(D52,'4. Perfil de Uso'!$B$12:$AN$35,14+'0. Perfil de Uso'!B52)) -> 0 | G52: =+IF($D$8="No",$D$7,VLOOKUP(D52,'4. Perfil de Uso'!$B$12:$AN$35,27+'0. Perfil de Uso'!B52)) -> 0 | H52: 2.46 | J52: =+IF('0. Ventilacion'!$C$21>2,0,IF($K$5="No",VLOOKUP(C52,'0. Infiltraciones'!$C$29:$D$40,2,0),HLOOKUP('0. Perfil de Uso'!C52,'4. Perfil de Uso'!$AS$11:$BD$35,D52+2,0))) -> 0 | K52: =+IF(AND($Q$8="Propuesto",'0. Ventilacion'!$C$21>2,'0. Ventilacion'!$C$22=2),(VLOOKUP(D52,'4. Perfil de Uso'!$BS$12:$BT$35,2,0)*'0. Perfil de Uso'!$D$2*$K$3*3600/1000)/$K$2+($D$3*$K$4*3600/1000)/$K$2,IF($Q$8="propuesto",VLOOKUP(C52,'0. Ventilacion'!$V$2:$W$13,2,0)-J52,$Q$2*$Q$3-J52)) -> 0.8262 | L52: =+IF(AND(M52=0,'0. Clima'!N52>=VLOOKUP('0. Perfil de Uso'!C52,'0. Clima'!$S$11:$V$22,3,0),'0. Clima'!N52<=VLOOKUP('0. Perfil de Uso'!C52,'0. Clima'!$S$11:$V$22,4,0)),$K$7,0) -> 0 | M52: =+IF(AND('0. Clima'!N52>'0. Perfil de Uso'!$K$6,OR(D52<7,D52>21)),$K$7,0) -> 0 | N52: 0.8262
B53: 2 | C53: Febrero | D53: 18 | E53: =+IF($D$8="No",$D$4*$D$2/$D$3,VLOOKUP(D53,'4. Perfil de Uso'!$B$12:$AN$35,1+'0. Perfil de Uso'!B53)) -> 2.46 | F53: =+IF($D$8="No",$D$6,VLOOKUP(D53,'4. Perfil de Uso'!$B$12:$AN$35,14+'0. Perfil de Uso'!B53)) -> 0 | G53: =+IF($D$8="No",$D$7,VLOOKUP(D53,'4. Perfil de Uso'!$B$12:$AN$35,27+'0. Perfil de Uso'!B53)) -> 0 | H53: 2.46 | J53: =+IF('0. Ventilacion'!$C$21>2,0,IF($K$5="No",VLOOKUP(C53,'0. Infiltraciones'!$C$29:$D$40,2,0),HLOOKUP('0. Perfil de Uso'!C53,'4. Perfil de Uso'!$AS$11:$BD$35,D53+2,0))) -> 0 | K53: =+IF(AND($Q$8="Propuesto",'0. Ventilacion'!$C$21>2,'0. Ventilacion'!$C$22=2),(VLOOKUP(D53,'4. Perfil de Uso'!$BS$12:$BT$35,2,0)*'0. Perfil de Uso'!$D$2*$K$3*3600/1000)/$K$2+($D$3*$K$4*3600/1000)/$K$2,IF($Q$8="propuesto",VLOOKUP(C53,'0. Ventilacion'!$V$2:$W$13,2,0)-J53,$Q$2*$Q$3-J53)) -> 0.8262 | L53: =+IF(AND(M53=0,'0. Clima'!N53>=VLOOKUP('0. Perfil de Uso'!C53,'0. Clima'!$S$11:$V$22,3,0),'0. Clima'!N53<=VLOOKUP('0. Perfil de Uso'!C53,'0. Clima'!$S$11:$V$22,4,0)),$K$7,0) -> 0 | M53: =+IF(AND('0. Clima'!N53>'0. Perfil de Uso'!$K$6,OR(D53<7,D53>21)),$K$7,0) -> 0 | N53: 0.8262
B54: 2 | C54: Febrero | D54: 19 | E54: =+IF($D$8="No",$D$4*$D$2/$D$3,VLOOKUP(D54,'4. Perfil de Uso'!$B$12:$AN$35,1+'0. Perfil de Uso'!B54)) -> 3.69 | F54: =+IF($D$8="No",$D$6,VLOOKUP(D54,'4. Perfil de Uso'!$B$12:$AN$35,14+'0. Perfil de Uso'!B54)) -> 0 | G54: =+IF($D$8="No",$D$7,VLOOKUP(D54,'4. Perfil de Uso'!$B$12:$AN$35,27+'0. Perfil de Uso'!B54)) -> 0 | H54: 3.69 | J54: =+IF('0. Ventilacion'!$C$21>2,0,IF($K$5="No",VLOOKUP(C54,'0. Infiltraciones'!$C$29:$D$40,2,0),HLOOKUP('0. Perfil de Uso'!C54,'4. Perfil de Uso'!$AS$11:$BD$35,D54+2,0))) -> 0 | K54: =+IF(AND($Q$8="Propuesto",'0. Ventilacion'!$C$21>2,'0. Ventilacion'!$C$22=2),(VLOOKUP(D54,'4. Perfil de Uso'!$BS$12:$BT$35,2,0)*'0. Perfil de Uso'!$D$2*$K$3*3600/1000)/$K$2+($D$3*$K$4*3600/1000)/$K$2,IF($Q$8="propuesto",VLOOKUP(C54,'0. Ventilacion'!$V$2:$W$13,2,0)-J54,$Q$2*$Q$3-J54)) -> 0.8262 | L54: =+IF(AND(M54=0,'0. Clima'!N54>=VLOOKUP('0. Perfil de Uso'!C54,'0. Clima'!$S$11:$V$22,3,0),'0. Clima'!N54<=VLOOKUP('0. Perfil de Uso'!C54,'0. Clima'!$S$11:$V$22,4,0)),$K$7,0) -> 0 | M54: =+IF(AND('0. Clima'!N54>'0. Perfil de Uso'!$K$6,OR(D54<7,D54>21)),$K$7,0) -> 0 | N54: 0.8262
B55: 2 | C55: Febrero | D55: 20 | E55: =+IF($D$8="No",$D$4*$D$2/$D$3,VLOOKUP(D55,'4. Perfil de Uso'!$B$12:$AN$35,1+'0. Perfil de Uso'!B55)) -> 4.428 | F55: =+IF($D$8="No",$D$6,VLOOKUP(D55,'4. Perfil de Uso'!$B$12:$AN$35,14+'0. Perfil de Uso'!B55)) -> 1.5 | G55: =+IF($D$8="No",$D$7,VLOOKUP(D55,'4. Perfil de Uso'!$B$12:$AN$35,27+'0. Perfil de Uso'!B55)) -> 0 | H55: 5.928 | J55: =+IF('0. Ventilacion'!$C$21>2,0,IF($K$5="No",VLOOKUP(C55,'0. Infiltraciones'!$C$29:$D$40,2,0),HLOOKUP('0. Perfil de Uso'!C55,'4. Perfil de Uso'!$AS$11:$BD$35,D55+2,0))) -> 0 | K55: =+IF(AND($Q$8="Propuesto",'0. Ventilacion'!$C$21>2,'0. Ventilacion'!$C$22=2),(VLOOKUP(D55,'4. Perfil de Uso'!$BS$12:$BT$35,2,0)*'0. Perfil de Uso'!$D$2*$K$3*3600/1000)/$K$2+($D$3*$K$4*3600/1000)/$K$2,IF($Q$8="propuesto",VLOOKUP(C55,'0. Ventilacion'!$V$2:$W$13,2,0)-J55,$Q$2*$Q$3-J55)) -> 0.8262 | L55: =+IF(AND(M55=0,'0. Clima'!N55>=VLOOKUP('0. Perfil de Uso'!C55,'0. Clima'!$S$11:$V$22,3,0),'0. Clima'!N55<=VLOOKUP('0. Perfil de Uso'!C55,'0. Clima'!$S$11:$V$22,4,0)),$K$7,0) -> 0 | M55: =+IF(AND('0. Clima'!N55>'0. Perfil de Uso'!$K$6,OR(D55<7,D55>21)),$K$7,0) -> 0 | N55: 0.8262
B56: 2 | C56: Febrero | D56: 21 | E56: =+IF($D$8="No",$D$4*$D$2/$D$3,VLOOKUP(D56,'4. Perfil de Uso'!$B$12:$AN$35,1+'0. Perfil de Uso'!B56)) -> 4.92 | F56: =+IF($D$8="No",$D$6,VLOOKUP(D56,'4. Perfil de Uso'!$B$12:$AN$35,14+'0. Perfil de Uso'!B56)) -> 1.5 | G56: =+IF($D$8="No",$D$7,VLOOKUP(D56,'4. Perfil de Uso'!$B$12:$AN$35,27+'0. Perfil de Uso'!B56)) -> 0 | H56: 6.42 | J56: =+IF('0. Ventilacion'!$C$21>2,0,IF($K$5="No",VLOOKUP(C56,'0. Infiltraciones'!$C$29:$D$40,2,0),HLOOKUP('0. Perfil de Uso'!C56,'4. Perfil de Uso'!$AS$11:$BD$35,D56+2,0))) -> 0 | K56: =+IF(AND($Q$8="Propuesto",'0. Ventilacion'!$C$21>2,'0. Ventilacion'!$C$22=2),(VLOOKUP(D56,'4. Perfil de Uso'!$BS$12:$BT$35,2,0)*'0. Perfil de Uso'!$D$2*$K$3*3600/1000)/$K$2+($D$3*$K$4*3600/1000)/$K$2,IF($Q$8="propuesto",VLOOKUP(C56,'0. Ventilacion'!$V$2:$W$13,2,0)-J56,$Q$2*$Q$3-J56)) -> 0.8262 | L56: =+IF(AND(M56=0,'0. Clima'!N56>=VLOOKUP('0. Perfil de Uso'!C56,'0. Clima'!$S$11:$V$22,3,0),'0. Clima'!N56<=VLOOKUP('0. Perfil de Uso'!C56,'0. Clima'!$S$11:$V$22,4,0)),$K$7,0) -> 0 | M56: =+IF(AND('0. Clima'!N56>'0. Perfil de Uso'!$K$6,OR(D56<7,D56>21)),$K$7,0) -> 0 | N56: 0.8262
B57: 2 | C57: Febrero | D57: 22 | E57: =+IF($D$8="No",$D$4*$D$2/$D$3,VLOOKUP(D57,'4. Perfil de Uso'!$B$12:$AN$35,1+'0. Perfil de Uso'!B57)) -> 4.1 | F57: =+IF($D$8="No",$D$6,VLOOKUP(D57,'4. Perfil de Uso'!$B$12:$AN$35,14+'0. Perfil de Uso'!B57)) -> 0 | G57: =+IF($D$8="No",$D$7,VLOOKUP(D57,'4. Perfil de Uso'!$B$12:$AN$35,27+'0. Perfil de Uso'!B57)) -> 0 | H57: 4.1 | J57: =+IF('0. Ventilacion'!$C$21>2,0,IF($K$5="No",VLOOKUP(C57,'0. Infiltraciones'!$C$29:$D$40,2,0),HLOOKUP('0. Perfil de Uso'!C57,'4. Perfil de Uso'!$AS$11:$BD$35,D57+2,0))) -> 0 | K57: =+IF(AND($Q$8="Propuesto",'0. Ventilacion'!$C$21>2,'0. Ventilacion'!$C$22=2),(VLOOKUP(D57,'4. Perfil de Uso'!$BS$12:$BT$35,2,0)*'0. Perfil de Uso'!$D$2*$K$3*3600/1000)/$K$2+($D$3*$K$4*3600/1000)/$K$2,IF($Q$8="propuesto",VLOOKUP(C57,'0. Ventilacion'!$V$2:$W$13,2,0)-J57,$Q$2*$Q$3-J57)) -> 0.8262 | L57: =+IF(AND(M57=0,'0. Clima'!N57>=VLOOKUP('0. Perfil de Uso'!C57,'0. Clima'!$S$11:$V$22,3,0),'0. Clima'!N57<=VLOOKUP('0. Perfil de Uso'!C57,'0. Clima'!$S$11:$V$22,4,0)),$K$7,0) -> 0 | M57: =+IF(AND('0. Clima'!N57>'0. Perfil de Uso'!$K$6,OR(D57<7,D57>21)),$K$7,0) -> 0 | N57: 0.8262
B58: 2 | C58: Febrero | D58: 23 | E58: =+IF($D$8="No",$D$4*$D$2/$D$3,VLOOKUP(D58,'4. Perfil de Uso'!$B$12:$AN$35,1+'0. Perfil de Uso'!B58)) -> 4.1 | F58: =+IF($D$8="No",$D$6,VLOOKUP(D58,'4. Perfil de Uso'!$B$12:$AN$35,14+'0. Perfil de Uso'!B58)) -> 0 | G58: =+IF($D$8="No",$D$7,VLOOKUP(D58,'4. Perfil de Uso'!$B$12:$AN$35,27+'0. Perfil de Uso'!B58)) -> 0 | H58: 4.1 | J58: =+IF('0. Ventilacion'!$C$21>2,0,IF($K$5="No",VLOOKUP(C58,'0. Infiltraciones'!$C$29:$D$40,2,0),HLOOKUP('0. Perfil de Uso'!C58,'4. Perfil de Uso'!$AS$11:$BD$35,D58+2,0))) -> 0 | K58: =+IF(AND($Q$8="Propuesto",'0. Ventilacion'!$C$21>2,'0. Ventilacion'!$C$22=2),(VLOOKUP(D58,'4. Perfil de Uso'!$BS$12:$BT$35,2,0)*'0. Perfil de Uso'!$D$2*$K$3*3600/1000)/$K$2+($D$3*$K$4*3600/1000)/$K$2,IF($Q$8="propuesto",VLOOKUP(C58,'0. Ventilacion'!$V$2:$W$13,2,0)-J58,$Q$2*$Q$3-J58)) -> 0.8262 | L58: =+IF(AND(M58=0,'0. Clima'!N58>=VLOOKUP('0. Perfil de Uso'!C58,'0. Clima'!$S$11:$V$22,3,0),'0. Clima'!N58<=VLOOKUP('0. Perfil de Uso'!C58,'0. Clima'!$S$11:$V$22,4,0)),$K$7,0) -> 0 | M58: =+IF(AND('0. Clima'!N58>'0. Perfil de Uso'!$K$6,OR(D58<7,D58>21)),$K$7,0) -> 0 | N58: 0.8262
B59: 3 | C59: Marzo | D59: 0 | E59: =+IF($D$8="No",$D$4*$D$2/$D$3,VLOOKUP(D59,'4. Perfil de Uso'!$B$12:$AN$35,1+'0. Perfil de Uso'!B59)) -> 4.1 | F59: =+IF($D$8="No",$D$6,VLOOKUP(D59,'4. Perfil de Uso'!$B$12:$AN$35,14+'0. Perfil de Uso'!B59)) -> 0 | G59: =+IF($D$8="No",$D$7,VLOOKUP(D59,'4. Perfil de Uso'!$B$12:$AN$35,27+'0. Perfil de Uso'!B59)) -> 0 | H59: 4.1 | J59: =+IF('0. Ventilacion'!$C$21>2,0,IF($K$5="No",VLOOKUP(C59,'0. Infiltraciones'!$C$29:$D$40,2,0),HLOOKUP('0. Perfil de Uso'!C59,'4. Perfil de Uso'!$AS$11:$BD$35,D59+2,0))) -> 0 | K59: =+IF(AND($Q$8="Propuesto",'0. Ventilacion'!$C$21>2,'0. Ventilacion'!$C$22=2),(VLOOKUP(D59,'4. Perfil de Uso'!$BS$12:$BT$35,2,0)*'0. Perfil de Uso'!$D$2*$K$3*3600/1000)/$K$2+($D$3*$K$4*3600/1000)/$K$2,IF($Q$8="propuesto",VLOOKUP(C59,'0. Ventilacion'!$V$2:$W$13,2,0)-J59,$Q$2*$Q$3-J59)) -> 0.8262 | L59: =+IF(AND(M59=0,'0. Clima'!N59>=VLOOKUP('0. Perfil de Uso'!C59,'0. Clima'!$S$11:$V$22,3,0),'0. Clima'!N59<=VLOOKUP('0. Perfil de Uso'!C59,'0. Clima'!$S$11:$V$22,4,0)),$K$7,0) -> 0 | M59: =+IF(AND('0. Clima'!N59>'0. Perfil de Uso'!$K$6,OR(D59<7,D59>21)),$K$7,0) -> 0 | N59: 0.8262
B60: 3 | C60: Marzo | D60: 1 | E60: =+IF($D$8="No",$D$4*$D$2/$D$3,VLOOKUP(D60,'4. Perfil de Uso'!$B$12:$AN$35,1+'0. Perfil de Uso'!B60)) -> 4.1 | F60: =+IF($D$8="No",$D$6,VLOOKUP(D60,'4. Perfil de Uso'!$B$12:$AN$35,14+'0. Perfil de Uso'!B60)) -> 0 | G60: =+IF($D$8="No",$D$7,VLOOKUP(D60,'4. Perfil de Uso'!$B$12:$AN$35,27+'0. Perfil de Uso'!B60)) -> 0 | H60: 4.1 | J60: =+IF('0. Ventilacion'!$C$21>2,0,IF($K$5="No",VLOOKUP(C60,'0. Infiltraciones'!$C$29:$D$40,2,0),HLOOKUP('0. Perfil de Uso'!C60,'4. Perfil de Uso'!$AS$11:$BD$35,D60+2,0))) -> 0 | K60: =+IF(AND($Q$8="Propuesto",'0. Ventilacion'!$C$21>2,'0. Ventilacion'!$C$22=2),(VLOOKUP(D60,'4. Perfil de Uso'!$BS$12:$BT$35,2,0)*'0. Perfil de Uso'!$D$2*$K$3*3600/1000)/$K$2+($D$3*$K$4*3600/1000)/$K$2,IF($Q$8="propuesto",VLOOKUP(C60,'0. Ventilacion'!$V$2:$W$13,2,0)-J60,$Q$2*$Q$3-J60)) -> 0.8262 | L60: =+IF(AND(M60=0,'0. Clima'!N60>=VLOOKUP('0. Perfil de Uso'!C60,'0. Clima'!$S$11:$V$22,3,0),'0. Clima'!N60<=VLOOKUP('0. Perfil de Uso'!C60,'0. Clima'!$S$11:$V$22,4,0)),$K$7,0) -> 0 | M60: =+IF(AND('0. Clima'!N60>'0. Perfil de Uso'!$K$6,OR(D60<7,D60>21)),$K$7,0) -> 0 | N60: 0.8262
B61: 3 | C61: Marzo | D61: 2 | E61: =+IF($D$8="No",$D$4*$D$2/$D$3,VLOOKUP(D61,'4. Perfil de Uso'!$B$12:$AN$35,1+'0. Perfil de Uso'!B61)) -> 4.1 | F61: =+IF($D$8="No",$D$6,VLOOKUP(D61,'4. Perfil de Uso'!$B$12:$AN$35,14+'0. Perfil de Uso'!B61)) -> 0 | G61: =+IF($D$8="No",$D$7,VLOOKUP(D61,'4. Perfil de Uso'!$B$12:$AN$35,27+'0. Perfil de Uso'!B61)) -> 0 | H61: 4.1 | J61: =+IF('0. Ventilacion'!$C$21>2,0,IF($K$5="No",VLOOKUP(C61,'0. Infiltraciones'!$C$29:$D$40,2,0),HLOOKUP('0. Perfil de Uso'!C61,'4. Perfil de Uso'!$AS$11:$BD$35,D61+2,0))) -> 0 | K61: =+IF(AND($Q$8="Propuesto",'0. Ventilacion'!$C$21>2,'0. Ventilacion'!$C$22=2),(VLOOKUP(D61,'4. Perfil de Uso'!$BS$12:$BT$35,2,0)*'0. Perfil de Uso'!$D$2*$K$3*3600/1000)/$K$2+($D$3*$K$4*3600/1000)/$K$2,IF($Q$8="propuesto",VLOOKUP(C61,'0. Ventilacion'!$V$2:$W$13,2,0)-J61,$Q$2*$Q$3-J61)) -> 0.8262 | L61: =+IF(AND(M61=0,'0. Clima'!N61>=VLOOKUP('0. Perfil de Uso'!C61,'0. Clima'!$S$11:$V$22,3,0),'0. Clima'!N61<=VLOOKUP('0. Perfil de Uso'!C61,'0. Clima'!$S$11:$V$22,4,0)),$K$7,0) -> 0 | M61: =+IF(AND('0. Clima'!N61>'0. Perfil de Uso'!$K$6,OR(D61<7,D61>21)),$K$7,0) -> 0 | N61: 0.8262
B62: 3 | C62: Marzo | D62: 3 | E62: =+IF($D$8="No",$D$4*$D$2/$D$3,VLOOKUP(D62,'4. Perfil de Uso'!$B$12:$AN$35,1+'0. Perfil de Uso'!B62)) -> 4.1 | F62: =+IF($D$8="No",$D$6,VLOOKUP(D62,'4. Perfil de Uso'!$B$12:$AN$35,14+'0. Perfil de Uso'!B62)) -> 0 | G62: =+IF($D$8="No",$D$7,VLOOKUP(D62,'4. Perfil de Uso'!$B$12:$AN$35,27+'0. Perfil de Uso'!B62)) -> 0 | H62: 4.1 | J62: =+IF('0. Ventilacion'!$C$21>2,0,IF($K$5="No",VLOOKUP(C62,'0. Infiltraciones'!$C$29:$D$40,2,0),HLOOKUP('0. Perfil de Uso'!C62,'4. Perfil de Uso'!$AS$11:$BD$35,D62+2,0))) -> 0 | K62: =+IF(AND($Q$8="Propuesto",'0. Ventilacion'!$C$21>2,'0. Ventilacion'!$C$22=2),(VLOOKUP(D62,'4. Perfil de Uso'!$BS$12:$BT$35,2,0)*'0. Perfil de Uso'!$D$2*$K$3*3600/1000)/$K$2+($D$3*$K$4*3600/1000)/$K$2,IF($Q$8="propuesto",VLOOKUP(C62,'0. Ventilacion'!$V$2:$W$13,2,0)-J62,$Q$2*$Q$3-J62)) -> 0.8262 | L62: =+IF(AND(M62=0,'0. Clima'!N62>=VLOOKUP('0. Perfil de Uso'!C62,'0. Clima'!$S$11:$V$22,3,0),'0. Clima'!N62<=VLOOKUP('0. Perfil de Uso'!C62,'0. Clima'!$S$11:$V$22,4,0)),$K$7,0) -> 0 | M62: =+IF(AND('0. Clima'!N62>'0. Perfil de Uso'!$K$6,OR(D62<7,D62>21)),$K$7,0) -> 0 | N62: 0.8262
... 77 more rows

Sheet 0. Infiltraciones (hidden)
C2: Area [m²] | D2: Altura [m] | E2: Volumen [m3] | K2: Materialidad: | L2: Pi a 50 Pa (m3/h m2) | M2: Área (m2) | N2: Flujo a 50 Pa (m3/h) | O2: Coef de flujo (m3/ h Pan) | P2: Flujo a 50 Pa [m3/h a 50Pa] | R2: Total | S2: % total
B3: Piso 1 | C3: =+'CEV-CEVE'!D52 -> 80 | D3: =+'CEV-CEVE'!E52 -> 2.5 | E3: =+'CEV-CEVE'!F52 -> 200 | K3: =+IF(D12=0,D11,CONCATENATE(D11,"-",D12)) -> Pesado | L3: =+IFERROR(VLOOKUP(D11,'0. Tablas referencia'!CG11:CH17,2,0)*'0. Infiltraciones'!C11,0)+IFERROR(VLOOKUP('0. Infiltraciones'!D12,'0. Tablas referencia'!$CG$11:$CH$17,2,0)*'0. Infiltraciones'!C12,0) -> 6.4 | M3: =+C5 -> 80 | N3: =+M3*L3 -> 512 | O3: =N3/(POWER(50,0.65)) -> 40.26608984 | P3: =O3*POWER(50,0.65) -> 512 | R3: =+P3 -> 512 | S3: =+R3/SUM($R$3:$R$30) -> 0.4112871457
B4: Piso 2+… | C4: =+'CEV-CEVE'!D53+'CEV-CEVE'!D54 -> 0 | D4: =+'CEV-CEVE'!E53+'CEV-CEVE'!E54 -> 0 | E4: =+'CEV-CEVE'!F53+'CEV-CEVE'!F54 -> 0
B5: Total | C5: =+SUM(C3:C4) -> 80 | D5: =+SUM(D3:D4) -> 2.5 | E5: 200 | G5: Ventana | H5: Materialidad | I5: Tipo | J5: Tipo vidrio | K5: Concatenar | L5: Pi a 100 Pa (m3/h m2) | M5: Área | N5: Flujo a 100 Pa (m3/h) | O5: Coef de flujo (m3/ h Pan) | P5: Flujo a 50 Pa | T5: =+(POWER(50,0.65)) -> 12.71541394
G6: Ventana 1 | H6: =+IF($I$38>2,$H$50,'CEV-CEVE'!M103) -> PVC | I6: =+IF($I$38>2,$H$55,'CEV-CEVE'!H103) -> Corredera | J6: =+IF($I$38>2,"VS",IF('CEV-CEVE'!AB103<5,"DVH","VS")) -> DVH | K6: =+CONCATENATE(H6,I6,J6) -> PVCCorrederaDVH | L6: =+IFERROR(VLOOKUP(K6,'0. Tablas referencia'!$CQ$11:$CR$50,2,0),0) -> 46 | M6: =+'CEV-CEVE'!AH103 -> 6.25 | N6: =+L6*M6 -> 287.5 | O6: =N6/(POWER(100,0.65)) -> 14.40913297 | P6: =O6*POWER(50,0.65) -> 183.2180902 | T6: =+(POWER(100,0.65)) -> 19.95262315
B7: % incidencia | C7: Porcentajes | D7: Superficies [m2] | G7: Ventana 2 | H7: =+IF($I$38>2,$H$50,'CEV-CEVE'!M104) -> PVC | I7: =+IF($I$38>2,$H$55,'CEV-CEVE'!H104) -> Corredera | J7: =+IF($I$38>2,"VS",IF('CEV-CEVE'!AB104<5,"DVH","VS")) -> DVH | K7: PVCCorrederaDVH | L7: =+IFERROR(VLOOKUP(K7,'0. Tablas referencia'!$CQ$11:$CR$50,2,0),0) -> 46 | M7: =+'CEV-CEVE'!AH104 -> 6.25 | N7: =+L7*M7 -> 287.5 | O7: =N7/(POWER(100,0.65)) -> 14.40913297 | P7: =O7*POWER(50,0.65) -> 183.2180902 | T7: =50^(0.65) -> 12.71541394
B8: =+D8/SUM($D$8:$D$10) -> 0 | C8: =+'CEV-CEVE'!BW65 ->  | D8: =+SUMIFS('CEV-CEVE'!$H$66:$H$81,'CEV-CEVE'!$G$66:$G$81,C8) -> 0 | G8: Ventana 3 | H8: =+IF($I$38>2,$H$50,'CEV-CEVE'!M105) -> PVC | I8: =+IF($I$38>2,$H$55,'CEV-CEVE'!H105) -> Corredera | J8: =+IF($I$38>2,"VS",IF('CEV-CEVE'!AB105<5,"DVH","VS")) -> DVH | K8: PVCCorrederaDVH | L8: =+IFERROR(VLOOKUP(K8,'0. Tablas referencia'!$CQ$11:$CR$50,2,0),0) -> 46 | M8: =+'CEV-CEVE'!AH105 -> 6.25 | N8: 287.5 | O8: 14.40913297 | P8: 183.2180902
B9: =+D9/SUM($D$8:$D$10) -> 0 | C9: Intermedio | D9: =+SUMIFS('CEV-CEVE'!$H$66:$H$81,'CEV-CEVE'!$G$66:$G$81,C9) -> 0 | G9: Ventana 4 | H9: =+IF($I$38>2,$H$50,'CEV-CEVE'!M106) -> PVC | I9: =+IF($I$38>2,$H$55,'CEV-CEVE'!H106) -> Corredera | J9: =+IF($I$38>2,"VS",IF('CEV-CEVE'!AB106<5,"DVH","VS")) -> DVH | K9: PVCCorrederaDVH | L9: =+IFERROR(VLOOKUP(K9,'0. Tablas referencia'!$CQ$11:$CR$50,2,0),0) -> 46 | M9: =+'CEV-CEVE'!AH106 -> 6.25 | N9: 287.5 | O9: 14.40913297 | P9: 183.2180902
B10: =+D10/SUM($D$8:$D$10) -> 1 | C10: Pesado | D10: =+SUMIFS('CEV-CEVE'!$H$66:$H$81,'CEV-CEVE'!$G$66:$G$81,C10) -> 82.28730157 | G10: Ventana 5 | H10: =+IF($I$38>2,$H$50,'CEV-CEVE'!M107) -> 0 | I10: =+IF($I$38>2,$H$55,'CEV-CEVE'!H107) -> 0 | J10: =+IF($I$38>2,"VS",IF('CEV-CEVE'!AB107<5,"DVH","VS")) -> DVH | K10: 00DVH | L10: =+IFERROR(VLOOKUP(K10,'0. Tablas referencia'!$CQ$11:$CR$50,2,0),0) -> 0 | M10: =+'CEV-CEVE'!AH107 -> 0 | N10: 0 | O10: 0 | P10: 0
C11: =+LARGE(B8:B10,1) -> 1 | D11: =+VLOOKUP(C11,B8:C10,2,0) -> Pesado | G11: Ventana 6 | H11: =+IF($I$38>2,$H$50,'CEV-CEVE'!M108) -> 0 | I11: =+IF($I$38>2,$H$55,'CEV-CEVE'!H108) -> 0 | J11: =+IF($I$38>2,"VS",IF('CEV-CEVE'!AB108<5,"DVH","VS")) -> DVH | K11: 00DVH | L11: =+IFERROR(VLOOKUP(K11,'0. Tablas referencia'!$CQ$11:$CR$50,2,0),0) -> 0 | M11: =+'CEV-CEVE'!AH108 -> 0 | N11: 0 | O11: 0 | P11: 0
C12: =+IF(LARGE(B8:B10,2)>0.2,LARGE(B8:B10,2),0) -> 0 | D12: =+IF(C12=0,0,VLOOKUP(C12,B8:C10,2,0)) -> 0 | G12: Ventana 7 | H12: =+IF($I$38>2,$H$50,'CEV-CEVE'!M109) -> 0 | I12: =+IF($I$38>2,$H$55,'CEV-CEVE'!H109) -> 0 | J12: =+IF($I$38>2,"VS",IF('CEV-CEVE'!AB109<5,"DVH","VS")) -> DVH | K12: 00DVH | L12: =+IFERROR(VLOOKUP(K12,'0. Tablas referencia'!$CQ$11:$CR$50,2,0),0) -> 0 | M12: =+'CEV-CEVE'!AH109 -> 0 | N12: 0 | O12: 0 | P12: 0
G13: Ventana 8 | H13: =+IF($I$38>2,$H$50,'CEV-CEVE'!M110) -> 0 | I13: =+IF($I$38>2,$H$55,'CEV-CEVE'!H110) -> 0 | J13: =+IF($I$38>2,"VS",IF('CEV-CEVE'!AB110<5,"DVH","VS")) -> DVH | K13: 00DVH | L13: =+IFERROR(VLOOKUP(K13,'0. Tablas referencia'!$CQ$11:$CR$50,2,0),0) -> 0 | M13: =+'CEV-CEVE'!AH110 -> 0 | N13: 0 | O13: 0 | P13: 0
G14: Ventana 9 | H14: =+IF($I$38>2,$H$50,'CEV-CEVE'!M111) -> 0 | I14: =+IF($I$38>2,$H$55,'CEV-CEVE'!H111) -> 0 | J14: =+IF($I$38>2,"VS",IF('CEV-CEVE'!AB111<5,"DVH","VS")) -> DVH | K14: 00DVH | L14: =+IFERROR(VLOOKUP(K14,'0. Tablas referencia'!$CQ$11:$CR$50,2,0),0) -> 0 | M14: =+'CEV-CEVE'!AH111 -> 0 | N14: 0 | O14: 0 | P14: 0
B15: Permeabilidad a 50 Pa Cálculo teórico | D15: =+SUM(R3:R30)/E5 -> 6.224361804 | E15: [Ren/h a 50Pa] | G15: Ventana 10 | H15: =+IF($I$38>2,$H$50,'CEV-CEVE'!M112) -> 0 | I15: =+IF($I$38>2,$H$55,'CEV-CEVE'!H112) -> 0 | J15: =+IF($I$38>2,"VS",IF('CEV-CEVE'!AB112<5,"DVH","VS")) -> DVH | K15: 00DVH | L15: =+IFERROR(VLOOKUP(K15,'0. Tablas referencia'!$CQ$11:$CR$50,2,0),0) -> 0 | M15: =+'CEV-CEVE'!AH112 -> 0 | N15: 0 | O15: 0 | P15: 0
B16: Permeabilidad según ensayo | D16: =+IF('CEV-CEVE'!F219<>0,'CEV-CEVE'!F219,0) -> 0 | E16: [Ren/h a 50Pa] | G16: Ventana 11 | H16: =+IF($I$38>2,$H$50,'CEV-CEVE'!M113) -> 0 | I16: =+IF($I$38>2,$H$55,'CEV-CEVE'!H113) -> 0 | J16: =+IF($I$38>2,"VS",IF('CEV-CEVE'!AB113<5,"DVH","VS")) -> DVH | K16: 00DVH | L16: =+IFERROR(VLOOKUP(K16,'0. Tablas referencia'!$CQ$11:$CR$50,2,0),0) -> 0 | M16: =+'CEV-CEVE'!AH113 -> 0 | N16: 0 | O16: 0 | P16: 0
B17: Ductos de ventilación | D17: =+'CEV-CEVE'!F221 -> 0 | E17: [un] | G17: Ventana 12 | H17: =+IF($I$38>2,$H$50,'CEV-CEVE'!M114) -> 0 | I17: =+IF($I$38>2,$H$55,'CEV-CEVE'!H114) -> 0 | J17: =+IF($I$38>2,"VS",IF('CEV-CEVE'!AB114<5,"DVH","VS")) -> DVH | K17: 00DVH | L17: =+IFERROR(VLOOKUP(K17,'0. Tablas referencia'!$CQ$11:$CR$50,2,0),0) -> 0 | M17: =+'CEV-CEVE'!AH114 -> 0 | N17: 0 | O17: 0 | P17: 0
B18: Celosías de ventilación | D18: =+'CEV-CEVE'!F223 -> 0 | E18: [un] | G18: Ventana 13 | H18: =+IF($I$38>2,$H$50,'CEV-CEVE'!M115) -> 0 | I18: =+IF($I$38>2,$H$55,'CEV-CEVE'!H115) -> 0 | J18: =+IF($I$38>2,"VS",IF('CEV-CEVE'!AB115<5,"DVH","VS")) -> DVH | K18: 00DVH | L18: =+IFERROR(VLOOKUP(K18,'0. Tablas referencia'!$CQ$11:$CR$50,2,0),0) -> 0 | M18: =+'CEV-CEVE'!AH115 -> 0 | N18: 0 | O18: 0 | P18: 0
B19: Pemeabilidad a utilizar | D19: =+IF(D16=0,D15,D16)+250*SQRT(D17)/E5+250*SQRT(1.5*D18)/E5 -> 6.224361804 | E19: [Ren/h a 50Pa] | G19: Ventana 14 | H19: =+IF($I$38>2,$H$50,'CEV-CEVE'!M116) -> 0 | I19: =+IF($I$38>2,$H$55,'CEV-CEVE'!H116) -> 0 | J19: =+IF($I$38>2,"VS",IF('CEV-CEVE'!AB116<5,"DVH","VS")) -> DVH | K19: 00DVH | L19: =+IFERROR(VLOOKUP(K19,'0. Tablas referencia'!$CQ$11:$CR$50,2,0),0) -> 0 | M19: =+'CEV-CEVE'!AH116 -> 0 | N19: 0 | O19: 0 | P19: 0
G20: Ventana 15 | H20: =+IF($I$38>2,$H$50,'CEV-CEVE'!M117) -> 0 | I20: =+IF($I$38>2,$H$55,'CEV-CEVE'!H117) -> 0 | J20: =+IF($I$38>2,"VS",IF('CEV-CEVE'!AB117<5,"DVH","VS")) -> DVH | K20: 00DVH | L20: =+IFERROR(VLOOKUP(K20,'0. Tablas referencia'!$CQ$11:$CR$50,2,0),0) -> 0 | M20: =+'CEV-CEVE'!AH117 -> 0 | N20: 0 | O20: 0 | P20: 0
B21: Zona térmica | C21: =+'0. Clima'!M2 -> I | G21: Ventana 16 | H21: =+IF($I$38>2,$H$50,'CEV-CEVE'!M118) -> 0 | I21: =+IF($I$38>2,$H$55,'CEV-CEVE'!H118) -> 0 | J21: =+IF($I$38>2,"VS",IF('CEV-CEVE'!AB118<5,"DVH","VS")) -> DVH | K21: 00DVH | L21: =+IFERROR(VLOOKUP(K21,'0. Tablas referencia'!$CQ$11:$CR$50,2,0),0) -> 0 | M21: =+'CEV-CEVE'!AH118 -> 0 | N21: 0 | O21: 0 | P21: 0
B22: K1 | C22: =+VLOOKUP($C$21,'0. Tablas referencia'!CW11:CX20,2,0) -> 1.91 | G22: Ventana 17 | H22: =+IF($I$38>2,$H$50,'CEV-CEVE'!M119) -> 0 | I22: =+IF($I$38>2,$H$55,'CEV-CEVE'!H119) -> 0 | J22: =+IF($I$38>2,"VS",IF('CEV-CEVE'!AB119<5,"DVH","VS")) -> DVH | K22: 00DVH | L22: =+IFERROR(VLOOKUP(K22,'0. Tablas referencia'!$CQ$11:$CR$50,2,0),0) -> 0 | M22: =+'CEV-CEVE'!AH119 -> 0 | N22: 0 | O22: 0 | P22: 0
B23: K2 | C23: =+IF(C4=0,1,VLOOKUP($C$21,'0. Tablas referencia'!$CW$11:$CY$20,3,0)) -> 1 | G23: Ventana 18 | H23: =+IF($I$38>2,$H$50,'CEV-CEVE'!M120) -> 0 | I23: =+IF($I$38>2,$H$55,'CEV-CEVE'!H120) -> 0 | J23: =+IF($I$38>2,"VS",IF('CEV-CEVE'!AB120<5,"DVH","VS")) -> DVH | K23: 00DVH | L23: =+IFERROR(VLOOKUP(K23,'0. Tablas referencia'!$CQ$11:$CR$50,2,0),0) -> 0 | M23: =+'CEV-CEVE'!AH120 -> 0 | N23: 0 | O23: 0 | P23: 0
B24: K3 | C24: =+IF(D19=0,1,VLOOKUP($C$21,'0. Tablas referencia'!$CW$11:$CZ$20,4,0)) -> 1.04 | G24: Ventana 19 | H24: =+IF($I$38>2,$H$50,'CEV-CEVE'!M121) -> 0 | I24: =+IF($I$38>2,$H$55,'CEV-CEVE'!H121) -> 0 | J24: =+IF($I$38>2,"VS",IF('CEV-CEVE'!AB121<5,"DVH","VS")) -> DVH | K24: 00DVH | L24: =+IFERROR(VLOOKUP(K24,'0. Tablas referencia'!$CQ$11:$CR$50,2,0),0) -> 0 | M24: =+'CEV-CEVE'!AH121 -> 0 | N24: 0 | O24: 0 | P24: 0
B25: K4 invierno | C25: 1 | G25: Ventana 20 | H25: =+IF($I$38>2,$H$50,'CEV-CEVE'!M122) -> 0 | I25: =+IF($I$38>2,$H$55,'CEV-CEVE'!H122) -> 0 | J25: =+IF($I$38>2,"VS",IF('CEV-CEVE'!AB122<5,"DVH","VS")) -> DVH | K25: 00DVH | L25: =+IFERROR(VLOOKUP(K25,'0. Tablas referencia'!$CQ$11:$CR$50,2,0),0) -> 0 | M25: =+'CEV-CEVE'!AH122 -> 0 | N25: 0 | O25: 0 | P25: 0 | R25: =+SUM(P6:P25) -> 732.8723607 | S25: =+R25/SUM($R$3:$R$30) -> 0.5887128543
B26: K4 Verano | C26: =+VLOOKUP($C$21,'0. Tablas referencia'!$CW$11:$DA$20,5,0) -> 0.83
B27: K 50Pa a RAH normal | C27: 20.8 | L27: Pi a 100 Pa (m3/h m2) | M27: Área | N27: Flujo a 100 Pa (m3/h) | O27: Coef de flujo (m3/ h Pan) | P27: Flujo a 50 Pa
F28: Temporada | J28: Puerta1 | K28: =+IF($I$38>2,$H$44,'CEV-CEVE'!H96) -> Madera Solida | L28: =+IFERROR(VLOOKUP(K28,'0. Tablas referencia'!$CT$11:$CU$13,2,0),0) -> 120 | M28: =+'CEV-CEVE'!AB96 -> 0 | N28: =+M28*L28 -> 0 | O28: =N28/(POWER(100,0.65)) -> 0 | P28: =O28*POWER(50,0.65) -> 0
C29: Enero | D29: =+$D$19/$C$27*$C$22*$C$23*$C$24*IF(F29="V",$C$26,$C$25) -> 0.5944265522 | E29: [RAH] | F29: =+'0. Inercia Termica'!X102 -> i | J29: Puerta 2 | K29: =+IF($I$38>2,$H$44,'CEV-CEVE'!H97) -> Madera Solida | L29: =+IFERROR(VLOOKUP(K29,'0. Tablas referencia'!$CT$11:$CU$13,2,0),0) -> 120 | M29: =+'CEV-CEVE'!AB97 -> 0 | N29: =+M29*L29 -> 0 | O29: =N29/(POWER(100,0.65)) -> 0 | P29: =O29*POWER(50,0.65) -> 0
C30: Febrero | D30: =+$D$19/$C$27*$C$22*$C$23*$C$24*IF(F30="V",$C$26,$C$25) -> 0.5944265522 | E30: [RAH] | F30: =+'0. Inercia Termica'!X103 -> i | J30: Puerta 3 | K30: =+IF($I$38>2,$H$44,'CEV-CEVE'!H98) -> 0 | L30: =+IFERROR(VLOOKUP(K30,'0. Tablas referencia'!$CT$11:$CU$13,2,0),0) -> 0 | M30: =+'CEV-CEVE'!AB98 -> 0 | N30: 0 | O30: 0 | P30: 0 | R30: =+SUM(P28:P30) -> 0 | S30: =+R30/SUM($R$3:$R$30) -> 0
C31: Marzo | D31: 0.5944265522 | E31: [RAH] | F31: =+'0. Inercia Termica'!X104 -> i
C32: Abril | D32: 0.5944265522 | E32: [RAH] | F32: =+'0. Inercia Termica'!X105 -> i
C33: Mayo | D33: 0.5944265522 | E33: [RAH] | F33: =+'0. Inercia Termica'!X106 -> i
C34: Junio | D34: 0.5944265522 | E34: [RAH] | F34: =+'0. Inercia Termica'!X107 -> i
C35: Julio | D35: 0.5944265522 | E35: [RAH] | F35: =+'0. Inercia Termica'!X108 -> i
C36: Agosto | D36: 0.5944265522 | E36: [RAH] | F36: =+'0. Inercia Termica'!X109 -> i
C37: Septiembre | D37: 0.5944265522 | E37: [RAH] | F37: =+'0. Inercia Termica'!X110 -> i | H37: Dependen si es Caso Base
C38: Octubre | D38: 0.5944265522 | E38: [RAH] | F38: =+'0. Inercia Termica'!X111 -> i | H38: Caso a correr: | I38: =+'0. Datos Arq Motor'!C33 -> 1
C39: Noviembre | D39: 0.5944265522 | E39: [RAH] | F39: =+'0. Inercia Termica'!X112 -> i
C40: Diciembre | D40: 0.5944265522 | E40: [RAH] | F40: =+'0. Inercia Termica'!X113 -> i
H42: Materialidad Puertas
H43: =+'0. Tablas referencia'!AX11 -> Madera Solida
H44: =+'0. Tablas referencia'!AX12 -> Madera Liviana
H45: =+'0. Tablas referencia'!AX13 -> Aluminio
H47: Materialidad Marcos
H48: =+'0. Tablas referencia'!AZ11 -> Madera
H49: =+'0. Tablas referencia'!AZ12 -> PVC
H50: =+'0. Tablas referencia'!AZ13 -> Metalico
H51: =+'0. Tablas referencia'!AZ14 -> Fierro
H53: Cierre ventanas
H54: =+'0. Tablas referencia'!BB11 -> Abatir
H55: =+'0. Tablas referencia'!BB12 -> Corredera
H56: =+'0. Tablas referencia'!BB13 -> Guillotina
H57: =+'0. Tablas referencia'!BB14 -> Proyectante
H58: =+'0. Tablas referencia'!BB15 -> Fija

Sheet 0.FAV parámetros 1 (hidden)
A2: Declinación día medio | E2: Datos | T2: Inclinación - α (ϴz)
A3: Mes | B3: n̅ | C3: δ̅ (º) | E3: comuna | F3: =+'CEV-CEVE'!E9 -> Chile Chico | T3: 0 | U3: 1 | V3: 2 | W3: 3 | X3: 4 | Y3: 5 | Z3: 6 | AA3: 7 | AB3: 8 | AC3: 9 | AD3: 10 | AE3: 11 | AF3: 12 | AG3: 13 | AH3: 14 | AI3: 15 | AJ3: 16 | AK3: 17 | AL3: 18 | AM3: 19 | AN3: 20 | AO3: 21 | AP3: 22 | AQ3: 23
A4: Enero | B4: 17 | C4: =23.45*SIN(RADIANS(360*(284+B4)/365)) -> -20.91696257 | E4: región | F4: =+'CEV-CEVE'!E8 -> XI_Región_de_Aisén | S4: =+A4 -> Enero | T4: =90-DEGREES(ACOS(SIN(RADIANS($F$5))*SIN(RADIANS(T50))+COS(RADIANS($F$5))*COS(RADIANS(T50))*COS(RADIANS(T65)))) -> -22.3028553 | U4: -20.96685325 | V4: -17.09997536 | W4: -11.0980031 | X4: -3.445244827 | Y4: 5.400305065 | Z4: 15.04772083 | AA4: 25.16016319 | AB4: 35.4087981 | AC4: 45.38743353 | AD4: 54.4403919 | AE4: 61.32872394 | AF4: 64.04476209 | AG4: 61.31435221 | AH4: 54.41538691 | AI4: 45.35381995 | AJ4: 35.36635165 | AK4: 25.10736846 | AL4: 14.98228469 | AM4: 5.31939445 | AN4: -3.544759142 | AO4: -11.2190545 | AP4: -17.24435326 | AQ4: -21.13387216
A5: Febrero | B5: 47 | C5: =23.45*SIN(RADIANS(360*(284+B5)/365)) -> -12.95460809 | E5: Latitud φ | F5: =+VLOOKUP(F3,'0. Tablas referencia'!$U$12:$AJ$357,16,) -> -46.78018213 | S5: =+A5 -> Febrero | T5: -30.26520978 | U5: -28.78167017 | V5: -24.51966055 | W5: -18.00720545 | X5: -9.851161479 | Y5: -0.5890210811 | Z5: 9.3417027 | AA5: 19.5691072 | AB5: 29.72304187 | AC5: 39.34131404 | AD5: 47.72353198 | AE5: 53.75310874 | AF5: 56.00570616 | AG5: 53.72620541 | AH5: 47.67497771 | AI5: 39.27533052 | AJ5: 29.64061306 | AK5: 19.46866488 | AL5: 9.219867365 | AM5: -0.7370540055 | AN5: -10.03128043 | AO5: -18.22558809 | AP5: -24.78087431 | AQ5: -29.08543118
A6: Marzo | B6: 75 | C6: -2.417734805 | E6: Gsc | F6: 1353 | S6: Marzo | T6: -40.80208307 | U6: -39.07636701 | V6: -34.20973092 | W6: -26.98191323 | X6: -18.19309867 | Y6: -8.47707951 | Z6: 1.68849775 | AA6: 11.90848456 | AB6: 21.78765394 | AC6: 30.84214345 | AD6: 38.40460419 | AE6: 43.57982477 | AF6: 45.43670466 | AG6: 43.54735325 | AH6: 38.34435239 | AI6: 30.75916309 | AJ6: 21.68455351 | AK6: 11.78507386 | AL6: 1.54212367 | AM6: -8.651331354 | AN6: -18.40231268 | AO6: -27.23481362 | AP6: -34.51444895 | AQ6: -39.43495981
A7: Abril | B7: 105 | C7: 9.414893347 | E7: Inclinación β | F7: 90 | G7: W/m2C | S7: Abril | T7: -52.63471122 | U7: -50.5272422 | V7: -44.79778585 | W7: -36.68582115 | X7: -27.23926065 | Y7: -17.15668453 | Z7: -6.913236133 | AA7: 3.109121666 | AB7: 12.52787069 | AC7: 20.88946468 | AD7: 27.62387442 | AE7: 32.06649678 | AF7: 33.62042064 | AG7: 32.03648358 | AH7: 27.56725723 | AI7: 20.81071412 | AJ7: 12.43034548 | AK7: 2.994158814 | AL7: -7.04654102 | AM7: -17.31166257 | AN7: -27.42207039 | AO7: -36.90582103 | AP7: -45.06641582 | AQ7: -50.85136666
A8: Mayo | B8: 135 | C8: 18.79191752 | E8: Albedo ρ | F8: 0.2 | S8: Mayo | T8: -62.01173539 | U8: -59.43324701 | V8: -52.7842362 | W8: -43.90327813 | X8: -34.00754188 | Y8: -23.77170159 | Z8: -13.61948193 | AA8: -3.891754051 | AB8: 5.06466893 | AC8: 12.84622102 | AD8: 18.9748264 | AE8: 22.93720424 | AF8: 24.30786313 | AG8: 22.91768631 | AH8: 18.93774546 | AI8: 12.79442973 | AJ8: 5.000746125 | AK8: -3.966200881 | AL8: -13.70414818 | AM8: -23.86787847 | AN8: -34.11864016 | AO8: -44.03570975 | AP8: -52.94804379 | AQ8: -59.6382271
A9: Junio | B9: 162 | C9: 23.085911 | S9: Junio | T9: -66.30572888 | U9: -63.41335478 | V9: -56.23758408 | W9: -46.99262071 | X9: -36.92956869 | Y9: -26.67584633 | Z9: -16.61555015 | AA9: -7.06304441 | AB9: 1.656622047 | AC9: 9.167016556 | AD9: 15.03214542 | AE9: 18.79812186 | AF9: 20.09933376 | AG9: 18.79260171 | AH9: 15.02163639 | AI9: 9.152325135 | AJ9: 1.638527611 | AK9: -7.08399031 | AL9: -16.63913348 | AM9: -26.70228944 | AN9: -36.95970497 | AO9: -47.02822833 | AP9: -56.28183106 | AQ9: -63.4701046
A10: Julio | B10: 198 | C10: 21.18369356 | S10: Julio | T10: -64.40351144 | U10: -61.64794746 | V10: -54.70574513 | W10: -45.6143838 | X10: -35.61357975 | Y10: -25.35385177 | Z10: -15.23735284 | AA10: -5.590201811 | AB10: 3.252850748 | AC10: 10.90295761 | AD10: 16.90457258 | AE10: 20.77605199 | AF10: 22.12347398 | AG10: 20.79047432 | AH10: 16.93200414 | AI10: 10.94129239 | AJ10: 3.300115793 | AK10: -5.535324683 | AL10: -15.17525873 | AM10: -25.2837728 | AN10: -35.5331596 | AO10: -45.51890957 | AP10: -54.58733786 | AQ10: -61.49799003
A11: Agosto | B11: 228 | C11: 13.45495968 | S11: Agosto | T11: -56.67477756 | U11: -54.3643713 | V11: -48.25051486 | W11: -39.79683276 | X11: -30.12962285 | Y11: -19.94590074 | Z11: -9.702818449 | AA11: 0.233587179 | AB11: 9.494852621 | AC11: 17.64716183 | AD11: 24.15796519 | AE11: 28.42670607 | AF11: 29.93066169 | AG11: 28.45385349 | AH11: 24.20934493 | AI11: 17.71877091 | AJ11: 9.583430627 | AK11: 0.3375187112 | AL11: -9.583187045 | AM11: -19.80799121 | AN11: -29.96811227 | AO11: -39.6029849 | AP11: -48.01260667 | AQ11: -54.07384054
A12: Septiembre | B12: 258 | C12: 2.216886783 | S12: Septiembre | T12: -45.43670466 | U12: -43.54735325 | V12: -38.34435239 | W12: -30.75916309 | X12: -21.68455351 | Y12: -11.78507386 | Z12: -1.54212367 | AA12: 8.651331354 | AB12: 18.40231268 | AC12: 27.23481362 | AD12: 34.51444895 | AE12: 39.43495981 | AF12: 41.20394334 | AG12: 39.46757987 | AH12: 34.57541284 | AI12: 27.3191264 | AJ12: 18.50694077 | AK12: 8.775854374 | AL12: -1.395626461 | AM12: -11.61208613 | AN12: -21.47804058 | AO12: -30.50982997 | AP12: -38.0426844 | AQ12: -43.18981849
A13: Octubre | B13: 288 | C13: -9.599397234 | S13: Octubre | T13: -33.62042064 | U13: -32.03648358 | V13: -27.56725723 | W13: -20.81071412 | X13: -12.43034548 | Y13: -2.994158814 | Z13: 7.04654102 | AA13: 17.31166257 | AB13: 27.42207039 | AC13: 36.90582103 | AD13: 45.06641582 | AE13: 50.85136666 | AF13: 53.00300785 | AG13: 50.88070851 | AH13: 45.11988675 | AI13: 36.97878801 | AJ13: 27.51302853 | AK13: 17.4218565 | AL13: 7.179291556 | AM13: -2.833822978 | AN13: -12.23599277 | AO13: -20.57529536 | AP13: -27.28520136 | AQ13: -31.70759956
A14: Noviembre | B14: 318 | C14: -18.91195474 | S14: Noviembre | T14: -24.30786313 | U14: -22.91768631 | V14: -18.93774546 | W14: -12.79442973 | X14: -5.000746125 | Y14: 3.966200881 | Z14: 13.70414818 | AA14: 23.86787847 | AB14: 34.11864016 | AC14: 44.03570975 | AD14: 52.94804379 | AE14: 59.6382271 | AF14: 62.25040881 | AG14: 59.65663385 | AH14: 52.98038492 | AI14: =90-DEGREES(ACOS(SIN(RADIANS($F$5))*SIN(RADIANS(AI60))+COS(RADIANS($F$5))*COS(RADIANS(AI60))*COS(RADIANS(AI75)))) -> 44.07928041 | AJ14: 34.17347868 | AK14: 23.9357202 | AL14: 13.78778772 | AM14: 4.069190073 | AN14: -4.874396634 | AO14: -12.64086623 | AP14: -18.75450759 | AQ14: -22.70551288
A15: Diciembre | B15: 344 | C15: -23.04962764 | S15: Diciembre | T15: =90-DEGREES(ACOS(SIN(RADIANS($F$5))*SIN(RADIANS(T61))+COS(RADIANS($F$5))*COS(RADIANS(T61))*COS(RADIANS(T76)))) -> -20.17019023 | U15: -18.86192477 | V15: -15.0873562 | W15: -9.213326564 | X15: -1.694647487 | Y15: 7.03223028 | Z15: 16.59076643 | AA15: 26.65599468 | AB15: 36.91372975 | AC15: 46.98014322 | AD15: 56.22828141 | AE15: 63.40793267 | AF15: 66.30572888 | AG15: 63.41335478 | AH15: 56.23758408 | AI15: 46.99262071 | AJ15: 36.92956869 | AK15: 26.67584633 | AL15: 16.61555015 | AM15: 7.06304441 | AN15: -1.656622047 | AO15: -9.167016556 | AP15: -15.03214542 | AQ15: -18.79812186
A17: Horario Puesta y Salida Sol
A18: Mes | B18: ωsº | C18: ωrº | T18: Azimut ϒs
A19: Enero | B19: =DEGREES(ACOS(-TAN(RADIANS($F$5))*TAN(RADIANS(C4)))) -> 113.9990766 | C19: =DEGREES(-ACOS(-TAN(RADIANS($F$5))*TAN(RADIANS(C4)))) -> -113.9990766 | D19: =+B19-C19 -> 227.9981533 | E19: =+D19/15 -> 15.19987689 | T19: 0 | U19: 1 | V19: 2 | W19: 3 | X19: 4 | Y19: 5 | Z19: 6 | AA19: 7 | AB19: 8 | AC19: 9 | AD19: 10 | AE19: 11 | AF19: 12 | AG19: 13 | AH19: 14 | AI19: 15 | AJ19: 16 | AK19: 17 | AL19: 18 | AM19: 19 | AN19: 20 | AO19: 21 | AP19: 22 | AQ19: 23
A20: Febrero | B20: 104.1695106 | C20: =DEGREES(-ACOS(-TAN(RADIANS($F$5))*TAN(RADIANS(C5)))) -> -104.1695106 | D20: =+B20-C20 -> 208.3390212 | E20: =+D20/15 -> 13.88926808 | S20: =+S4 -> Enero | T20: =(T95*T110*T140+T125*((1-T95*T110)/2)*180)*-1 -> 180 | U20: =(U95*U110*U140+U125*((1-U95*U110)/2)*180)*-1 -> 164.9941037 | V20: 150.7447776 | W20: 137.6856689 | X20: 125.8470919 | Y20: 114.9707736 | Z20: 104.6334669 | AA20: 94.2859193 | AB20: 83.18665877 | AC20: 70.20514248 | AD20: 53.46770024 | AE20: 30.27705788 | AF20: 0 | AG20: -30.26515578 | AH20: -53.43640498 | AI20: -70.15962184 | AJ20: -83.13146092 | AK20: -94.22351317 | AL20: -104.5653522 | AM20: -114.898536 | AN20: -125.7734453 | AO20: -137.6156493 | AP20: -150.6867689 | AQ20: -164.9594865
A21: Marzo | B21: 92.5752373 | C21: -92.5752373 | D21: 185.1504746 | E21: 12.34336497 | S21: =+S5 -> Febrero | T21: =(T96*T111*T141+T126*((1-T96*T111)/2)*180)*-1 -> 180 | U21: 163.2736842 | V21: 147.6131668 | W21: 133.5540695 | X21: 121.0401399 | Y21: 109.6685632 | Z21: 98.89280973 | AA21: 88.08363431 | AB21: 76.47885168 | AC21: 63.06012785 | AD21: 46.44828144 | AE21: 25.26839671 | AF21: 0 | AG21: -25.25410931 | AH21: -46.40564881 | AI21: -62.99170398 | AJ21: -76.39022535 | AK21: -87.97865054 | AL21: -98.77385111 | AM21: -109.5379764 | AN21: -120.9022413 | AO21: -133.4180226 | AP21: -147.4962803 | AQ21: -163.2019062
A22: Abril | B22: 79.83673105 | C22: -79.83673105 | D22: 159.6734621 | E22: 10.64489747 | S22: Marzo | T22: 180 | U22: 160.5426347 | V22: 142.8371591 | W22: 127.5520873 | X22: 114.3798024 | Y22: 102.6345645 | Z22: 91.58736689 | AA22: 80.53129815 | AB22: 68.73414388 | AC22: 55.3791318 | AD22: 39.60960344 | AE22: 20.91660885 | AF22: 0 | AG22: -20.90530438 | AH22: -39.57229015 | AI22: -55.31319488 | AJ22: -68.64207448 | AK22: -80.41566663 | AL22: -91.44965932 | AM22: -102.4759867 | AN22: -114.2035447 | AO22: -127.3678975 | AP22: -142.6688875 | AQ22: -160.433742
A23: Mayo | B23: 68.77077575 | C23: -68.77077575 | D23: 137.5415515 | E23: 9.169436766 | S23: Abril | T23: 180 | U23: 156.3198275 | V23: 135.9671437 | W23: 119.5681742 | X23: 106.1057089 | Y23: 94.38759942 | Z23: 83.45761902 | AA23: 72.55784077 | AB23: 61.03124045 | AC23: 48.27590721 | AD23: 33.81243444 | AE23: 17.52684811 | AF23: 0 | AG23: -17.5192758 | AH23: -33.78567463 | AI23: -48.22485451 | AJ23: -60.95486706 | AK23: -72.45604478 | AL23: -83.32962301 | AM23: -94.23181424 | AN23: -105.921201 | AO23: -119.3595857 | AP23: -135.7574638 | AQ23: -156.1707376
A24: Junio | B24: 63.02569364 | C24: -63.02569364 | D24: 126.0513873 | E24: 8.403425818 | S24: Mayo | T24: 180 | U24: 151.1979338 | V24: 128.5068284 | W24: 111.7335929 | X24: 98.58959954 | Y24: 87.32812792 | Z24: 76.83954241 | AA24: 66.37209355 | AB24: 55.35422826 | AC24: 43.3325066 | AD24: 30.01639997 | AE24: 15.41953511 | AF24: 0 | AG24: -15.41537917 | AH24: -30.00117266 | AI24: -43.30211699 | AJ24: -55.30667979 | AK24: -66.30600167 | AL24: -76.75299162 | AM24: -87.21808551 | AN24: -98.452098 | AO24: -111.5662519 | AP24: -128.319955 | AQ24: -151.0470775
A25: Julio | B25: 65.64369858 | C25: -65.64369858 | D25: 131.2873972 | E25: 8.752493144 | S25: Junio | T25: 180 | U25: 147.8608082 | V25: 124.1470501 | W25: 107.523901 | X25: 94.77277749 | Y25: 83.8846548 | Z25: 73.71481482 | AA25: 63.53814943 | AB25: 52.83201053 | AC25: 41.20594912 | AD25: 28.43449254 | AE25: 14.56323128 | AF25: 0 | AG25: -14.56211991 | AH25: -28.43036697 | AI25: -41.19757353 | AJ25: -52.81866881 | AK25: -63.51927771 | AL25: -73.68966629 | AM25: -83.85205949 | AN25: -94.73103756 | AO25: -107.4712277 | AP25: -124.0846808 | AQ25: -147.8060029
A26: Agosto | B26: 75.25034134 | C26: -75.25034134 | D26: 150.5006827 | E26: 10.03337885 | S26: Julio | T26: 180 | U26: 149.4554991 | V26: 126.1971853 | W26: 109.485439 | X26: 96.54575673 | Y26: 85.4843995 | Z26: 75.16878161 | AA26: 64.85957865 | AB26: 54.01058002 | AC26: 42.20165257 | AD26: 29.17686612 | AE26: 14.96644611 | AF26: 0 | AG26: -14.96942452 | AH26: -29.18785557 | AI26: -42.22378508 | AJ26: -54.0455389 | AK26: -64.90861968 | AL26: -75.23359325 | AM26: -85.56763438 | AN26: -96.6510953 | AO26: -109.6160493 | AP26: -126.3474057 | AQ26: -149.5818704
A27: Septiembre | B27: 87.63904505 | C27: -87.63904505 | D27: 175.2780901 | E27: 11.68520601 | S27: Agosto | T27: 180 | U27: 154.4017133 | V27: 133.082908 | W27: 116.462788 | X27: 103.0809065 | Y27: 91.5207882 | Z27: 80.75387765 | AA27: 70.01792666 | AB27: 58.68763629 | AC27: 46.22249291 | AD27: 32.22584882 | AE27: 16.6429776 | AF27: 0 | AG27: -16.64933101 | AH27: -32.2486566 | AI27: -46.26684815 | AJ27: -58.7552419 | AK27: -70.10959561 | AL27: -80.87104558 | AM27: -91.66589591 | AN27: -103.2564094 | AO27: -116.6668301 | AP27: -133.2959507 | AQ27: -154.5597808
A28: Octubre | B28: 100.3684003 | C28: -100.3684003 | D28: 200.7368006 | E28: 13.38245337 | S28: Septiembre | T28: 180 | U28: 159.0946956 | V28: 140.4277098 | W28: 124.6868051 | X28: 111.3579255 | Y28: 99.58433337 | Z28: 88.55034068 | AA28: 77.5240133 | AB28: 65.79645528 | AC28: 52.63210251 | AD28: 37.3311125 | AE28: 19.566258 | AF28: 0 | AG28: -19.57622069 | AH28: -37.36494096 | AI28: -52.69373329 | AJ28: -65.88481379 | AK28: -77.63746156 | AL28: -88.68813674 | AM28: -99.74616898 | AN28: -111.5418125 | AO28: -124.8840886 | AP28: -140.613493 | AQ28: -159.2183417
A29: Noviembre | B29: 111.3823175 | C29: -111.3823175 | D29: 222.764635 | E29: 14.85097567 | S29: Octubre | T29: 180 | U29: 162.4807242 | V29: 146.2143254 | W29: 131.7751455 | X29: 119.0451329 | Y29: 107.5439552 | Z29: 96.67037699 | AA29: 85.76818576 | AB29: 74.07879896 | AC29: 60.64041426 | AD29: 44.24253621 | AE29: 23.82926241 | AF29: 0 | AG29: -23.84286556 | AH29: -44.28454431 | AI29: -60.70993895 | AJ29: -74.17092132 | AK29: -85.87918713 | AL29: -96.79794718 | AM29: -107.6858782 | AN29: -119.1971133 | AO29: -131.9273888 | AP29: -146.3471925 | AQ29: -162.5633709
A30: Diciembre | B30: 116.9231361 | C30: -116.9231361 | D30: 233.8462721 | E30: 15.58975148 | S30: Noviembre | T30: 180 | U30: 164.5846208 | V30: 149.9988273 | W30: 136.697883 | X30: 124.6933202 | Y30: 113.6939983 | Z30: 103.2470084 | AA30: 92.78191449 | AB30: 81.547902 | AC30: 68.43374809 | AD30: 51.68004499 | AE30: 28.9529225 | AF30: 0 | AG30: -28.96656551 | AH30: -51.71714729 | AI30: -68.48903557 | AJ30: -81.6159767 | AK30: -92.85968908 | AL30: -103.3326011 | AM30: -113.7854568 | AN30: -124.7872696 | AO30: -136.7879045 | AP30: -150.0739677 | AQ30: -164.6297204
S31: =+S15 -> Diciembre | T31: 180 | U31: 165.423918 | V31: 151.543826 | W31: 138.7676442 | X31: 127.1399509 | Y31: 116.4340922 | Z31: 106.2587667 | AA31: 96.09089085 | AB31: 85.20530627 | AC31: 72.45766652 | AD31: 55.83986101 | AE31: 32.13396785 | AF31: 0 | AG31: -32.13919177 | AH31: -55.85294987 | AI31: =(AI106*AI121*AI151+AI136*((1-AI106*AI121)/2)*180)*-1 -> -72.47609904 | AJ31: -85.22722251 | AK31: -96.1153452 | AL31: -106.2851852 | AM31: -116.4618506 | AN31: -127.1679895 | AO31: -138.7940509 | AP31: -151.5655075 | AQ31: -165.4367687
A33: Ho̅ | B33: J/m2 dia | D33: H̅ | E33: J/m2 dia | H33: Kt | I33: Hd/H | S33: n̅
A34: Enero | B34: =24*3600*$F$6/PI()*(1+0.033*COS(RADIANS(360*B4/365)))*(COS(RADIANS(C4))*COS(RADIANS($F$5))*SIN(RADIANS(B19))+(2*PI()*B19/360)*SIN(RADIANS(C4))*SIN(RADIANS($F$5))) -> 42301928.27 | D34: Enero | E34: =VLOOKUP($F$3,'0. Tablas referencia'!$U$12:$AH$357,3,FALSE)*3.6*1000000/'0. Tablas referencia'!J11 -> 22433701.94 | G34: Enero | H34: =E34/B34 -> 0.5303233884 | I34: =IF(AND(B19<=81.4,H34>=0.3,H34<=0.8),1.391-3.56*H34+4.189*H34^2-2.137*H34^3,1.311-3.022*H34+3.427*H34^2-1.821*H34^3) -> 0.4005805482 | T34: 0 | U34: 1 | V34: 2 | W34: 3 | X34: 4 | Y34: 5 | Z34: 6 | AA34: 7 | AB34: 8 | AC34: 9 | AD34: 10 | AE34: 11 | AF34: 12 | AG34: 13 | AH34: 14 | AI34: 15 | AJ34: 16 | AK34: 17 | AL34: 18 | AM34: 19 | AN34: 20 | AO34: 21 | AP34: 22 | AQ34: 23
A35: Febrero | B35: =24*3600*$F$6/PI()*(1+0.033*COS(RADIANS(360*B5/365)))*(COS(RADIANS(C5))*COS(RADIANS($F$5))*SIN(RADIANS(B20))+(2*PI()*B20/360)*SIN(RADIANS(C5))*SIN(RADIANS($F$5))) -> 35929554.05 | D35: Febrero | E35: =VLOOKUP($F$3,'0. Tablas referencia'!$U$12:$AH$357,4,FALSE)*3.6*1000000/'0. Tablas referencia'!J12 -> 19100134.29 | G35: Febrero | H35: =E35/B35 -> 0.5315995366 | I35: =IF(AND(B20<=81.4,H35>=0.3,H35<=0.8),1.391-3.56*H35+4.189*H35^2-2.137*H35^3,1.311-3.022*H35+3.427*H35^2-1.821*H35^3) -> 0.3994027651 | S35: =+S20 -> Enero | T35: =+B4 -> 17 | U35: =+$T35+U$34/24 -> 17.04166667 | V35: 17.08333333 | W35: 17.125 | X35: 17.16666667 | Y35: 17.20833333 | Z35: 17.25 | AA35: 17.29166667 | AB35: 17.33333333 | AC35: 17.375 | AD35: 17.41666667 | AE35: 17.45833333 | AF35: 17.5 | AG35: 17.54166667 | AH35: 17.58333333 | AI35: 17.625 | AJ35: 17.66666667 | AK35: =+$T35+AK$34/24 -> 17.70833333 | AL35: 17.75 | AM35: 17.79166667 | AN35: 17.83333333 | AO35: 17.875 | AP35: 17.91666667 | AQ35: 17.95833333
A36: Marzo | B36: =24*3600*$F$6/PI()*(1+0.033*COS(RADIANS(360*B6/365)))*(COS(RADIANS(C6))*COS(RADIANS($F$5))*SIN(RADIANS(B21))+(2*PI()*B21/360)*SIN(RADIANS(C6))*SIN(RADIANS($F$5))) -> 27529908.49 | D36: Marzo | E36: =VLOOKUP($F$3,'0. Tablas referencia'!$U$12:$AH$357,5,FALSE)*3.6*1000000/'0. Tablas referencia'!J13 -> 14015392.26 | G36: Marzo | H36: 0.5090969432 | I36: 0.4204412966 | S36: =+S21 -> Febrero | T36: =+B5 -> 47 | U36: 47.04166667 | V36: 47.08333333 | W36: 47.125 | X36: 47.16666667 | Y36: 47.20833333 | Z36: 47.25 | AA36: 47.29166667 | AB36: 47.33333333 | AC36: 47.375 | AD36: 47.41666667 | AE36: 47.45833333 | AF36: 47.5 | AG36: 47.54166667 | AH36: 47.58333333 | AI36: 47.625 | AJ36: 47.66666667 | AK36: 47.70833333 | AL36: 47.75 | AM36: 47.79166667 | AN36: 47.83333333 | AO36: 47.875 | AP36: 47.91666667 | AQ36: 47.95833333
A37: Abril | B37: 18419341.13 | D37: Abril | E37: =VLOOKUP($F$3,'0. Tablas referencia'!$U$12:$AH$357,6,FALSE)*3.6*1000000/'0. Tablas referencia'!J14 -> 8230958.4 | G37: Abril | H37: 0.4468649743 | I37: 0.4459625652 | S37: Marzo | T37: 75 | U37: 75.04166667 | V37: 75.08333333 | W37: 75.125 | X37: 75.16666667 | Y37: 75.20833333 | Z37: 75.25 | AA37: 75.29166667 | AB37: 75.33333333 | AC37: 75.375 | AD37: 75.41666667 | AE37: 75.45833333 | AF37: 75.5 | AG37: 75.54166667 | AH37: 75.58333333 | AI37: 75.625 | AJ37: 75.66666667 | AK37: 75.70833333 | AL37: 75.75 | AM37: 75.79166667 | AN37: 75.83333333 | AO37: 75.875 | AP37: 75.91666667 | AQ37: 75.95833333
A38: Mayo | B38: 11730878.41 | D38: Mayo | E38: =VLOOKUP($F$3,'0. Tablas referencia'!$U$12:$AH$357,7,FALSE)*3.6*1000000/'0. Tablas referencia'!J15 -> 4591812.774 | G38: Mayo | H38: 0.3914295771 | I38: 0.5111733769 | S38: Abril | T38: 105 | U38: 105.0416667 | V38: 105.0833333 | W38: 105.125 | X38: 105.1666667 | Y38: 105.2083333 | Z38: 105.25 | AA38: 105.2916667 | AB38: 105.3333333 | AC38: 105.375 | AD38: 105.4166667 | AE38: 105.4583333 | AF38: 105.5 | AG38: 105.5416667 | AH38: 105.5833333 | AI38: 105.625 | AJ38: 105.6666667 | AK38: 105.7083333 | AL38: 105.75 | AM38: 105.7916667 | AN38: 105.8333333 | AO38: 105.875 | AP38: 105.9166667 | AQ38: 105.9583333
A39: Junio | B39: 8910127.905 | D39: Junio | E39: =VLOOKUP($F$3,'0. Tablas referencia'!$U$12:$AH$357,8,FALSE)*3.6*1000000/'0. Tablas referencia'!J16 -> 3534686.4 | G39: Junio | H39: 0.3967043389 | I39: 0.5045584133 | S39: Mayo | T39: 135 | U39: 135.0416667 | V39: 135.0833333 | W39: 135.125 | X39: 135.1666667 | Y39: 135.2083333 | Z39: 135.25 | AA39: 135.2916667 | AB39: 135.3333333 | AC39: 135.375 | AD39: 135.4166667 | AE39: 135.4583333 | AF39: 135.5 | AG39: 135.5416667 | AH39: 135.5833333 | AI39: 135.625 | AJ39: 135.6666667 | AK39: 135.7083333 | AL39: 135.75 | AM39: 135.7916667 | AN39: 135.8333333 | AO39: 135.875 | AP39: 135.9166667 | AQ39: 135.9583333
A40: Julio | B40: 10086975.44 | D40: Julio | E40: =VLOOKUP($F$3,'0. Tablas referencia'!$U$12:$AH$357,9,FALSE)*3.6*1000000/'0. Tablas referencia'!J17 -> 4084275.484 | G40: Julio | H40: 0.404905862 | I40: 0.4944542667 | S40: Junio | T40: 162 | U40: 162.0416667 | V40: 162.0833333 | W40: 162.125 | X40: 162.1666667 | Y40: 162.2083333 | Z40: 162.25 | AA40: 162.2916667 | AB40: 162.3333333 | AC40: 162.375 | AD40: 162.4166667 | AE40: 162.4583333 | AF40: 162.5 | AG40: 162.5416667 | AH40: 162.5833333 | AI40: 162.625 | AJ40: 162.6666667 | AK40: 162.7083333 | AL40: 162.75 | AM40: 162.7916667 | AN40: 162.8333333 | AO40: 162.875 | AP40: 162.9166667 | AQ40: 162.9583333
A41: Agosto | B41: 15312236.56 | D41: Agosto | E41: =VLOOKUP($F$3,'0. Tablas referencia'!$U$12:$AH$357,10,FALSE)*3.6*1000000/'0. Tablas referencia'!J18 -> 6708276 | G41: Agosto | H41: 0.4380990312 | I41: 0.4556764451 | S41: Julio | T41: 198 | U41: 198.0416667 | V41: 198.0833333 | W41: 198.125 | X41: 198.1666667 | Y41: 198.2083333 | Z41: 198.25 | AA41: 198.2916667 | AB41: 198.3333333 | AC41: 198.375 | AD41: 198.4166667 | AE41: 198.4583333 | AF41: 198.5 | AG41: 198.5416667 | AH41: 198.5833333 | AI41: 198.625 | AJ41: 198.6666667 | AK41: 198.7083333 | AL41: 198.75 | AM41: 198.7916667 | AN41: 198.8333333 | AO41: 198.875 | AP41: 198.9166667 | AQ41: 198.9583333
A42: Septiembre | B42: 23625731.29 | D42: Septiembre | E42: =VLOOKUP($F$3,'0. Tablas referencia'!$U$12:$AH$357,11,FALSE)*3.6*1000000/'0. Tablas referencia'!J19 -> 11486128.8 | G42: Septiembre | H42: 0.4861702971 | I42: 0.4425497255 | S42: Agosto | T42: 228 | U42: 228.0416667 | V42: 228.0833333 | W42: 228.125 | X42: 228.1666667 | Y42: 228.2083333 | Z42: 228.25 | AA42: 228.2916667 | AB42: 228.3333333 | AC42: 228.375 | AD42: 228.4166667 | AE42: 228.4583333 | AF42: 228.5 | AG42: 228.5416667 | AH42: 228.5833333 | AI42: 228.625 | AJ42: 228.6666667 | AK42: 228.7083333 | AL42: 228.75 | AM42: 228.7916667 | AN42: 228.8333333 | AO42: 228.875 | AP42: 228.9166667 | AQ42: 228.9583333
A43: Octubre | B43: 32897185.48 | D43: Octubre | E43: =VLOOKUP($F$3,'0. Tablas referencia'!$U$12:$AH$357,12,FALSE)*3.6*1000000/'0. Tablas referencia'!J20 -> 16355148.39 | G43: Octubre | H43: 0.4971595032 | I43: 0.4318596606 | S43: Septiembre | T43: 258 | U43: 258.0416667 | V43: 258.0833333 | W43: 258.125 | X43: 258.1666667 | Y43: 258.2083333 | Z43: 258.25 | AA43: 258.2916667 | AB43: 258.3333333 | AC43: 258.375 | AD43: 258.4166667 | AE43: 258.4583333 | AF43: 258.5 | AG43: 258.5416667 | AH43: 258.5833333 | AI43: 258.625 | AJ43: 258.6666667 | AK43: 258.7083333 | AL43: 258.75 | AM43: 258.7916667 | AN43: 258.8333333 | AO43: 258.875 | AP43: 258.9166667 | AQ43: 258.9583333
A44: Noviembre | B44: 40432336.5 | D44: Noviembre | E44: =VLOOKUP($F$3,'0. Tablas referencia'!$U$12:$AH$357,13,FALSE)*3.6*1000000/'0. Tablas referencia'!J21 -> 20248956 | G44: Noviembre | H44: 0.5008109289 | I44: 0.4283463564 | S44: Octubre | T44: 288 | U44: 288.0416667 | V44: 288.0833333 | W44: 288.125 | X44: 288.1666667 | Y44: 288.2083333 | Z44: 288.25 | AA44: 288.2916667 | AB44: 288.3333333 | AC44: 288.375 | AD44: 288.4166667 | AE44: 288.4583333 | AF44: 288.5 | AG44: 288.5416667 | AH44: 288.5833333 | AI44: 288.625 | AJ44: 288.6666667 | AK44: 288.7083333 | AL44: 288.75 | AM44: 288.7916667 | AN44: 288.8333333 | AO44: 288.875 | AP44: 288.9166667 | AQ44: 288.9583333
A45: Diciembre | B45: 43885518.03 | D45: Diciembre | E45: =VLOOKUP($F$3,'0. Tablas referencia'!$U$12:$AH$357,14,FALSE)*3.6*1000000/'0. Tablas referencia'!J22 -> 21611078.71 | G45: Diciembre | H45: 0.4924421468 | I45: 0.4364267214 | S45: Noviembre | T45: 318 | U45: 318.0416667 | V45: 318.0833333 | W45: 318.125 | X45: 318.1666667 | Y45: 318.2083333 | Z45: 318.25 | AA45: 318.2916667 | AB45: 318.3333333 | AC45: 318.375 | AD45: 318.4166667 | AE45: 318.4583333 | AF45: 318.5 | AG45: 318.5416667 | AH45: 318.5833333 | AI45: 318.625 | AJ45: 318.6666667 | AK45: 318.7083333 | AL45: 318.75 | AM45: 318.7916667 | AN45: 318.8333333 | AO45: 318.875 | AP45: 318.9166667 | AQ45: 318.9583333
S46: Diciembre | T46: 344 | U46: 344.0416667 | V46: 344.0833333 | W46: 344.125 | X46: 344.1666667 | Y46: 344.2083333 | Z46: 344.25 | AA46: 344.2916667 | AB46: 344.3333333 | AC46: 344.375 | AD46: 344.4166667 | AE46: 344.4583333 | AF46: 344.5 | AG46: 344.5416667 | AH46: 344.5833333 | AI46: 344.625 | AJ46: 344.6666667 | AK46: 344.7083333 | AL46: 344.75 | AM46: 344.7916667 | AN46: 344.8333333 | AO46: 344.875 | AP46: 344.9166667 | AQ46: 344.9583333
S48: δ̅ (º)
A49: N | C49: NE | E49: E | G49: SE | I49: S | K49: SO | M49: O | O49: NO | T49: 0 | U49: 1 | V49: 2 | W49: 3 | X49: 4 | Y49: 5 | Z49: 6 | AA49: 7 | AB49: 8 | AC49: 9 | AD49: 10 | AE49: 11 | AF49: 12 | AG49: 13 | AH49: 14 | AI49: 15 | AJ49: 16 | AK49: 17 | AL49: 18 | AM49: 19 | AN49: 20 | AO49: 21 | AP49: 22 | AQ49: 23
A50: Azimut | B50: 180 | C50: Azimut | D50: 135 | E50: Azimut | F50: 90 | G50: Azimut | H50: 45 | I50: Azimut | J50: 0 | K50: Azimut | L50: -45 | M50: Azimut | N50: -90 | O50: Azimut | P50: -135 | S50: =+S35 -> Enero | T50: =23.45*SIN(RADIANS(360*(284+T35)/365)) -> -20.91696257 | U50: -20.90935347 | V50: -20.90173361 | W50: -20.89410299 | X50: -20.88646163 | Y50: -20.87880952 | Z50: -20.87114667 | AA50: -20.86347308 | AB50: -20.85578876 | AC50: -20.84809371 | AD50: -20.84038793 | AE50: -20.83267143 | AF50: -20.82494422 | AG50: -20.81720629 | AH50: -20.80945765 | AI50: -20.8016983 | AJ50: -20.79392826 | AK50: -20.78614751 | AL50: -20.77835607 | AM50: -20.77055395 | AN50: -20.76274114 | AO50: -20.75491764 | AP50: -20.74708347 | AQ50: -20.73923862
A51: A | B51: =COS(RADIANS($F$7))+TAN(RADIANS($F$5))*COS(RADIANS(B50))*SIN(RADIANS($F$7)) -> 1.064153991 | C51: A | D51: =COS(RADIANS($F$7))+TAN(RADIANS($F$5))*COS(RADIANS(D50))*SIN(RADIANS($F$7)) -> 0.7524705031 | E51: A | F51: =COS(RADIANS($F$7))+TAN(RADIANS($F$5))*COS(RADIANS(F50))*SIN(RADIANS($F$7)) -> -3.929908135e-18 | G51: A | H51: =COS(RADIANS($F$7))+TAN(RADIANS($F$5))*COS(RADIANS(H50))*SIN(RADIANS($F$7)) -> -0.7524705031 | I51: A | J51: =COS(RADIANS($F$7))+TAN(RADIANS($F$5))*COS(RADIANS(J50))*SIN(RADIANS($F$7)) -> -1.064153991 | K51: A | L51: =COS(RADIANS($F$7))+TAN(RADIANS($F$5))*COS(RADIANS(L50))*SIN(RADIANS($F$7)) -> -0.7524705031 | M51: A | N51: =COS(RADIANS($F$7))+TAN(RADIANS($F$5))*COS(RADIANS(N50))*SIN(RADIANS($F$7)) -> -3.929908135e-18 | O51: A | P51: =COS(RADIANS($F$7))+TAN(RADIANS($F$5))*COS(RADIANS(P50))*SIN(RADIANS($F$7)) -> 0.7524705031 | S51: =+S36 -> Febrero | T51: -12.95460809 | U51: -12.94058459 | V51: -12.92655443 | W51: -12.91251763 | X51: -12.89847417 | Y51: -12.88442409 | Z51: -12.87036737 | AA51: -12.85630403 | AB51: -12.84223408 | AC51: -12.82815753 | AD51: -12.81407437 | AE51: -12.79998462 | AF51: -12.78588828 | AG51: -12.77178537 | AH51: -12.75767589 | AI51: -12.74355984 | AJ51: -12.72943724 | AK51: -12.71530809 | AL51: -12.70117239 | AM51: -12.68703017 | AN51: -12.67288141 | AO51: -12.65872614 | AP51: -12.64456435 | AQ51: -12.63039606
A52: C | B52: =SIN(RADIANS($F$7))*SIN(RADIANS(B50))/COS(RADIANS($F$5)) -> 1.789062318e-16 | C52: C | D52: =SIN(RADIANS($F$7))*SIN(RADIANS(D50))/COS(RADIANS($F$5)) -> 1.032575352 | E52: C | F52: =SIN(RADIANS($F$7))*SIN(RADIANS(F50))/COS(RADIANS($F$5)) -> 1.460282067 | G52: C | H52: =SIN(RADIANS($F$7))*SIN(RADIANS(H50))/COS(RADIANS($F$5)) -> 1.032575352 | I52: C | J52: =SIN(RADIANS($F$7))*SIN(RADIANS(J50))/COS(RADIANS($F$5)) -> 0 | K52: C | L52: =SIN(RADIANS($F$7))*SIN(RADIANS(L50))/COS(RADIANS($F$5)) -> -1.032575352 | M52: C | N52: =SIN(RADIANS($F$7))*SIN(RADIANS(N50))/COS(RADIANS($F$5)) -> -1.460282067 | O52: C | P52: =SIN(RADIANS($F$7))*SIN(RADIANS(P50))/COS(RADIANS($F$5)) -> -1.032575352 | S52: Marzo | T52: -2.417734805 | U52: -2.401004106 | V52: -2.384272171 | W52: -2.36753901 | X52: -2.350804631 | Y52: -2.334069043 | Z52: -2.317332253 | AA52: -2.300594272 | AB52: -2.283855107 | AC52: -2.267114767 | AD52: -2.25037326 | AE52: -2.233630596 | AF52: -2.216886783 | AG52: -2.20014183 | AH52: -2.183395744 | AI52: -2.166648535 | AJ52: -2.149900212 | AK52: -2.133150782 | AL52: -2.116400255 | AM52: -2.099648639 | AN52: -2.082895944 | AO52: -2.066142176 | AP52: -2.049387346 | AQ52: -2.032631461
S53: Abril | T53: 9.414893347 | U53: 9.430295499 | V53: 9.4456928 | W53: 9.461085242 | X53: 9.476472816 | Y53: 9.491855514 | Z53: 9.50723333 | AA53: 9.522606255 | AB53: 9.53797428 | AC53: 9.553337399 | AD53: 9.568695603 | AE53: 9.584048884 | AF53: 9.599397234 | AG53: 9.614740646 | AH53: 9.630079112 | AI53: 9.645412623 | AJ53: 9.660741172 | AK53: 9.676064751 | AL53: 9.691383353 | AM53: 9.706696968 | AN53: 9.722005589 | AO53: 9.737309209 | AP53: 9.75260782 | AQ53: 9.767901413
A54: B | C54: B | E54: B | G54: B | I54: B | K54: B | M54: B | O54: B | S54: Mayo | T54: 18.79191752 | U54: 18.80197391 | V54: 18.81202064 | W54: 18.82205769 | X54: 18.83208505 | Y54: 18.84210272 | Z54: 18.8521107 | AA54: 18.86210899 | AB54: 18.87209757 | AC54: 18.88207644 | AD54: 18.89204559 | AE54: 18.90200503 | AF54: 18.91195474 | AG54: 18.92189472 | AH54: 18.93182497 | AI54: 18.94174548 | AJ54: 18.95165624 | AK54: 18.96155726 | AL54: 18.97144852 | AM54: 18.98133002 | AN54: 18.99120175 | AO54: 19.00106371 | AP54: 19.0109159 | AQ54: 19.02075831
A55: Enero | B55: =COS(RADIANS(B19))*COS(RADIANS($F$7))+TAN(RADIANS($C4))*SIN(RADIANS($F$7))*COS(RADIANS(B$50)) -> 0.3822021288 | C55: Enero | D55: =COS(RADIANS(D19))*COS(RADIANS($F$7))+TAN(RADIANS($C4))*SIN(RADIANS($F$7))*COS(RADIANS(D$50)) -> 0.270257717 | E55: Enero | F55: =COS(RADIANS(F19))*COS(RADIANS($F$7))+TAN(RADIANS($C4))*SIN(RADIANS($F$7))*COS(RADIANS(F$50)) -> 3.784470537e-17 | G55: Enero | H55: =COS(RADIANS(H19))*COS(RADIANS($F$7))+TAN(RADIANS($C4))*SIN(RADIANS($F$7))*COS(RADIANS(H$50)) -> -0.270257717 | I55: Enero | J55: =COS(RADIANS(J19))*COS(RADIANS($F$7))+TAN(RADIANS($C4))*SIN(RADIANS($F$7))*COS(RADIANS(J$50)) -> -0.3822021288 | K55: Enero | L55: =COS(RADIANS(L19))*COS(RADIANS($F$7))+TAN(RADIANS($C4))*SIN(RADIANS($F$7))*COS(RADIANS(L$50)) -> -0.270257717 | M55: Enero | N55: =COS(RADIANS(N19))*COS(RADIANS($F$7))+TAN(RADIANS($C4))*SIN(RADIANS($F$7))*COS(RADIANS(N$50)) -> 3.784470537e-17 | O55: Enero | P55: =COS(RADIANS(P19))*COS(RADIANS($F$7))+TAN(RADIANS($C4))*SIN(RADIANS($F$7))*COS(RADIANS(P$50)) -> 0.270257717 | S55: Junio | T55: 23.085911 | U55: 23.08885745 | V55: 23.09179203 | W55: 23.09471472 | X55: 23.09762553 | Y55: 23.10052446 | Z55: 23.1034115 | AA55: 23.10628666 | AB55: 23.10914993 | AC55: 23.11200132 | AD55: 23.11484081 | AE55: 23.11766841 | AF55: 23.12048412 | AG55: 23.12328793 | AH55: 23.12607985 | AI55: 23.12885987 | AJ55: 23.13162799 | AK55: 23.13438421 | AL55: 23.13712853 | AM55: 23.13986094 | AN55: 23.14258145 | AO55: 23.14529006 | AP55: 23.14798676 | AQ55: 23.15067155
A56: Febrero | B56: 0.2300338789 | C56: Febrero | D56: 0.1626585157 | E56: Febrero | F56: 4.716614018e-17 | G56: Febrero | H56: -0.1626585157 | I56: Febrero | J56: -0.2300338789 | K56: Febrero | L56: -0.1626585157 | M56: Febrero | N56: 4.716614018e-17 | O56: Febrero | P56: 0.1626585157 | S56: Julio | T56: 21.18369356 | U56: 21.17647428 | V56: 21.16924409 | W56: 21.16200302 | X56: 21.15475106 | Y56: 21.14748822 | Z56: 21.14021449 | AA56: 21.13292989 | AB56: 21.12563442 | AC56: 21.11832808 | AD56: 21.11101088 | AE56: 21.10368281 | AF56: 21.09634389 | AG56: 21.08899412 | AH56: 21.08163349 | AI56: 21.07426202 | AJ56: 21.06687971 | AK56: 21.05948656 | AL56: 21.05208258 | AM56: 21.04466776 | AN56: 21.03724212 | AO56: 21.02980566 | AP56: 21.02235838 | AQ56: 21.01490028
A57: Marzo | B57: 0.04222249655 | C57: Marzo | D57: 0.02985581363 | E57: Marzo | F57: 5.867098142e-17 | G57: Marzo | H57: -0.02985581363 | I57: Marzo | J57: -0.04222249655 | K57: Marzo | L57: -0.02985581363 | M57: Marzo | N57: 5.867098142e-17 | O57: Marzo | P57: 0.02985581363 | S57: Agosto | T57: 13.45495968 | U57: 13.44118063 | V57: 13.42739466 | W57: 13.41360178 | X57: 13.399802 | Y57: 13.38599532 | Z57: 13.37218176 | AA57: 13.35836132 | AB57: 13.34453401 | AC57: 13.33069984 | AD57: 13.3168588 | AE57: 13.30301091 | AF57: 13.28915619 | AG57: 13.27529462 | AH57: 13.26142622 | AI57: 13.247551 | AJ57: 13.23366897 | AK57: 13.21978013 | AL57: 13.20588448 | AM57: 13.19198205 | AN57: 13.17807282 | AO57: 13.16415682 | AP57: 13.15023404 | AQ57: 13.1363045
A58: Abril | B58: -0.1658159999 | C58: Abril | D58: -0.1172496179 | E58: Abril | F58: 7.141488355e-17 | G58: Abril | H58: 0.1172496179 | I58: Abril | J58: 0.1658159999 | K58: Abril | L58: 0.1172496179 | M58: Abril | N58: 7.141488355e-17 | O58: Abril | P58: -0.1172496179 | S58: Septiembre | T58: 2.216886783 | U58: 2.20014183 | V58: 2.183395744 | W58: 2.166648535 | X58: 2.149900212 | Y58: 2.133150782 | Z58: 2.116400255 | AA58: 2.099648639 | AB58: 2.082895944 | AC58: 2.066142176 | AD58: 2.049387346 | AE58: 2.032631461 | AF58: 2.01587453 | AG58: 1.999116563 | AH58: 1.982357567 | AI58: 1.965597551 | AJ58: 1.948836524 | AK58: 1.932074494 | AL58: 1.91531147 | AM58: 1.898547461 | AN58: 1.881782476 | AO58: 1.865016522 | AP58: 1.848249609 | AQ58: 1.831481744
A59: Mayo | B59: -0.3402703619 | C59: Mayo | D59: -0.2406074803 | E59: Mayo | F59: 8.210150815e-17 | G59: Mayo | H59: 0.2406074803 | I59: Mayo | J59: 0.3402703619 | K59: Mayo | L59: 0.2406074803 | M59: Mayo | N59: 8.210150815e-17 | O59: Mayo | P59: -0.2406074803 | S59: Octubre | T59: -9.599397234 | U59: -9.614740646 | V59: -9.630079112 | W59: -9.645412623 | X59: -9.660741172 | Y59: -9.676064751 | Z59: -9.691383353 | AA59: -9.706696968 | AB59: -9.722005589 | AC59: -9.737309209 | AD59: -9.75260782 | AE59: -9.767901413 | AF59: -9.783189981 | AG59: -9.798473516 | AH59: -9.81375201 | AI59: -9.829025456 | AJ59: -9.844293844 | AK59: -9.859557168 | AL59: -9.87481542 | AM59: -9.890068592 | AN59: -9.905316675 | AO59: -9.920559663 | AP59: -9.935797547 | AQ59: -9.951030319
A60: Junio | B60: -0.42624554 | C60: Junio | D60: -0.3014011118 | E60: Junio | F60: 8.736812598e-17 | G60: Junio | H60: 0.3014011118 | I60: Junio | J60: 0.42624554 | K60: Junio | L60: 0.3014011118 | M60: Junio | N60: 8.736812598e-17 | O60: Junio | P60: -0.3014011118 | S60: Noviembre | T60: -18.91195474 | U60: -18.92189472 | V60: -18.93182497 | W60: -18.94174548 | X60: -18.95165624 | Y60: -18.96155726 | Z60: -18.97144852 | AA60: -18.98133002 | AB60: -18.99120175 | AC60: -19.00106371 | AD60: -19.0109159 | AE60: -19.02075831 | AF60: -19.03059093 | AG60: -19.04041377 | AH60: -19.0502268 | AI60: =23.45*SIN(RADIANS(360*(284+AI45)/365)) -> -19.06003004 | AJ60: -19.06982347 | AK60: -19.07960709 | AL60: -19.08938089 | AM60: -19.09914488 | AN60: -19.10889903 | AO60: -19.11864336 | AP60: -19.12837785 | AQ60: -19.1381025
A61: Julio | B61: -0.3875470555 | C61: Julio | D61: -0.274037151 | E61: Julio | F61: 8.499755656e-17 | G61: Julio | H61: 0.274037151 | I61: Julio | J61: 0.3875470555 | K61: Julio | L61: 0.274037151 | M61: Julio | N61: 8.499755656e-17 | O61: Julio | P61: -0.274037151 | S61: Diciembre | T61: =23.45*SIN(RADIANS(360*(284+T46)/365)) -> -23.04962764 | U61: -23.05271651 | V61: -23.05579352 | W61: -23.05885867 | X61: -23.06191196 | Y61: -23.06495338 | Z61: -23.06798294 | AA61: -23.07100063 | AB61: -23.07400645 | AC61: -23.0770004 | AD61: -23.07998247 | AE61: -23.08295268 | AF61: -23.085911 | AG61: -23.08885745 | AH61: -23.09179203 | AI61: -23.09471472 | AJ61: -23.09762553 | AK61: -23.10052446 | AL61: -23.1034115 | AM61: -23.10628666 | AN61: -23.10914993 | AO61: -23.11200132 | AP61: -23.11484081 | AQ61: -23.11766841
A62: Agosto | B62: -0.2392475048 | C62: Agosto | D62: -0.169173533 | E62: Agosto | F62: 7.591310829e-17 | G62: Agosto | H62: 0.169173533 | I62: Agosto | J62: 0.2392475048 | K62: Agosto | L62: 0.169173533 | M62: Agosto | N62: 7.591310829e-17 | O62: Agosto | P62: -0.169173533
... 75 more rows

Sheet 0.FAV Calculos (hidden)
HA2: ϒ inicial | HB2: ϒ final | HC2: centro izq | HD2: centro ider
GZ3: N | HA3: -90 | HB3: 90 | HC3: 0 | HD3: 0
GZ4: E | HA4: 0 | HB4: 180 | HC4: 90 | HD4: 90 | JD4: lm/w directo+difusos | JF4: 95
GZ5: O | HA5: -180 | HB5: 0 | HC5: -90 | HD5: -90
GZ6: S | HA6: 90 | HB6: -90 | HC6: 180 | HD6: -180
GZ7: Horiz | HA7: -90 | HB7: 90 | HC7: 0 | HD7: 0
C11: 4 | D11: 5 | E11: 6 | F11: 7 | G11: 8 | H11: 9 | I11: 10 | J11: 11 | K11: 12 | L11: 13 | M11: 14 | N11: 15 | R11: 20 | S11: 21 | T11: 22 | U11: 23 | V11: 24 | W11: 25 | X11: 26 | Y11: 27 | Z11: 28 | AA11: 29 | AB11: 30 | AC11: 31 | GE11: 1 | GF11: =+GE11+1 -> 2 | GG11: =+GF11+1 -> 3 | GH11: 4 | GI11: 5 | GJ11: 6 | GK11: 7 | GL11: 8 | GM11: 9 | GN11: 10 | GO11: 11 | GP11: 12 | HB11: R͞
C12: Inclinación - α (ϴz) | R12: Azimut ϒs | AF12: Radiación directa horizontal [W/m2] | AT12: Radiación Disfua horizontal [W/m2] | BW12: Radiación difusa | CK12: Radiación Directa | CY12: Horas de Radiación Directa | DM12: FAV 1 | EA12: FAV 2 y FAV 3 | EO12: FAV 4 - Horiz | FC12: FAV 5 - Vert | FQ12: FAR | GE12: Rad máx | HB12: 207 | HC12: =+HB12+1 -> 208 | HD12: 209 | HE12: 210 | HF12: 211 | HG12: 212 | HH12: 213 | HI12: 214 | HJ12: 215 | HK12: 216 | HL12: 217 | HM12: 218 | HO12: =+COUNTIF(HO14:HO22,">0") -> 4 | IC12: Radiación difusa /m2 | IQ12: Radiación Directa /m2 | JE12: Lux Naturales
C13: Enero | D13: Febrero | E13: Marzo | F13: Abril | G13: Mayo | H13: Junio | I13: Julio | J13: Agosto | K13: Septiembre | L13: Octubre | M13: Noviembre | N13: Diciembre | R13: Enero | S13: Febrero | T13: Marzo | U13: Abril | V13: Mayo | W13: Junio | X13: Julio | Y13: Agosto | Z13: Septiembre | AA13: Octubre | AB13: Noviembre | AC13: Diciembre | AF13: Enero | AG13: Febrero | AH13: Marzo | AI13: Abril | AJ13: Mayo | AK13: Junio | AL13: Julio | AM13: Agosto | AN13: Septiembre | AO13: Octubre | AP13: Noviembre | AQ13: Diciembre | AT13: Enero | AU13: Febrero | AV13: Marzo | AW13: Abril | AX13: Mayo | AY13: Junio | AZ13: Julio | BA13: Agosto | BB13: Septiembre | BC13: Octubre | BD13: Noviembre | BE13: Diciembre | BV13: =+'0.FAV Calculos'!$BH$29*'0.FAV Calculos'!$BH$27*('0.FAV Calculos'!$BH$26*$AT14) -> 0 | BW13: Enero | BX13: Febrero | BY13: Marzo | BZ13: Abril | CA13: Mayo | CB13: Junio | CC13: Julio | CD13: Agosto | CE13: Septiembre | CF13: Octubre | CG13: Noviembre | CH13: Diciembre | CJ13: =+'0.FAV Calculos'!$BH$29*'0.FAV Calculos'!$BH$27*(VLOOKUP('0.FAV Calculos'!$BH$22,$HA$14:$HM$22,GE$11+1,0)*CY14*AF14) -> 0 | CK13: Enero | CL13: Febrero | CM13: Marzo | CN13: Abril | CO13: Mayo | CP13: Junio | CQ13: Julio | CR13: Agosto | CS13: Septiembre | CT13: Octubre | CU13: Noviembre | CV13: Diciembre | CX13: =+IF(AND($BH$22="horiz",C14>0),1,DM14*EA14*EO14*FC14*FQ14) -> 0 | CY13: Enero | CZ13: Febrero | DA13: Marzo | DB13: Abril | DC13: Mayo | DD13: Junio | DE13: Julio | DF13: Agosto | DG13: Septiembre | DH13: Octubre | DI13: Noviembre | DJ13: Diciembre | DL13: =+IF(OR(C14<=0,AND(R14>0,'0.FAV Calculos'!$BH$17="n",R14>'0.FAV Calculos'!$BH$19),AND(R14>0,'0.FAV Calculos'!$BH$17="s",R14<'0.FAV Calculos'!$BH$18),AND(R14<0,'0.FAV Calculos'!$BH$17="s",R14>'0.FAV Calculos'!$BH$19),AND(R14<0,'0.FAV Calculos'!$BH$17="n",R14<'0.FAV Calculos'!$BH$18),AND(R14<0,'0.FAV Calculos'!$BH$17="e"),AND(R14>0,'0.FAV Calculos'!$BH$17="o"),AND(R14=0,'0.FAV Calculos'!$BH$17<>"n")),0,1)*IF(AND(R14>='0.FAV Calculos'!$BH$18,R14<='0.FAV Calculos'!$BM$18,C14>=DEGREES(ATAN(('0.FAV Calculos'!$BK$18/2+'0.FAV Calculos'!$BK$19)/SQRT(('0.FAV Calculos'!$BK$17/2)^2+('0.FAV Calculos'!$BK$17/2*TAN(RADIANS('0.FAV Calculos'!$BH$18-R14)))^2)))),0,1)*IF(AND(R14>'0.FAV Calculos'!$BM$18,R14<='0.FAV Calculos'!$BH$20,C14>=DEGREES(ATAN(('0.FAV Calculos'!$BK$18/2+'0.FAV Calculos'!$BK$19)/(SQRT(('0.FAV Calculos'!$BK$20)^2+('0.FAV Calculos'!$BK$20*TAN(RADIANS(R14-'0.FAV Calculos'!$BH$20)))^2))))),0,1)*IF(AND(R14>='0.FAV Calculos'!$BH$21,R14<='0.FAV Calculos'!$BM$17,C14>=DEGREES(ATAN(('0.FAV Calculos'!$BK$18/2+'0.FAV Calculos'!$BK$19)/(SQRT(('0.FAV Calculos'!$BK$20)^2+('0.FAV Calculos'!$BK$20*TAN(RADIANS(R14-'0.FAV Calculos'!$BH$21)))^2))))),0,1)*IF(AND(R14>='0.FAV Calculos'!$BM$17,R14<='0.FAV Calculos'!$BH$19,C14>=DEGREES(ATAN(('0.FAV Calculos'!$BK$18/2+'0.FAV Calculos'!$BK$19)/SQRT(('0.FAV Calculos'!$BK$17/2)^2+('0.FAV Calculos'!$BK$17/2*TAN(RADIANS('0.FAV Calculos'!$BH$19-R14)))^2)))),0,1) -> 0 | DM13: Enero | DN13: Febrero | DO13: Marzo | DP13: Abril | DQ13: Mayo | DR13: Junio | DS13: Julio | DT13: Agosto | DU13: Septiembre | DV13: Octubre | DW13: Noviembre | DX13: Diciembre | DZ13: =+IF(OR(C14<=0,AND(R14>0,'0.FAV Calculos'!$BH$17="n",R14>'0.FAV Calculos'!$BH$19),AND(R14>0,'0.FAV Calculos'!$BH$17="s",R14<'0.FAV Calculos'!$BH$18),AND(R14<0,'0.FAV Calculos'!$BH$17="s",R14>'0.FAV Calculos'!$BH$19),AND(R14<0,'0.FAV Calculos'!$BH$17="n",R14<'0.FAV Calculos'!$BH$18),AND(R14<0,'0.FAV Calculos'!$BH$17="e"),AND(R14>0,'0.FAV Calculos'!$BH$17="o"),AND(R14=0,'0.FAV Calculos'!$BH$17<>"n")),0,1)*IF(AND(R14>='0.FAV Calculos'!$BH$18,R14<='0.FAV Calculos'!$BM$27,C14<=DEGREES(ATAN(('0.FAV Calculos'!$BK$28/2)/SQRT(('0.FAV Calculos'!$BK$27/2+'0.FAV Calculos'!$BK$30)^2+(('0.FAV Calculos'!$BK$27/2+'0.FAV Calculos'!$BK$30)*TAN(RADIANS('0.FAV Calculos'!$BH$18-R14)))^2)))),0,1)*IF(AND(R14>='0.FAV Calculos'!$BM$22,R14<='0.FAV Calculos'!$BH$19,C14<=DEGREES(ATAN(('0.FAV Calculos'!$BK$23/2)/SQRT(('0.FAV Calculos'!$BK$22/2+'0.FAV Calculos'!$BK$25)^2+(('0.FAV Calculos'!$BK$22/2+'0.FAV Calculos'!$BK$25)*TAN(RADIANS('0.FAV Calculos'!$BH$19-R14)))^2)))),0,1) -> 0 | EA13: Enero | EB13: Febrero | EC13: Marzo | ED13: Abril | EE13: Mayo | EF13: Junio | EG13: Julio | EH13: Agosto | EI13: Septiembre | EJ13: Octubre | EK13: Noviembre | EL13: Diciembre | EN13: =+IF(OR(C14<=0,AND(R14>0,'0.FAV Calculos'!$BH$17="n",R14>'0.FAV Calculos'!$BH$19),AND(R14>0,'0.FAV Calculos'!$BH$17="s",R14<'0.FAV Calculos'!$BH$18),AND(R14<0,'0.FAV Calculos'!$BH$17="s",R14>'0.FAV Calculos'!$BH$19),AND(R14<0,'0.FAV Calculos'!$BH$17="n",R14<'0.FAV Calculos'!$BH$18),AND(R14<0,'0.FAV Calculos'!$BH$17="e"),AND(R14>0,'0.FAV Calculos'!$BH$17="o"),AND(R14=0,'0.FAV Calculos'!$BH$17<>"n")),0,1)*IF(AND(R14>='0.FAV Calculos'!$BH$18,R14<='0.FAV Calculos'!$BR$18,C14>=DEGREES(ATAN(('0.FAV Calculos'!$BP$21/2)/SQRT(('0.FAV Calculos'!$BP$20/2)^2+('0.FAV Calculos'!$BP$20/2*TAN(RADIANS('0.FAV Calculos'!$BH$18-R14)))^2)))),0,1)*IF(AND(R14>'0.FAV Calculos'!$BR$18,R14<='0.FAV Calculos'!$BH$20,C14>=DEGREES(ATAN(('0.FAV Calculos'!$BP$21/2)/(SQRT(('0.FAV Calculos'!$BP$23)^2+('0.FAV Calculos'!$BP$23*TAN(RADIANS(R14-'0.FAV Calculos'!$BH$20)))^2))))),0,1)*IF(AND(R14>='0.FAV Calculos'!$BH$21,R14<='0.FAV Calculos'!$BR$17,C14>=DEGREES(ATAN(('0.FAV Calculos'!$BP$21/2)/(SQRT(('0.FAV Calculos'!$BP$23)^2+('0.FAV Calculos'!$BP$23*TAN(RADIANS(R14-'0.FAV Calculos'!$BH$21)))^2))))),0,1)*IF(AND(R14>='0.FAV Calculos'!$BR$17,R14<='0.FAV Calculos'!$BH$19,C14>=DEGREES(ATAN(('0.FAV Calculos'!$BP$21/2)/SQRT(('0.FAV Calculos'!$BP$20/2)^2+('0.FAV Calculos'!$BP$20/2*TAN(RADIANS('0.FAV Calculos'!$BH$19-R14)))^2)))),0,1) -> 0 | EO13: Enero | EP13: Febrero | EQ13: Marzo | ER13: Abril | ES13: Mayo | ET13: Junio | EU13: Julio | EV13: Agosto | EW13: Septiembre | EX13: Octubre | EY13: Noviembre | EZ13: Diciembre | FB13: =+IF(OR(C14<=0,AND(R14>0,'0.FAV Calculos'!$BH$17="n",R14>'0.FAV Calculos'!$BH$19),AND(R14>0,'0.FAV Calculos'!$BH$17="s",R14<'0.FAV Calculos'!$BH$18),AND(R14<0,'0.FAV Calculos'!$BH$17="s",R14>'0.FAV Calculos'!$BH$19),AND(R14<0,'0.FAV Calculos'!$BH$17="n",R14<'0.FAV Calculos'!$BH$18),AND(R14<0,'0.FAV Calculos'!$BH$17="e"),AND(R14>0,'0.FAV Calculos'!$BH$17="o"),AND(R14=0,'0.FAV Calculos'!$BH$17<>"n")),0,1)*IF(OR(AND('0.FAV Calculos'!$BR$26>'0.FAV Calculos'!$BR$25,R14<='0.FAV Calculos'!$BR$26,R14>='0.FAV Calculos'!$BR$25),AND('0.FAV Calculos'!$BR$26<'0.FAV Calculos'!$BR$25,R14<='0.FAV Calculos'!$BR$26),AND('0.FAV Calculos'!$BR$26<'0.FAV Calculos'!$BR$25,R14>='0.FAV Calculos'!$BR$25)),0,1) -> 0 | FC13: Enero | FD13: Febrero | FE13: Marzo | FF13: Abril | FG13: Mayo | FH13: Junio | FI13: Julio | FJ13: Agosto | FK13: Septiembre | FL13: Octubre | FM13: Noviembre | FN13: Diciembre | FP13: =+IF($BH$22="N",'0. FAR'!HG65,IF($BH$22="E",'0. FAR'!HT65,IF($BH$22="s",'0. FAR'!IG65,IF($BH$22="O",'0. FAR'!IT65,IF($BH$22="NE",'0. FAR'!JG65,IF($BH$22="SE",'0. FAR'!JT65,IF($BH$22="SO",'0. FAR'!KG65,IF($BH$22="NO",'0. FAR'!KT65,1)))))))) -> 0 | FQ13: Enero | FR13: Febrero | FS13: Marzo | FT13: Abril | FU13: Mayo | FV13: Junio | FW13: Julio | FX13: Agosto | FY13: Septiembre | FZ13: Octubre | GA13: Noviembre | GB13: Diciembre | GD13: =+(IF('0.FAV Calculos'!$BH$17="S",IF(OR(AND(C14>0,R14>'0.FAV Calculos'!$BH$18),AND(C14>0,R14<'0.FAV Calculos'!$BH$19)),1,0),IF(AND('0.FAV Calculos'!$BH$19>R14,'0.FAV Calculos'!$BH$18<R14,C14>0),1,0)))*AF14*VLOOKUP('0.FAV Calculos'!$BH$22,$HA$14:$HM$22,GE$11+1,0)+AT14 -> 0 | GE13: Enero | GF13: Febrero | GG13: Marzo | GH13: Abril | GI13: Mayo | GJ13: Junio | GK13: Julio | GL13: Agosto | GM13: Septiembre | GN13: Octubre | GO13: Noviembre | GP13: Diciembre | HB13: Enero | HC13: Febrero | HD13: Marzo | HE13: Abril | HF13: Mayo | HG13: Junio | HH13: Julio | HI13: Agosto | HJ13: Septiembre | HK13: Octubre | HL13: Noviembre | HM13: Diciembre | HO13: Superficie [m2] | HP13: Á*FSM | HQ13: FSM | HR13: FLD | HS13: Á*FLD | IC13: Enero | ID13: Febrero | IE13: Marzo | IF13: Abril | IG13: Mayo | IH13: Junio | II13: Julio | IJ13: Agosto | IK13: Septiembre | IL13: Octubre | IM13: Noviembre | IN13: Diciembre | IQ13: Enero | IR13: Febrero | IS13: Marzo | IT13: Abril | IU13: Mayo | IV13: Junio | IW13: Julio | IX13: Agosto | IY13: Septiembre | IZ13: Octubre | JA13: Noviembre | JB13: Diciembre | JD13: LUX | JE13: Enero | JF13: Febrero | JG13: Marzo | JH13: Abril | JI13: Mayo | JJ13: Junio | JK13: Julio | JL13: Agosto | JM13: Septiembre | JN13: Octubre | JO13: Noviembre | JP13: Diciembre | JS13: Orientación | JT13: FSM | JU13: Área | JV13: FSM * Área | JW13: FLD
A14: T | B14: 0 | C14: =+INDIRECT(CONCATENATE("'0.FAV parámetros 1'!",$A14,C$11)) -> -22.3028553 | D14: =+INDIRECT(CONCATENATE("'0.FAV parámetros 1'!",$A14,D$11)) -> -30.26520978 | E14: -40.80208307 | F14: -52.63471122 | G14: -62.01173539 | H14: -66.30572888 | I14: -64.40351144 | J14: -56.67477756 | K14: -45.43670466 | L14: -33.62042064 | M14: -24.30786313 | N14: -20.17019023 | P14: T | Q14: 0 | R14: =+INDIRECT(CONCATENATE("'0.FAV parámetros 1'!",$P14,R$11)) -> 180 | S14: 180 | T14: 180 | U14: 180 | V14: 180 | W14: 180 | X14: 180 | Y14: 180 | Z14: 180 | AA14: 180 | AB14: 180 | AC14: 180 | AE14: 0 | AF14: =+SUMIFS('0. Clima'!$Q$11:$Q$298,'0. Clima'!$L$11:$L$298,'0.FAV Calculos'!AF$13,'0. Clima'!$M$11:$M$298,'0.FAV Calculos'!$AE14) -> 0 | AG14: =+SUMIFS('0. Clima'!$Q$11:$Q$298,'0. Clima'!$L$11:$L$298,'0.FAV Calculos'!AG$13,'0. Clima'!$M$11:$M$298,'0.FAV Calculos'!$AE14) -> 0 | AH14: =+SUMIFS('0. Clima'!$Q$11:$Q$298,'0. Clima'!$L$11:$L$298,'0.FAV Calculos'!AH$13,'0. Clima'!$M$11:$M$298,'0.FAV Calculos'!$AE14) -> 0 | AI14: =+SUMIFS('0. Clima'!$Q$11:$Q$298,'0. Clima'!$L$11:$L$298,'0.FAV Calculos'!AI$13,'0. Clima'!$M$11:$M$298,'0.FAV Calculos'!$AE14) -> 0 | AJ14: =+SUMIFS('0. Clima'!$Q$11:$Q$298,'0. Clima'!$L$11:$L$298,'0.FAV Calculos'!AJ$13,'0. Clima'!$M$11:$M$298,'0.FAV Calculos'!$AE14) -> 0 | AK14: =+SUMIFS('0. Clima'!$Q$11:$Q$298,'0. Clima'!$L$11:$L$298,'0.FAV Calculos'!AK$13,'0. Clima'!$M$11:$M$298,'0.FAV Calculos'!$AE14) -> 0 | AL14: =+SUMIFS('0. Clima'!$Q$11:$Q$298,'0. Clima'!$L$11:$L$298,'0.FAV Calculos'!AL$13,'0. Clima'!$M$11:$M$298,'0.FAV Calculos'!$AE14) -> 0 | AM14: =+SUMIFS('0. Clima'!$Q$11:$Q$298,'0. Clima'!$L$11:$L$298,'0.FAV Calculos'!AM$13,'0. Clima'!$M$11:$M$298,'0.FAV Calculos'!$AE14) -> 0 | AN14: =+SUMIFS('0. Clima'!$Q$11:$Q$298,'0. Clima'!$L$11:$L$298,'0.FAV Calculos'!AN$13,'0. Clima'!$M$11:$M$298,'0.FAV Calculos'!$AE14) -> 0 | AO14: =+SUMIFS('0. Clima'!$Q$11:$Q$298,'0. Clima'!$L$11:$L$298,'0.FAV Calculos'!AO$13,'0. Clima'!$M$11:$M$298,'0.FAV Calculos'!$AE14) -> 0 | AP14: =+SUMIFS('0. Clima'!$Q$11:$Q$298,'0. Clima'!$L$11:$L$298,'0.FAV Calculos'!AP$13,'0. Clima'!$M$11:$M$298,'0.FAV Calculos'!$AE14) -> 0 | AQ14: =+SUMIFS('0. Clima'!$Q$11:$Q$298,'0. Clima'!$L$11:$L$298,'0.FAV Calculos'!AQ$13,'0. Clima'!$M$11:$M$298,'0.FAV Calculos'!$AE14) -> 0 | AS14: 0 | AT14: =+SUMIFS('0. Clima'!$P$11:$P$298,'0. Clima'!$L$11:$L$298,'0.FAV Calculos'!AF$13,'0. Clima'!$M$11:$M$298,'0.FAV Calculos'!$AS14) -> 0 | AU14: =+SUMIFS('0. Clima'!$P$11:$P$298,'0. Clima'!$L$11:$L$298,'0.FAV Calculos'!AG$13,'0. Clima'!$M$11:$M$298,'0.FAV Calculos'!$AS14) -> 0 | AV14: =+SUMIFS('0. Clima'!$P$11:$P$298,'0. Clima'!$L$11:$L$298,'0.FAV Calculos'!AH$13,'0. Clima'!$M$11:$M$298,'0.FAV Calculos'!$AS14) -> 0 | AW14: =+SUMIFS('0. Clima'!$P$11:$P$298,'0. Clima'!$L$11:$L$298,'0.FAV Calculos'!AI$13,'0. Clima'!$M$11:$M$298,'0.FAV Calculos'!$AS14) -> 0 | AX14: =+SUMIFS('0. Clima'!$P$11:$P$298,'0. Clima'!$L$11:$L$298,'0.FAV Calculos'!AJ$13,'0. Clima'!$M$11:$M$298,'0.FAV Calculos'!$AS14) -> 0 | AY14: =+SUMIFS('0. Clima'!$P$11:$P$298,'0. Clima'!$L$11:$L$298,'0.FAV Calculos'!AK$13,'0. Clima'!$M$11:$M$298,'0.FAV Calculos'!$AS14) -> 0 | AZ14: =+SUMIFS('0. Clima'!$P$11:$P$298,'0. Clima'!$L$11:$L$298,'0.FAV Calculos'!AL$13,'0. Clima'!$M$11:$M$298,'0.FAV Calculos'!$AS14) -> 0 | BA14: =+SUMIFS('0. Clima'!$P$11:$P$298,'0. Clima'!$L$11:$L$298,'0.FAV Calculos'!AM$13,'0. Clima'!$M$11:$M$298,'0.FAV Calculos'!$AS14) -> 0 | BB14: =+SUMIFS('0. Clima'!$P$11:$P$298,'0. Clima'!$L$11:$L$298,'0.FAV Calculos'!AN$13,'0. Clima'!$M$11:$M$298,'0.FAV Calculos'!$AS14) -> 0 | BC14: =+SUMIFS('0. Clima'!$P$11:$P$298,'0. Clima'!$L$11:$L$298,'0.FAV Calculos'!AO$13,'0. Clima'!$M$11:$M$298,'0.FAV Calculos'!$AS14) -> 0 | BD14: =+SUMIFS('0. Clima'!$P$11:$P$298,'0. Clima'!$L$11:$L$298,'0.FAV Calculos'!AP$13,'0. Clima'!$M$11:$M$298,'0.FAV Calculos'!$AS14) -> 0 | BE14: =+SUMIFS('0. Clima'!$P$11:$P$298,'0. Clima'!$L$11:$L$298,'0.FAV Calculos'!AQ$13,'0. Clima'!$M$11:$M$298,'0.FAV Calculos'!$AS14) -> 0 | BG14: 1 | BU14: =+BH22 -> E | BV14: 0 | BW14: ='0.FAV Calculos'!BH29*'0.FAV Calculos'!BH27*('0.FAV Calculos'!BH26*$AT14) -> 0 | BX14: ='0.FAV Calculos'!BH29*'0.FAV Calculos'!BH27*('0.FAV Calculos'!BH26*AU14) -> 0 | BY14: ='0.FAV Calculos'!BH29*'0.FAV Calculos'!BH27*('0.FAV Calculos'!BH26*AV14) -> 0 | BZ14: ='0.FAV Calculos'!BH29*'0.FAV Calculos'!BH27*('0.FAV Calculos'!BH26*AW14) -> 0 | CA14: ='0.FAV Calculos'!BH29*'0.FAV Calculos'!BH27*('0.FAV Calculos'!BH26*AX14) -> 0 | CB14: ='0.FAV Calculos'!BH29*'0.FAV Calculos'!BH27*('0.FAV Calculos'!BH26*AY14) -> 0 | CC14: ='0.FAV Calculos'!BH29*'0.FAV Calculos'!BH27*('0.FAV Calculos'!BH26*AZ14) -> 0 | CD14: ='0.FAV Calculos'!BH29*'0.FAV Calculos'!BH27*('0.FAV Calculos'!BH26*BA14) -> 0 | CE14: ='0.FAV Calculos'!BH29*'0.FAV Calculos'!BH27*('0.FAV Calculos'!BH26*BB14) -> 0 | CF14: ='0.FAV Calculos'!BH29*'0.FAV Calculos'!BH27*('0.FAV Calculos'!BH26*BC14) -> 0 | CG14: ='0.FAV Calculos'!BH29*'0.FAV Calculos'!BH27*('0.FAV Calculos'!BH26*BD14) -> 0 | CH14: ='0.FAV Calculos'!BH29*'0.FAV Calculos'!BH27*('0.FAV Calculos'!BH26*BE14) -> 0 | CJ14: 0 | CK14: ='0.FAV Calculos'!BH29*'0.FAV Calculos'!BH27*(VLOOKUP('0.FAV Calculos'!BH22,$HA$14:$HM$22,GE$11+1,0)*CY14*AF14) -> 0 | CL14: ='0.FAV Calculos'!BH29*'0.FAV Calculos'!BH27*(VLOOKUP('0.FAV Calculos'!BH22,$HA$14:$HM$22,GF$11+1,0)*CZ14*AG14) -> 0 | CM14: ='0.FAV Calculos'!BH29*'0.FAV Calculos'!BH27*(VLOOKUP('0.FAV Calculos'!BH22,$HA$14:$HM$22,GG$11+1,0)*DA14*AH14) -> 0 | CN14: ='0.FAV Calculos'!BH29*'0.FAV Calculos'!BH27*(VLOOKUP('0.FAV Calculos'!BH22,$HA$14:$HM$22,GH$11+1,0)*DB14*AI14) -> 0 | CO14: ='0.FAV Calculos'!BH29*'0.FAV Calculos'!BH27*(VLOOKUP('0.FAV Calculos'!BH22,$HA$14:$HM$22,GI$11+1,0)*DC14*AJ14) -> 0 | CP14: ='0.FAV Calculos'!BH29*'0.FAV Calculos'!BH27*(VLOOKUP('0.FAV Calculos'!BH22,$HA$14:$HM$22,GJ$11+1,0)*DD14*AK14) -> 0 | CQ14: ='0.FAV Calculos'!BH29*'0.FAV Calculos'!BH27*(VLOOKUP('0.FAV Calculos'!BH22,$HA$14:$HM$22,GK$11+1,0)*DE14*AL14) -> 0 | CR14: ='0.FAV Calculos'!BH29*'0.FAV Calculos'!BH27*(VLOOKUP('0.FAV Calculos'!BH22,$HA$14:$HM$22,GL$11+1,0)*DF14*AM14) -> 0 | CS14: ='0.FAV Calculos'!BH29*'0.FAV Calculos'!BH27*(VLOOKUP('0.FAV Calculos'!BH22,$HA$14:$HM$22,GM$11+1,0)*DG14*AN14) -> 0 | CT14: ='0.FAV Calculos'!BH29*'0.FAV Calculos'!BH27*(VLOOKUP('0.FAV Calculos'!BH22,$HA$14:$HM$22,GN$11+1,0)*DH14*AO14) -> 0 | CU14: ='0.FAV Calculos'!BH29*'0.FAV Calculos'!BH27*(VLOOKUP('0.FAV Calculos'!BH22,$HA$14:$HM$22,GO$11+1,0)*DI14*AP14) -> 0 | CV14: ='0.FAV Calculos'!BH29*'0.FAV Calculos'!BH27*(VLOOKUP('0.FAV Calculos'!BH22,$HA$14:$HM$22,GP$11+1,0)*DJ14*AQ14) -> 0 | CX14: 0 | CY14: =+IF(AND(BH22="horiz",C14>0),1,DM14*EA14*EO14*FC14*FQ14) -> 0 | CZ14: =+IF(AND(BH22="horiz",D14>0),1,DN14*EB14*EP14*FD14*FR14) -> 0 | DA14: =+IF(AND(BH22="horiz",E14>0),1,DO14*EC14*EQ14*FE14*FS14) -> 0 | DB14: =+IF(AND(BH22="horiz",F14>0),1,DP14*ED14*ER14*FF14*FT14) -> 0 | DC14: =+IF(AND(BH22="horiz",G14>0),1,DQ14*EE14*ES14*FG14*FU14) -> 0 | DD14: =+IF(AND(BH22="horiz",H14>0),1,DR14*EF14*ET14*FH14*FV14) -> 0 | DE14: =+IF(AND(BH22="horiz",I14>0),1,DS14*EG14*EU14*FI14*FW14) -> 0 | DF14: =+IF(AND(BH22="horiz",J14>0),1,DT14*EH14*EV14*FJ14*FX14) -> 0 | DG14: =+IF(AND(BH22="horiz",K14>0),1,DU14*EI14*EW14*FK14*FY14) -> 0 | DH14: =+IF(AND(BH22="horiz",L14>0),1,DV14*EJ14*EX14*FL14*FZ14) -> 0 | DI14: =+IF(AND(BH22="horiz",M14>0),1,DW14*EK14*EY14*FM14*GA14) -> 0 | DJ14: =+IF(AND(BH22="horiz",N14>0),1,DX14*EL14*EZ14*FN14*GB14) -> 0 | DL14: 0 | DM14: =+IF(OR(C14<=0,AND(R14>0,'0.FAV Calculos'!BH17="n",R14>'0.FAV Calculos'!BH19),AND(R14>0,'0.FAV Calculos'!BH17="s",R14<'0.FAV Calculos'!BH18),AND(R14<0,'0.FAV Calculos'!BH17="s",R14>'0.FAV Calculos'!BH19),AND(R14<0,'0.FAV Calculos'!BH17="n",R14<'0.FAV Calculos'!BH18),AND(R14<0,'0.FAV Calculos'!BH17="e"),AND(R14>0,'0.FAV Calculos'!BH17="o"),AND(R14=0,'0.FAV Calculos'!BH17<>"n")),0,1)*IF(AND(R14>='0.FAV Calculos'!BH18,R14<='0.FAV Calculos'!BM18,C14>=DEGREES(ATAN(('0.FAV Calculos'!BK18/2+'0.FAV Calculos'!BK19)/SQRT(('0.FAV Calculos'!BK17/2)^2+('0.FAV Calculos'!BK17/2*TAN(RADIANS('0.FAV Calculos'!BH18-R14)))^2)))),0,1)*IF(AND(R14>'0.FAV Calculos'!BM18,R14<='0.FAV Calculos'!BH20,C14>=DEGREES(ATAN(('0.FAV Calculos'!BK18/2+'0.FAV Calculos'!BK19)/(SQRT(('0.FAV Calculos'!BK20)^2+('0.FAV Calculos'!BK20*TAN(RADIANS(R14-'0.FAV Calculos'!BH20)))^2))))),0,1)*IF(AND(R14>='0.FAV Calculos'!BH21,R14<='0.FAV Calculos'!BM17,C14>=DEGREES(ATAN(('0.FAV Calculos'!BK18/2+'0.FAV Calculos'!BK19)/(SQRT(('0.FAV Calculos'!BK20)^2+('0.FAV Calculos'!BK20*TAN(RADIANS(R14-'0.FAV Calculos'!BH21)))^2))))),0,1)*IF(AND(R14>='0.FAV Calculos'!BM17,R14<='0.FAV Calculos'!BH19,C14>=DEGREES(ATAN(('0.FAV Calculos'!BK18/2+'0.FAV Calculos'!BK19)/SQRT(('0.FAV Calculos'!BK17/2)^2+('0.FAV Calculos'!BK17/2*TAN(RADIANS('0.FAV Calculos'!BH19-R14)))^2)))),0,1) -> 0 | DN14: =+IF(OR(D14<=0,AND(S14>0,'0.FAV Calculos'!BH17="n",S14>'0.FAV Calculos'!BH19),AND(S14>0,'0.FAV Calculos'!BH17="s",S14<'0.FAV Calculos'!BH18),AND(S14<0,'0.FAV Calculos'!BH17="s",S14>'0.FAV Calculos'!BH19),AND(S14<0,'0.FAV Calculos'!BH17="n",S14<'0.FAV Calculos'!BH18),AND(S14<0,'0.FAV Calculos'!BH17="e"),AND(S14>0,'0.FAV Calculos'!BH17="o"),AND(S14=0,'0.FAV Calculos'!BH17<>"n")),0,1)*IF(AND(S14>='0.FAV Calculos'!BH18,S14<='0.FAV Calculos'!BM18,D14>=DEGREES(ATAN(('0.FAV Calculos'!BK18/2+'0.FAV Calculos'!BK19)/SQRT(('0.FAV Calculos'!BK17/2)^2+('0.FAV Calculos'!BK17/2*TAN(RADIANS('0.FAV Calculos'!BH18-S14)))^2)))),0,1)*IF(AND(S14>'0.FAV Calculos'!BM18,S14<='0.FAV Calculos'!BH20,D14>=DEGREES(ATAN(('0.FAV Calculos'!BK18/2+'0.FAV Calculos'!BK19)/(SQRT(('0.FAV Calculos'!BK20)^2+('0.FAV Calculos'!BK20*TAN(RADIANS(S14-'0.FAV Calculos'!BH20)))^2))))),0,1)*IF(AND(S14>='0.FAV Calculos'!BH21,S14<='0.FAV Calculos'!BM17,D14>=DEGREES(ATAN(('0.FAV Calculos'!BK18/2+'0.FAV Calculos'!BK19)/(SQRT(('0.FAV Calculos'!BK20)^2+('0.FAV Calculos'!BK20*TAN(RADIANS(S14-'0.FAV Calculos'!BH21)))^2))))),0,1)*IF(AND(S14>='0.FAV Calculos'!BM17,S14<='0.FAV Calculos'!BH19,D14>=DEGREES(ATAN(('0.FAV Calculos'!BK18/2+'0.FAV Calculos'!BK19)/SQRT(('0.FAV Calculos'!BK17/2)^2+('0.FAV Calculos'!BK17/2*TAN(RADIANS('0.FAV Calculos'!BH19-S14)))^2)))),0,1) -> 0 | DO14: =+IF(OR(E14<=0,AND(T14>0,'0.FAV Calculos'!BH17="n",T14>'0.FAV Calculos'!BH19),AND(T14>0,'0.FAV Calculos'!BH17="s",T14<'0.FAV Calculos'!BH18),AND(T14<0,'0.FAV Calculos'!BH17="s",T14>'0.FAV Calculos'!BH19),AND(T14<0,'0.FAV Calculos'!BH17="n",T14<'0.FAV Calculos'!BH18),AND(T14<0,'0.FAV Calculos'!BH17="e"),AND(T14>0,'0.FAV Calculos'!BH17="o"),AND(T14=0,'0.FAV Calculos'!BH17<>"n")),0,1)*IF(AND(T14>='0.FAV Calculos'!BH18,T14<='0.FAV Calculos'!BM18,E14>=DEGREES(ATAN(('0.FAV Calculos'!BK18/2+'0.FAV Calculos'!BK19)/SQRT(('0.FAV Calculos'!BK17/2)^2+('0.FAV Calculos'!BK17/2*TAN(RADIANS('0.FAV Calculos'!BH18-T14)))^2)))),0,1)*IF(AND(T14>'0.FAV Calculos'!BM18,T14<='0.FAV Calculos'!BH20,E14>=DEGREES(ATAN(('0.FAV Calculos'!BK18/2+'0.FAV Calculos'!BK19)/(SQRT(('0.FAV Calculos'!BK20)^2+('0.FAV Calculos'!BK20*TAN(RADIANS(T14-'0.FAV Calculos'!BH20)))^2))))),0,1)*IF(AND(T14>='0.FAV Calculos'!BH21,T14<='0.FAV Calculos'!BM17,E14>=DEGREES(ATAN(('0.FAV Calculos'!BK18/2+'0.FAV Calculos'!BK19)/(SQRT(('0.FAV Calculos'!BK20)^2+('0.FAV Calculos'!BK20*TAN(RADIANS(T14-'0.FAV Calculos'!BH21)))^2))))),0,1)*IF(AND(T14>='0.FAV Calculos'!BM17,T14<='0.FAV Calculos'!BH19,E14>=DEGREES(ATAN(('0.FAV Calculos'!BK18/2+'0.FAV Calculos'!BK19)/SQRT(('0.FAV Calculos'!BK17/2)^2+('0.FAV Calculos'!BK17/2*TAN(RADIANS('0.FAV Calculos'!BH19-T14)))^2)))),0,1) -> 0 | DP14: =+IF(OR(F14<=0,AND(U14>0,'0.FAV Calculos'!BH17="n",U14>'0.FAV Calculos'!BH19),AND(U14>0,'0.FAV Calculos'!BH17="s",U14<'0.FAV Calculos'!BH18),AND(U14<0,'0.FAV Calculos'!BH17="s",U14>'0.FAV Calculos'!BH19),AND(U14<0,'0.FAV Calculos'!BH17="n",U14<'0.FAV Calculos'!BH18),AND(U14<0,'0.FAV Calculos'!BH17="e"),AND(U14>0,'0.FAV Calculos'!BH17="o"),AND(U14=0,'0.FAV Calculos'!BH17<>"n")),0,1)*IF(AND(U14>='0.FAV Calculos'!BH18,U14<='0.FAV Calculos'!BM18,F14>=DEGREES(ATAN(('0.FAV Calculos'!BK18/2+'0.FAV Calculos'!BK19)/SQRT(('0.FAV Calculos'!BK17/2)^2+('0.FAV Calculos'!BK17/2*TAN(RADIANS('0.FAV Calculos'!BH18-U14)))^2)))),0,1)*IF(AND(U14>'0.FAV Calculos'!BM18,U14<='0.FAV Calculos'!BH20,F14>=DEGREES(ATAN(('0.FAV Calculos'!BK18/2+'0.FAV Calculos'!BK19)/(SQRT(('0.FAV Calculos'!BK20)^2+('0.FAV Calculos'!BK20*TAN(RADIANS(U14-'0.FAV Calculos'!BH20)))^2))))),0,1)*IF(AND(U14>='0.FAV Calculos'!BH21,U14<='0.FAV Calculos'!BM17,F14>=DEGREES(ATAN(('0.FAV Calculos'!BK18/2+'0.FAV Calculos'!BK19)/(SQRT(('0.FAV Calculos'!BK20)^2+('0.FAV Calculos'!BK20*TAN(RADIANS(U14-'0.FAV Calculos'!BH21)))^2))))),0,1)*IF(AND(U14>='0.FAV Calculos'!BM17,U14<='0.FAV Calculos'!BH19,F14>=DEGREES(ATAN(('0.FAV Calculos'!BK18/2+'0.FAV Calculos'!BK19)/SQRT(('0.FAV Calculos'!BK17/2)^2+('0.FAV Calculos'!BK17/2*TAN(RADIANS('0.FAV Calculos'!BH19-U14)))^2)))),0,1) -> 0 | DQ14: =+IF(OR(G14<=0,AND(V14>0,'0.FAV Calculos'!BH17="n",V14>'0.FAV Calculos'!BH19),AND(V14>0,'0.FAV Calculos'!BH17="s",V14<'0.FAV Calculos'!BH18),AND(V14<0,'0.FAV Calculos'!BH17="s",V14>'0.FAV Calculos'!BH19),AND(V14<0,'0.FAV Calculos'!BH17="n",V14<'0.FAV Calculos'!BH18),AND(V14<0,'0.FAV Calculos'!BH17="e"),AND(V14>0,'0.FAV Calculos'!BH17="o"),AND(V14=0,'0.FAV Calculos'!BH17<>"n")),0,1)*IF(AND(V14>='0.FAV Calculos'!BH18,V14<='0.FAV Calculos'!BM18,G14>=DEGREES(ATAN(('0.FAV Calculos'!BK18/2+'0.FAV Calculos'!BK19)/SQRT(('0.FAV Calculos'!BK17/2)^2+('0.FAV Calculos'!BK17/2*TAN(RADIANS('0.FAV Calculos'!BH18-V14)))^2)))),0,1)*IF(AND(V14>'0.FAV Calculos'!BM18,V14<='0.FAV Calculos'!BH20,G14>=DEGREES(ATAN(('0.FAV Calculos'!BK18/2+'0.FAV Calculos'!BK19)/(SQRT(('0.FAV Calculos'!BK20)^2+('0.FAV Calculos'!BK20*TAN(RADIANS(V14-'0.FAV Calculos'!BH20)))^2))))),0,1)*IF(AND(V14>='0.FAV Calculos'!BH21,V14<='0.FAV Calculos'!BM17,G14>=DEGREES(ATAN(('0.FAV Calculos'!BK18/2+'0.FAV Calculos'!BK19)/(SQRT(('0.FAV Calculos'!BK20)^2+('0.FAV Calculos'!BK20*TAN(RADIANS(V14-'0.FAV Calculos'!BH21)))^2))))),0,1)*IF(AND(V14>='0.FAV Calculos'!BM17,V14<='0.FAV Calculos'!BH19,G14>=DEGREES(ATAN(('0.FAV Calculos'!BK18/2+'0.FAV Calculos'!BK19)/SQRT(('0.FAV Calculos'!BK17/2)^2+('0.FAV Calculos'!BK17/2*TAN(RADIANS('0.FAV Calculos'!BH19-V14)))^2)))),0,1) -> 0 | DR14: =+IF(OR(H14<=0,AND(W14>0,'0.FAV Calculos'!BH17="n",W14>'0.FAV Calculos'!BH19),AND(W14>0,'0.FAV Calculos'!BH17="s",W14<'0.FAV Calculos'!BH18),AND(W14<0,'0.FAV Calculos'!BH17="s",W14>'0.FAV Calculos'!BH19),AND(W14<0,'0.FAV Calculos'!BH17="n",W14<'0.FAV Calculos'!BH18),AND(W14<0,'0.FAV Calculos'!BH17="e"),AND(W14>0,'0.FAV Calculos'!BH17="o"),AND(W14=0,'0.FAV Calculos'!BH17<>"n")),0,1)*IF(AND(W14>='0.FAV Calculos'!BH18,W14<='0.FAV Calculos'!BM18,H14>=DEGREES(ATAN(('0.FAV Calculos'!BK18/2+'0.FAV Calculos'!BK19)/SQRT(('0.FAV Calculos'!BK17/2)^2+('0.FAV Calculos'!BK17/2*TAN(RADIANS('0.FAV Calculos'!BH18-W14)))^2)))),0,1)*IF(AND(W14>'0.FAV Calculos'!BM18,W14<='0.FAV Calculos'!BH20,H14>=DEGREES(ATAN(('0.FAV Calculos'!BK18/2+'0.FAV Calculos'!BK19)/(SQRT(('0.FAV Calculos'!BK20)^2+('0.FAV Calculos'!BK20*TAN(RADIANS(W14-'0.FAV Calculos'!BH20)))^2))))),0,1)*IF(AND(W14>='0.FAV Calculos'!BH21,W14<='0.FAV Calculos'!BM17,H14>=DEGREES(ATAN(('0.FAV Calculos'!BK18/2+'0.FAV Calculos'!BK19)/(SQRT(('0.FAV Calculos'!BK20)^2+('0.FAV Calculos'!BK20*TAN(RADIANS(W14-'0.FAV Calculos'!BH21)))^2))))),0,1)*IF(AND(W14>='0.FAV Calculos'!BM17,W14<='0.FAV Calculos'!BH19,H14>=DEGREES(ATAN(('0.FAV Calculos'!BK18/2+'0.FAV Calculos'!BK19)/SQRT(('0.FAV Calculos'!BK17/2)^2+('0.FAV Calculos'!BK17/2*TAN(RADIANS('0.FAV Calculos'!BH19-W14)))^2)))),0,1) -> 0 | DS14: =+IF(OR(I14<=0,AND(X14>0,'0.FAV Calculos'!BH17="n",X14>'0.FAV Calculos'!BH19),AND(X14>0,'0.FAV Calculos'!BH17="s",X14<'0.FAV Calculos'!BH18),AND(X14<0,'0.FAV Calculos'!BH17="s",X14>'0.FAV Calculos'!BH19),AND(X14<0,'0.FAV Calculos'!BH17="n",X14<'0.FAV Calculos'!BH18),AND(X14<0,'0.FAV Calculos'!BH17="e"),AND(X14>0,'0.FAV Calculos'!BH17="o"),AND(X14=0,'0.FAV Calculos'!BH17<>"n")),0,1)*IF(AND(X14>='0.FAV Calculos'!BH18,X14<='0.FAV Calculos'!BM18,I14>=DEGREES(ATAN(('0.FAV Calculos'!BK18/2+'0.FAV Calculos'!BK19)/SQRT(('0.FAV Calculos'!BK17/2)^2+('0.FAV Calculos'!BK17/2*TAN(RADIANS('0.FAV Calculos'!BH18-X14)))^2)))),0,1)*IF(AND(X14>'0.FAV Calculos'!BM18,X14<='0.FAV Calculos'!BH20,I14>=DEGREES(ATAN(('0.FAV Calculos'!BK18/2+'0.FAV Calculos'!BK19)/(SQRT(('0.FAV Calculos'!BK20)^2+('0.FAV Calculos'!BK20*TAN(RADIANS(X14-'0.FAV Calculos'!BH20)))^2))))),0,1)*IF(AND(X14>='0.FAV Calculos'!BH21,X14<='0.FAV Calculos'!BM17,I14>=DEGREES(ATAN(('0.FAV Calculos'!BK18/2+'0.FAV Calculos'!BK19)/(SQRT(('0.FAV Calculos'!BK20)^2+('0.FAV Calculos'!BK20*TAN(RADIANS(X14-'0.FAV Calculos'!BH21)))^2))))),0,1)*IF(AND(X14>='0.FAV Calculos'!BM17,X14<='0.FAV Calculos'!BH19,I14>=DEGREES(ATAN(('0.FAV Calculos'!BK18/2+'0.FAV Calculos'!BK19)/SQRT(('0.FAV Calculos'!BK17/2)^2+('0.FAV Calculos'!BK17/2*TAN(RADIANS('0.FAV Calculos'!BH19-X14)))^2)))),0,1) -> 0 | DT14: =+IF(OR(J14<=0,AND(Y14>0,'0.FAV Calculos'!BH17="n",Y14>'0.FAV Calculos'!BH19),AND(Y14>0,'0.FAV Calculos'!BH17="s",Y14<'0.FAV Calculos'!BH18),AND(Y14<0,'0.FAV Calculos'!BH17="s",Y14>'0.FAV Calculos'!BH19),AND(Y14<0,'0.FAV Calculos'!BH17="n",Y14<'0.FAV Calculos'!BH18),AND(Y14<0,'0.FAV Calculos'!BH17="e"),AND(Y14>0,'0.FAV Calculos'!BH17="o"),AND(Y14=0,'0.FAV Calculos'!BH17<>"n")),0,1)*IF(AND(Y14>='0.FAV Calculos'!BH18,Y14<='0.FAV Calculos'!BM18,J14>=DEGREES(ATAN(('0.FAV Calculos'!BK18/2+'0.FAV Calculos'!BK19)/SQRT(('0.FAV Calculos'!BK17/2)^2+('0.FAV Calculos'!BK17/2*TAN(RADIANS('0.FAV Calculos'!BH18-Y14)))^2)))),0,1)*IF(AND(Y14>'0.FAV Calculos'!BM18,Y14<='0.FAV Calculos'!BH20,J14>=DEGREES(ATAN(('0.FAV Calculos'!BK18/2+'0.FAV Calculos'!BK19)/(SQRT(('0.FAV Calculos'!BK20)^2+('0.FAV Calculos'!BK20*TAN(RADIANS(Y14-'0.FAV Calculos'!BH20)))^2))))),0,1)*IF(AND(Y14>='0.FAV Calculos'!BH21,Y14<='0.FAV Calculos'!BM17,J14>=DEGREES(ATAN(('0.FAV Calculos'!BK18/2+'0.FAV Calculos'!BK19)/(SQRT(('0.FAV Calculos'!BK20)^2+('0.FAV Calculos'!BK20*TAN(RADIANS(Y14-'0.FAV Calculos'!BH21)))^2))))),0,1)*IF(AND(Y14>='0.FAV Calculos'!BM17,Y14<='0.FAV Calculos'!BH19,J14>=DEGREES(ATAN(('0.FAV Calculos'!BK18/2+'0.FAV Calculos'!BK19)/SQRT(('0.FAV Calculos'!BK17/2)^2+('0.FAV Calculos'!BK17/2*TAN(RADIANS('0.FAV Calculos'!BH19-Y14)))^2)))),0,1) -> 0 | DU14: =+IF(OR(K14<=0,AND(Z14>0,'0.FAV Calculos'!BH17="n",Z14>'0.FAV Calculos'!BH19),AND(Z14>0,'0.FAV Calculos'!BH17="s",Z14<'0.FAV Calculos'!BH18),AND(Z14<0,'0.FAV Calculos'!BH17="s",Z14>'0.FAV Calculos'!BH19),AND(Z14<0,'0.FAV Calculos'!BH17="n",Z14<'0.FAV Calculos'!BH18),AND(Z14<0,'0.FAV Calculos'!BH17="e"),AND(Z14>0,'0.FAV Calculos'!BH17="o"),AND(Z14=0,'0.FAV Calculos'!BH17<>"n")),0,1)*IF(AND(Z14>='0.FAV Calculos'!BH18,Z14<='0.FAV Calculos'!BM18,K14>=DEGREES(ATAN(('0.FAV Calculos'!BK18/2+'0.FAV Calculos'!BK19)/SQRT(('0.FAV Calculos'!BK17/2)^2+('0.FAV Calculos'!BK17/2*TAN(RADIANS('0.FAV Calculos'!BH18-Z14)))^2)))),0,1)*IF(AND(Z14>'0.FAV Calculos'!BM18,Z14<='0.FAV Calculos'!BH20,K14>=DEGREES(ATAN(('0.FAV Calculos'!BK18/2+'0.FAV Calculos'!BK19)/(SQRT(('0.FAV Calculos'!BK20)^2+('0.FAV Calculos'!BK20*TAN(RADIANS(Z14-'0.FAV Calculos'!BH20)))^2))))),0,1)*IF(AND(Z14>='0.FAV Calculos'!BH21,Z14<='0.FAV Calculos'!BM17,K14>=DEGREES(ATAN(('0.FAV Calculos'!BK18/2+'0.FAV Calculos'!BK19)/(SQRT(('0.FAV Calculos'!BK20)^2+('0.FAV Calculos'!BK20*TAN(RADIANS(Z14-'0.FAV Calculos'!BH21)))^2))))),0,1)*IF(AND(Z14>='0.FAV Calculos'!BM17,Z14<='0.FAV Calculos'!BH19,K14>=DEGREES(ATAN(('0.FAV Calculos'!BK18/2+'0.FAV Calculos'!BK19)/SQRT(('0.FAV Calculos'!BK17/2)^2+('0.FAV Calculos'!BK17/2*TAN(RADIANS('0.FAV Calculos'!BH19-Z14)))^2)))),0,1) -> 0 | DV14: =+IF(OR(L14<=0,AND(AA14>0,'0.FAV Calculos'!BH17="n",AA14>'0.FAV Calculos'!BH19),AND(AA14>0,'0.FAV Calculos'!BH17="s",AA14<'0.FAV Calculos'!BH18),AND(AA14<0,'0.FAV Calculos'!BH17="s",AA14>'0.FAV Calculos'!BH19),AND(AA14<0,'0.FAV Calculos'!BH17="n",AA14<'0.FAV Calculos'!BH18),AND(AA14<0,'0.FAV Calculos'!BH17="e"),AND(AA14>0,'0.FAV Calculos'!BH17="o"),AND(AA14=0,'0.FAV Calculos'!BH17<>"n")),0,1)*IF(AND(AA14>='0.FAV Calculos'!BH18,AA14<='0.FAV Calculos'!BM18,L14>=DEGREES(ATAN(('0.FAV Calculos'!BK18/2+'0.FAV Calculos'!BK19)/SQRT(('0.FAV Calculos'!BK17/2)^2+('0.FAV Calculos'!BK17/2*TAN(RADIANS('0.FAV Calculos'!BH18-AA14)))^2)))),0,1)*IF(AND(AA14>'0.FAV Calculos'!BM18,AA14<='0.FAV Calculos'!BH20,L14>=DEGREES(ATAN(('0.FAV Calculos'!BK18/2+'0.FAV Calculos'!BK19)/(SQRT(('0.FAV Calculos'!BK20)^2+('0.FAV Calculos'!BK20*TAN(RADIANS(AA14-'0.FAV Calculos'!BH20)))^2))))),0,1)*IF(AND(AA14>='0.FAV Calculos'!BH21,AA14<='0.FAV Calculos'!BM17,L14>=DEGREES(ATAN(('0.FAV Calculos'!BK18/2+'0.FAV Calculos'!BK19)/(SQRT(('0.FAV Calculos'!BK20)^2+('0.FAV Calculos'!BK20*TAN(RADIANS(AA14-'0.FAV Calculos'!BH21)))^2))))),0,1)*IF(AND(AA14>='0.FAV Calculos'!BM17,AA14<='0.FAV Calculos'!BH19,L14>=DEGREES(ATAN(('0.FAV Calculos'!BK18/2+'0.FAV Calculos'!BK19)/SQRT(('0.FAV Calculos'!BK17/2)^2+('0.FAV Calculos'!BK17/2*TAN(RADIANS('0.FAV Calculos'!BH19-AA14)))^2)))),0,1) -> 0 | DW14: =+IF(OR(M14<=0,AND(AB14>0,'0.FAV Calculos'!BH17="n",AB14>'0.FAV Calculos'!BH19),AND(AB14>0,'0.FAV Calculos'!BH17="s",AB14<'0.FAV Calculos'!BH18),AND(AB14<0,'0.FAV Calculos'!BH17="s",AB14>'0.FAV Calculos'!BH19),AND(AB14<0,'0.FAV Calculos'!BH17="n",AB14<'0.FAV Calculos'!BH18),AND(AB14<0,'0.FAV Calculos'!BH17="e"),AND(AB14>0,'0.FAV Calculos'!BH17="o"),AND(AB14=0,'0.FAV Calculos'!BH17<>"n")),0,1)*IF(AND(AB14>='0.FAV Calculos'!BH18,AB14<='0.FAV Calculos'!BM18,M14>=DEGREES(ATAN(('0.FAV Calculos'!BK18/2+'0.FAV Calculos'!BK19)/SQRT(('0.FAV Calculos'!BK17/2)^2+('0.FAV Calculos'!BK17/2*TAN(RADIANS('0.FAV Calculos'!BH18-AB14)))^2)))),0,1)*IF(AND(AB14>'0.FAV Calculos'!BM18,AB14<='0.FAV Calculos'!BH20,M14>=DEGREES(ATAN(('0.FAV Calculos'!BK18/2+'0.FAV Calculos'!BK19)/(SQRT(('0.FAV Calculos'!BK20)^2+('0.FAV Calculos'!BK20*TAN(RADIANS(AB14-'0.FAV Calculos'!BH20)))^2))))),0,1)*IF(AND(AB14>='0.FAV Calculos'!BH21,AB14<='0.FAV Calculos'!BM17,M14>=DEGREES(ATAN(('0.FAV Calculos'!BK18/2+'0.FAV Calculos'!BK19)/(SQRT(('0.FAV Calculos'!BK20)^2+('0.FAV Calculos'!BK20*TAN(RADIANS(AB14-'0.FAV Calculos'!BH21)))^2))))),0,1)*IF(AND(AB14>='0.FAV Calculos'!BM17,AB14<='0.FAV Calculos'!BH19,M14>=DEGREES(ATAN(('0.FAV Calculos'!BK18/2+'0.FAV Calculos'!BK19)/SQRT(('0.FAV Calculos'!BK17/2)^2+('0.FAV Calculos'!BK17/2*TAN(RADIANS('0.FAV Calculos'!BH19-AB14)))^2)))),0,1) -> 0 | DX14: =+IF(OR(N14<=0,AND(AC14>0,'0.FAV Calculos'!BH17="n",AC14>'0.FAV Calculos'!BH19),AND(AC14>0,'0.FAV Calculos'!BH17="s",AC14<'0.FAV Calculos'!BH18),AND(AC14<0,'0.FAV Calculos'!BH17="s",AC14>'0.FAV Calculos'!BH19),AND(AC14<0,'0.FAV Calculos'!BH17="n",AC14<'0.FAV Calculos'!BH18),AND(AC14<0,'0.FAV Calculos'!BH17="e"),AND(AC14>0,'0.FAV Calculos'!BH17="o"),AND(AC14=0,'0.FAV Calculos'!BH17<>"n")),0,1)*IF(AND(AC14>='0.FAV Calculos'!BH18,AC14<='0.FAV Calculos'!BM18,N14>=DEGREES(ATAN(('0.FAV Calculos'!BK18/2+'0.FAV Calculos'!BK19)/SQRT(('0.FAV Calculos'!BK17/2)^2+('0.FAV Calculos'!BK17/2*TAN(RADIANS('0.FAV Calculos'!BH18-AC14)))^2)))),0,1)*IF(AND(AC14>'0.FAV Calculos'!BM18,AC14<='0.FAV Calculos'!BH20,N14>=DEGREES(ATAN(('0.FAV Calculos'!BK18/2+'0.FAV Calculos'!BK19)/(SQRT(('0.FAV Calculos'!BK20)^2+('0.FAV Calculos'!BK20*TAN(RADIANS(AC14-'0.FAV Calculos'!BH20)))^2))))),0,1)*IF(AND(AC14>='0.FAV Calculos'!BH21,AC14<='0.FAV Calculos'!BM17,N14>=DEGREES(ATAN(('0.FAV Calculos'!BK18/2+'0.FAV Calculos'!BK19)/(SQRT(('0.FAV Calculos'!BK20)^2+('0.FAV Calculos'!BK20*TAN(RADIANS(AC14-'0.FAV Calculos'!BH21)))^2))))),0,1)*IF(AND(AC14>='0.FAV Calculos'!BM17,AC14<='0.FAV Calculos'!BH19,N14>=DEGREES(ATAN(('0.FAV Calculos'!BK18/2+'0.FAV Calculos'!BK19)/SQRT(('0.FAV Calculos'!BK17/2)^2+('0.FAV Calculos'!BK17/2*TAN(RADIANS('0.FAV Calculos'!BH19-AC14)))^2)))),0,1) -> 0 | DZ14: 0 | EA14: =+IF(OR(C14<=0,AND(R14>0,'0.FAV Calculos'!BH17="n",R14>'0.FAV Calculos'!BH19),AND(R14>0,'0.FAV Calculos'!BH17="s",R14<'0.FAV Calculos'!BH18),AND(R14<0,'0.FAV Calculos'!BH17="s",R14>'0.FAV Calculos'!BH19),AND(R14<0,'0.FAV Calculos'!BH17="n",R14<'0.FAV Calculos'!BH18),AND(R14<0,'0.FAV Calculos'!BH17="e"),AND(R14>0,'0.FAV Calculos'!BH17="o"),AND(R14=0,'0.FAV Calculos'!BH17<>"n")),0,1)*IF(AND(R14>='0.FAV Calculos'!BH18,R14<='0.FAV Calculos'!BM27,C14<=DEGREES(ATAN(('0.FAV Calculos'!BK28/2)/SQRT(('0.FAV Calculos'!BK27/2+'0.FAV Calculos'!BK30)^2+(('0.FAV Calculos'!BK27/2+'0.FAV Calculos'!BK30)*TAN(RADIANS('0.FAV Calculos'!BH18-R14)))^2)))),0,1)*IF(AND(R14>='0.FAV Calculos'!BM22,R14<='0.FAV Calculos'!BH19,C14<=DEGREES(ATAN(('0.FAV Calculos'!BK23/2)/SQRT(('0.FAV Calculos'!BK22/2+'0.FAV Calculos'!BK25)^2+(('0.FAV Calculos'!BK22/2+'0.FAV Calculos'!BK25)*TAN(RADIANS('0.FAV Calculos'!BH19-R14)))^2)))),0,1) -> 0 | EB14: =+IF(OR(D14<=0,AND(S14>0,'0.FAV Calculos'!BH17="n",S14>'0.FAV Calculos'!BH19),AND(S14>0,'0.FAV Calculos'!BH17="s",S14<'0.FAV Calculos'!BH18),AND(S14<0,'0.FAV Calculos'!BH17="s",S14>'0.FAV Calculos'!BH19),AND(S14<0,'0.FAV Calculos'!BH17="n",S14<'0.FAV Calculos'!BH18),AND(S14<0,'0.FAV Calculos'!BH17="e"),AND(S14>0,'0.FAV Calculos'!BH17="o"),AND(S14=0,'0.FAV Calculos'!BH17<>"n")),0,1)*IF(AND(S14>='0.FAV Calculos'!BH18,S14<='0.FAV Calculos'!BM27,D14<=DEGREES(ATAN(('0.FAV Calculos'!BK28/2)/SQRT(('0.FAV Calculos'!BK27/2+'0.FAV Calculos'!BK30)^2+(('0.FAV Calculos'!BK27/2+'0.FAV Calculos'!BK30)*TAN(RADIANS('0.FAV Calculos'!BH18-S14)))^2)))),0,1)*IF(AND(S14>='0.FAV Calculos'!BM22,S14<='0.FAV Calculos'!BH19,D14<=DEGREES(ATAN(('0.FAV Calculos'!BK23/2)/SQRT(('0.FAV Calculos'!BK22/2+'0.FAV Calculos'!BK25)^2+(('0.FAV Calculos'!BK22/2+'0.FAV Calculos'!BK25)*TAN(RADIANS('0.FAV Calculos'!BH19-S14)))^2)))),0,1) -> 0 | EC14: =+IF(OR(E14<=0,AND(T14>0,'0.FAV Calculos'!BH17="n",T14>'0.FAV Calculos'!BH19),AND(T14>0,'0.FAV Calculos'!BH17="s",T14<'0.FAV Calculos'!BH18),AND(T14<0,'0.FAV Calculos'!BH17="s",T14>'0.FAV Calculos'!BH19),AND(T14<0,'0.FAV Calculos'!BH17="n",T14<'0.FAV Calculos'!BH18),AND(T14<0,'0.FAV Calculos'!BH17="e"),AND(T14>0,'0.FAV Calculos'!BH17="o"),AND(T14=0,'0.FAV Calculos'!BH17<>"n")),0,1)*IF(AND(T14>='0.FAV Calculos'!BH18,T14<='0.FAV Calculos'!BM27,E14<=DEGREES(ATAN(('0.FAV Calculos'!BK28/2)/SQRT(('0.FAV Calculos'!BK27/2+'0.FAV Calculos'!BK30)^2+(('0.FAV Calculos'!BK27/2+'0.FAV Calculos'!BK30)*TAN(RADIANS('0.FAV Calculos'!BH18-T14)))^2)))),0,1)*IF(AND(T14>='0.FAV Calculos'!BM22,T14<='0.FAV Calculos'!BH19,E14<=DEGREES(ATAN(('0.FAV Calculos'!BK23/2)/SQRT(('0.FAV Calculos'!BK22/2+'0.FAV Calculos'!BK25)^2+(('0.FAV Calculos'!BK22/2+'0.FAV Calculos'!BK25)*TAN(RADIANS('0.FAV Calculos'!BH19-T14)))^2)))),0,1) -> 0 | ED14: =+IF(OR(F14<=0,AND(U14>0,'0.FAV Calculos'!BH17="n",U14>'0.FAV Calculos'!BH19),AND(U14>0,'0.FAV Calculos'!BH17="s",U14<'0.FAV Calculos'!BH18),AND(U14<0,'0.FAV Calculos'!BH17="s",U14>'0.FAV Calculos'!BH19),AND(U14<0,'0.FAV Calculos'!BH17="n",U14<'0.FAV Calculos'!BH18),AND(U14<0,'0.FAV Calculos'!BH17="e"),AND(U14>0,'0.FAV Calculos'!BH17="o"),AND(U14=0,'0.FAV Calculos'!BH17<>"n")),0,1)*IF(AND(U14>='0.FAV Calculos'!BH18,U14<='0.FAV Calculos'!BM27,F14<=DEGREES(ATAN(('0.FAV Calculos'!BK28/2)/SQRT(('0.FAV Calculos'!BK27/2+'0.FAV Calculos'!BK30)^2+(('0.FAV Calculos'!BK27/2+'0.FAV Calculos'!BK30)*TAN(RADIANS('0.FAV Calculos'!BH18-U14)))^2)))),0,1)*IF(AND(U14>='0.FAV Calculos'!BM22,U14<='0.FAV Calculos'!BH19,F14<=DEGREES(ATAN(('0.FAV Calculos'!BK23/2)/SQRT(('0.FAV Calculos'!BK22/2+'0.FAV Calculos'!BK25)^2+(('0.FAV Calculos'!BK22/2+'0.FAV Calculos'!BK25)*TAN(RADIANS('0.FAV Calculos'!BH19-U14)))^2)))),0,1) -> 0 | EE14: =+IF(OR(G14<=0,AND(V14>0,'0.FAV Calculos'!BH17="n",V14>'0.FAV Calculos'!BH19),AND(V14>0,'0.FAV Calculos'!BH17="s",V14<'0.FAV Calculos'!BH18),AND(V14<0,'0.FAV Calculos'!BH17="s",V14>'0.FAV Calculos'!BH19),AND(V14<0,'0.FAV Calculos'!BH17="n",V14<'0.FAV Calculos'!BH18),AND(V14<0,'0.FAV Calculos'!BH17="e"),AND(V14>0,'0.FAV Calculos'!BH17="o"),AND(V14=0,'0.FAV Calculos'!BH17<>"n")),0,1)*IF(AND(V14>='0.FAV Calculos'!BH18,V14<='0.FAV Calculos'!BM27,G14<=DEGREES(ATAN(('0.FAV Calculos'!BK28/2)/SQRT(('0.FAV Calculos'!BK27/2+'0.FAV Calculos'!BK30)^2+(('0.FAV Calculos'!BK27/2+'0.FAV Calculos'!BK30)*TAN(RADIANS('0.FAV Calculos'!BH18-V14)))^2)))),0,1)*IF(AND(V14>='0.FAV Calculos'!BM22,V14<='0.FAV Calculos'!BH19,G14<=DEGREES(ATAN(('0.FAV Calculos'!BK23/2)/SQRT(('0.FAV Calculos'!BK22/2+'0.FAV Calculos'!BK25)^2+(('0.FAV Calculos'!BK22/2+'0.FAV Calculos'!BK25)*TAN(RADIANS('0.FAV Calculos'!BH19-V14)))^2)))),0,1) -> 0 | EF14: =+IF(OR(H14<=0,AND(W14>0,'0.FAV Calculos'!BH17="n",W14>'0.FAV Calculos'!BH19),AND(W14>0,'0.FAV Calculos'!BH17="s",W14<'0.FAV Calculos'!BH18),AND(W14<0,'0.FAV Calculos'!BH17="s",W14>'0.FAV Calculos'!BH19),AND(W14<0,'0.FAV Calculos'!BH17="n",W14<'0.FAV Calculos'!BH18),AND(W14<0,'0.FAV Calculos'!BH17="e"),AND(W14>0,'0.FAV Calculos'!BH17="o"),AND(W14=0,'0.FAV Calculos'!BH17<>"n")),0,1)*IF(AND(W14>='0.FAV Calculos'!BH18,W14<='0.FAV Calculos'!BM27,H14<=DEGREES(ATAN(('0.FAV Calculos'!BK28/2)/SQRT(('0.FAV Calculos'!BK27/2+'0.FAV Calculos'!BK30)^2+(('0.FAV Calculos'!BK27/2+'0.FAV Calculos'!BK30)*TAN(RADIANS('0.FAV Calculos'!BH18-W14)))^2)))),0,1)*IF(AND(W14>='0.FAV Calculos'!BM22,W14<='0.FAV Calculos'!BH19,H14<=DEGREES(ATAN(('0.FAV Calculos'!BK23/2)/SQRT(('0.FAV Calculos'!BK22/2+'0.FAV Calculos'!BK25)^2+(('0.FAV Calculos'!BK22/2+'0.FAV Calculos'!BK25)*TAN(RADIANS('0.FAV Calculos'!BH19-W14)))^2)))),0,1) -> 0 | EG14: =+IF(OR(I14<=0,AND(X14>0,'0.FAV Calculos'!BH17="n",X14>'0.FAV Calculos'!BH19),AND(X14>0,'0.FAV Calculos'!BH17="s",X14<'0.FAV Calculos'!BH18),AND(X14<0,'0.FAV Calculos'!BH17="s",X14>'0.FAV Calculos'!BH19),AND(X14<0,'0.FAV Calculos'!BH17="n",X14<'0.FAV Calculos'!BH18),AND(X14<0,'0.FAV Calculos'!BH17="e"),AND(X14>0,'0.FAV Calculos'!BH17="o"),AND(X14=0,'0.FAV Calculos'!BH17<>"n")),0,1)*IF(AND(X14>='0.FAV Calculos'!BH18,X14<='0.FAV Calculos'!BM27,I14<=DEGREES(ATAN(('0.FAV Calculos'!BK28/2)/SQRT(('0.FAV Calculos'!BK27/2+'0.FAV Calculos'!BK30)^2+(('0.FAV Calculos'!BK27/2+'0.FAV Calculos'!BK30)*TAN(RADIANS('0.FAV Calculos'!BH18-X14)))^2)))),0,1)*IF(AND(X14>='0.FAV Calculos'!BM22,X14<='0.FAV Calculos'!BH19,I14<=DEGREES(ATAN(('0.FAV Calculos'!BK23/2)/SQRT(('0.FAV Calculos'!BK22/2+'0.FAV Calculos'!BK25)^2+(('0.FAV Calculos'!BK22/2+'0.FAV Calculos'!BK25)*TAN(RADIANS('0.FAV Calculos'!BH19-X14)))^2)))),0,1) -> 0 | EH14: =+IF(OR(J14<=0,AND(Y14>0,'0.FAV Calculos'!BH17="n",Y14>'0.FAV Calculos'!BH19),AND(Y14>0,'0.FAV Calculos'!BH17="s",Y14<'0.FAV Calculos'!BH18),AND(Y14<0,'0.FAV Calculos'!BH17="s",Y14>'0.FAV Calculos'!BH19),AND(Y14<0,'0.FAV Calculos'!BH17="n",Y14<'0.FAV Calculos'!BH18),AND(Y14<0,'0.FAV Calculos'!BH17="e"),AND(Y14>0,'0.FAV Calculos'!BH17="o"),AND(Y14=0,'0.FAV Calculos'!BH17<>"n")),0,1)*IF(AND(Y14>='0.FAV Calculos'!BH18,Y14<='0.FAV Calculos'!BM27,J14<=DEGREES(ATAN(('0.FAV Calculos'!BK28/2)/SQRT(('0.FAV Calculos'!BK27/2+'0.FAV Calculos'!BK30)^2+(('0.FAV Calculos'!BK27/2+'0.FAV Calculos'!BK30)*TAN(RADIANS('0.FAV Calculos'!BH18-Y14)))^2)))),0,1)*IF(AND(Y14>='0.FAV Calculos'!BM22,Y14<='0.FAV Calculos'!BH19,J14<=DEGREES(ATAN(('0.FAV Calculos'!BK23/2)/SQRT(('0.FAV Calculos'!BK22/2+'0.FAV Calculos'!BK25)^2+(('0.FAV Calculos'!BK22/2+'0.FAV Calculos'!BK25)*TAN(RADIANS('0.FAV Calculos'!BH19-Y14)))^2)))),0,1) -> 0 | EI14: =+IF(OR(K14<=0,AND(Z14>0,'0.FAV Calculos'!BH17="n",Z14>'0.FAV Calculos'!BH19),AND(Z14>0,'0.FAV Calculos'!BH17="s",Z14<'0.FAV Calculos'!BH18),AND(Z14<0,'0.FAV Calculos'!BH17="s",Z14>'0.FAV Calculos'!BH19),AND(Z14<0,'0.FAV Calculos'!BH17="n",Z14<'0.FAV Calculos'!BH18),AND(Z14<0,'0.FAV Calculos'!BH17="e"),AND(Z14>0,'0.FAV Calculos'!BH17="o"),AND(Z14=0,'0.FAV Calculos'!BH17<>"n")),0,1)*IF(AND(Z14>='0.FAV Calculos'!BH18,Z14<='0.FAV Calculos'!BM27,K14<=DEGREES(ATAN(('0.FAV Calculos'!BK28/2)/SQRT(('0.FAV Calculos'!BK27/2+'0.FAV Calculos'!BK30)^2+(('0.FAV Calculos'!BK27/2+'0.FAV Calculos'!BK30)*TAN(RADIANS('0.FAV Calculos'!BH18-Z14)))^2)))),0,1)*IF(AND(Z14>='0.FAV Calculos'!BM22,Z14<='0.FAV Calculos'!BH19,K14<=DEGREES(ATAN(('0.FAV Calculos'!BK23/2)/SQRT(('0.FAV Calculos'!BK22/2+'0.FAV Calculos'!BK25)^2+(('0.FAV Calculos'!BK22/2+'0.FAV Calculos'!BK25)*TAN(RADIANS('0.FAV Calculos'!BH19-Z14)))^2)))),0,1) -> 0 | EJ14: =+IF(OR(L14<=0,AND(AA14>0,'0.FAV Calculos'!BH17="n",AA14>'0.FAV Calculos'!BH19),AND(AA14>0,'0.FAV Calculos'!BH17="s",AA14<'0.FAV Calculos'!BH18),AND(AA14<0,'0.FAV Calculos'!BH17="s",AA14>'0.FAV Calculos'!BH19),AND(AA14<0,'0.FAV Calculos'!BH17="n",AA14<'0.FAV Calculos'!BH18),AND(AA14<0,'0.FAV Calculos'!BH17="e"),AND(AA14>0,'0.FAV Calculos'!BH17="o"),AND(AA14=0,'0.FAV Calculos'!BH17<>"n")),0,1)*IF(AND(AA14>='0.FAV Calculos'!BH18,AA14<='0.FAV Calculos'!BM27,L14<=DEGREES(ATAN(('0.FAV Calculos'!BK28/2)/SQRT(('0.FAV Calculos'!BK27/2+'0.FAV Calculos'!BK30)^2+(('0.FAV Calculos'!BK27/2+'0.FAV Calculos'!BK30)*TAN(RADIANS('0.FAV Calculos'!BH18-AA14)))^2)))),0,1)*IF(AND(AA14>='0.FAV Calculos'!BM22,AA14<='0.FAV Calculos'!BH19,L14<=DEGREES(ATAN(('0.FAV Calculos'!BK23/2)/SQRT(('0.FAV Calculos'!BK22/2+'0.FAV Calculos'!BK25)^2+(('0.FAV Calculos'!BK22/2+'0.FAV Calculos'!BK25)*TAN(RADIANS('0.FAV Calculos'!BH19-AA14)))^2)))),0,1) -> 0 | EK14: =+IF(OR(M14<=0,AND(AB14>0,'0.FAV Calculos'!BH17="n",AB14>'0.FAV Calculos'!BH19),AND(AB14>0,'0.FAV Calculos'!BH17="s",AB14<'0.FAV Calculos'!BH18),AND(AB14<0,'0.FAV Calculos'!BH17="s",AB14>'0.FAV Calculos'!BH19),AND(AB14<0,'0.FAV Calculos'!BH17="n",AB14<'0.FAV Calculos'!BH18),AND(AB14<0,'0.FAV Calculos'!BH17="e"),AND(AB14>0,'0.FAV Calculos'!BH17="o"),AND(AB14=0,'0.FAV Calculos'!BH17<>"n")),0,1)*IF(AND(AB14>='0.FAV Calculos'!BH18,AB14<='0.FAV Calculos'!BM27,M14<=DEGREES(ATAN(('0.FAV Calculos'!BK28/2)/SQRT(('0.FAV Calculos'!BK27/2+'0.FAV Calculos'!BK30)^2+(('0.FAV Calculos'!BK27/2+'0.FAV Calculos'!BK30)*TAN(RADIANS('0.FAV Calculos'!BH18-AB14)))^2)))),0,1)*IF(AND(AB14>='0.FAV Calculos'!BM22,AB14<='0.FAV Calculos'!BH19,M14<=DEGREES(ATAN(('0.FAV Calculos'!BK23/2)/SQRT(('0.FAV Calculos'!BK22/2+'0.FAV Calculos'!BK25)^2+(('0.FAV Calculos'!BK22/2+'0.FAV Calculos'!BK25)*TAN(RADIANS('0.FAV Calculos'!BH19-AB14)))^2)))),0,1) -> 0 | EL14: =+IF(OR(N14<=0,AND(AC14>0,'0.FAV Calculos'!BH17="n",AC14>'0.FAV Calculos'!BH19),AND(AC14>0,'0.FAV Calculos'!BH17="s",AC14<'0.FAV Calculos'!BH18),AND(AC14<0,'0.FAV Calculos'!BH17="s",AC14>'0.FAV Calculos'!BH19),AND(AC14<0,'0.FAV Calculos'!BH17="n",AC14<'0.FAV Calculos'!BH18),AND(AC14<0,'0.FAV Calculos'!BH17="e"),AND(AC14>0,'0.FAV Calculos'!BH17="o"),AND(AC14=0,'0.FAV Calculos'!BH17<>"n")),0,1)*IF(AND(AC14>='0.FAV Calculos'!BH18,AC14<='0.FAV Calculos'!BM27,N14<=DEGREES(ATAN(('0.FAV Calculos'!BK28/2)/SQRT(('0.FAV Calculos'!BK27/2+'0.FAV Calculos'!BK30)^2+(('0.FAV Calculos'!BK27/2+'0.FAV Calculos'!BK30)*TAN(RADIANS('0.FAV Calculos'!BH18-AC14)))^2)))),0,1)*IF(AND(AC14>='0.FAV Calculos'!BM22,AC14<='0.FAV Calculos'!BH19,N14<=DEGREES(ATAN(('0.FAV Calculos'!BK23/2)/SQRT(('0.FAV Calculos'!BK22/2+'0.FAV Calculos'!BK25)^2+(('0.FAV Calculos'!BK22/2+'0.FAV Calculos'!BK25)*TAN(RADIANS('0.FAV Calculos'!BH19-AC14)))^2)))),0,1) -> 0 | EN14: 0 | EO14: =+IF(OR(C14<=0,AND(R14>0,'0.FAV Calculos'!BH17="n",R14>'0.FAV Calculos'!BH19),AND(R14>0,'0.FAV Calculos'!BH17="s",R14<'0.FAV Calculos'!BH18),AND(R14<0,'0.FAV Calculos'!BH17="s",R14>'0.FAV Calculos'!BH19),AND(R14<0,'0.FAV Calculos'!BH17="n",R14<'0.FAV Calculos'!BH18),AND(R14<0,'0.FAV Calculos'!BH17="e"),AND(R14>0,'0.FAV Calculos'!BH17="o"),AND(R14=0,'0.FAV Calculos'!BH17<>"n")),0,1)*IF(AND(R14>='0.FAV Calculos'!BH18,R14<='0.FAV Calculos'!BR18,C14>=DEGREES(ATAN(('0.FAV Calculos'!BP21/2)/SQRT(('0.FAV Calculos'!BP20/2)^2+('0.FAV Calculos'!BP20/2*TAN(RADIANS('0.FAV Calculos'!BH18-R14)))^2)))),0,1)*IF(AND(R14>'0.FAV Calculos'!BR18,R14<='0.FAV Calculos'!BH20,C14>=DEGREES(ATAN(('0.FAV Calculos'!BP21/2)/(SQRT(('0.FAV Calculos'!BP23)^2+('0.FAV Calculos'!BP23*TAN(RADIANS(R14-'0.FAV Calculos'!BH20)))^2))))),0,1)*IF(AND(R14>='0.FAV Calculos'!BH21,R14<='0.FAV Calculos'!BR17,C14>=DEGREES(ATAN(('0.FAV Calculos'!BP21/2)/(SQRT(('0.FAV Calculos'!BP23)^2+('0.FAV Calculos'!BP23*TAN(RADIANS(R14-'0.FAV Calculos'!BH21)))^2))))),0,1)*IF(AND(R14>='0.FAV Calculos'!BR17,R14<='0.FAV Calculos'!BH19,C14>=DEGREES(ATAN(('0.FAV Calculos'!BP21/2)/SQRT(('0.FAV Calculos'!BP20/2)^2+('0.FAV Calculos'!BP20/2*TAN(RADIANS('0.FAV Calculos'!BH19-R14)))^2)))),0,1) -> 0 | EP14: =+IF(OR(D14<=0,AND(S14>0,'0.FAV Calculos'!BH17="n",S14>'0.FAV Calculos'!BH19),AND(S14>0,'0.FAV Calculos'!BH17="s",S14<'0.FAV Calculos'!BH18),AND(S14<0,'0.FAV Calculos'!BH17="s",S14>'0.FAV Calculos'!BH19),AND(S14<0,'0.FAV Calculos'!BH17="n",S14<'0.FAV Calculos'!BH18),AND(S14<0,'0.FAV Calculos'!BH17="e"),AND(S14>0,'0.FAV Calculos'!BH17="o"),AND(S14=0,'0.FAV Calculos'!BH17<>"n")),0,1)*IF(AND(S14>='0.FAV Calculos'!BH18,S14<='0.FAV Calculos'!BR18,D14>=DEGREES(ATAN(('0.FAV Calculos'!BP21/2)/SQRT(('0.FAV Calculos'!BP20/2)^2+('0.FAV Calculos'!BP20/2*TAN(RADIANS('0.FAV Calculos'!BH18-S14)))^2)))),0,1)*IF(AND(S14>'0.FAV Calculos'!BR18,S14<='0.FAV Calculos'!BH20,D14>=DEGREES(ATAN(('0.FAV Calculos'!BP21/2)/(SQRT(('0.FAV Calculos'!BP23)^2+('0.FAV Calculos'!BP23*TAN(RADIANS(S14-'0.FAV Calculos'!BH20)))^2))))),0,1)*IF(AND(S14>='0.FAV Calculos'!BH21,S14<='0.FAV Calculos'!BR17,D14>=DEGREES(ATAN(('0.FAV Calculos'!BP21/2)/(SQRT(('0.FAV Calculos'!BP23)^2+('0.FAV Calculos'!BP23*TAN(RADIANS(S14-'0.FAV Calculos'!BH21)))^2))))),0,1)*IF(AND(S14>='0.FAV Calculos'!BR17,S14<='0.FAV Calculos'!BH19,D14>=DEGREES(ATAN(('0.FAV Calculos'!BP21/2)/SQRT(('0.FAV Calculos'!BP20/2)^2+('0.FAV Calculos'!BP20/2*TAN(RADIANS('0.FAV Calculos'!BH19-S14)))^2)))),0,1) -> 0 | EQ14: =+IF(OR(E14<=0,AND(T14>0,'0.FAV Calculos'!BH17="n",T14>'0.FAV Calculos'!BH19),AND(T14>0,'0.FAV Calculos'!BH17="s",T14<'0.FAV Calculos'!BH18),AND(T14<0,'0.FAV Calculos'!BH17="s",T14>'0.FAV Calculos'!BH19),AND(T14<0,'0.FAV Calculos'!BH17="n",T14<'0.FAV Calculos'!BH18),AND(T14<0,'0.FAV Calculos'!BH17="e"),AND(T14>0,'0.FAV Calculos'!BH17="o"),AND(T14=0,'0.FAV Calculos'!BH17<>"n")),0,1)*IF(AND(T14>='0.FAV Calculos'!BH18,T14<='0.FAV Calculos'!BR18,E14>=DEGREES(ATAN(('0.FAV Calculos'!BP21/2)/SQRT(('0.FAV Calculos'!BP20/2)^2+('0.FAV Calculos'!BP20/2*TAN(RADIANS('0.FAV Calculos'!BH18-T14)))^2)))),0,1)*IF(AND(T14>'0.FAV Calculos'!BR18,T14<='0.FAV Calculos'!BH20,E14>=DEGREES(ATAN(('0.FAV Calculos'!BP21/2)/(SQRT(('0.FAV Calculos'!BP23)^2+('0.FAV Calculos'!BP23*TAN(RADIANS(T14-'0.FAV Calculos'!BH20)))^2))))),0,1)*IF(AND(T14>='0.FAV Calculos'!BH21,T14<='0.FAV Calculos'!BR17,E14>=DEGREES(ATAN(('0.FAV Calculos'!BP21/2)/(SQRT(('0.FAV Calculos'!BP23)^2+('0.FAV Calculos'!BP23*TAN(RADIANS(T14-'0.FAV Calculos'!BH21)))^2))))),0,1)*IF(AND(T14>='0.FAV Calculos'!BR17,T14<='0.FAV Calculos'!BH19,E14>=DEGREES(ATAN(('0.FAV Calculos'!BP21/2)/SQRT(('0.FAV Calculos'!BP20/2)^2+('0.FAV Calculos'!BP20/2*TAN(RADIANS('0.FAV Calculos'!BH19-T14)))^2)))),0,1) -> 0 | ER14: =+IF(OR(F14<=0,AND(U14>0,'0.FAV Calculos'!BH17="n",U14>'0.FAV Calculos'!BH19),AND(U14>0,'0.FAV Calculos'!BH17="s",U14<'0.FAV Calculos'!BH18),AND(U14<0,'0.FAV Calculos'!BH17="s",U14>'0.FAV Calculos'!BH19),AND(U14<0,'0.FAV Calculos'!BH17="n",U14<'0.FAV Calculos'!BH18),AND(U14<0,'0.FAV Calculos'!BH17="e"),AND(U14>0,'0.FAV Calculos'!BH17="o"),AND(U14=0,'0.FAV Calculos'!BH17<>"n")),0,1)*IF(AND(U14>='0.FAV Calculos'!BH18,U14<='0.FAV Calculos'!BR18,F14>=DEGREES(ATAN(('0.FAV Calculos'!BP21/2)/SQRT(('0.FAV Calculos'!BP20/2)^2+('0.FAV Calculos'!BP20/2*TAN(RADIANS('0.FAV Calculos'!BH18-U14)))^2)))),0,1)*IF(AND(U14>'0.FAV Calculos'!BR18,U14<='0.FAV Calculos'!BH20,F14>=DEGREES(ATAN(('0.FAV Calculos'!BP21/2)/(SQRT(('0.FAV Calculos'!BP23)^2+('0.FAV Calculos'!BP23*TAN(RADIANS(U14-'0.FAV Calculos'!BH20)))^2))))),0,1)*IF(AND(U14>='0.FAV Calculos'!BH21,U14<='0.FAV Calculos'!BR17,F14>=DEGREES(ATAN(('0.FAV Calculos'!BP21/2)/(SQRT(('0.FAV Calculos'!BP23)^2+('0.FAV Calculos'!BP23*TAN(RADIANS(U14-'0.FAV Calculos'!BH21)))^2))))),0,1)*IF(AND(U14>='0.FAV Calculos'!BR17,U14<='0.FAV Calculos'!BH19,F14>=DEGREES(ATAN(('0.FAV Calculos'!BP21/2)/SQRT(('0.FAV Calculos'!BP20/2)^2+('0.FAV Calculos'!BP20/2*TAN(RADIANS('0.FAV Calculos'!BH19-U14)))^2)))),0,1) -> 0 | ES14: =+IF(OR(G14<=0,AND(V14>0,'0.FAV Calculos'!BH17="n",V14>'0.FAV Calculos'!BH19),AND(V14>0,'0.FAV Calculos'!BH17="s",V14<'0.FAV Calculos'!BH18),AND(V14<0,'0.FAV Calculos'!BH17="s",V14>'0.FAV Calculos'!BH19),AND(V14<0,'0.FAV Calculos'!BH17="n",V14<'0.FAV Calculos'!BH18),AND(V14<0,'0.FAV Calculos'!BH17="e"),AND(V14>0,'0.FAV Calculos'!BH17="o"),AND(V14=0,'0.FAV Calculos'!BH17<>"n")),0,1)*IF(AND(V14>='0.FAV Calculos'!BH18,V14<='0.FAV Calculos'!BR18,G14>=DEGREES(ATAN(('0.FAV Calculos'!BP21/2)/SQRT(('0.FAV Calculos'!BP20/2)^2+('0.FAV Calculos'!BP20/2*TAN(RADIANS('0.FAV Calculos'!BH18-V14)))^2)))),0,1)*IF(AND(V14>'0.FAV Calculos'!BR18,V14<='0.FAV Calculos'!BH20,G14>=DEGREES(ATAN(('0.FAV Calculos'!BP21/2)/(SQRT(('0.FAV Calculos'!BP23)^2+('0.FAV Calculos'!BP23*TAN(RADIANS(V14-'0.FAV Calculos'!BH20)))^2))))),0,1)*IF(AND(V14>='0.FAV Calculos'!BH21,V14<='0.FAV Calculos'!BR17,G14>=DEGREES(ATAN(('0.FAV Calculos'!BP21/2)/(SQRT(('0.FAV Calculos'!BP23)^2+('0.FAV Calculos'!BP23*TAN(RADIANS(V14-'0.FAV Calculos'!BH21)))^2))))),0,1)*IF(AND(V14>='0.FAV Calculos'!BR17,V14<='0.FAV Calculos'!BH19,G14>=DEGREES(ATAN(('0.FAV Calculos'!BP21/2)/SQRT(('0.FAV Calculos'!BP20/2)^2+('0.FAV Calculos'!BP20/2*TAN(RADIANS('0.FAV Calculos'!BH19-V14)))^2)))),0,1) -> 0 | ET14: =+IF(OR(H14<=0,AND(W14>0,'0.FAV Calculos'!BH17="n",W14>'0.FAV Calculos'!BH19),AND(W14>0,'0.FAV Calculos'!BH17="s",W14<'0.FAV Calculos'!BH18),AND(W14<0,'0.FAV Calculos'!BH17="s",W14>'0.FAV Calculos'!BH19),AND(W14<0,'0.FAV Calculos'!BH17="n",W14<'0.FAV Calculos'!BH18),AND(W14<0,'0.FAV Calculos'!BH17="e"),AND(W14>0,'0.FAV Calculos'!BH17="o"),AND(W14=0,'0.FAV Calculos'!BH17<>"n")),0,1)*IF(AND(W14>='0.FAV Calculos'!BH18,W14<='0.FAV Calculos'!BR18,H14>=DEGREES(ATAN(('0.FAV Calculos'!BP21/2)/SQRT(('0.FAV Calculos'!BP20/2)^2+('0.FAV Calculos'!BP20/2*TAN(RADIANS('0.FAV Calculos'!BH18-W14)))^2)))),0,1)*IF(AND(W14>'0.FAV Calculos'!BR18,W14<='0.FAV Calculos'!BH20,H14>=DEGREES(ATAN(('0.FAV Calculos'!BP21/2)/(SQRT(('0.FAV Calculos'!BP23)^2+('0.FAV Calculos'!BP23*TAN(RADIANS(W14-'0.FAV Calculos'!BH20)))^2))))),0,1)*IF(AND(W14>='0.FAV Calculos'!BH21,W14<='0.FAV Calculos'!BR17,H14>=DEGREES(ATAN(('0.FAV Calculos'!BP21/2)/(SQRT(('0.FAV Calculos'!BP23)^2+('0.FAV Calculos'!BP23*TAN(RADIANS(W14-'0.FAV Calculos'!BH21)))^2))))),0,1)*IF(AND(W14>='0.FAV Calculos'!BR17,W14<='0.FAV Calculos'!BH19,H14>=DEGREES(ATAN(('0.FAV Calculos'!BP21/2)/SQRT(('0.FAV Calculos'!BP20/2)^2+('0.FAV Calculos'!BP20/2*TAN(RADIANS('0.FAV Calculos'!BH19-W14)))^2)))),0,1) -> 0 | EU14: =+IF(OR(I14<=0,AND(X14>0,'0.FAV Calculos'!BH17="n",X14>'0.FAV Calculos'!BH19),AND(X14>0,'0.FAV Calculos'!BH17="s",X14<'0.FAV Calculos'!BH18),AND(X14<0,'0.FAV Calculos'!BH17="s",X14>'0.FAV Calculos'!BH19),AND(X14<0,'0.FAV Calculos'!BH17="n",X14<'0.FAV Calculos'!BH18),AND(X14<0,'0.FAV Calculos'!BH17="e"),AND(X14>0,'0.FAV Calculos'!BH17="o"),AND(X14=0,'0.FAV Calculos'!BH17<>"n")),0,1)*IF(AND(X14>='0.FAV Calculos'!BH18,X14<='0.FAV Calculos'!BR18,I14>=DEGREES(ATAN(('0.FAV Calculos'!BP21/2)/SQRT(('0.FAV Calculos'!BP20/2)^2+('0.FAV Calculos'!BP20/2*TAN(RADIANS('0.FAV Calculos'!BH18-X14)))^2)))),0,1)*IF(AND(X14>'0.FAV Calculos'!BR18,X14<='0.FAV Calculos'!BH20,I14>=DEGREES(ATAN(('0.FAV Calculos'!BP21/2)/(SQRT(('0.FAV Calculos'!BP23)^2+('0.FAV Calculos'!BP23*TAN(RADIANS(X14-'0.FAV Calculos'!BH20)))^2))))),0,1)*IF(AND(X14>='0.FAV Calculos'!BH21,X14<='0.FAV Calculos'!BR17,I14>=DEGREES(ATAN(('0.FAV Calculos'!BP21/2)/(SQRT(('0.FAV Calculos'!BP23)^2+('0.FAV Calculos'!BP23*TAN(RADIANS(X14-'0.FAV Calculos'!BH21)))^2))))),0,1)*IF(AND(X14>='0.FAV Calculos'!BR17,X14<='0.FAV Calculos'!BH19,I14>=DEGREES(ATAN(('0.FAV Calculos'!BP21/2)/SQRT(('0.FAV Calculos'!BP20/2)^2+('0.FAV Calculos'!BP20/2*TAN(RADIANS('0.FAV Calculos'!BH19-X14)))^2)))),0,1) -> 0 | EV14: =+IF(OR(J14<=0,AND(Y14>0,'0.FAV Calculos'!BH17="n",Y14>'0.FAV Calculos'!BH19),AND(Y14>0,'0.FAV Calculos'!BH17="s",Y14<'0.FAV Calculos'!BH18),AND(Y14<0,'0.FAV Calculos'!BH17="s",Y14>'0.FAV Calculos'!BH19),AND(Y14<0,'0.FAV Calculos'!BH17="n",Y14<'0.FAV Calculos'!BH18),AND(Y14<0,'0.FAV Calculos'!BH17="e"),AND(Y14>0,'0.FAV Calculos'!BH17="o"),AND(Y14=0,'0.FAV Calculos'!BH17<>"n")),0,1)*IF(AND(Y14>='0.FAV Calculos'!BH18,Y14<='0.FAV Calculos'!BR18,J14>=DEGREES(ATAN(('0.FAV Calculos'!BP21/2)/SQRT(('0.FAV Calculos'!BP20/2)^2+('0.FAV Calculos'!BP20/2*TAN(RADIANS('0.FAV Calculos'!BH18-Y14)))^2)))),0,1)*IF(AND(Y14>'0.FAV Calculos'!BR18,Y14<='0.FAV Calculos'!BH20,J14>=DEGREES(ATAN(('0.FAV Calculos'!BP21/2)/(SQRT(('0.FAV Calculos'!BP23)^2+('0.FAV Calculos'!BP23*TAN(RADIANS(Y14-'0.FAV Calculos'!BH20)))^2))))),0,1)*IF(AND(Y14>='0.FAV Calculos'!BH21,Y14<='0.FAV Calculos'!BR17,J14>=DEGREES(ATAN(('0.FAV Calculos'!BP21/2)/(SQRT(('0.FAV Calculos'!BP23)^2+('0.FAV Calculos'!BP23*TAN(RADIANS(Y14-'0.FAV Calculos'!BH21)))^2))))),0,1)*IF(AND(Y14>='0.FAV Calculos'!BR17,Y14<='0.FAV Calculos'!BH19,J14>=DEGREES(ATAN(('0.FAV Calculos'!BP21/2)/SQRT(('0.FAV Calculos'!BP20/2)^2+('0.FAV Calculos'!BP20/2*TAN(RADIANS('0.FAV Calculos'!BH19-Y14)))^2)))),0,1) -> 0 | EW14: =+IF(OR(K14<=0,AND(Z14>0,'0.FAV Calculos'!BH17="n",Z14>'0.FAV Calculos'!BH19),AND(Z14>0,'0.FAV Calculos'!BH17="s",Z14<'0.FAV Calculos'!BH18),AND(Z14<0,'0.FAV Calculos'!BH17="s",Z14>'0.FAV Calculos'!BH19),AND(Z14<0,'0.FAV Calculos'!BH17="n",Z14<'0.FAV Calculos'!BH18),AND(Z14<0,'0.FAV Calculos'!BH17="e"),AND(Z14>0,'0.FAV Calculos'!BH17="o"),AND(Z14=0,'0.FAV Calculos'!BH17<>"n")),0,1)*IF(AND(Z14>='0.FAV Calculos'!BH18,Z14<='0.FAV Calculos'!BR18,K14>=DEGREES(ATAN(('0.FAV Calculos'!BP21/2)/SQRT(('0.FAV Calculos'!BP20/2)^2+('0.FAV Calculos'!BP20/2*TAN(RADIANS('0.FAV Calculos'!BH18-Z14)))^2)))),0,1)*IF(AND(Z14>'0.FAV Calculos'!BR18,Z14<='0.FAV Calculos'!BH20,K14>=DEGREES(ATAN(('0.FAV Calculos'!BP21/2)/(SQRT(('0.FAV Calculos'!BP23)^2+('0.FAV Calculos'!BP23*TAN(RADIANS(Z14-'0.FAV Calculos'!BH20)))^2))))),0,1)*IF(AND(Z14>='0.FAV Calculos'!BH21,Z14<='0.FAV Calculos'!BR17,K14>=DEGREES(ATAN(('0.FAV Calculos'!BP21/2)/(SQRT(('0.FAV Calculos'!BP23)^2+('0.FAV Calculos'!BP23*TAN(RADIANS(Z14-'0.FAV Calculos'!BH21)))^2))))),0,1)*IF(AND(Z14>='0.FAV Calculos'!BR17,Z14<='0.FAV Calculos'!BH19,K14>=DEGREES(ATAN(('0.FAV Calculos'!BP21/2)/SQRT(('0.FAV Calculos'!BP20/2)^2+('0.FAV Calculos'!BP20/2*TAN(RADIANS('0.FAV Calculos'!BH19-Z14)))^2)))),0,1) -> 0 | EX14: =+IF(OR(L14<=0,AND(AA14>0,'0.FAV Calculos'!BH17="n",AA14>'0.FAV Calculos'!BH19),AND(AA14>0,'0.FAV Calculos'!BH17="s",AA14<'0.FAV Calculos'!BH18),AND(AA14<0,'0.FAV Calculos'!BH17="s",AA14>'0.FAV Calculos'!BH19),AND(AA14<0,'0.FAV Calculos'!BH17="n",AA14<'0.FAV Calculos'!BH18),AND(AA14<0,'0.FAV Calculos'!BH17="e"),AND(AA14>0,'0.FAV Calculos'!BH17="o"),AND(AA14=0,'0.FAV Calculos'!BH17<>"n")),0,1)*IF(AND(AA14>='0.FAV Calculos'!BH18,AA14<='0.FAV Calculos'!BR18,L14>=DEGREES(ATAN(('0.FAV Calculos'!BP21/2)/SQRT(('0.FAV Calculos'!BP20/2)^2+('0.FAV Calculos'!BP20/2*TAN(RADIANS('0.FAV Calculos'!BH18-AA14)))^2)))),0,1)*IF(AND(AA14>'0.FAV Calculos'!BR18,AA14<='0.FAV Calculos'!BH20,L14>=DEGREES(ATAN(('0.FAV Calculos'!BP21/2)/(SQRT(('0.FAV Calculos'!BP23)^2+('0.FAV Calculos'!BP23*TAN(RADIANS(AA14-'0.FAV Calculos'!BH20)))^2))))),0,1)*IF(AND(AA14>='0.FAV Calculos'!BH21,AA14<='0.FAV Calculos'!BR17,L14>=DEGREES(ATAN(('0.FAV Calculos'!BP21/2)/(SQRT(('0.FAV Calculos'!BP23)^2+('0.FAV Calculos'!BP23*TAN(RADIANS(AA14-'0.FAV Calculos'!BH21)))^2))))),0,1)*IF(AND(AA14>='0.FAV Calculos'!BR17,AA14<='0.FAV Calculos'!BH19,L14>=DEGREES(ATAN(('0.FAV Calculos'!BP21/2)/SQRT(('0.FAV Calculos'!BP20/2)^2+('0.FAV Calculos'!BP20/2*TAN(RADIANS('0.FAV Calculos'!BH19-AA14)))^2)))),0,1) -> 0 | EY14: =+IF(OR(M14<=0,AND(AB14>0,'0.FAV Calculos'!BH17="n",AB14>'0.FAV Calculos'!BH19),AND(AB14>0,'0.FAV Calculos'!BH17="s",AB14<'0.FAV Calculos'!BH18),AND(AB14<0,'0.FAV Calculos'!BH17="s",AB14>'0.FAV Calculos'!BH19),AND(AB14<0,'0.FAV Calculos'!BH17="n",AB14<'0.FAV Calculos'!BH18),AND(AB14<0,'0.FAV Calculos'!BH17="e"),AND(AB14>0,'0.FAV Calculos'!BH17="o"),AND(AB14=0,'0.FAV Calculos'!BH17<>"n")),0,1)*IF(AND(AB14>='0.FAV Calculos'!BH18,AB14<='0.FAV Calculos'!BR18,M14>=DEGREES(ATAN(('0.FAV Calculos'!BP21/2)/SQRT(('0.FAV Calculos'!BP20/2)^2+('0.FAV Calculos'!BP20/2*TAN(RADIANS('0.FAV Calculos'!BH18-AB14)))^2)))),0,1)*IF(AND(AB14>'0.FAV Calculos'!BR18,AB14<='0.FAV Calculos'!BH20,M14>=DEGREES(ATAN(('0.FAV Calculos'!BP21/2)/(SQRT(('0.FAV Calculos'!BP23)^2+('0.FAV Calculos'!BP23*TAN(RADIANS(AB14-'0.FAV Calculos'!BH20)))^2))))),0,1)*IF(AND(AB14>='0.FAV Calculos'!BH21,AB14<='0.FAV Calculos'!BR17,M14>=DEGREES(ATAN(('0.FAV Calculos'!BP21/2)/(SQRT(('0.FAV Calculos'!BP23)^2+('0.FAV Calculos'!BP23*TAN(RADIANS(AB14-'0.FAV Calculos'!BH21)))^2))))),0,1)*IF(AND(AB14>='0.FAV Calculos'!BR17,AB14<='0.FAV Calculos'!BH19,M14>=DEGREES(ATAN(('0.FAV Calculos'!BP21/2)/SQRT(('0.FAV Calculos'!BP20/2)^2+('0.FAV Calculos'!BP20/2*TAN(RADIANS('0.FAV Calculos'!BH19-AB14)))^2)))),0,1) -> 0 | EZ14: =+IF(OR(N14<=0,AND(AC14>0,'0.FAV Calculos'!BH17="n",AC14>'0.FAV Calculos'!BH19),AND(AC14>0,'0.FAV Calculos'!BH17="s",AC14<'0.FAV Calculos'!BH18),AND(AC14<0,'0.FAV Calculos'!BH17="s",AC14>'0.FAV Calculos'!BH19),AND(AC14<0,'0.FAV Calculos'!BH17="n",AC14<'0.FAV Calculos'!BH18),AND(AC14<0,'0.FAV Calculos'!BH17="e"),AND(AC14>0,'0.FAV Calculos'!BH17="o"),AND(AC14=0,'0.FAV Calculos'!BH17<>"n")),0,1)*IF(AND(AC14>='0.FAV Calculos'!BH18,AC14<='0.FAV Calculos'!BR18,N14>=DEGREES(ATAN(('0.FAV Calculos'!BP21/2)/SQRT(('0.FAV Calculos'!BP20/2)^2+('0.FAV Calculos'!BP20/2*TAN(RADIANS('0.FAV Calculos'!BH18-AC14)))^2)))),0,1)*IF(AND(AC14>'0.FAV Calculos'!BR18,AC14<='0.FAV Calculos'!BH20,N14>=DEGREES(ATAN(('0.FAV Calculos'!BP21/2)/(SQRT(('0.FAV Calculos'!BP23)^2+('0.FAV Calculos'!BP23*TAN(RADIANS(AC14-'0.FAV Calculos'!BH20)))^2))))),0,1)*IF(AND(AC14>='0.FAV Calculos'!BH21,AC14<='0.FAV Calculos'!BR17,N14>=DEGREES(ATAN(('0.FAV Calculos'!BP21/2)/(SQRT(('0.FAV Calculos'!BP23)^2+('0.FAV Calculos'!BP23*TAN(RADIANS(AC14-'0.FAV Calculos'!BH21)))^2))))),0,1)*IF(AND(AC14>='0.FAV Calculos'!BR17,AC14<='0.FAV Calculos'!BH19,N14>=DEGREES(ATAN(('0.FAV Calculos'!BP21/2)/SQRT(('0.FAV Calculos'!BP20/2)^2+('0.FAV Calculos'!BP20/2*TAN(RADIANS('0.FAV Calculos'!BH19-AC14)))^2)))),0,1) -> 0 | FB14: 0 | FC14: =+IF(OR(C14<=0,AND(R14>0,'0.FAV Calculos'!BH17="n",R14>'0.FAV Calculos'!BH19),AND(R14>0,'0.FAV Calculos'!BH17="s",R14<'0.FAV Calculos'!BH18),AND(R14<0,'0.FAV Calculos'!BH17="s",R14>'0.FAV Calculos'!BH19),AND(R14<0,'0.FAV Calculos'!BH17="n",R14<'0.FAV Calculos'!BH18),AND(R14<0,'0.FAV Calculos'!BH17="e"),AND(R14>0,'0.FAV Calculos'!BH17="o"),AND(R14=0,'0.FAV Calculos'!BH17<>"n")),0,1)*IF(OR(AND('0.FAV Calculos'!BR26>'0.FAV Calculos'!BR25,R14<='0.FAV Calculos'!BR26,R14>='0.FAV Calculos'!BR25),AND('0.FAV Calculos'!BR26<'0.FAV Calculos'!BR25,R14<='0.FAV Calculos'!BR26),AND('0.FAV Calculos'!BR26<'0.FAV Calculos'!BR25,R14>='0.FAV Calculos'!BR25)),0,1) -> 0 | FD14: =+IF(OR(D14<=0,AND(S14>0,'0.FAV Calculos'!BH17="n",S14>'0.FAV Calculos'!BH19),AND(S14>0,'0.FAV Calculos'!BH17="s",S14<'0.FAV Calculos'!BH18),AND(S14<0,'0.FAV Calculos'!BH17="s",S14>'0.FAV Calculos'!BH19),AND(S14<0,'0.FAV Calculos'!BH17="n",S14<'0.FAV Calculos'!BH18),AND(S14<0,'0.FAV Calculos'!BH17="e"),AND(S14>0,'0.FAV Calculos'!BH17="o"),AND(S14=0,'0.FAV Calculos'!BH17<>"n")),0,1)*IF(OR(AND('0.FAV Calculos'!BR26>'0.FAV Calculos'!BR25,S14<='0.FAV Calculos'!BR26,S14>='0.FAV Calculos'!BR25),AND('0.FAV Calculos'!BR26<'0.FAV Calculos'!BR25,S14<='0.FAV Calculos'!BR26),AND('0.FAV Calculos'!BR26<'0.FAV Calculos'!BR25,S14>='0.FAV Calculos'!BR25)),0,1) -> 0 | FE14: =+IF(OR(E14<=0,AND(T14>0,'0.FAV Calculos'!BH17="n",T14>'0.FAV Calculos'!BH19),AND(T14>0,'0.FAV Calculos'!BH17="s",T14<'0.FAV Calculos'!BH18),AND(T14<0,'0.FAV Calculos'!BH17="s",T14>'0.FAV Calculos'!BH19),AND(T14<0,'0.FAV Calculos'!BH17="n",T14<'0.FAV Calculos'!BH18),AND(T14<0,'0.FAV Calculos'!BH17="e"),AND(T14>0,'0.FAV Calculos'!BH17="o"),AND(T14=0,'0.FAV Calculos'!BH17<>"n")),0,1)*IF(OR(AND('0.FAV Calculos'!BR26>'0.FAV Calculos'!BR25,T14<='0.FAV Calculos'!BR26,T14>='0.FAV Calculos'!BR25),AND('0.FAV Calculos'!BR26<'0.FAV Calculos'!BR25,T14<='0.FAV Calculos'!BR26),AND('0.FAV Calculos'!BR26<'0.FAV Calculos'!BR25,T14>='0.FAV Calculos'!BR25)),0,1) -> 0 | FF14: =+IF(OR(F14<=0,AND(U14>0,'0.FAV Calculos'!BH17="n",U14>'0.FAV Calculos'!BH19),AND(U14>0,'0.FAV Calculos'!BH17="s",U14<'0.FAV Calculos'!BH18),AND(U14<0,'0.FAV Calculos'!BH17="s",U14>'0.FAV Calculos'!BH19),AND(U14<0,'0.FAV Calculos'!BH17="n",U14<'0.FAV Calculos'!BH18),AND(U14<0,'0.FAV Calculos'!BH17="e"),AND(U14>0,'0.FAV Calculos'!BH17="o"),AND(U14=0,'0.FAV Calculos'!BH17<>"n")),0,1)*IF(OR(AND('0.FAV Calculos'!BR26>'0.FAV Calculos'!BR25,U14<='0.FAV Calculos'!BR26,U14>='0.FAV Calculos'!BR25),AND('0.FAV Calculos'!BR26<'0.FAV Calculos'!BR25,U14<='0.FAV Calculos'!BR26),AND('0.FAV Calculos'!BR26<'0.FAV Calculos'!BR25,U14>='0.FAV Calculos'!BR25)),0,1) -> 0 | FG14: =+IF(OR(G14<=0,AND(V14>0,'0.FAV Calculos'!BH17="n",V14>'0.FAV Calculos'!BH19),AND(V14>0,'0.FAV Calculos'!BH17="s",V14<'0.FAV Calculos'!BH18),AND(V14<0,'0.FAV Calculos'!BH17="s",V14>'0.FAV Calculos'!BH19),AND(V14<0,'0.FAV Calculos'!BH17="n",V14<'0.FAV Calculos'!BH18),AND(V14<0,'0.FAV Calculos'!BH17="e"),AND(V14>0,'0.FAV Calculos'!BH17="o"),AND(V14=0,'0.FAV Calculos'!BH17<>"n")),0,1)*IF(OR(AND('0.FAV Calculos'!BR26>'0.FAV Calculos'!BR25,V14<='0.FAV Calculos'!BR26,V14>='0.FAV Calculos'!BR25),AND('0.FAV Calculos'!BR26<'0.FAV Calculos'!BR25,V14<='0.FAV Calculos'!BR26),AND('0.FAV Calculos'!BR26<'0.FAV Calculos'!BR25,V14>='0.FAV Calculos'!BR25)),0,1) -> 0 | FH14: =+IF(OR(H14<=0,AND(W14>0,'0.FAV Calculos'!BH17="n",W14>'0.FAV Calculos'!BH19),AND(W14>0,'0.FAV Calculos'!BH17="s",W14<'0.FAV Calculos'!BH18),AND(W14<0,'0.FAV Calculos'!BH17="s",W14>'0.FAV Calculos'!BH19),AND(W14<0,'0.FAV Calculos'!BH17="n",W14<'0.FAV Calculos'!BH18),AND(W14<0,'0.FAV Calculos'!BH17="e"),AND(W14>0,'0.FAV Calculos'!BH17="o"),AND(W14=0,'0.FAV Calculos'!BH17<>"n")),0,1)*IF(OR(AND('0.FAV Calculos'!BR26>'0.FAV Calculos'!BR25,W14<='0.FAV Calculos'!BR26,W14>='0.FAV Calculos'!BR25),AND('0.FAV Calculos'!BR26<'0.FAV Calculos'!BR25,W14<='0.FAV Calculos'!BR26),AND('0.FAV Calculos'!BR26<'0.FAV Calculos'!BR25,W14>='0.FAV Calculos'!BR25)),0,1) -> 0 | FI14: =+IF(OR(I14<=0,AND(X14>0,'0.FAV Calculos'!BH17="n",X14>'0.FAV Calculos'!BH19),AND(X14>0,'0.FAV Calculos'!BH17="s",X14<'0.FAV Calculos'!BH18),AND(X14<0,'0.FAV Calculos'!BH17="s",X14>'0.FAV Calculos'!BH19),AND(X14<0,'0.FAV Calculos'!BH17="n",X14<'0.FAV Calculos'!BH18),AND(X14<0,'0.FAV Calculos'!BH17="e"),AND(X14>0,'0.FAV Calculos'!BH17="o"),AND(X14=0,'0.FAV Calculos'!BH17<>"n")),0,1)*IF(OR(AND('0.FAV Calculos'!BR26>'0.FAV Calculos'!BR25,X14<='0.FAV Calculos'!BR26,X14>='0.FAV Calculos'!BR25),AND('0.FAV Calculos'!BR26<'0.FAV Calculos'!BR25,X14<='0.FAV Calculos'!BR26),AND('0.FAV Calculos'!BR26<'0.FAV Calculos'!BR25,X14>='0.FAV Calculos'!BR25)),0,1) -> 0 | FJ14: =+IF(OR(J14<=0,AND(Y14>0,'0.FAV Calculos'!BH17="n",Y14>'0.FAV Calculos'!BH19),AND(Y14>0,'0.FAV Calculos'!BH17="s",Y14<'0.FAV Calculos'!BH18),AND(Y14<0,'0.FAV Calculos'!BH17="s",Y14>'0.FAV Calculos'!BH19),AND(Y14<0,'0.FAV Calculos'!BH17="n",Y14<'0.FAV Calculos'!BH18),AND(Y14<0,'0.FAV Calculos'!BH17="e"),AND(Y14>0,'0.FAV Calculos'!BH17="o"),AND(Y14=0,'0.FAV Calculos'!BH17<>"n")),0,1)*IF(OR(AND('0.FAV Calculos'!BR26>'0.FAV Calculos'!BR25,Y14<='0.FAV Calculos'!BR26,Y14>='0.FAV Calculos'!BR25),AND('0.FAV Calculos'!BR26<'0.FAV Calculos'!BR25,Y14<='0.FAV Calculos'!BR26),AND('0.FAV Calculos'!BR26<'0.FAV Calculos'!BR25,Y14>='0.FAV Calculos'!BR25)),0,1) -> 0 | FK14: =+IF(OR(K14<=0,AND(Z14>0,'0.FAV Calculos'!BH17="n",Z14>'0.FAV Calculos'!BH19),AND(Z14>0,'0.FAV Calculos'!BH17="s",Z14<'0.FAV Calculos'!BH18),AND(Z14<0,'0.FAV Calculos'!BH17="s",Z14>'0.FAV Calculos'!BH19),AND(Z14<0,'0.FAV Calculos'!BH17="n",Z14<'0.FAV Calculos'!BH18),AND(Z14<0,'0.FAV Calculos'!BH17="e"),AND(Z14>0,'0.FAV Calculos'!BH17="o"),AND(Z14=0,'0.FAV Calculos'!BH17<>"n")),0,1)*IF(OR(AND('0.FAV Calculos'!BR26>'0.FAV Calculos'!BR25,Z14<='0.FAV Calculos'!BR26,Z14>='0.FAV Calculos'!BR25),AND('0.FAV Calculos'!BR26<'0.FAV Calculos'!BR25,Z14<='0.FAV Calculos'!BR26),AND('0.FAV Calculos'!BR26<'0.FAV Calculos'!BR25,Z14>='0.FAV Calculos'!BR25)),0,1) -> 0 | FL14: =+IF(OR(L14<=0,AND(AA14>0,'0.FAV Calculos'!BH17="n",AA14>'0.FAV Calculos'!BH19),AND(AA14>0,'0.FAV Calculos'!BH17="s",AA14<'0.FAV Calculos'!BH18),AND(AA14<0,'0.FAV Calculos'!BH17="s",AA14>'0.FAV Calculos'!BH19),AND(AA14<0,'0.FAV Calculos'!BH17="n",AA14<'0.FAV Calculos'!BH18),AND(AA14<0,'0.FAV Calculos'!BH17="e"),AND(AA14>0,'0.FAV Calculos'!BH17="o"),AND(AA14=0,'0.FAV Calculos'!BH17<>"n")),0,1)*IF(OR(AND('0.FAV Calculos'!BR26>'0.FAV Calculos'!BR25,AA14<='0.FAV Calculos'!BR26,AA14>='0.FAV Calculos'!BR25),AND('0.FAV Calculos'!BR26<'0.FAV Calculos'!BR25,AA14<='0.FAV Calculos'!BR26),AND('0.FAV Calculos'!BR26<'0.FAV Calculos'!BR25,AA14>='0.FAV Calculos'!BR25)),0,1) -> 0 | FM14: =+IF(OR(M14<=0,AND(AB14>0,'0.FAV Calculos'!BH17="n",AB14>'0.FAV Calculos'!BH19),AND(AB14>0,'0.FAV Calculos'!BH17="s",AB14<'0.FAV Calculos'!BH18),AND(AB14<0,'0.FAV Calculos'!BH17="s",AB14>'0.FAV Calculos'!BH19),AND(AB14<0,'0.FAV Calculos'!BH17="n",AB14<'0.FAV Calculos'!BH18),AND(AB14<0,'0.FAV Calculos'!BH17="e"),AND(AB14>0,'0.FAV Calculos'!BH17="o"),AND(AB14=0,'0.FAV Calculos'!BH17<>"n")),0,1)*IF(OR(AND('0.FAV Calculos'!BR26>'0.FAV Calculos'!BR25,AB14<='0.FAV Calculos'!BR26,AB14>='0.FAV Calculos'!BR25),AND('0.FAV Calculos'!BR26<'0.FAV Calculos'!BR25,AB14<='0.FAV Calculos'!BR26),AND('0.FAV Calculos'!BR26<'0.FAV Calculos'!BR25,AB14>='0.FAV Calculos'!BR25)),0,1) -> 0 | FN14: =+IF(OR(N14<=0,AND(AC14>0,'0.FAV Calculos'!BH17="n",AC14>'0.FAV Calculos'!BH19),AND(AC14>0,'0.FAV Calculos'!BH17="s",AC14<'0.FAV Calculos'!BH18),AND(AC14<0,'0.FAV Calculos'!BH17="s",AC14>'0.FAV Calculos'!BH19),AND(AC14<0,'0.FAV Calculos'!BH17="n",AC14<'0.FAV Calculos'!BH18),AND(AC14<0,'0.FAV Calculos'!BH17="e"),AND(AC14>0,'0.FAV Calculos'!BH17="o"),AND(AC14=0,'0.FAV Calculos'!BH17<>"n")),0,1)*IF(OR(AND('0.FAV Calculos'!BR26>'0.FAV Calculos'!BR25,AC14<='0.FAV Calculos'!BR26,AC14>='0.FAV Calculos'!BR25),AND('0.FAV Calculos'!BR26<'0.FAV Calculos'!BR25,AC14<='0.FAV Calculos'!BR26),AND('0.FAV Calculos'!BR26<'0.FAV Calculos'!BR25,AC14>='0.FAV Calculos'!BR25)),0,1) -> 0 | FP14: 0 | FQ14: =+IF(BH22="N",'0. FAR'!HG65,IF(BH22="E",'0. FAR'!HT65,IF(BH22="s",'0. FAR'!IG65,IF(BH22="O",'0. FAR'!IT65,IF(BH22="NE",'0. FAR'!JG65,IF(BH22="SE",'0. FAR'!JT65,IF(BH22="SO",'0. FAR'!KG65,IF(BH22="NO",'0. FAR'!KT65,1)))))))) -> 0 | FR14: =+IF(BH22="N",'0. FAR'!HH65,IF(BH22="E",'0. FAR'!HU65,IF(BH22="s",'0. FAR'!IH65,IF(BH22="O",'0. FAR'!IU65,IF(BH22="NE",'0. FAR'!JH65,IF(BH22="SE",'0. FAR'!JU65,IF(BH22="SO",'0. FAR'!KH65,IF(BH22="NO",'0. FAR'!KU65,1)))))))) -> 0 | FS14: =+IF(BH22="N",'0. FAR'!HI65,IF(BH22="E",'0. FAR'!HV65,IF(BH22="s",'0. FAR'!II65,IF(BH22="O",'0. FAR'!IV65,IF(BH22="NE",'0. FAR'!JI65,IF(BH22="SE",'0. FAR'!JV65,IF(BH22="SO",'0. FAR'!KI65,IF(BH22="NO",'0. FAR'!KV65,1)))))))) -> 0 | FT14: =+IF(BH22="N",'0. FAR'!HJ65,IF(BH22="E",'0. FAR'!HW65,IF(BH22="s",'0. FAR'!IJ65,IF(BH22="O",'0. FAR'!IW65,IF(BH22="NE",'0. FAR'!JJ65,IF(BH22="SE",'0. FAR'!JW65,IF(BH22="SO",'0. FAR'!KJ65,IF(BH22="NO",'0. FAR'!KW65,1)))))))) -> 0 | FU14: =+IF(BH22="N",'0. FAR'!HK65,IF(BH22="E",'0. FAR'!HX65,IF(BH22="s",'0. FAR'!IK65,IF(BH22="O",'0. FAR'!IX65,IF(BH22="NE",'0. FAR'!JK65,IF(BH22="SE",'0. FAR'!JX65,IF(BH22="SO",'0. FAR'!KK65,IF(BH22="NO",'0. FAR'!KX65,1)))))))) -> 0 | FV14: =+IF(BH22="N",'0. FAR'!HL65,IF(BH22="E",'0. FAR'!HY65,IF(BH22="s",'0. FAR'!IL65,IF(BH22="O",'0. FAR'!IY65,IF(BH22="NE",'0. FAR'!JL65,IF(BH22="SE",'0. FAR'!JY65,IF(BH22="SO",'0. FAR'!KL65,IF(BH22="NO",'0. FAR'!KY65,1)))))))) -> 0 | FW14: =+IF(BH22="N",'0. FAR'!HM65,IF(BH22="E",'0. FAR'!HZ65,IF(BH22="s",'0. FAR'!IM65,IF(BH22="O",'0. FAR'!IZ65,IF(BH22="NE",'0. FAR'!JM65,IF(BH22="SE",'0. FAR'!JZ65,IF(BH22="SO",'0. FAR'!KM65,IF(BH22="NO",'0. FAR'!KZ65,1)))))))) -> 0 | FX14: =+IF(BH22="N",'0. FAR'!HN65,IF(BH22="E",'0. FAR'!IA65,IF(BH22="s",'0. FAR'!IN65,IF(BH22="O",'0. FAR'!JA65,IF(BH22="NE",'0. FAR'!JN65,IF(BH22="SE",'0. FAR'!KA65,IF(BH22="SO",'0. FAR'!KN65,IF(BH22="NO",'0. FAR'!LA65,1)))))))) -> 0 | FY14: =+IF(BH22="N",'0. FAR'!HO65,IF(BH22="E",'0. FAR'!IB65,IF(BH22="s",'0. FAR'!IO65,IF(BH22="O",'0. FAR'!JB65,IF(BH22="NE",'0. FAR'!JO65,IF(BH22="SE",'0. FAR'!KB65,IF(BH22="SO",'0. FAR'!KO65,IF(BH22="NO",'0. FAR'!LB65,1)))))))) -> 0 | FZ14: =+IF(BH22="N",'0. FAR'!HP65,IF(BH22="E",'0. FAR'!IC65,IF(BH22="s",'0. FAR'!IP65,IF(BH22="O",'0. FAR'!JC65,IF(BH22="NE",'0. FAR'!JP65,IF(BH22="SE",'0. FAR'!KC65,IF(BH22="SO",'0. FAR'!KP65,IF(BH22="NO",'0. FAR'!LC65,1)))))))) -> 0 | GA14: =+IF(BH22="N",'0. FAR'!HQ65,IF(BH22="E",'0. FAR'!ID65,IF(BH22="s",'0. FAR'!IQ65,IF(BH22="O",'0. FAR'!JD65,IF(BH22="NE",'0. FAR'!JQ65,IF(BH22="SE",'0. FAR'!KD65,IF(BH22="SO",'0. FAR'!KQ65,IF(BH22="NO",'0. FAR'!LD65,1)))))))) -> 0 | GB14: =+IF(BH22="N",'0. FAR'!HR65,IF(BH22="E",'0. FAR'!IE65,IF(BH22="s",'0. FAR'!IR65,IF(BH22="O",'0. FAR'!JE65,IF(BH22="NE",'0. FAR'!JR65,IF(BH22="SE",'0. FAR'!KE65,IF(BH22="SO",'0. FAR'!KR65,IF(BH22="NO",'0. FAR'!LE65,1)))))))) -> 0 | GD14: 0 | GE14: =+(IF('0.FAV Calculos'!BH17="S",IF(OR(AND(C14>0,R14>'0.FAV Calculos'!BH18),AND(C14>0,R14<'0.FAV Calculos'!BH19)),1,0),IF(AND('0.FAV Calculos'!BH19>R14,'0.FAV Calculos'!BH18<R14,C14>0),1,0)))*AF14*VLOOKUP('0.FAV Calculos'!BH22,$HA$14:$HM$22,GE$11+1,0)+AT14 -> 0 | GF14: =+(IF('0.FAV Calculos'!BH17="S",IF(OR(AND(D14>0,S14>'0.FAV Calculos'!BH18),AND(D14>0,S14<'0.FAV Calculos'!BH19)),1,0),IF(AND('0.FAV Calculos'!BH19>S14,'0.FAV Calculos'!BH18<S14,D14>0),1,0)))*AG14*VLOOKUP('0.FAV Calculos'!BH22,$HA$14:$HM$22,GF$11+1,0)+AU14 -> 0 | GG14: =+(IF('0.FAV Calculos'!BH17="S",IF(OR(AND(E14>0,T14>'0.FAV Calculos'!BH18),AND(E14>0,T14<'0.FAV Calculos'!BH19)),1,0),IF(AND('0.FAV Calculos'!BH19>T14,'0.FAV Calculos'!BH18<T14,E14>0),1,0)))*AH14*VLOOKUP('0.FAV Calculos'!BH22,$HA$14:$HM$22,GG$11+1,0)+AV14 -> 0 | GH14: =+(IF('0.FAV Calculos'!BH17="S",IF(OR(AND(F14>0,U14>'0.FAV Calculos'!BH18),AND(F14>0,U14<'0.FAV Calculos'!BH19)),1,0),IF(AND('0.FAV Calculos'!BH19>U14,'0.FAV Calculos'!BH18<U14,F14>0),1,0)))*AI14*VLOOKUP('0.FAV Calculos'!BH22,$HA$14:$HM$22,GH$11+1,0)+AW14 -> 0 | GI14: =+(IF('0.FAV Calculos'!BH17="S",IF(OR(AND(G14>0,V14>'0.FAV Calculos'!BH18),AND(G14>0,V14<'0.FAV Calculos'!BH19)),1,0),IF(AND('0.FAV Calculos'!BH19>V14,'0.FAV Calculos'!BH18<V14,G14>0),1,0)))*AJ14*VLOOKUP('0.FAV Calculos'!BH22,$HA$14:$HM$22,GI$11+1,0)+AX14 -> 0 | GJ14: =+(IF('0.FAV Calculos'!BH17="S",IF(OR(AND(H14>0,W14>'0.FAV Calculos'!BH18),AND(H14>0,W14<'0.FAV Calculos'!BH19)),1,0),IF(AND('0.FAV Calculos'!BH19>W14,'0.FAV Calculos'!BH18<W14,H14>0),1,0)))*AK14*VLOOKUP('0.FAV Calculos'!BH22,$HA$14:$HM$22,GJ$11+1,0)+AY14 -> 0 | GK14: =+(IF('0.FAV Calculos'!BH17="S",IF(OR(AND(I14>0,X14>'0.FAV Calculos'!BH18),AND(I14>0,X14<'0.FAV Calculos'!BH19)),1,0),IF(AND('0.FAV Calculos'!BH19>X14,'0.FAV Calculos'!BH18<X14,I14>0),1,0)))*AL14*VLOOKUP('0.FAV Calculos'!BH22,$HA$14:$HM$22,GK$11+1,0)+AZ14 -> 0 | GL14: =+(IF('0.FAV Calculos'!BH17="S",IF(OR(AND(J14>0,Y14>'0.FAV Calculos'!BH18),AND(J14>0,Y14<'0.FAV Calculos'!BH19)),1,0),IF(AND('0.FAV Calculos'!BH19>Y14,'0.FAV Calculos'!BH18<Y14,J14>0),1,0)))*AM14*VLOOKUP('0.FAV Calculos'!BH22,$HA$14:$HM$22,GL$11+1,0)+BA14 -> 0 | GM14: =+(IF('0.FAV Calculos'!BH17="S",IF(OR(AND(K14>0,Z14>'0.FAV Calculos'!BH18),AND(K14>0,Z14<'0.FAV Calculos'!BH19)),1,0),IF(AND('0.FAV Calculos'!BH19>Z14,'0.FAV Calculos'!BH18<Z14,K14>0),1,0)))*AN14*VLOOKUP('0.FAV Calculos'!BH22,$HA$14:$HM$22,GM$11+1,0)+BB14 -> 0 | GN14: =+(IF('0.FAV Calculos'!BH17="S",IF(OR(AND(L14>0,AA14>'0.FAV Calculos'!BH18),AND(L14>0,AA14<'0.FAV Calculos'!BH19)),1,0),IF(AND('0.FAV Calculos'!BH19>AA14,'0.FAV Calculos'!BH18<AA14,L14>0),1,0)))*AO14*VLOOKUP('0.FAV Calculos'!BH22,$HA$14:$HM$22,GN$11+1,0)+BC14 -> 0 | GO14: =+(IF('0.FAV Calculos'!BH17="S",IF(OR(AND(M14>0,AB14>'0.FAV Calculos'!BH18),AND(M14>0,AB14<'0.FAV Calculos'!BH19)),1,0),IF(AND('0.FAV Calculos'!BH19>AB14,'0.FAV Calculos'!BH18<AB14,M14>0),1,0)))*AP14*VLOOKUP('0.FAV Calculos'!BH22,$HA$14:$HM$22,GO$11+1,0)+BD14 -> 0 | GP14: =+(IF('0.FAV Calculos'!BH17="S",IF(OR(AND(N14>0,AC14>'0.FAV Calculos'!BH18),AND(N14>0,AC14<'0.FAV Calculos'!BH19)),1,0),IF(AND('0.FAV Calculos'!BH19>AC14,'0.FAV Calculos'!BH18<AC14,N14>0),1,0)))*AQ14*VLOOKUP('0.FAV Calculos'!BH22,$HA$14:$HM$22,GP$11+1,0)+BE14 -> 0 | GZ14: b | HA14: N | HB14: =+INDIRECT(CONCATENATE("'0.FAV parámetros 1'!",'0.FAV Calculos'!$GZ14,'0.FAV Calculos'!HB$12)) -> 0.5022961999 | HC14: =+INDIRECT(CONCATENATE("'0.FAV parámetros 1'!",'0.FAV Calculos'!$GZ14,'0.FAV Calculos'!HC$12)) -> 0.6256362687 | HD14: =+INDIRECT(CONCATENATE("'0.FAV parámetros 1'!",'0.FAV Calculos'!$GZ14,'0.FAV Calculos'!HD$12)) -> 0.850610022 | HE14: =+INDIRECT(CONCATENATE("'0.FAV parámetros 1'!",'0.FAV Calculos'!$GZ14,'0.FAV Calculos'!HE$12)) -> 1.22761852 | HF14: =+INDIRECT(CONCATENATE("'0.FAV parámetros 1'!",'0.FAV Calculos'!$GZ14,'0.FAV Calculos'!HF$12)) -> 1.625665359 | HG14: =+INDIRECT(CONCATENATE("'0.FAV parámetros 1'!",'0.FAV Calculos'!$GZ14,'0.FAV Calculos'!HG$12)) -> 2.015533052 | HH14: =+INDIRECT(CONCATENATE("'0.FAV parámetros 1'!",'0.FAV Calculos'!$GZ14,'0.FAV Calculos'!HH$12)) -> 1.858676294 | HI14: =+INDIRECT(CONCATENATE("'0.FAV parámetros 1'!",'0.FAV Calculos'!$GZ14,'0.FAV Calculos'!HI$12)) -> 1.407083002 | HJ14: =+INDIRECT(CONCATENATE("'0.FAV parámetros 1'!",'0.FAV Calculos'!$GZ14,'0.FAV Calculos'!HJ$12)) -> 0.9708273255 | HK14: =+INDIRECT(CONCATENATE("'0.FAV parámetros 1'!",'0.FAV Calculos'!$GZ14,'0.FAV Calculos'!HK$12)) -> 0.6856469458 | HL14: =+INDIRECT(CONCATENATE("'0.FAV parámetros 1'!",'0.FAV Calculos'!$GZ14,'0.FAV Calculos'!HL$12)) -> 0.5341115618 | HM14: =+INDIRECT(CONCATENATE("'0.FAV parámetros 1'!",'0.FAV Calculos'!$GZ14,'0.FAV Calculos'!HM$12)) -> 0.4832788629 | HO14: =+SUMIFS('CEV-CEVE'!$AF$96:$AF$122,'CEV-CEVE'!$F$96:$F$122,'0.FAV Calculos'!HA14) -> 5.9375 | HP14: =+SUMIFS($JV$14:$JV$36,$JS$14:$JS$36,HA14) -> 4.597399714 | HQ14: =+IFERROR(HP14/HO14,0) -> 0.7742988993 | HR14: =+SUMIFS($JW$14:$JW$36,$JS$14:$JS$36,HA14) -> 0.02554983466 | HS14: =+HR14*HO14 -> 0.1517021433 | IB14: 0 | IC14: =+IFERROR(SUMIFS(BW$14:BW$631,$BU$14:$BU$631,$HA$22,$BV$14:$BV$631,$IB14),0)+IFERROR(SUMIFS(BW$14:BW$631,$BU$14:$BU$631,$HA$14,$BV$14:$BV$631,$IB14),0)+IFERROR(SUMIFS(BW$14:BW$631,$BU$14:$BU$631,$HA$15,$BV$14:$BV$631,$IB14),0)+IFERROR(SUMIFS(BW$14:BW$631,$BU$14:$BU$631,$HA$16,$BV$14:$BV$631,$IB14),0)+IFERROR(SUMIFS(BW$14:BW$631,$BU$14:$BU$631,$HA$17,$BV$14:$BV$631,$IB14),0)+IFERROR(SUMIFS(BW$14:BW$631,$BU$14:$BU$631,$HA$18,$BV$14:$BV$631,$IB14),0)+IFERROR(SUMIFS(BW$14:BW$631,$BU$14:$BU$631,$HA$19,$BV$14:$BV$631,$IB14),0)+IFERROR(SUMIFS(BW$14:BW$631,$BU$14:$BU$631,$HA$20,$BV$14:$BV$631,$IB14),0)+IFERROR(SUMIFS(BW$14:BW$631,$BU$14:$BU$631,$HA$21,$BV$14:$BV$631,$IB14),0) -> 0 | ID14: =+IFERROR(SUMIFS(BX$14:BX$631,$BU$14:$BU$631,$HA$22,$BV$14:$BV$631,$IB14),0)+IFERROR(SUMIFS(BX$14:BX$631,$BU$14:$BU$631,$HA$14,$BV$14:$BV$631,$IB14),0)+IFERROR(SUMIFS(BX$14:BX$631,$BU$14:$BU$631,$HA$15,$BV$14:$BV$631,$IB14),0)+IFERROR(SUMIFS(BX$14:BX$631,$BU$14:$BU$631,$HA$16,$BV$14:$BV$631,$IB14),0)+IFERROR(SUMIFS(BX$14:BX$631,$BU$14:$BU$631,$HA$17,$BV$14:$BV$631,$IB14),0)+IFERROR(SUMIFS(BX$14:BX$631,$BU$14:$BU$631,$HA$18,$BV$14:$BV$631,$IB14),0)+IFERROR(SUMIFS(BX$14:BX$631,$BU$14:$BU$631,$HA$19,$BV$14:$BV$631,$IB14),0)+IFERROR(SUMIFS(BX$14:BX$631,$BU$14:$BU$631,$HA$20,$BV$14:$BV$631,$IB14),0)+IFERROR(SUMIFS(BX$14:BX$631,$BU$14:$BU$631,$HA$21,$BV$14:$BV$631,$IB14),0) -> 0 | IE14: 0 | IF14: 0 | IG14: 0 | IH14: 0 | II14: 0 | IJ14: 0 | IK14: 0 | IL14: 0 | IM14: 0 | IN14: 0 | IP14: 0 | IQ14: =+IFERROR(SUMIFS(CK$14:CK$631,$BU$14:$BU$631,$HA$22,$BV$14:$BV$631,$IB14),0)+IFERROR(SUMIFS(CK$14:CK$631,$BU$14:$BU$631,$HA$14,$BV$14:$BV$631,$IB14),0)+IFERROR(SUMIFS(CK$14:CK$631,$BU$14:$BU$631,$HA$15,$BV$14:$BV$631,$IB14),0)+IFERROR(SUMIFS(CK$14:CK$631,$BU$14:$BU$631,$HA$16,$BV$14:$BV$631,$IB14),0)+IFERROR(SUMIFS(CK$14:CK$631,$BU$14:$BU$631,$HA$17,$BV$14:$BV$631,$IB14),0)+IFERROR(SUMIFS(CK$14:CK$631,$BU$14:$BU$631,$HA$18,$BV$14:$BV$631,$IB14),0)+IFERROR(SUMIFS(CK$14:CK$631,$BU$14:$BU$631,$HA$19,$BV$14:$BV$631,$IB14),0)+IFERROR(SUMIFS(CK$14:CK$631,$BU$14:$BU$631,$HA$20,$BV$14:$BV$631,$IB14),0)+IFERROR(SUMIFS(CK$14:CK$631,$BU$14:$BU$631,$HA$21,$BV$14:$BV$631,$IB14),0) -> 0 | IR14: =+IFERROR(SUMIFS(CL$14:CL$631,$BU$14:$BU$631,$HA$22,$BV$14:$BV$631,$IB14),0)+IFERROR(SUMIFS(CL$14:CL$631,$BU$14:$BU$631,$HA$14,$BV$14:$BV$631,$IB14),0)+IFERROR(SUMIFS(CL$14:CL$631,$BU$14:$BU$631,$HA$15,$BV$14:$BV$631,$IB14),0)+IFERROR(SUMIFS(CL$14:CL$631,$BU$14:$BU$631,$HA$16,$BV$14:$BV$631,$IB14),0)+IFERROR(SUMIFS(CL$14:CL$631,$BU$14:$BU$631,$HA$17,$BV$14:$BV$631,$IB14),0)+IFERROR(SUMIFS(CL$14:CL$631,$BU$14:$BU$631,$HA$18,$BV$14:$BV$631,$IB14),0)+IFERROR(SUMIFS(CL$14:CL$631,$BU$14:$BU$631,$HA$19,$BV$14:$BV$631,$IB14),0)+IFERROR(SUMIFS(CL$14:CL$631,$BU$14:$BU$631,$HA$20,$BV$14:$BV$631,$IB14),0)+IFERROR(SUMIFS(CL$14:CL$631,$BU$14:$BU$631,$HA$21,$BV$14:$BV$631,$IB14),0) -> 0 | IS14: 0 | IT14: 0 | IU14: 0 | IV14: 0 | IW14: 0 | IX14: 0 | IY14: 0 | IZ14: 0 | JA14: 0 | JB14: 0 | JD14: 0 | JE14: =+$JF$4*((IC14+IQ14)*$HS$23*$HO$23)/$HO$12 -> 0 | JF14: =+$JF$4*((ID14+IR14)*$HS$23*$HO$23)/$HO$12 -> 0 | JG14: =+$JF$4*((IE14+IS14)*$HS$23*$HO$23)/$HO$12 -> 0 | JH14: =+$JF$4*((IF14+IT14)*$HS$23*$HO$23)/$HO$12 -> 0 | JI14: =+$JF$4*((IG14+IU14)*$HS$23*$HO$23)/$HO$12 -> 0 | JJ14: =+$JF$4*((IH14+IV14)*$HS$23*$HO$23)/$HO$12 -> 0 | JK14: =+$JF$4*((II14+IW14)*$HS$23*$HO$23)/$HO$12 -> 0 | JL14: =+$JF$4*((IJ14+IX14)*$HS$23*$HO$23)/$HO$12 -> 0 | JM14: =+$JF$4*((IK14+IY14)*$HS$23*$HO$23)/$HO$12 -> 0 | JN14: =+$JF$4*((IL14+IZ14)*$HS$23*$HO$23)/$HO$12 -> 0 | JO14: =+$JF$4*((IM14+JA14)*$HS$23*$HO$23)/$HO$12 -> 0 | JP14: =+$JF$4*((IN14+JB14)*$HS$23*$HO$23)/$HO$12 -> 0 | JR14: Puerta 1 | JS14: =+'CEV-CEVE'!F96 -> E | JT14: =+VLOOKUP(JR14,$BG$16:$BI$1800,2,0) -> 0 | JU14: =+'CEV-CEVE'!AF96 -> 0 | JV14: =+JU14*JT14 -> 0 | JW14: =+'CEV-CEVE'!CF96 -> 0 | JX14: =+JU14*JW14 -> 0
